Workbook

Sheet Home Page
A2: NRCS - CROPLAND ENERGY TOOL
A4: HOME PAGE
C7: Farming and Irrigation
D8: Main Input Worksheet for Farming and Irrigation
D10: Energy Summary for Alternative Field Rotations
D12: Detail Energy Summary for Alternative Field Rotations
D14: Cost Analysis Summary for Alternative Field Rotations
D16: Input Summary Worksheet
C19: Greenhouse Gas Emissions (Optional - Hidden Worksheet Tabs)
D20: Greenhouse Gas Emission Coefficients
D22: Inputs for Computing Greenhouse Gas Emission Changes
D24: Benchmark Greenhouse Gas Emissions From Field Inputs
D26: Planned Greenhouse Gas Emissions From Field Inputs | Q26: TRUE
D28: Greenhouse Gas Emission Changes From Field Inputs
C31: Practice Standards (Optional - Hidden Worksheet Tabs)
D32: Practice Standard Input Percent Allocated
D34: Practice Standard Input Fuel Type Used
D36: Energy Summary by Practice Standard
D38: Greenhouse Gas Change by Practice Standard
C41: Supporting Data
D42: Definitions
D44: Equations
D46: Database Tables
C49: Intermediate Sheets
D50: Intermediate Calculations
D52: Intermediate Practice Standards

Sheet Input
C1: AN NRCS CROPLAND ENERGY ESTIMATION TOOL
C2: Directions: | D2: Step: 1 Fill in the orange and red shaded cells located in this "Input" tab. All required input cells are located in this tab and are
D3: separated into a Benchmark or currently operated and a Planned or potential operation through energy reduction measures of a
D4: field. An explanation of each input variable is contained in the Definitions tab. Additional shaded cells will appear as additional crop
D5: names are selected from the "Crop Interval, Name, and Growth Dates" tables.
D6: Step 2: Formatted energy balance summaries are located in the Report* tabs for printing.
C10: BENCHMARK | E10: Start Date | F10: 8/16/2012 | H10: End Date | I10: 8/15/2013 | K10: Rotation Period (Yrs) | M10: =ROUND((I10-F10)/365,2) -> 1 | Q10: PLANNED | S10: Start Date | T10: 8/16/2012 | V10: End Date | W10: 8/15/2013 | Y10: Rotation Period (Yrs) | AA10: =ROUND((W10-T10)/365,2) -> 1
C13: Landowner Information | H13: Background Information | J13: Benchmark | Q13: Background Information | S13: Planned
C14: Landowner | H14: Field Acres | Q14: Field Acres | S14: =J14 -> 0
C15: State | H15: Field ID | Q15: Field ID | S15: =J15 -> 0
C16: County | G16: =VLOOKUP(E15,C208:F262,4,FALSE) ->  | H16: Field Description | Q16: Field Description | S16: =J16 -> 0
C17: Date | H17: Soil Map Units
C18: Latitude, [decimal degrees] | H18: Soil Organic Matter (SOM) | J18: 0.02
C19: Longitude, [decimal degrees]
C21: Crop Interval, Name and Harvest Dates | Q21: Crop Interval, Name and Harvest Dates | AD21: WARNING: DO NOT MOVE OR REMOVE ROWS OR COLUMNS
C22: Crop | D22: Crop | E22: Specific Crop Description | K22: Year Crop | L22: Biomass | M22: Labor | Q22: Crop | R22: Crop | S22: Specific Crop Description | Y22: Year Crop | Z22: Biomass | AA22: Labor | AD22: TABLES ARE ATTACHED TO MARCOS
C23: Interval | D23: Name | K23: Harvested | L23: Yield ratio | Q23: Interval | R23: Name | Y23: Harvested | Z23: Yield ratio | AD23: THIS IS CELL (AC30), IF NOT MACROS ARE NOT WORKING PROPERLY
K24: [YYYY] | L24: [-] | M24: [hr/acre] | Y24: [YYYY] | Z24: [-] | AA24: [hr/acre]
C25: 1 | L25: =IF(ISNA(VLOOKUP(E25,Database_Tables!$C$6:$J$1005,8,FALSE)),"",VLOOKUP(E25,Database_Tables!$C$6:$J$1005,8,FALSE)) ->  | Q25: 1 | S25: Select Specific Crop Type | Z25: =IF(ISNA(VLOOKUP(S25,Database_Tables!$C$6:$J$1005,8,FALSE)),"",VLOOKUP(S25,Database_Tables!$C$6:$J$1005,8,FALSE)) -> 
C26: 2 | L26: =IF(ISNA(VLOOKUP(E26,Database_Tables!$C$6:$J$1005,8,FALSE)),"",VLOOKUP(E26,Database_Tables!$C$6:$J$1005,8,FALSE)) ->  | Q26: 2 | S26: Select Specific Crop Type | Z26: =IF(ISNA(VLOOKUP(S26,Database_Tables!$C$6:$J$1005,8,FALSE)),"",VLOOKUP(S26,Database_Tables!$C$6:$J$1005,8,FALSE)) -> 
C27: 3 | L27: =IF(ISNA(VLOOKUP(E27,Database_Tables!$C$6:$J$1005,8,FALSE)),"",VLOOKUP(E27,Database_Tables!$C$6:$J$1005,8,FALSE)) ->  | Q27: 3 | S27: Select Specific Crop Type | Z27: =IF(ISNA(VLOOKUP(S27,Database_Tables!$C$6:$J$1005,8,FALSE)),"",VLOOKUP(S27,Database_Tables!$C$6:$J$1005,8,FALSE)) -> 
C28: 4 | L28: =IF(ISNA(VLOOKUP(E28,Database_Tables!$C$6:$J$1005,8,FALSE)),"",VLOOKUP(E28,Database_Tables!$C$6:$J$1005,8,FALSE)) ->  | Q28: 4 | S28: Select Specific Crop Type | Z28: =IF(ISNA(VLOOKUP(S28,Database_Tables!$C$6:$J$1005,8,FALSE)),"",VLOOKUP(S28,Database_Tables!$C$6:$J$1005,8,FALSE)) -> 
C29: 5 | L29: =IF(ISNA(VLOOKUP(E29,Database_Tables!$C$6:$J$1005,8,FALSE)),"",VLOOKUP(E29,Database_Tables!$C$6:$J$1005,8,FALSE)) ->  | Q29: 5 | S29: Select Specific Crop Type | Z29: =IF(ISNA(VLOOKUP(S29,Database_Tables!$C$6:$J$1005,8,FALSE)),"",VLOOKUP(S29,Database_Tables!$C$6:$J$1005,8,FALSE)) -> 
C32: Crop Harvested and Yields | Q32: Crop Harvested and Yields
C33: Crop | D33: Crop | E33: Crop | F33: Crop | G33: Yield | H33: Rootmass | I33: Available | J33: Post Harvest | K33: Post Harvest | L33: Remaining | Q33: Crop | R33: Crop | S33: Crop | T33: Crop | U33: Yield | V33: Rootmass | W33: Available | X33: Post Harvest | Y33: Post Harvest | Z33: Remaining
C34: Name | D34: Harvest | E34: Harvest | F34: Yield | G34: units | I34: Surface | J34: Forage | K34: Grazing Animal | L34: Surface | Q34: Name | R34: Harvest | S34: Harvest | T34: Yield | U34: units | W34: Surface | X34: Forage | Y34: Grazing Animal | Z34: Surface
D35: Type | E35: Moisture | I35: Residue | J35: Removed | K35: Unit Days | L35: Residue | R35: Type | S35: Moisture | W35: Residue | X35: Removed | Y35: Unit Days | Z35: Residue
E36: [%] | F36: [yield/acre] | H36: [DM lbs/ac] | I36: [DM lbs/ac] | J36: [DM lbs/ac] | K36: [AUD/acre] | L36: [DM lbs/ac] | S36: [%] | T36: [per acre] | V36: [DM lbs/ac] | W36: [DM lbs/ac] | X36: [DM lbs/ac] | Y36: [AUD/acre] | Z36: [DM lbs/ac]
C37: =IF(D25="","",D25) ->  | G37: =IF(ISNA(VLOOKUP(E25,Database_Tables!$C$6:$F$1005,4,FALSE)&"/acre"),"",IF(D37="Grazing","AUD/acre",VLOOKUP(E25,Database_Tables!$C$6:$F$1005,4,FALSE)&"/acre")) ->  | H37: =IF(ISNA(VLOOKUP(E25,Database_Tables!$C$6:$K$1005,9,FALSE)),"",VLOOKUP(E25,Database_Tables!$C$6:$K$1005,9,FALSE)) ->  | I37: =IF(ISNA(ROUND(VLOOKUP(E25,Database_Tables!$C$6:$K$1005,5,FALSE)*F37*(100-E37)/100*L25,0)),"",IF(D37="Grazing",F37*30*L25,ROUND(VLOOKUP(E25,Database_Tables!$C$6:$K$1005,5,FALSE)*F37*(100-E37)/100*L25,0))) ->  | L37: =IF(I37="","",IF(D37="Multiple Use",I37-J37-K37*30,"")) ->  | Q37: =IF(R25="","",R25) ->  | U37: =IF(ISNA(VLOOKUP(S25,Database_Tables!$C$6:$F$1005,4,FALSE)&"/acre"),"",IF(R37="Grazing","AUD/acre",VLOOKUP(S25,Database_Tables!$C$6:$F$1005,4,FALSE)&"/acre")) ->  | V37: =IF(ISNA(VLOOKUP(S25,Database_Tables!$C$6:$K$1005,9,FALSE)),"",VLOOKUP(S25,Database_Tables!$C$6:$K$1005,9,FALSE)) ->  | W37: =IF(ISNA(ROUND(VLOOKUP(S25,Database_Tables!$C$6:$K$1005,5,FALSE)*T37*(100-S37)/100*Z25,0)),"",IF(R37="Grazing",T37*30*Z25,ROUND(VLOOKUP(S25,Database_Tables!$C$6:$K$1005,5,FALSE)*T37*(100-S37)/100*Z25,0))) ->  | Z37: =IF(W37="","",IF(R37="Multiple Use",W37-X37-Y37*30,"")) -> 
C38: =IF(D26="","",D26) ->  | G38: =IF(ISNA(VLOOKUP(E26,Database_Tables!$C$6:$F$1005,4,FALSE)&"/acre"),"",IF(D38="Grazing","AUD/acre",VLOOKUP(E26,Database_Tables!$C$6:$F$1005,4,FALSE)&"/acre")) ->  | H38: =IF(ISNA(VLOOKUP(E26,Database_Tables!$C$6:$K$1005,9,FALSE)),"",VLOOKUP(E26,Database_Tables!$C$6:$K$1005,9,FALSE)) ->  | I38: =IF(ISNA(ROUND(VLOOKUP(E26,Database_Tables!$C$6:$K$1005,5,FALSE)*F38*(100-E38)/100*L26,0)),"",IF(D38="Grazing",F38*30*L26,ROUND(VLOOKUP(E26,Database_Tables!$C$6:$K$1005,5,FALSE)*F38*(100-E38)/100*L26,0))) ->  | L38: =IF(I38="","",IF(D38="Multiple Use",I38-J38-K38*30,"")) ->  | Q38: =IF(R26="","",R26) ->  | U38: =IF(ISNA(VLOOKUP(S26,Database_Tables!$C$6:$F$1005,4,FALSE)&"/acre"),"",IF(R38="Grazing","AUD/acre",VLOOKUP(S26,Database_Tables!$C$6:$F$1005,4,FALSE)&"/acre")) ->  | V38: =IF(ISNA(VLOOKUP(S26,Database_Tables!$C$6:$K$1005,9,FALSE)),"",VLOOKUP(S26,Database_Tables!$C$6:$K$1005,9,FALSE)) ->  | W38: =IF(ISNA(ROUND(VLOOKUP(S26,Database_Tables!$C$6:$K$1005,5,FALSE)*T38*(100-S38)/100*Z26,0)),"",IF(R38="Grazing",T38*30*Z26,ROUND(VLOOKUP(S26,Database_Tables!$C$6:$K$1005,5,FALSE)*T38*(100-S38)/100*Z26,0))) ->  | Z38: =IF(W38="","",IF(R38="Multiple Use",W38-X38-Y38*30,"")) -> 
C39: =IF(D27="","",D27) ->  | G39: =IF(ISNA(VLOOKUP(E27,Database_Tables!$C$6:$F$1005,4,FALSE)&"/acre"),"",IF(D39="Grazing","AUD/acre",VLOOKUP(E27,Database_Tables!$C$6:$F$1005,4,FALSE)&"/acre")) ->  | H39: =IF(ISNA(VLOOKUP(E27,Database_Tables!$C$6:$K$1005,9,FALSE)),"",VLOOKUP(E27,Database_Tables!$C$6:$K$1005,9,FALSE)) ->  | I39: =IF(ISNA(ROUND(VLOOKUP(E27,Database_Tables!$C$6:$K$1005,5,FALSE)*F39*(100-E39)/100*L27,0)),"",IF(D39="Grazing",F39*30*L27,ROUND(VLOOKUP(E27,Database_Tables!$C$6:$K$1005,5,FALSE)*F39*(100-E39)/100*L27,0))) ->  | L39: =IF(I39="","",IF(D39="Multiple Use",I39-J39-K39*30,"")) ->  | Q39: =IF(R27="","",R27) ->  | U39: =IF(ISNA(VLOOKUP(S27,Database_Tables!$C$6:$F$1005,4,FALSE)&"/acre"),"",IF(R39="Grazing","AUD/acre",VLOOKUP(S27,Database_Tables!$C$6:$F$1005,4,FALSE)&"/acre")) ->  | V39: =IF(ISNA(VLOOKUP(S27,Database_Tables!$C$6:$K$1005,9,FALSE)),"",VLOOKUP(S27,Database_Tables!$C$6:$K$1005,9,FALSE)) ->  | W39: =IF(ISNA(ROUND(VLOOKUP(S27,Database_Tables!$C$6:$K$1005,5,FALSE)*T39*(100-S39)/100*Z27,0)),"",IF(R39="Grazing",T39*30*Z27,ROUND(VLOOKUP(S27,Database_Tables!$C$6:$K$1005,5,FALSE)*T39*(100-S39)/100*Z27,0))) ->  | Z39: =IF(W39="","",IF(R39="Multiple Use",W39-X39-Y39*30,"")) -> 
C40: =IF(D28="","",D28) ->  | G40: =IF(ISNA(VLOOKUP(E28,Database_Tables!$C$6:$F$1005,4,FALSE)&"/acre"),"",IF(D40="Grazing","AUD/acre",VLOOKUP(E28,Database_Tables!$C$6:$F$1005,4,FALSE)&"/acre")) ->  | H40: =IF(ISNA(VLOOKUP(E28,Database_Tables!$C$6:$K$1005,9,FALSE)),"",VLOOKUP(E28,Database_Tables!$C$6:$K$1005,9,FALSE)) ->  | I40: =IF(ISNA(ROUND(VLOOKUP(E28,Database_Tables!$C$6:$K$1005,5,FALSE)*F40*(100-E40)/100*L28,0)),"",IF(D40="Grazing",F40*30*L28,ROUND(VLOOKUP(E28,Database_Tables!$C$6:$K$1005,5,FALSE)*F40*(100-E40)/100*L28,0))) ->  | L40: =IF(I40="","",IF(D40="Multiple Use",I40-J40-K40*30,"")) ->  | Q40: =IF(R28="","",R28) ->  | U40: =IF(ISNA(VLOOKUP(S28,Database_Tables!$C$6:$F$1005,4,FALSE)&"/acre"),"",IF(R40="Grazing","AUD/acre",VLOOKUP(S28,Database_Tables!$C$6:$F$1005,4,FALSE)&"/acre")) ->  | V40: =IF(ISNA(VLOOKUP(S28,Database_Tables!$C$6:$K$1005,9,FALSE)),"",VLOOKUP(S28,Database_Tables!$C$6:$K$1005,9,FALSE)) ->  | W40: =IF(ISNA(ROUND(VLOOKUP(S28,Database_Tables!$C$6:$K$1005,5,FALSE)*T40*(100-S40)/100*Z28,0)),"",IF(R40="Grazing",T40*30*Z28,ROUND(VLOOKUP(S28,Database_Tables!$C$6:$K$1005,5,FALSE)*T40*(100-S40)/100*Z28,0))) ->  | Z40: =IF(W40="","",IF(R40="Multiple Use",W40-X40-Y40*30,"")) -> 
C41: =IF(D29="","",D29) ->  | G41: =IF(ISNA(VLOOKUP(E29,Database_Tables!$C$6:$F$1005,4,FALSE)&"/acre"),"",IF(D41="Grazing","AUD/acre",VLOOKUP(E29,Database_Tables!$C$6:$F$1005,4,FALSE)&"/acre")) ->  | H41: =IF(ISNA(VLOOKUP(E29,Database_Tables!$C$6:$K$1005,9,FALSE)),"",VLOOKUP(E29,Database_Tables!$C$6:$K$1005,9,FALSE)) ->  | I41: =IF(ISNA(ROUND(VLOOKUP(E29,Database_Tables!$C$6:$K$1005,5,FALSE)*F41*(100-E41)/100*L29,0)),"",IF(D41="Grazing",F41*30*L29,ROUND(VLOOKUP(E29,Database_Tables!$C$6:$K$1005,5,FALSE)*F41*(100-E41)/100*L29,0))) ->  | L41: =IF(I41="","",IF(D41="Multiple Use",I41-J41-K41*30,"")) ->  | Q41: =IF(R29="","",R29) ->  | U41: =IF(ISNA(VLOOKUP(S29,Database_Tables!$C$6:$F$1005,4,FALSE)&"/acre"),"",IF(R41="Grazing","AUD/acre",VLOOKUP(S29,Database_Tables!$C$6:$F$1005,4,FALSE)&"/acre")) ->  | V41: =IF(ISNA(VLOOKUP(S29,Database_Tables!$C$6:$K$1005,9,FALSE)),"",VLOOKUP(S29,Database_Tables!$C$6:$K$1005,9,FALSE)) ->  | W41: =IF(ISNA(ROUND(VLOOKUP(S29,Database_Tables!$C$6:$K$1005,5,FALSE)*T41*(100-S41)/100*Z29,0)),"",IF(R41="Grazing",T41*30*Z29,ROUND(VLOOKUP(S29,Database_Tables!$C$6:$K$1005,5,FALSE)*T41*(100-S41)/100*Z29,0))) ->  | Z41: =IF(W41="","",IF(R41="Multiple Use",W41-X41-Y41*30,"")) -> 
C44: Soil Amendments Applied | Q44: Soil Amendments Applied
C45: Crop | D45: Applied | E45: Compost | F45: Seed | G45: Animal | H45: Other | Q45: Crop | R45: Applied | S45: Compost | T45: Seed | U45: Animal | V45: Other
C46: Name | D46: Stored | E46: Organic | G46: Feed | H46: Applied | Q46: Name | R46: Stored | S46: Organic | U46: Feed | V46: Applied
D47: Manure | E47: Matter | G47: Organ Mat | H47: Organ. Mat. | R47: Manure | S47: Material | U47: Organ Mat | V47: Organ. Mat.
D48: [DM lbs/ac] | E48: [DM lbs/ac] | F48: [DM lbs/ac] | G48: [DM lbs/ac] | H48: [DM lbs/ac] | R48: [DM lbs/ac] | S48: [DM lbs/ac] | T48: [DM lbs/ac] | U48: [DM lbs/ac] | V48: [DM lbs/ac]
C49: =IF(D25="","",D25) ->  | Q49: =IF(R25="","",R25) -> 
C50: =IF(D26="","",D26) ->  | Q50: =IF(R26="","",R26) -> 
C51: =IF(D27="","",D27) ->  | Q51: =IF(R27="","",R27) -> 
C52: =IF(D28="","",D28) ->  | Q52: =IF(R28="","",R28) -> 
C53: =IF(D29="","",D29) ->  | Q53: =IF(R29="","",R29) -> 
K55: 1
C56: Agrichemicals Applied | K56: Inorganics | L56: BTU/lb | Q56: Agrichemicals Applied
C57: Crop | D57: N | E57: P2O5 | F57: K2O | G57: S | H57: Hrb | I57: Pst | K57: Nitrogen | L57: =Report_Cost!F33 -> 20000 | Q57: Crop | R57: N | S57: P2O5 | T57: K2O | U57: S | V57: Hrb | W57: Pst
C58: Name | D58: Nitrogen | E58: Phosphorus | F58: Potassium | G58: Sulfur | H58: AI Herbicide | I58: AI Pesticide | K58: Phosphorus | L58: =Report_Cost!F34 -> 7000 | Q58: Name | R58: Nitrogen | S58: Phosphorus | T58: Potassium | U58: Sulfur | V58: AI Herbicide | W58: AI Pesticide
D59: Application | E59: Application | F59: Application | G59: Application | H59: Application | I59: Application | K59: Potassium | L59: =Report_Cost!F35 -> 5500 | R59: Application | S59: Application | T59: Application | U59: Application | V59: Application | W59: Application
D60: [lbs/acre] | E60: [lbs/acre] | F60: [lbs/acre] | G60: [lbs/acre] | H60: [oz/acre] | I60: [oz/acre] | K60: Sulfur | L60: =Report_Cost!F36 -> 2000 | R60: [lbs/acre] | S60: [lbs/acre] | T60: [lbs/acre] | U60: [lbs/acre] | V60: [oz/acre] | W60: [oz/acre]
C61: =IF(D25="","",D25) ->  | I61: 16 | K61: Herbicide | L61: =Report_Cost!F37 -> 6250 | Q61: =IF(R25="","",R25) -> 
C62: =IF(D26="","",D26) ->  | K62: Pesticide | L62: =Report_Cost!F38 -> 6250 | Q62: =IF(R26="","",R26) -> 
C63: =IF(D27="","",D27) ->  | Q63: =IF(R27="","",R27) -> 
C64: =IF(D28="","",D28) ->  | Q64: =IF(R28="","",R28) -> 
C65: =IF(D29="","",D29) ->  | Q65: =IF(R29="","",R29) -> 
C66: Note: AI = Active Ingredient | Q66: Note: AI = Active Ingredient
C68: Field Operations Diesel Use: Crop Interval 1 (Benchmark) | M68: 1 | Q68: Field Operations Diesel Use: Crop Interal 1 (Planned)
C69: Crop | D69: Operation | E69: Operation | J69: Frequency | K69: Diesel | M69: Diesel | Q69: Crop | R69: Operation | S69: Operation | X69: Frequency | Y69: Diesel
C70: Name | E70: Description | J70: No. of Times | K70: Use | M70: Use | Q70: Name | S70: Description | X70: No. of Times | Y70: Use
J71: per Interval | K71: [gal/ac] | M71: [BTU/gal] | X71: per Interval | Y71: [gal/ac]
B72: =L72 -> 0 | C72: =IF(D25="","",D25) ->  | D72: Other | E72: zdefault | K72: =IF(ISNA(VLOOKUP(E72,Database_Tables!$C$1014:$D$1578,2,FALSE)*IF(OR(ISBLANK(J72),J72<0),1,J72)),"",VLOOKUP(E72,Database_Tables!$C$1014:$D$1578,2,FALSE)*IF(OR(ISBLANK(J72),J72<0),1,J72)) -> 0 | L72: =IF(ISBLANK($D$25),0,IF(ISBLANK(D72),0,1)) -> 0 | M72: =Report_Cost!F14 -> 139000 | P72: =Z72 -> 0 | Q72: =IF(R25="","",R25) ->  | Y72: =IF(ISNA(VLOOKUP(S72,Database_Tables!$C$1014:$D$1578,2,FALSE)*IF(OR(ISBLANK(X72),X72<0),1,X72)),"",VLOOKUP(S72,Database_Tables!$C$1014:$D$1578,2,FALSE)*IF(OR(ISBLANK(X72),X72<0),1,X72)) ->  | Z72: =IF(ISBLANK($R$25),0,IF(ISBLANK(R72),0,1)) -> 0
B73: =IF(L73=1,SUM($L$72:L73),0) -> 0 | K73: =IF(ISNA(VLOOKUP(E73,Database_Tables!$C$1014:$D$1578,2,FALSE)*IF(OR(ISBLANK(J73),J73<0),1,J73)),"",VLOOKUP(E73,Database_Tables!$C$1014:$D$1578,2,FALSE)*IF(OR(ISBLANK(J73),J73<0),1,J73)) ->  | L73: =IF(ISBLANK($D$25),0,IF(ISBLANK(D73),0,1)) -> 0 | P73: =IF(Z73=1,SUM($Z$72:Z73),0) -> 0 | Y73: =IF(ISNA(VLOOKUP(S73,Database_Tables!$C$1014:$D$1578,2,FALSE)*IF(OR(ISBLANK(X73),X73<0),1,X73)),"",VLOOKUP(S73,Database_Tables!$C$1014:$D$1578,2,FALSE)*IF(OR(ISBLANK(X73),X73<0),1,X73)) ->  | Z73: =IF(ISBLANK($R$25),0,IF(ISBLANK(R73),0,1)) -> 0
B74: =IF(L74=1,SUM($L$72:L74),0) -> 0 | K74: =IF(ISNA(VLOOKUP(E74,Database_Tables!$C$1014:$D$1578,2,FALSE)*IF(OR(ISBLANK(J74),J74<0),1,J74)),"",VLOOKUP(E74,Database_Tables!$C$1014:$D$1578,2,FALSE)*IF(OR(ISBLANK(J74),J74<0),1,J74)) ->  | L74: 0 | P74: =IF(Z74=1,SUM($Z$72:Z74),0) -> 0 | Y74: =IF(ISNA(VLOOKUP(S74,Database_Tables!$C$1014:$D$1578,2,FALSE)*IF(OR(ISBLANK(X74),X74<0),1,X74)),"",VLOOKUP(S74,Database_Tables!$C$1014:$D$1578,2,FALSE)*IF(OR(ISBLANK(X74),X74<0),1,X74)) ->  | Z74: 0
B75: =IF(L75=1,SUM($L$72:L75),0) -> 0 | K75: =IF(ISNA(VLOOKUP(E75,Database_Tables!$C$1014:$D$1578,2,FALSE)*IF(OR(ISBLANK(J75),J75<0),1,J75)),"",VLOOKUP(E75,Database_Tables!$C$1014:$D$1578,2,FALSE)*IF(OR(ISBLANK(J75),J75<0),1,J75)) ->  | L75: =IF(ISBLANK($D$25),0,IF(ISBLANK(D75),0,1)) -> 0 | P75: =IF(Z75=1,SUM($Z$72:Z75),0) -> 0 | Y75: =IF(ISNA(VLOOKUP(S75,Database_Tables!$C$1014:$D$1578,2,FALSE)*IF(OR(ISBLANK(X75),X75<0),1,X75)),"",VLOOKUP(S75,Database_Tables!$C$1014:$D$1578,2,FALSE)*IF(OR(ISBLANK(X75),X75<0),1,X75)) ->  | Z75: 0
B76: =IF(L76=1,SUM($L$72:L76),0) -> 0 | K76: =IF(ISNA(VLOOKUP(E76,Database_Tables!$C$1014:$D$1578,2,FALSE)*IF(OR(ISBLANK(J76),J76<0),1,J76)),"",VLOOKUP(E76,Database_Tables!$C$1014:$D$1578,2,FALSE)*IF(OR(ISBLANK(J76),J76<0),1,J76)) ->  | L76: 0 | P76: =IF(Z76=1,SUM($Z$72:Z76),0) -> 0 | Y76: =IF(ISNA(VLOOKUP(S76,Database_Tables!$C$1014:$D$1578,2,FALSE)*IF(OR(ISBLANK(X76),X76<0),1,X76)),"",VLOOKUP(S76,Database_Tables!$C$1014:$D$1578,2,FALSE)*IF(OR(ISBLANK(X76),X76<0),1,X76)) ->  | Z76: 0
B77: =IF(L77=1,SUM($L$72:L77),0) -> 0 | K77: =IF(ISNA(VLOOKUP(E77,Database_Tables!$C$1014:$D$1578,2,FALSE)*IF(OR(ISBLANK(J77),J77<0),1,J77)),"",VLOOKUP(E77,Database_Tables!$C$1014:$D$1578,2,FALSE)*IF(OR(ISBLANK(J77),J77<0),1,J77)) ->  | L77: 0 | P77: =IF(Z77=1,SUM($Z$72:Z77),0) -> 0 | Y77: =IF(ISNA(VLOOKUP(S77,Database_Tables!$C$1014:$D$1578,2,FALSE)*IF(OR(ISBLANK(X77),X77<0),1,X77)),"",VLOOKUP(S77,Database_Tables!$C$1014:$D$1578,2,FALSE)*IF(OR(ISBLANK(X77),X77<0),1,X77)) ->  | Z77: 0
B78: =IF(L78=1,SUM($L$72:L78),0) -> 0 | K78: =IF(ISNA(VLOOKUP(E78,Database_Tables!$C$1014:$D$1578,2,FALSE)*IF(OR(ISBLANK(J78),J78<0),1,J78)),"",VLOOKUP(E78,Database_Tables!$C$1014:$D$1578,2,FALSE)*IF(OR(ISBLANK(J78),J78<0),1,J78)) ->  | L78: 0 | P78: =IF(Z78=1,SUM($Z$72:Z78),0) -> 0 | Y78: =IF(ISNA(VLOOKUP(S78,Database_Tables!$C$1014:$D$1578,2,FALSE)*IF(OR(ISBLANK(X78),X78<0),1,X78)),"",VLOOKUP(S78,Database_Tables!$C$1014:$D$1578,2,FALSE)*IF(OR(ISBLANK(X78),X78<0),1,X78)) ->  | Z78: 0
B79: =IF(L79=1,SUM($L$72:L79),0) -> 0 | K79: =IF(ISNA(VLOOKUP(E79,Database_Tables!$C$1014:$D$1578,2,FALSE)*IF(OR(ISBLANK(J79),J79<0),1,J79)),"",VLOOKUP(E79,Database_Tables!$C$1014:$D$1578,2,FALSE)*IF(OR(ISBLANK(J79),J79<0),1,J79)) ->  | L79: 0 | P79: =IF(Z79=1,SUM($Z$72:Z79),0) -> 0 | Y79: =IF(ISNA(VLOOKUP(S79,Database_Tables!$C$1014:$D$1578,2,FALSE)*IF(OR(ISBLANK(X79),X79<0),1,X79)),"",VLOOKUP(S79,Database_Tables!$C$1014:$D$1578,2,FALSE)*IF(OR(ISBLANK(X79),X79<0),1,X79)) ->  | Z79: 0
B80: =IF(L80=1,SUM($L$72:L80),0) -> 0 | K80: =IF(ISNA(VLOOKUP(E80,Database_Tables!$C$1014:$D$1578,2,FALSE)*IF(OR(ISBLANK(J80),J80<0),1,J80)),"",VLOOKUP(E80,Database_Tables!$C$1014:$D$1578,2,FALSE)*IF(OR(ISBLANK(J80),J80<0),1,J80)) ->  | L80: 0 | P80: =IF(Z80=1,SUM($Z$72:Z80),0) -> 0 | Y80: =IF(ISNA(VLOOKUP(S80,Database_Tables!$C$1014:$D$1578,2,FALSE)*IF(OR(ISBLANK(X80),X80<0),1,X80)),"",VLOOKUP(S80,Database_Tables!$C$1014:$D$1578,2,FALSE)*IF(OR(ISBLANK(X80),X80<0),1,X80)) ->  | Z80: 0
B81: =IF(L81=1,SUM($L$72:L81),0) -> 0 | K81: =IF(ISNA(VLOOKUP(E81,Database_Tables!$C$1014:$D$1578,2,FALSE)*IF(OR(ISBLANK(J81),J81<0),1,J81)),"",VLOOKUP(E81,Database_Tables!$C$1014:$D$1578,2,FALSE)*IF(OR(ISBLANK(J81),J81<0),1,J81)) ->  | L81: 0 | P81: =IF(Z81=1,SUM($Z$72:Z81),0) -> 0 | Y81: =IF(ISNA(VLOOKUP(S81,Database_Tables!$C$1014:$D$1578,2,FALSE)*IF(OR(ISBLANK(X81),X81<0),1,X81)),"",VLOOKUP(S81,Database_Tables!$C$1014:$D$1578,2,FALSE)*IF(OR(ISBLANK(X81),X81<0),1,X81)) ->  | Z81: 0
B82: =IF(L82=1,SUM($L$72:L82),0) -> 0 | D82: Manual Input | E82: Manually Input Operation Description and Diesel Use (if needed) | J82: NA | L82: =IF(ISBLANK($D$25),0,IF(ISBLANK(K82),0,1)) -> 0 | P82: =IF(Z82=1,SUM($Z$72:Z82),0) -> 0 | R82: Manual Input | S82: Manually Input Operation Description and Diesel Use (if needed) | X82: NA | Z82: =IF(ISBLANK($R$25),0,IF(ISBLANK(Y82),0,1)) -> 0
B83: =IF(L83=1,SUM($L$72:L83),0) -> 0 | D83: Manual Input | E83: Manually Input Operation Description and Diesel Use (if needed) | J83: NA | L83: =IF(ISBLANK($D$25),0,IF(ISBLANK(K83),0,1)) -> 0 | P83: =IF(Z83=1,SUM($Z$72:Z83),0) -> 0 | R83: Manual Input | S83: Manually Input Operation Description and Diesel Use (if needed) | X83: NA | Z83: =IF(ISBLANK($R$25),0,IF(ISBLANK(Y83),0,1)) -> 0
C84: Field Operations Diesel Use: Crop Interval 2 (Benchmark) | Q84: Field Operations Diesel Use: Crop Interval 2 (Planned)
B85: =IF(L85=1,SUM($L$72:L85),0) -> 0 | C85: =IF(D26="","",D26) ->  | E85: Select Operation Description | K85: =IF(ISNA(VLOOKUP(E85,Database_Tables!$C$1014:$D$1578,2,FALSE)*IF(OR(ISBLANK(J85),J85<0),1,J85)),"",VLOOKUP(E85,Database_Tables!$C$1014:$D$1578,2,FALSE)*IF(OR(ISBLANK(J85),J85<0),1,J85)) ->  | L85: =IF(ISBLANK($D$26),0,IF(ISBLANK(D85),0,1)) -> 0 | P85: =IF(Z85=1,SUM($Z$72:Z85),0) -> 0 | Q85: =IF(R26="","",R26) ->  | Y85: =IF(ISNA(VLOOKUP(S85,Database_Tables!$C$1014:$D$1578,2,FALSE)*IF(OR(ISBLANK(X85),X85<0),1,X85)),"",VLOOKUP(S85,Database_Tables!$C$1014:$D$1578,2,FALSE)*IF(OR(ISBLANK(X85),X85<0),1,X85)) ->  | Z85: =IF(ISBLANK($R$26),0,IF(ISBLANK(R85),0,1)) -> 0
B86: =IF(L86=1,SUM($L$72:L86),0) -> 0 | K86: =IF(ISNA(VLOOKUP(E86,Database_Tables!$C$1014:$D$1578,2,FALSE)*IF(OR(ISBLANK(J86),J86<0),1,J86)),"",VLOOKUP(E86,Database_Tables!$C$1014:$D$1578,2,FALSE)*IF(OR(ISBLANK(J86),J86<0),1,J86)) ->  | L86: =IF(ISBLANK($D$26),0,IF(ISBLANK(D86),0,1)) -> 0 | P86: =IF(Z86=1,SUM($Z$72:Z86),0) -> 0 | Y86: =IF(ISNA(VLOOKUP(S86,Database_Tables!$C$1014:$D$1578,2,FALSE)*IF(OR(ISBLANK(X86),X86<0),1,X86)),"",VLOOKUP(S86,Database_Tables!$C$1014:$D$1578,2,FALSE)*IF(OR(ISBLANK(X86),X86<0),1,X86)) ->  | Z86: =IF(ISBLANK($R$26),0,IF(ISBLANK(R86),0,1)) -> 0
B87: =IF(L87=1,SUM($L$72:L87),0) -> 0 | K87: =IF(ISNA(VLOOKUP(E87,Database_Tables!$C$1014:$D$1578,2,FALSE)*IF(OR(ISBLANK(J87),J87<0),1,J87)),"",VLOOKUP(E87,Database_Tables!$C$1014:$D$1578,2,FALSE)*IF(OR(ISBLANK(J87),J87<0),1,J87)) ->  | L87: 0 | P87: =IF(Z87=1,SUM($Z$72:Z87),0) -> 0 | Y87: =IF(ISNA(VLOOKUP(S87,Database_Tables!$C$1014:$D$1578,2,FALSE)*IF(OR(ISBLANK(X87),X87<0),1,X87)),"",VLOOKUP(S87,Database_Tables!$C$1014:$D$1578,2,FALSE)*IF(OR(ISBLANK(X87),X87<0),1,X87)) ->  | Z87: 0
B88: =IF(L88=1,SUM($L$72:L88),0) -> 0 | K88: =IF(ISNA(VLOOKUP(E88,Database_Tables!$C$1014:$D$1578,2,FALSE)*IF(OR(ISBLANK(J88),J88<0),1,J88)),"",VLOOKUP(E88,Database_Tables!$C$1014:$D$1578,2,FALSE)*IF(OR(ISBLANK(J88),J88<0),1,J88)) ->  | L88: 0 | P88: =IF(Z88=1,SUM($Z$72:Z88),0) -> 0 | Y88: =IF(ISNA(VLOOKUP(S88,Database_Tables!$C$1014:$D$1578,2,FALSE)*IF(OR(ISBLANK(X88),X88<0),1,X88)),"",VLOOKUP(S88,Database_Tables!$C$1014:$D$1578,2,FALSE)*IF(OR(ISBLANK(X88),X88<0),1,X88)) ->  | Z88: 0
B89: =IF(L89=1,SUM($L$72:L89),0) -> 0 | K89: =IF(ISNA(VLOOKUP(E89,Database_Tables!$C$1014:$D$1578,2,FALSE)*IF(OR(ISBLANK(J89),J89<0),1,J89)),"",VLOOKUP(E89,Database_Tables!$C$1014:$D$1578,2,FALSE)*IF(OR(ISBLANK(J89),J89<0),1,J89)) ->  | L89: 0 | P89: =IF(Z89=1,SUM($Z$72:Z89),0) -> 0 | Y89: =IF(ISNA(VLOOKUP(S89,Database_Tables!$C$1014:$D$1578,2,FALSE)*IF(OR(ISBLANK(X89),X89<0),1,X89)),"",VLOOKUP(S89,Database_Tables!$C$1014:$D$1578,2,FALSE)*IF(OR(ISBLANK(X89),X89<0),1,X89)) ->  | Z89: 0
B90: =IF(L90=1,SUM($L$72:L90),0) -> 0 | K90: =IF(ISNA(VLOOKUP(E90,Database_Tables!$C$1014:$D$1578,2,FALSE)*IF(OR(ISBLANK(J90),J90<0),1,J90)),"",VLOOKUP(E90,Database_Tables!$C$1014:$D$1578,2,FALSE)*IF(OR(ISBLANK(J90),J90<0),1,J90)) ->  | L90: 0 | P90: =IF(Z90=1,SUM($Z$72:Z90),0) -> 0 | Y90: =IF(ISNA(VLOOKUP(S90,Database_Tables!$C$1014:$D$1578,2,FALSE)*IF(OR(ISBLANK(X90),X90<0),1,X90)),"",VLOOKUP(S90,Database_Tables!$C$1014:$D$1578,2,FALSE)*IF(OR(ISBLANK(X90),X90<0),1,X90)) ->  | Z90: 0
B91: =IF(L91=1,SUM($L$72:L91),0) -> 0 | K91: =IF(ISNA(VLOOKUP(E91,Database_Tables!$C$1014:$D$1578,2,FALSE)*IF(OR(ISBLANK(J91),J91<0),1,J91)),"",VLOOKUP(E91,Database_Tables!$C$1014:$D$1578,2,FALSE)*IF(OR(ISBLANK(J91),J91<0),1,J91)) ->  | L91: 0 | P91: =IF(Z91=1,SUM($Z$72:Z91),0) -> 0 | Y91: =IF(ISNA(VLOOKUP(S91,Database_Tables!$C$1014:$D$1578,2,FALSE)*IF(OR(ISBLANK(X91),X91<0),1,X91)),"",VLOOKUP(S91,Database_Tables!$C$1014:$D$1578,2,FALSE)*IF(OR(ISBLANK(X91),X91<0),1,X91)) ->  | Z91: 0
B92: =IF(L92=1,SUM($L$72:L92),0) -> 0 | K92: =IF(ISNA(VLOOKUP(E92,Database_Tables!$C$1014:$D$1578,2,FALSE)*IF(OR(ISBLANK(J92),J92<0),1,J92)),"",VLOOKUP(E92,Database_Tables!$C$1014:$D$1578,2,FALSE)*IF(OR(ISBLANK(J92),J92<0),1,J92)) ->  | L92: 0 | P92: =IF(Z92=1,SUM($Z$72:Z92),0) -> 0 | Y92: =IF(ISNA(VLOOKUP(S92,Database_Tables!$C$1014:$D$1578,2,FALSE)*IF(OR(ISBLANK(X92),X92<0),1,X92)),"",VLOOKUP(S92,Database_Tables!$C$1014:$D$1578,2,FALSE)*IF(OR(ISBLANK(X92),X92<0),1,X92)) ->  | Z92: 0
B93: =IF(L93=1,SUM($L$72:L93),0) -> 0 | K93: =IF(ISNA(VLOOKUP(E93,Database_Tables!$C$1014:$D$1578,2,FALSE)*IF(OR(ISBLANK(J93),J93<0),1,J93)),"",VLOOKUP(E93,Database_Tables!$C$1014:$D$1578,2,FALSE)*IF(OR(ISBLANK(J93),J93<0),1,J93)) ->  | L93: 0 | P93: =IF(Z93=1,SUM($Z$72:Z93),0) -> 0 | Y93: =IF(ISNA(VLOOKUP(S93,Database_Tables!$C$1014:$D$1578,2,FALSE)*IF(OR(ISBLANK(X93),X93<0),1,X93)),"",VLOOKUP(S93,Database_Tables!$C$1014:$D$1578,2,FALSE)*IF(OR(ISBLANK(X93),X93<0),1,X93)) ->  | Z93: 0
B94: =IF(L94=1,SUM($L$72:L94),0) -> 0 | K94: =IF(ISNA(VLOOKUP(E94,Database_Tables!$C$1014:$D$1578,2,FALSE)*IF(OR(ISBLANK(J94),J94<0),1,J94)),"",VLOOKUP(E94,Database_Tables!$C$1014:$D$1578,2,FALSE)*IF(OR(ISBLANK(J94),J94<0),1,J94)) ->  | L94: 0 | P94: =IF(Z94=1,SUM($Z$72:Z94),0) -> 0 | Y94: =IF(ISNA(VLOOKUP(S94,Database_Tables!$C$1014:$D$1578,2,FALSE)*IF(OR(ISBLANK(X94),X94<0),1,X94)),"",VLOOKUP(S94,Database_Tables!$C$1014:$D$1578,2,FALSE)*IF(OR(ISBLANK(X94),X94<0),1,X94)) ->  | Z94: 0
B95: =IF(L95=1,SUM($L$72:L95),0) -> 0 | D95: Manual Input | E95: Manually Input Operation Description and Diesel Use (if needed) | J95: NA | L95: =IF(ISBLANK($D$26),0,IF(ISBLANK(K95),0,1)) -> 0 | P95: =IF(Z95=1,SUM($Z$72:Z95),0) -> 0 | R95: Manual Input | S95: Manually Input Operation Description and Diesel Use (if needed) | X95: NA | Z95: =IF(ISBLANK($R$26),0,IF(ISBLANK(Y95),0,1)) -> 0
B96: =IF(L96=1,SUM($L$72:L96),0) -> 0 | D96: Manual Input | E96: Manually Input Operation Description and Diesel Use (if needed) | J96: NA | L96: =IF(ISBLANK($D$26),0,IF(ISBLANK(K96),0,1)) -> 0 | P96: =IF(Z96=1,SUM($Z$72:Z96),0) -> 0 | R96: Manual Input | S96: Manually Input Operation Description and Diesel Use (if needed) | X96: NA | Z96: =IF(ISBLANK($R$26),0,IF(ISBLANK(Y96),0,1)) -> 0
B97: =IF(L97=1,SUM($L$72:L97),0) -> 0 | C97: Field Operations Diesel Use: Crop Interval 3 (Benchmark) | Q97: Field Operations Diesel Use: Crop Interval 3 (Planned)
B98: =IF(L98=1,SUM($L$72:L98),0) -> 0 | C98: =IF(D27="","",D27) ->  | E98: Select Operation Description | K98: =IF(ISNA(VLOOKUP(E98,Database_Tables!$C$1014:$D$1578,2,FALSE)*IF(OR(ISBLANK(J98),J98<0),1,J98)),"",VLOOKUP(E98,Database_Tables!$C$1014:$D$1578,2,FALSE)*IF(OR(ISBLANK(J98),J98<0),1,J98)) ->  | L98: =IF(ISBLANK($D$27),0,IF(ISBLANK(D98),0,1)) -> 0 | P98: =IF(Z98=1,SUM($Z$72:Z98),0) -> 0 | Q98: =IF(R27="","",R27) ->  | Y98: =IF(ISNA(VLOOKUP(S98,Database_Tables!$C$1014:$D$1578,2,FALSE)*IF(OR(ISBLANK(X98),X98<0),1,X98)),"",VLOOKUP(S98,Database_Tables!$C$1014:$D$1578,2,FALSE)*IF(OR(ISBLANK(X98),X98<0),1,X98)) ->  | Z98: =IF(ISBLANK($R$27),0,IF(ISBLANK(R98),0,1)) -> 0
B99: =IF(L99=1,SUM($L$72:L99),0) -> 0 | K99: =IF(ISNA(VLOOKUP(E99,Database_Tables!$C$1014:$D$1578,2,FALSE)*IF(OR(ISBLANK(J99),J99<0),1,J99)),"",VLOOKUP(E99,Database_Tables!$C$1014:$D$1578,2,FALSE)*IF(OR(ISBLANK(J99),J99<0),1,J99)) ->  | L99: =IF(ISBLANK($D$27),0,IF(ISBLANK(D99),0,1)) -> 0 | P99: =IF(Z99=1,SUM($Z$72:Z99),0) -> 0 | Y99: =IF(ISNA(VLOOKUP(S99,Database_Tables!$C$1014:$D$1578,2,FALSE)*IF(OR(ISBLANK(X99),X99<0),1,X99)),"",VLOOKUP(S99,Database_Tables!$C$1014:$D$1578,2,FALSE)*IF(OR(ISBLANK(X99),X99<0),1,X99)) ->  | Z99: =IF(ISBLANK($R$27),0,IF(ISBLANK(R99),0,1)) -> 0
B100: =IF(L100=1,SUM($L$72:L100),0) -> 0 | K100: =IF(ISNA(VLOOKUP(E100,Database_Tables!$C$1014:$D$1578,2,FALSE)*IF(OR(ISBLANK(J100),J100<0),1,J100)),"",VLOOKUP(E100,Database_Tables!$C$1014:$D$1578,2,FALSE)*IF(OR(ISBLANK(J100),J100<0),1,J100)) ->  | L100: 0 | P100: =IF(Z100=1,SUM($Z$72:Z100),0) -> 0 | Y100: =IF(ISNA(VLOOKUP(S100,Database_Tables!$C$1014:$D$1578,2,FALSE)*IF(OR(ISBLANK(X100),X100<0),1,X100)),"",VLOOKUP(S100,Database_Tables!$C$1014:$D$1578,2,FALSE)*IF(OR(ISBLANK(X100),X100<0),1,X100)) ->  | Z100: 0
B101: =IF(L101=1,SUM($L$72:L101),0) -> 0 | K101: =IF(ISNA(VLOOKUP(E101,Database_Tables!$C$1014:$D$1578,2,FALSE)*IF(OR(ISBLANK(J101),J101<0),1,J101)),"",VLOOKUP(E101,Database_Tables!$C$1014:$D$1578,2,FALSE)*IF(OR(ISBLANK(J101),J101<0),1,J101)) ->  | L101: 0 | P101: =IF(Z101=1,SUM($Z$72:Z101),0) -> 0 | Y101: =IF(ISNA(VLOOKUP(S101,Database_Tables!$C$1014:$D$1578,2,FALSE)*IF(OR(ISBLANK(X101),X101<0),1,X101)),"",VLOOKUP(S101,Database_Tables!$C$1014:$D$1578,2,FALSE)*IF(OR(ISBLANK(X101),X101<0),1,X101)) ->  | Z101: 0
B102: =IF(L102=1,SUM($L$72:L102),0) -> 0 | K102: =IF(ISNA(VLOOKUP(E102,Database_Tables!$C$1014:$D$1578,2,FALSE)*IF(OR(ISBLANK(J102),J102<0),1,J102)),"",VLOOKUP(E102,Database_Tables!$C$1014:$D$1578,2,FALSE)*IF(OR(ISBLANK(J102),J102<0),1,J102)) ->  | L102: 0 | P102: =IF(Z102=1,SUM($Z$72:Z102),0) -> 0 | Y102: =IF(ISNA(VLOOKUP(S102,Database_Tables!$C$1014:$D$1578,2,FALSE)*IF(OR(ISBLANK(X102),X102<0),1,X102)),"",VLOOKUP(S102,Database_Tables!$C$1014:$D$1578,2,FALSE)*IF(OR(ISBLANK(X102),X102<0),1,X102)) ->  | Z102: 0
B103: =IF(L103=1,SUM($L$72:L103),0) -> 0 | K103: =IF(ISNA(VLOOKUP(E103,Database_Tables!$C$1014:$D$1578,2,FALSE)*IF(OR(ISBLANK(J103),J103<0),1,J103)),"",VLOOKUP(E103,Database_Tables!$C$1014:$D$1578,2,FALSE)*IF(OR(ISBLANK(J103),J103<0),1,J103)) ->  | L103: 0 | P103: =IF(Z103=1,SUM($Z$72:Z103),0) -> 0 | Y103: =IF(ISNA(VLOOKUP(S103,Database_Tables!$C$1014:$D$1578,2,FALSE)*IF(OR(ISBLANK(X103),X103<0),1,X103)),"",VLOOKUP(S103,Database_Tables!$C$1014:$D$1578,2,FALSE)*IF(OR(ISBLANK(X103),X103<0),1,X103)) ->  | Z103: 0
B104: =IF(L104=1,SUM($L$72:L104),0) -> 0 | K104: =IF(ISNA(VLOOKUP(E104,Database_Tables!$C$1014:$D$1578,2,FALSE)*IF(OR(ISBLANK(J104),J104<0),1,J104)),"",VLOOKUP(E104,Database_Tables!$C$1014:$D$1578,2,FALSE)*IF(OR(ISBLANK(J104),J104<0),1,J104)) ->  | L104: 0 | P104: =IF(Z104=1,SUM($Z$72:Z104),0) -> 0 | Y104: =IF(ISNA(VLOOKUP(S104,Database_Tables!$C$1014:$D$1578,2,FALSE)*IF(OR(ISBLANK(X104),X104<0),1,X104)),"",VLOOKUP(S104,Database_Tables!$C$1014:$D$1578,2,FALSE)*IF(OR(ISBLANK(X104),X104<0),1,X104)) ->  | Z104: 0
B105: =IF(L105=1,SUM($L$72:L105),0) -> 0 | K105: =IF(ISNA(VLOOKUP(E105,Database_Tables!$C$1014:$D$1578,2,FALSE)*IF(OR(ISBLANK(J105),J105<0),1,J105)),"",VLOOKUP(E105,Database_Tables!$C$1014:$D$1578,2,FALSE)*IF(OR(ISBLANK(J105),J105<0),1,J105)) ->  | L105: 0 | P105: =IF(Z105=1,SUM($Z$72:Z105),0) -> 0 | Y105: =IF(ISNA(VLOOKUP(S105,Database_Tables!$C$1014:$D$1578,2,FALSE)*IF(OR(ISBLANK(X105),X105<0),1,X105)),"",VLOOKUP(S105,Database_Tables!$C$1014:$D$1578,2,FALSE)*IF(OR(ISBLANK(X105),X105<0),1,X105)) ->  | Z105: 0
B106: =IF(L106=1,SUM($L$72:L106),0) -> 0 | K106: =IF(ISNA(VLOOKUP(E106,Database_Tables!$C$1014:$D$1578,2,FALSE)*IF(OR(ISBLANK(J106),J106<0),1,J106)),"",VLOOKUP(E106,Database_Tables!$C$1014:$D$1578,2,FALSE)*IF(OR(ISBLANK(J106),J106<0),1,J106)) ->  | L106: 0 | P106: =IF(Z106=1,SUM($Z$72:Z106),0) -> 0 | Y106: =IF(ISNA(VLOOKUP(S106,Database_Tables!$C$1014:$D$1578,2,FALSE)*IF(OR(ISBLANK(X106),X106<0),1,X106)),"",VLOOKUP(S106,Database_Tables!$C$1014:$D$1578,2,FALSE)*IF(OR(ISBLANK(X106),X106<0),1,X106)) ->  | Z106: 0
B107: =IF(L107=1,SUM($L$72:L107),0) -> 0 | K107: =IF(ISNA(VLOOKUP(E107,Database_Tables!$C$1014:$D$1578,2,FALSE)*IF(OR(ISBLANK(J107),J107<0),1,J107)),"",VLOOKUP(E107,Database_Tables!$C$1014:$D$1578,2,FALSE)*IF(OR(ISBLANK(J107),J107<0),1,J107)) ->  | L107: 0 | P107: =IF(Z107=1,SUM($Z$72:Z107),0) -> 0 | Y107: =IF(ISNA(VLOOKUP(S107,Database_Tables!$C$1014:$D$1578,2,FALSE)*IF(OR(ISBLANK(X107),X107<0),1,X107)),"",VLOOKUP(S107,Database_Tables!$C$1014:$D$1578,2,FALSE)*IF(OR(ISBLANK(X107),X107<0),1,X107)) ->  | Z107: 0
B108: =IF(L108=1,SUM($L$72:L108),0) -> 0 | D108: Manual Input | E108: Manually Input Operation Description and Diesel Use (if needed) | J108: NA | L108: =IF(ISBLANK($D$27),0,IF(ISBLANK(K108),0,1)) -> 0 | P108: =IF(Z108=1,SUM($Z$72:Z108),0) -> 0 | R108: Manual Input | S108: Manually Input Operation Description and Diesel Use (if needed) | X108: NA | Z108: =IF(ISBLANK($R$27),0,IF(ISBLANK(Y108),0,1)) -> 0
B109: =IF(L109=1,SUM($L$72:L109),0) -> 0 | D109: Manual Input | E109: Manually Input Operation Description and Diesel Use (if needed) | J109: NA | L109: =IF(ISBLANK($D$27),0,IF(ISBLANK(K109),0,1)) -> 0 | P109: =IF(Z109=1,SUM($Z$72:Z109),0) -> 0 | R109: Manual Input | S109: Manually Input Operation Description and Diesel Use (if needed) | X109: NA | Z109: =IF(ISBLANK($R$27),0,IF(ISBLANK(Y109),0,1)) -> 0
C110: Field Operations Diesel Use: Crop Interval 4 (Benchmark) | Q110: Field Operations Diesel Use: Crop Interval 4 (Planned)
B111: =IF(L111=1,SUM($L$72:L111),0) -> 0 | C111: =IF(D28="","",D28) ->  | K111: =IF(ISNA(VLOOKUP(E111,Database_Tables!$C$1014:$D$1578,2,FALSE)*IF(OR(ISBLANK(J111),J111<0),1,J111)),"",VLOOKUP(E111,Database_Tables!$C$1014:$D$1578,2,FALSE)*IF(OR(ISBLANK(J111),J111<0),1,J111)) ->  | L111: =IF(ISBLANK($D$28),0,IF(ISBLANK(D111),0,1)) -> 0 | P111: =IF(Z111=1,SUM($Z$72:Z111),0) -> 0 | Q111: =IF(R28="","",R28) ->  | Y111: =IF(ISNA(VLOOKUP(S111,Database_Tables!$C$1014:$D$1578,2,FALSE)*IF(OR(ISBLANK(X111),X111<0),1,X111)),"",VLOOKUP(S111,Database_Tables!$C$1014:$D$1578,2,FALSE)*IF(OR(ISBLANK(X111),X111<0),1,X111)) ->  | Z111: =IF(ISBLANK($R$28),0,IF(ISBLANK(R111),0,1)) -> 0
B112: =IF(L112=1,SUM($L$72:L112),0) -> 0 | K112: =IF(ISNA(VLOOKUP(E112,Database_Tables!$C$1014:$D$1578,2,FALSE)*IF(OR(ISBLANK(J112),J112<0),1,J112)),"",VLOOKUP(E112,Database_Tables!$C$1014:$D$1578,2,FALSE)*IF(OR(ISBLANK(J112),J112<0),1,J112)) ->  | L112: =IF(ISBLANK($D$28),0,IF(ISBLANK(D112),0,1)) -> 0 | P112: =IF(Z112=1,SUM($Z$72:Z112),0) -> 0 | Y112: =IF(ISNA(VLOOKUP(S112,Database_Tables!$C$1014:$D$1578,2,FALSE)*IF(OR(ISBLANK(X112),X112<0),1,X112)),"",VLOOKUP(S112,Database_Tables!$C$1014:$D$1578,2,FALSE)*IF(OR(ISBLANK(X112),X112<0),1,X112)) ->  | Z112: =IF(ISBLANK($R$28),0,IF(ISBLANK(R112),0,1)) -> 0
B113: =IF(L113=1,SUM($L$72:L113),0) -> 0 | K113: =IF(ISNA(VLOOKUP(E113,Database_Tables!$C$1014:$D$1578,2,FALSE)*IF(OR(ISBLANK(J113),J113<0),1,J113)),"",VLOOKUP(E113,Database_Tables!$C$1014:$D$1578,2,FALSE)*IF(OR(ISBLANK(J113),J113<0),1,J113)) ->  | L113: 0 | P113: =IF(Z113=1,SUM($Z$72:Z113),0) -> 0 | Y113: =IF(ISNA(VLOOKUP(S113,Database_Tables!$C$1014:$D$1578,2,FALSE)*IF(OR(ISBLANK(X113),X113<0),1,X113)),"",VLOOKUP(S113,Database_Tables!$C$1014:$D$1578,2,FALSE)*IF(OR(ISBLANK(X113),X113<0),1,X113)) ->  | Z113: 0
B114: =IF(L114=1,SUM($L$72:L114),0) -> 0 | K114: =IF(ISNA(VLOOKUP(E114,Database_Tables!$C$1014:$D$1578,2,FALSE)*IF(OR(ISBLANK(J114),J114<0),1,J114)),"",VLOOKUP(E114,Database_Tables!$C$1014:$D$1578,2,FALSE)*IF(OR(ISBLANK(J114),J114<0),1,J114)) ->  | L114: 0 | P114: =IF(Z114=1,SUM($Z$72:Z114),0) -> 0 | Y114: =IF(ISNA(VLOOKUP(S114,Database_Tables!$C$1014:$D$1578,2,FALSE)*IF(OR(ISBLANK(X114),X114<0),1,X114)),"",VLOOKUP(S114,Database_Tables!$C$1014:$D$1578,2,FALSE)*IF(OR(ISBLANK(X114),X114<0),1,X114)) ->  | Z114: 0
B115: =IF(L115=1,SUM($L$72:L115),0) -> 0 | K115: =IF(ISNA(VLOOKUP(E115,Database_Tables!$C$1014:$D$1578,2,FALSE)*IF(OR(ISBLANK(J115),J115<0),1,J115)),"",VLOOKUP(E115,Database_Tables!$C$1014:$D$1578,2,FALSE)*IF(OR(ISBLANK(J115),J115<0),1,J115)) ->  | L115: 0 | P115: =IF(Z115=1,SUM($Z$72:Z115),0) -> 0 | Y115: =IF(ISNA(VLOOKUP(S115,Database_Tables!$C$1014:$D$1578,2,FALSE)*IF(OR(ISBLANK(X115),X115<0),1,X115)),"",VLOOKUP(S115,Database_Tables!$C$1014:$D$1578,2,FALSE)*IF(OR(ISBLANK(X115),X115<0),1,X115)) ->  | Z115: 0
B116: =IF(L116=1,SUM($L$72:L116),0) -> 0 | K116: =IF(ISNA(VLOOKUP(E116,Database_Tables!$C$1014:$D$1578,2,FALSE)*IF(OR(ISBLANK(J116),J116<0),1,J116)),"",VLOOKUP(E116,Database_Tables!$C$1014:$D$1578,2,FALSE)*IF(OR(ISBLANK(J116),J116<0),1,J116)) ->  | L116: 0 | P116: =IF(Z116=1,SUM($Z$72:Z116),0) -> 0 | Y116: =IF(ISNA(VLOOKUP(S116,Database_Tables!$C$1014:$D$1578,2,FALSE)*IF(OR(ISBLANK(X116),X116<0),1,X116)),"",VLOOKUP(S116,Database_Tables!$C$1014:$D$1578,2,FALSE)*IF(OR(ISBLANK(X116),X116<0),1,X116)) ->  | Z116: 0
B117: =IF(L117=1,SUM($L$72:L117),0) -> 0 | K117: =IF(ISNA(VLOOKUP(E117,Database_Tables!$C$1014:$D$1578,2,FALSE)*IF(OR(ISBLANK(J117),J117<0),1,J117)),"",VLOOKUP(E117,Database_Tables!$C$1014:$D$1578,2,FALSE)*IF(OR(ISBLANK(J117),J117<0),1,J117)) ->  | L117: 0 | P117: =IF(Z117=1,SUM($Z$72:Z117),0) -> 0 | Y117: =IF(ISNA(VLOOKUP(S117,Database_Tables!$C$1014:$D$1578,2,FALSE)*IF(OR(ISBLANK(X117),X117<0),1,X117)),"",VLOOKUP(S117,Database_Tables!$C$1014:$D$1578,2,FALSE)*IF(OR(ISBLANK(X117),X117<0),1,X117)) ->  | Z117: 0
B118: =IF(L118=1,SUM($L$72:L118),0) -> 0 | K118: =IF(ISNA(VLOOKUP(E118,Database_Tables!$C$1014:$D$1578,2,FALSE)*IF(OR(ISBLANK(J118),J118<0),1,J118)),"",VLOOKUP(E118,Database_Tables!$C$1014:$D$1578,2,FALSE)*IF(OR(ISBLANK(J118),J118<0),1,J118)) ->  | L118: 0 | P118: =IF(Z118=1,SUM($Z$72:Z118),0) -> 0 | Y118: =IF(ISNA(VLOOKUP(S118,Database_Tables!$C$1014:$D$1578,2,FALSE)*IF(OR(ISBLANK(X118),X118<0),1,X118)),"",VLOOKUP(S118,Database_Tables!$C$1014:$D$1578,2,FALSE)*IF(OR(ISBLANK(X118),X118<0),1,X118)) ->  | Z118: 0
B119: =IF(L119=1,SUM($L$72:L119),0) -> 0 | K119: =IF(ISNA(VLOOKUP(E119,Database_Tables!$C$1014:$D$1578,2,FALSE)*IF(OR(ISBLANK(J119),J119<0),1,J119)),"",VLOOKUP(E119,Database_Tables!$C$1014:$D$1578,2,FALSE)*IF(OR(ISBLANK(J119),J119<0),1,J119)) ->  | L119: 0 | P119: =IF(Z119=1,SUM($Z$72:Z119),0) -> 0 | Y119: =IF(ISNA(VLOOKUP(S119,Database_Tables!$C$1014:$D$1578,2,FALSE)*IF(OR(ISBLANK(X119),X119<0),1,X119)),"",VLOOKUP(S119,Database_Tables!$C$1014:$D$1578,2,FALSE)*IF(OR(ISBLANK(X119),X119<0),1,X119)) ->  | Z119: 0
B120: =IF(L120=1,SUM($L$72:L120),0) -> 0 | K120: =IF(ISNA(VLOOKUP(E120,Database_Tables!$C$1014:$D$1578,2,FALSE)*IF(OR(ISBLANK(J120),J120<0),1,J120)),"",VLOOKUP(E120,Database_Tables!$C$1014:$D$1578,2,FALSE)*IF(OR(ISBLANK(J120),J120<0),1,J120)) ->  | L120: 0 | P120: =IF(Z120=1,SUM($Z$72:Z120),0) -> 0 | Y120: =IF(ISNA(VLOOKUP(S120,Database_Tables!$C$1014:$D$1578,2,FALSE)*IF(OR(ISBLANK(X120),X120<0),1,X120)),"",VLOOKUP(S120,Database_Tables!$C$1014:$D$1578,2,FALSE)*IF(OR(ISBLANK(X120),X120<0),1,X120)) ->  | Z120: 0
B121: =IF(L121=1,SUM($L$72:L121),0) -> 0 | D121: Manual Input | E121: Manually Input Operation Description and Diesel Use (if needed) | J121: NA | L121: =IF(ISBLANK($D$28),0,IF(ISBLANK(K121),0,1)) -> 0 | P121: =IF(Z121=1,SUM($Z$72:Z121),0) -> 0 | R121: Manual Input | S121: Manually Input Operation Description and Diesel Use (if needed) | X121: NA | Z121: =IF(ISBLANK($R$28),0,IF(ISBLANK(Y121),0,1)) -> 0
B122: =IF(L122=1,SUM($L$72:L122),0) -> 0 | D122: Manual Input | E122: Manually Input Operation Description and Diesel Use (if needed) | J122: NA | L122: =IF(ISBLANK($D$28),0,IF(ISBLANK(K122),0,1)) -> 0 | P122: =IF(Z122=1,SUM($Z$72:Z122),0) -> 0 | R122: Manual Input | S122: Manually Input Operation Description and Diesel Use (if needed) | X122: NA | Z122: =IF(ISBLANK($R$28),0,IF(ISBLANK(Y122),0,1)) -> 0
C123: Field Operations Diesel Use: Crop Interval 5 (Benchmark) | Q123: Field Operations Diesel Use: Crop Interval 5 (Planned)
B124: =IF(L124=1,SUM($L$72:L124),0) -> 0 | C124: =IF(D29="","",D29) ->  | K124: =IF(ISNA(VLOOKUP(E124,Database_Tables!$C$1014:$D$1578,2,FALSE)*IF(OR(ISBLANK(J124),J124<0),1,J124)),"",VLOOKUP(E124,Database_Tables!$C$1014:$D$1578,2,FALSE)*IF(OR(ISBLANK(J124),J124<0),1,J124)) ->  | L124: =IF(ISBLANK($D$29),0,IF(ISBLANK(D124),0,1)) -> 0 | P124: =IF(Z124=1,SUM($Z$72:Z124),0) -> 0 | Q124: =IF(R29="","",R29) ->  | Y124: =IF(ISNA(VLOOKUP(S124,Database_Tables!$C$1014:$D$1578,2,FALSE)*IF(OR(ISBLANK(X124),X124<0),1,X124)),"",VLOOKUP(S124,Database_Tables!$C$1014:$D$1578,2,FALSE)*IF(OR(ISBLANK(X124),X124<0),1,X124)) ->  | Z124: =IF(ISBLANK($R$29),0,IF(ISBLANK(R124),0,1)) -> 0
B125: =IF(L125=1,SUM($L$72:L125),0) -> 0 | K125: =IF(ISNA(VLOOKUP(E125,Database_Tables!$C$1014:$D$1578,2,FALSE)*IF(OR(ISBLANK(J125),J125<0),1,J125)),"",VLOOKUP(E125,Database_Tables!$C$1014:$D$1578,2,FALSE)*IF(OR(ISBLANK(J125),J125<0),1,J125)) ->  | L125: =IF(ISBLANK($D$29),0,IF(ISBLANK(D125),0,1)) -> 0 | P125: =IF(Z125=1,SUM($Z$72:Z125),0) -> 0 | Y125: =IF(ISNA(VLOOKUP(S125,Database_Tables!$C$1014:$D$1578,2,FALSE)*IF(OR(ISBLANK(X125),X125<0),1,X125)),"",VLOOKUP(S125,Database_Tables!$C$1014:$D$1578,2,FALSE)*IF(OR(ISBLANK(X125),X125<0),1,X125)) ->  | Z125: =IF(ISBLANK($R$29),0,IF(ISBLANK(R125),0,1)) -> 0
B126: =IF(L126=1,SUM($L$72:L126),0) -> 0 | K126: =IF(ISNA(VLOOKUP(E126,Database_Tables!$C$1014:$D$1578,2,FALSE)*IF(OR(ISBLANK(J126),J126<0),1,J126)),"",VLOOKUP(E126,Database_Tables!$C$1014:$D$1578,2,FALSE)*IF(OR(ISBLANK(J126),J126<0),1,J126)) ->  | L126: 0 | P126: =IF(Z126=1,SUM($Z$72:Z126),0) -> 0 | Y126: =IF(ISNA(VLOOKUP(S126,Database_Tables!$C$1014:$D$1578,2,FALSE)*IF(OR(ISBLANK(X126),X126<0),1,X126)),"",VLOOKUP(S126,Database_Tables!$C$1014:$D$1578,2,FALSE)*IF(OR(ISBLANK(X126),X126<0),1,X126)) ->  | Z126: 0
B127: =IF(L127=1,SUM($L$72:L127),0) -> 0 | K127: =IF(ISNA(VLOOKUP(E127,Database_Tables!$C$1014:$D$1578,2,FALSE)*IF(OR(ISBLANK(J127),J127<0),1,J127)),"",VLOOKUP(E127,Database_Tables!$C$1014:$D$1578,2,FALSE)*IF(OR(ISBLANK(J127),J127<0),1,J127)) ->  | L127: 0 | P127: =IF(Z127=1,SUM($Z$72:Z127),0) -> 0 | Y127: =IF(ISNA(VLOOKUP(S127,Database_Tables!$C$1014:$D$1578,2,FALSE)*IF(OR(ISBLANK(X127),X127<0),1,X127)),"",VLOOKUP(S127,Database_Tables!$C$1014:$D$1578,2,FALSE)*IF(OR(ISBLANK(X127),X127<0),1,X127)) ->  | Z127: 0
B128: =IF(L128=1,SUM($L$72:L128),0) -> 0 | K128: =IF(ISNA(VLOOKUP(E128,Database_Tables!$C$1014:$D$1578,2,FALSE)*IF(OR(ISBLANK(J128),J128<0),1,J128)),"",VLOOKUP(E128,Database_Tables!$C$1014:$D$1578,2,FALSE)*IF(OR(ISBLANK(J128),J128<0),1,J128)) ->  | L128: 0 | P128: =IF(Z128=1,SUM($Z$72:Z128),0) -> 0 | Y128: =IF(ISNA(VLOOKUP(S128,Database_Tables!$C$1014:$D$1578,2,FALSE)*IF(OR(ISBLANK(X128),X128<0),1,X128)),"",VLOOKUP(S128,Database_Tables!$C$1014:$D$1578,2,FALSE)*IF(OR(ISBLANK(X128),X128<0),1,X128)) ->  | Z128: 0
B129: =IF(L129=1,SUM($L$72:L129),0) -> 0 | K129: =IF(ISNA(VLOOKUP(E129,Database_Tables!$C$1014:$D$1578,2,FALSE)*IF(OR(ISBLANK(J129),J129<0),1,J129)),"",VLOOKUP(E129,Database_Tables!$C$1014:$D$1578,2,FALSE)*IF(OR(ISBLANK(J129),J129<0),1,J129)) ->  | L129: 0 | P129: =IF(Z129=1,SUM($Z$72:Z129),0) -> 0 | Y129: =IF(ISNA(VLOOKUP(S129,Database_Tables!$C$1014:$D$1578,2,FALSE)*IF(OR(ISBLANK(X129),X129<0),1,X129)),"",VLOOKUP(S129,Database_Tables!$C$1014:$D$1578,2,FALSE)*IF(OR(ISBLANK(X129),X129<0),1,X129)) ->  | Z129: 0
B130: =IF(L130=1,SUM($L$72:L130),0) -> 0 | K130: =IF(ISNA(VLOOKUP(E130,Database_Tables!$C$1014:$D$1578,2,FALSE)*IF(OR(ISBLANK(J130),J130<0),1,J130)),"",VLOOKUP(E130,Database_Tables!$C$1014:$D$1578,2,FALSE)*IF(OR(ISBLANK(J130),J130<0),1,J130)) ->  | L130: 0 | P130: =IF(Z130=1,SUM($Z$72:Z130),0) -> 0 | Y130: =IF(ISNA(VLOOKUP(S130,Database_Tables!$C$1014:$D$1578,2,FALSE)*IF(OR(ISBLANK(X130),X130<0),1,X130)),"",VLOOKUP(S130,Database_Tables!$C$1014:$D$1578,2,FALSE)*IF(OR(ISBLANK(X130),X130<0),1,X130)) ->  | Z130: 0
B131: =IF(L131=1,SUM($L$72:L131),0) -> 0 | K131: =IF(ISNA(VLOOKUP(E131,Database_Tables!$C$1014:$D$1578,2,FALSE)*IF(OR(ISBLANK(J131),J131<0),1,J131)),"",VLOOKUP(E131,Database_Tables!$C$1014:$D$1578,2,FALSE)*IF(OR(ISBLANK(J131),J131<0),1,J131)) ->  | L131: 0 | P131: =IF(Z131=1,SUM($Z$72:Z131),0) -> 0 | Y131: =IF(ISNA(VLOOKUP(S131,Database_Tables!$C$1014:$D$1578,2,FALSE)*IF(OR(ISBLANK(X131),X131<0),1,X131)),"",VLOOKUP(S131,Database_Tables!$C$1014:$D$1578,2,FALSE)*IF(OR(ISBLANK(X131),X131<0),1,X131)) ->  | Z131: 0
B132: =IF(L132=1,SUM($L$72:L132),0) -> 0 | K132: =IF(ISNA(VLOOKUP(E132,Database_Tables!$C$1014:$D$1578,2,FALSE)*IF(OR(ISBLANK(J132),J132<0),1,J132)),"",VLOOKUP(E132,Database_Tables!$C$1014:$D$1578,2,FALSE)*IF(OR(ISBLANK(J132),J132<0),1,J132)) ->  | L132: 0 | P132: =IF(Z132=1,SUM($Z$72:Z132),0) -> 0 | Y132: =IF(ISNA(VLOOKUP(S132,Database_Tables!$C$1014:$D$1578,2,FALSE)*IF(OR(ISBLANK(X132),X132<0),1,X132)),"",VLOOKUP(S132,Database_Tables!$C$1014:$D$1578,2,FALSE)*IF(OR(ISBLANK(X132),X132<0),1,X132)) ->  | Z132: 0
B133: =IF(L133=1,SUM($L$72:L133),0) -> 0 | K133: =IF(ISNA(VLOOKUP(E133,Database_Tables!$C$1014:$D$1578,2,FALSE)*IF(OR(ISBLANK(J133),J133<0),1,J133)),"",VLOOKUP(E133,Database_Tables!$C$1014:$D$1578,2,FALSE)*IF(OR(ISBLANK(J133),J133<0),1,J133)) ->  | L133: 0 | P133: =IF(Z133=1,SUM($Z$72:Z133),0) -> 0 | Y133: =IF(ISNA(VLOOKUP(S133,Database_Tables!$C$1014:$D$1578,2,FALSE)*IF(OR(ISBLANK(X133),X133<0),1,X133)),"",VLOOKUP(S133,Database_Tables!$C$1014:$D$1578,2,FALSE)*IF(OR(ISBLANK(X133),X133<0),1,X133)) ->  | Z133: 0
B134: =IF(L134=1,SUM($L$72:L134),0) -> 0 | D134: Manual Input | E134: Manually Input Operation Description and Diesel Use (if needed) | J134: NA | L134: =IF(ISBLANK($D$29),0,IF(ISBLANK(K134),0,1)) -> 0 | P134: =IF(Z134=1,SUM($Z$72:Z134),0) -> 0 | R134: Manual Input | S134: Manually Input Operation Description and Diesel Use (if needed) | X134: NA | Z134: =IF(ISBLANK($R$29),0,IF(ISBLANK(Y134),0,1)) -> 0
B135: =IF(L135=1,SUM($L$72:L135),0) -> 0 | D135: Manual Input | E135: Manually Input Operation Description and Diesel Use (if needed) | J135: NA | L135: =IF(ISBLANK($D$29),0,IF(ISBLANK(K135),0,1)) -> 0 | P135: =IF(Z135=1,SUM($Z$72:Z135),0) -> 0 | R135: Manual Input | S135: Manually Input Operation Description and Diesel Use (if needed) | X135: NA | Z135: =IF(ISBLANK($R$29),0,IF(ISBLANK(Y135),0,1)) -> 0
C138: System Design Input for Irrigation and Other Delivery Energy Needs | K138: Pump Check | Q138: System Design Input for Irrigation and Other Delivery Energy Needs | Y138: Pump Check
C139: Delivery | D139: FALSE | E139: Check to | F139: Operating | G139: Delivery or | H139: Hours of | I139: Application | J139: Energy | K139: Irrigation | L139: Computed | M139: Actual | Q139: Delivery | R139: FALSE | S139: Check to | T139: Operating | U139: Delivery or | V139: Hours of | W139: Application | X139: Energy | Y139: Irrigation | Z139: Computed | AA139: Actual
C140: Type | D140: FALSE | E140: Activate | F140: Pressure | G140: Pump Plant | H140: Operation | I140: Efficiency | J140: Use | K140: Application | L140: Delivery | M140: Delivery | Q140: Type | R140: FALSE | S140: Activate | T140: Pressure | U140: Pump Plant | V140: Operation | W140: Efficiency | X140: Use | Y140: Application | Z140: Delivery | AA140: Delivery
D141: FALSE | G141: Efficiency | H141: per Day | J141: Rate | L141: Power | M141: Power | R141: FALSE | U141: Efficiency | V141: per Day | X141: Rate | Z141: Power | AA141: Power
D142: FALSE | F142: [psi] | G142: [%] | H142: [hr] | I142: [%] | J142: [BTU/gal] | K142: gpm | L142: [HP] | M142: [HP] | R142: FALSE | T142: [psi] | U142: [%] | V142: [hr] | W142: [%] | X142: [BTU/gal] | Y142: gpm | Z142: [HP] | AA142: [HP]
C143: Irrigation Delivery | J143: =IFERROR(Intermediate_Calcs!D84,0) -> 0 | L143: =IFERROR(Intermediate_Calcs!D79,0) -> 0 | Q143: Irrigation Delivery | X143: =IFERROR(Intermediate_Calcs!E84,0) -> 0 | Z143: =IFERROR(Intermediate_Calcs!E79,0) -> 0
C144: Other Delivery Energy 1 | I144: NA | J144: =IFERROR(Intermediate_Calcs!D120,0) -> 0 | K144: NA | L144: =IFERROR(Intermediate_Calcs!D116,0) -> 0 | Q144: Other Delivery Energy 1 | W144: NA | X144: =IFERROR(Intermediate_Calcs!E120,0) -> 0 | Y144: NA | Z144: =IFERROR(Intermediate_Calcs!E116,0) -> 0
C145: Other Delivery Energy 2 | I145: NA | J145: =IFERROR(Intermediate_Calcs!D156,0) -> 0 | K145: NA | L145: =IFERROR(Intermediate_Calcs!D152,0) -> 0 | Q145: Other Delivery Energy 2 | W145: NA | X145: =IFERROR(Intermediate_Calcs!E156,0) -> 0 | Y145: NA | Z145: =IFERROR(Intermediate_Calcs!E152,0) -> 0
C146: Other Delivery Energy 3 | I146: NA | J146: =IFERROR(Intermediate_Calcs!D192,0) -> 0 | K146: NA | L146: =IFERROR(Intermediate_Calcs!D188,0) -> 0 | Q146: Other Delivery Energy 3 | W146: NA | X146: =IFERROR(Intermediate_Calcs!E192,0) -> 0 | Y146: NA | Z146: =IFERROR(Intermediate_Calcs!E188,0) -> 0
C147: =IF(OR(AND(IF(L143>20,M143-L143>5,IF(L143=0,FALSE,M143/L143>1.1)),D139=TRUE),AND(IF(L144>20,M144-L144>5,IF(L144=0,FALSE,M144/L144>1.1)),D140=TRUE),AND(IF(L145>20,M145-L145>5,IF(L145=0,FALSE,M145/L145>1.1)),D141=TRUE),AND(IF(L146>20,M146-L146>5,IF(L146=0,FALSE,M146/L146>1.1)),D142=TRUE)),"Actual delivery power exceeds computed delivery power by more than 10%","") ->  | I147: =IF(OR(IF(ISBLANK(M143),FALSE,AND(IF(L143>20,M143-L143<-5,IF(L143=0,FALSE,L143/M143>1.1)),D139=TRUE)),IF(ISBLANK(M144),FALSE,AND(IF(L144>20,M144-L144<-5,IF(L144=0,FALSE,L144/M144>1.1)),D140=TRUE)),IF(ISBLANK(M145),FALSE,AND(IF(L145>20,M145-L145<-5,IF(L145=0,FALSE,L145/M145>1.1)),D141=TRUE)),IF(ISBLANK(M146),FALSE,AND(IF(L146>20,M146-L146<-5,IF(L146=0,FALSE,L146/M146>1.1)),D142=TRUE)))," Computed delivery power exceeds actual delivery power by more than 10%","") ->  | Q147: =IF(OR(AND(IF(Z143>20,AA143-Z143>5,IF(Z143=0,FALSE,AA143/Z143>1.1)),R139=TRUE),AND(IF(Z144>20,AA144-Z144>5,IF(Z144=0,FALSE,AA144/Z144>1.1)),R140=TRUE),AND(IF(Z145>20,AA145-Z145>5,IF(Z145=0,FALSE,AA145/Z145>1.1)),R141=TRUE),AND(IF(Z146>20,AA146-Z146>5,IF(Z146=0,FALSE,AA146/Z146>1.1)),R142=TRUE)),"Actual delivery power exceeds computed delivery power by more than 10%","") ->  | W147: =IF(OR(IF(ISBLANK(AA143),FALSE,AND(IF(Z143>20,AA143-Z143<-5,IF(Z143=0,FALSE,Z143/AA143>1.1)),R139=TRUE)),IF(ISBLANK(AA144),FALSE,AND(IF(Z144>20,AA144-Z144<-5,IF(Z144=0,FALSE,Z144/AA144>1.1)),R140=TRUE)),IF(ISBLANK(AA145),FALSE,AND(IF(Z145>20,AA145-Z145<-5,IF(Z145=0,FALSE,Z145/AA145>1.1)),R141=TRUE)),IF(ISBLANK(AA146),FALSE,AND(IF(Z146>20,AA146-Z146<-5,IF(Z146=0,FALSE,Z146/AA146>1.1)),R142=TRUE)))," Computed delivery power exceeds actual delivery power by more than 10%","") -> 
C150: Water Use Applied for Irrigation and Other Delivery Energy Needs | Q150: Water Use Applied for Irrigation and Other Delivery Energy Needs
C151: Delivery | E151: Pumping | F151: Units | G151: Amount Used by the Crop | Q151: Delivery | S151: Pumping | T151: Units | U151: Amount Used by the Crop
C152: Type | E152: Description | G152: =IF(D25="","",D25) ->  | H152: =IF(D26="","",D26) ->  | I152: =IF(D27="","",D27) ->  | J152: =IF(D28="","",D28) ->  | K152: =IF(D29="","",D29) ->  | Q152: Type | S152: Descirption | U152: =IF(R25="","",R25) ->  | V152: =IF(R26="","",R26) ->  | W152: =IF(R27="","",R27) ->  | X152: =IF(R28="","",R28) ->  | Y152: =IF(R29="","",R29) -> 
C153: Irrigation Delivery | E153: Gross Applied | F153: in/season | Q153: Irrigation Delivery | S153: Net Applied | T153: in/season
C154: Other Delivery Energy 1 | E154: Booster | F154: gpm | Q154: Other Delivery Energy 1 | S154: Booster | T154: gpm
E155: Days of Operation days | S155: Days of Operation days
C156: Other Delivery Energy 2 | Q156: Other Delivery Energy 2
E157: Days of Operation days | S157: Days of Operation days
C158: Other Delivery Energy 3 | Q158: Other Delivery Energy 3
E159: Days of Operation days | S159: Days of Operation days
P161: 1
Q162: Practice Standards Table
Q163: Description | T163: Unit | U163: Unit | V163: Reduced Energy Use or Increased Efficiency/Yields
C164: Energy Use for Fuel Types and Unit Costs | T164: Type | U164: Amount | V164: by Applying Practice Standards.
C165: Fuel | D165: Units | E165: Unit | F165: BTU/Unit | G165: Unit | H165: Cost per | V165: Type | W165: Variable | Y165: Unit | Z165: Value | AA165: Red. Energy
G166: Conversion | AA166: MMBTU/ac
C167: Type | E167: Price | G167: to MMBTU | H167: MMBTU | Q167: 442 Irrigation System, Sprinkler | T167: =IF(ISNA(VLOOKUP(Q167,Database_Tables!$B$1587:$E$1736,4,FALSE)),"",VLOOKUP(Q167,Database_Tables!$B$1587:$E$1736,4,FALSE)) -> No. | U167: =IF(Q167="","",$S$14) -> 0 | V167: Farming | W167: Crop Yields | Y167: =IF(OR(V167="Select Type",W167="Select Variable",W167=""),"",IF(V167="Farming",VLOOKUP(W167,Database_Tables!$L$1751:$M$1763,2,FALSE),IF(V167="Other Del 1",VLOOKUP(W167,Database_Tables!$L$1780:$M$1784,2,FALSE),IF(V167="Other Del 2",VLOOKUP(W167,Database_Tables!$L$1789:$M$1796,2,FALSE),IF(V167="Other Del 3",VLOOKUP(W167,Database_Tables!$L$1798:$M$1804,2,FALSE),VLOOKUP(W167,Database_Tables!$L$1767:$M$1773,2,FALSE)))))) -> [DM lbs/acre] | Z167: 2250 | AA167: =IF(Y167="","",IF(V167="Other Del 1",VLOOKUP(W167,Database_Tables!$L$1780:$W$1784,3,FALSE),IF(V167="Other Del 2",VLOOKUP(W167,Database_Tables!$L$1789:$W$1796,3,FALSE),IF(V167="Other Del 3",VLOOKUP(W167,Database_Tables!$L$1798:$W$1804,3,FALSE),IF(V167="Farming",VLOOKUP(W167,Database_Tables!$L$1750:$W$1763,3,FALSE),VLOOKUP(W167,Database_Tables!$L$1766:$W$1773,3,FALSE)))))) -> 16.875
C168: Diesel | D168: Gal | E168: 4.2 | F168: 139000 | G168: =1000000/F168 -> 7.194244604 | H168: =E168*G168 -> 30.21582734 | Q168: 449 Irrigation Water Management | T168: =IF(ISNA(VLOOKUP(Q168,Database_Tables!$B$1587:$E$1736,4,FALSE)),"",VLOOKUP(Q168,Database_Tables!$B$1587:$E$1736,4,FALSE)) -> Ac. | U168: 0 | V168: Farming | W168: Field Operation Diesel Use | Y168: =IF(OR(V168="Select Type",W168="Select Variable",W168=""),"",IF(V168="Farming",VLOOKUP(W168,Database_Tables!$L$1751:$M$1763,2,FALSE),IF(V168="Other Del 1",VLOOKUP(W168,Database_Tables!$L$1780:$M$1784,2,FALSE),IF(V168="Other Del 2",VLOOKUP(W168,Database_Tables!$L$1789:$M$1796,2,FALSE),IF(V168="Other Del 3",VLOOKUP(W168,Database_Tables!$L$1798:$M$1804,2,FALSE),VLOOKUP(W168,Database_Tables!$L$1767:$M$1773,2,FALSE)))))) -> [gal/acre] | Z168: 0.65 | AA168: =IF(Y168="","",IF(V168="Other Del 1",VLOOKUP(W168,Database_Tables!$L$1780:$W$1784,4,FALSE),IF(V168="Other Del 2",VLOOKUP(W168,Database_Tables!$L$1789:$W$1796,4,FALSE),IF(V168="Other Del 3",VLOOKUP(W168,Database_Tables!$L$1798:$W$1804,4,FALSE),IF(V168="Farming",VLOOKUP(W168,Database_Tables!$L$1750:$W$1763,4,FALSE),VLOOKUP(W168,Database_Tables!$L$1766:$W$1773,4,FALSE)))))) -> 0.091
C169: Gasoline (E10) | D169: Gal | E169: 3.7 | F169: 120000 | G169: =1000000/F169 -> 8.333333333 | H169: =E169*G169 -> 30.83333333 | Q169: 453 Land Reclamation, Landslide Treatment | T169: =IF(ISNA(VLOOKUP(Q169,Database_Tables!$B$1587:$E$1736,4,FALSE)),"",VLOOKUP(Q169,Database_Tables!$B$1587:$E$1736,4,FALSE)) -> No. | U169: 0 | V169: Farming | W169: Forage Removed | Y169: =IF(OR(V169="Select Type",W169="Select Variable",W169=""),"",IF(V169="Farming",VLOOKUP(W169,Database_Tables!$L$1751:$M$1763,2,FALSE),IF(V169="Other Del 1",VLOOKUP(W169,Database_Tables!$L$1780:$M$1784,2,FALSE),IF(V169="Other Del 2",VLOOKUP(W169,Database_Tables!$L$1789:$M$1796,2,FALSE),IF(V169="Other Del 3",VLOOKUP(W169,Database_Tables!$L$1798:$M$1804,2,FALSE),VLOOKUP(W169,Database_Tables!$L$1767:$M$1773,2,FALSE)))))) -> [DM lbs/acre] | Z169: -50 | AA169: =IF(Y169="","",IF(V169="Other Del 1",VLOOKUP(W169,Database_Tables!$L$1780:$W$1784,5,FALSE),IF(V169="Other Del 2",VLOOKUP(W169,Database_Tables!$L$1789:$W$1796,5,FALSE),IF(V169="Other Del 3",VLOOKUP(W169,Database_Tables!$L$1798:$W$1804,5,FALSE),IF(V169="Farming",VLOOKUP(W169,Database_Tables!$L$1750:$W$1763,5,FALSE),VLOOKUP(W169,Database_Tables!$L$1766:$W$1773,5,FALSE)))))) -> -0.375
C170: BioDiesel B2 | D170: Gal | E170: 4 | F170: 138600 | G170: 7.215007215 | H170: 28.86002886 | Q170: 449 Irrigation Water Management | T170: =IF(ISNA(VLOOKUP(Q170,Database_Tables!$B$1587:$E$1736,4,FALSE)),"",VLOOKUP(Q170,Database_Tables!$B$1587:$E$1736,4,FALSE)) -> Ac. | U170: 0 | V170: Farming | W170: Grazing Removed | Y170: =IF(OR(V170="Select Type",W170="Select Variable",W170=""),"",IF(V170="Farming",VLOOKUP(W170,Database_Tables!$L$1751:$M$1763,2,FALSE),IF(V170="Other Del 1",VLOOKUP(W170,Database_Tables!$L$1780:$M$1784,2,FALSE),IF(V170="Other Del 2",VLOOKUP(W170,Database_Tables!$L$1789:$M$1796,2,FALSE),IF(V170="Other Del 3",VLOOKUP(W170,Database_Tables!$L$1798:$M$1804,2,FALSE),VLOOKUP(W170,Database_Tables!$L$1767:$M$1773,2,FALSE)))))) -> [AUD/acre] | Z170: -750 | AA170: =IF(Y170="","",IF(V170="Other Del 1",VLOOKUP(W170,Database_Tables!$L$1780:$W$1784,6,FALSE),IF(V170="Other Del 2",VLOOKUP(W170,Database_Tables!$L$1789:$W$1796,6,FALSE),IF(V170="Other Del 3",VLOOKUP(W170,Database_Tables!$L$1798:$W$1804,6,FALSE),IF(V170="Farming",VLOOKUP(W170,Database_Tables!$L$1750:$W$1763,6,FALSE),VLOOKUP(W170,Database_Tables!$L$1766:$W$1773,6,FALSE)))))) -> -5.625
C171: BioDiesel B5 | D171: Gal | E171: 4 | F171: 138000 | G171: 7.246376812 | H171: 28.98550725 | Q171: 449 Irrigation Water Management | T171: =IF(ISNA(VLOOKUP(Q171,Database_Tables!$B$1587:$E$1736,4,FALSE)),"",VLOOKUP(Q171,Database_Tables!$B$1587:$E$1736,4,FALSE)) -> Ac. | U171: 0 | V171: Farming | W171: Labor | Y171: =IF(OR(V171="Select Type",W171="Select Variable",W171=""),"",IF(V171="Farming",VLOOKUP(W171,Database_Tables!$L$1751:$M$1763,2,FALSE),IF(V171="Other Del 1",VLOOKUP(W171,Database_Tables!$L$1780:$M$1784,2,FALSE),IF(V171="Other Del 2",VLOOKUP(W171,Database_Tables!$L$1789:$M$1796,2,FALSE),IF(V171="Other Del 3",VLOOKUP(W171,Database_Tables!$L$1798:$M$1804,2,FALSE),VLOOKUP(W171,Database_Tables!$L$1767:$M$1773,2,FALSE)))))) -> [hrs/acre] | Z171: 0.5 | AA171: =IF(Y171="","",IF(V171="Other Del 1",VLOOKUP(W171,Database_Tables!$L$1780:$W$1784,7,FALSE),IF(V171="Other Del 2",VLOOKUP(W171,Database_Tables!$L$1789:$W$1796,7,FALSE),IF(V171="Other Del 3",VLOOKUP(W171,Database_Tables!$L$1798:$W$1804,7,FALSE),IF(V171="Farming",VLOOKUP(W171,Database_Tables!$L$1750:$W$1763,7,FALSE),VLOOKUP(W171,Database_Tables!$L$1766:$W$1773,7,FALSE)))))) -> 0.000248015873
C172: BioDiesel B10 | D172: Gal | E172: 4 | F172: 136900 | G172: 7.304601899 | H172: 29.2184076 | Q172: 543 Land Reclamation, Abandoned Mined Land | T172: =IF(ISNA(VLOOKUP(Q172,Database_Tables!$B$1587:$E$1736,4,FALSE)),"",VLOOKUP(Q172,Database_Tables!$B$1587:$E$1736,4,FALSE)) -> Ac. | U172: 0 | V172: Farming | W172: Nitrogen Applied | Y172: =IF(OR(V172="Select Type",W172="Select Variable",W172=""),"",IF(V172="Farming",VLOOKUP(W172,Database_Tables!$L$1751:$M$1763,2,FALSE),IF(V172="Other Del 1",VLOOKUP(W172,Database_Tables!$L$1780:$M$1784,2,FALSE),IF(V172="Other Del 2",VLOOKUP(W172,Database_Tables!$L$1789:$M$1796,2,FALSE),IF(V172="Other Del 3",VLOOKUP(W172,Database_Tables!$L$1798:$M$1804,2,FALSE),VLOOKUP(W172,Database_Tables!$L$1767:$M$1773,2,FALSE)))))) -> [lbs/acre] | Z172: 50 | AA172: =IF(Y172="","",IF(V172="Other Del 1",VLOOKUP(W172,Database_Tables!$L$1780:$W$1784,8,FALSE),IF(V172="Other Del 2",VLOOKUP(W172,Database_Tables!$L$1789:$W$1796,8,FALSE),IF(V172="Other Del 3",VLOOKUP(W172,Database_Tables!$L$1798:$W$1804,8,FALSE),IF(V172="Farming",VLOOKUP(W172,Database_Tables!$L$1750:$W$1763,8,FALSE),VLOOKUP(W172,Database_Tables!$L$1766:$W$1773,8,FALSE)))))) -> 1
C173: BioDiesel B20 | D173: Gal | E173: 4 | F173: 134900 | G173: 7.412898443 | H173: 29.65159377 | Q173: 449 Irrigation Water Management | T173: =IF(ISNA(VLOOKUP(Q173,Database_Tables!$B$1587:$E$1736,4,FALSE)),"",VLOOKUP(Q173,Database_Tables!$B$1587:$E$1736,4,FALSE)) -> Ac. | U173: 0 | V173: Farming | W173: Organics Applied | Y173: =IF(OR(V173="Select Type",W173="Select Variable",W173=""),"",IF(V173="Farming",VLOOKUP(W173,Database_Tables!$L$1751:$M$1763,2,FALSE),IF(V173="Other Del 1",VLOOKUP(W173,Database_Tables!$L$1780:$M$1784,2,FALSE),IF(V173="Other Del 2",VLOOKUP(W173,Database_Tables!$L$1789:$M$1796,2,FALSE),IF(V173="Other Del 3",VLOOKUP(W173,Database_Tables!$L$1798:$M$1804,2,FALSE),VLOOKUP(W173,Database_Tables!$L$1767:$M$1773,2,FALSE)))))) -> [DM lbs/acre] | Z173: -750 | AA173: =IF(Y173="","",IF(V173="Other Del 1",VLOOKUP(W173,Database_Tables!$L$1780:$W$1784,9,FALSE),IF(V173="Other Del 2",VLOOKUP(W173,Database_Tables!$L$1789:$W$1796,9,FALSE),IF(V173="Other Del 3",VLOOKUP(W173,Database_Tables!$L$1798:$W$1804,9,FALSE),IF(V173="Farming",VLOOKUP(W173,Database_Tables!$L$1750:$W$1763,9,FALSE),VLOOKUP(W173,Database_Tables!$L$1766:$W$1773,9,FALSE)))))) -> -5.625
C174: BioDiesel B100 | D174: Gal | E174: 4 | F174: 118300 | G174: 8.453085376 | H174: 33.8123415 | Q174: 449 Irrigation Water Management | T174: =IF(ISNA(VLOOKUP(Q174,Database_Tables!$B$1587:$E$1736,4,FALSE)),"",VLOOKUP(Q174,Database_Tables!$B$1587:$E$1736,4,FALSE)) -> Ac. | U174: 0 | V174: Irrigation | W174: Gross Applied | Y174: =IF(OR(V174="Select Type",W174="Select Variable",W174=""),"",IF(V174="Farming",VLOOKUP(W174,Database_Tables!$L$1751:$M$1763,2,FALSE),IF(V174="Other Del 1",VLOOKUP(W174,Database_Tables!$L$1780:$M$1784,2,FALSE),IF(V174="Other Del 2",VLOOKUP(W174,Database_Tables!$L$1789:$M$1796,2,FALSE),IF(V174="Other Del 3",VLOOKUP(W174,Database_Tables!$L$1798:$M$1804,2,FALSE),VLOOKUP(W174,Database_Tables!$L$1767:$M$1773,2,FALSE)))))) -> [in] | Z174: 7 | AA174: =IF(Y174="","",IF(V174="Other Del 1",VLOOKUP(W174,Database_Tables!$L$1780:$W$1784,10,FALSE),IF(V174="Other Del 2",VLOOKUP(W174,Database_Tables!$L$1789:$W$1796,10,FALSE),IF(V174="Other Del 3",VLOOKUP(W174,Database_Tables!$L$1798:$W$1804,10,FALSE),IF(V174="Farming",VLOOKUP(W174,Database_Tables!$L$1750:$W$1763,10,FALSE),VLOOKUP(W174,Database_Tables!$L$1766:$W$1773,10,FALSE)))))) -> 
C175: SVO | D175: Gal | E175: 4 | F175: 123140 | G175: =1000000/F175 -> 8.12083807 | H175: 32.48335228 | Q175: 453 Land Reclamation, Landslide Treatment | T175: =IF(ISNA(VLOOKUP(Q175,Database_Tables!$B$1587:$E$1736,4,FALSE)),"",VLOOKUP(Q175,Database_Tables!$B$1587:$E$1736,4,FALSE)) -> No. | U175: 0 | V175: Irrigation | W175: Pump Plant Efficiency | Y175: =IF(OR(V175="Select Type",W175="Select Variable",W175=""),"",IF(V175="Farming",VLOOKUP(W175,Database_Tables!$L$1751:$M$1763,2,FALSE),IF(V175="Other Del 1",VLOOKUP(W175,Database_Tables!$L$1780:$M$1784,2,FALSE),IF(V175="Other Del 2",VLOOKUP(W175,Database_Tables!$L$1789:$M$1796,2,FALSE),IF(V175="Other Del 3",VLOOKUP(W175,Database_Tables!$L$1798:$M$1804,2,FALSE),VLOOKUP(W175,Database_Tables!$L$1767:$M$1773,2,FALSE)))))) -> [%] | Z175: 30 | AA175: =IF(Y175="","",IF(V175="Other Del 1",VLOOKUP(W175,Database_Tables!$L$1780:$W$1784,11,FALSE),IF(V175="Other Del 2",VLOOKUP(W175,Database_Tables!$L$1789:$W$1796,11,FALSE),IF(V175="Other Del 3",VLOOKUP(W175,Database_Tables!$L$1798:$W$1804,11,FALSE),IF(V175="Farming",VLOOKUP(W175,Database_Tables!$L$1750:$W$1763,11,FALSE),VLOOKUP(W175,Database_Tables!$L$1766:$W$1773,11,FALSE)))))) -> 
C176: Heating Oil | D176: Gal | E176: 4 | F176: 140000 | G176: 7.142857143 | H176: 28.57142857 | Q176: 449 Irrigation Water Management | T176: =IF(ISNA(VLOOKUP(Q176,Database_Tables!$B$1587:$E$1736,4,FALSE)),"",VLOOKUP(Q176,Database_Tables!$B$1587:$E$1736,4,FALSE)) -> Ac. | U176: 0 | V176: Other Del 1 | W176: Amount Applied | Y176: =IF(OR(V176="Select Type",W176="Select Variable",W176=""),"",IF(V176="Farming",VLOOKUP(W176,Database_Tables!$L$1751:$M$1763,2,FALSE),IF(V176="Other Del 1",VLOOKUP(W176,Database_Tables!$L$1780:$M$1784,2,FALSE),IF(V176="Other Del 2",VLOOKUP(W176,Database_Tables!$L$1789:$M$1796,2,FALSE),IF(V176="Other Del 3",VLOOKUP(W176,Database_Tables!$L$1798:$M$1804,2,FALSE),VLOOKUP(W176,Database_Tables!$L$1767:$M$1773,2,FALSE)))))) -> [Mgal/field] | Z176: 0.22 | AA176: =IF(Y176="","",IF(V176="Other Del 1",VLOOKUP(W176,Database_Tables!$L$1780:$W$1784,12,FALSE),IF(V176="Other Del 2",VLOOKUP(W176,Database_Tables!$L$1789:$W$1796,12,FALSE),IF(V176="Other Del 3",VLOOKUP(W176,Database_Tables!$L$1798:$W$1804,12,FALSE),IF(V176="Farming",VLOOKUP(W176,Database_Tables!$L$1750:$W$1763,12,FALSE),VLOOKUP(W176,Database_Tables!$L$1766:$W$1773,12,FALSE)))))) -> 
C177: Propane | D177: Gal | E177: 4 | F177: 91600 | G177: =1000000/F177 -> 10.91703057 | H177: 43.66812227
C178: Natural Gas | D178: CCF | E178: 0.86 | F178: 103000 | G178: 9.708737864 | H178: 8.349514563 | Q178: Benchmark vs Planned Diff. Table (Farming - yields/diesel use/labor)
C179: CNG | D179: CCF | E179: 4 | F179: 100000 | G179: 10 | H179: 40 | Q179: Crop Yields | R179: Field Oper. | S179: Post Harvest Removed | U179: Labor
C180: Ethanol | D180: Gal | E180: 3 | F180: 84400 | G180: 11.84834123 | H180: 35.5450237 | R180: Diesel Use | S180: Forage | T180: Grazing
C181: Electricity | D181: KWH | E181: 0.04 | F181: 3412 | G181: 293.0832356 | H181: 11.72332943 | Q181: [DM lbs/ac/yr] | R181: [gal/ac/yr] | S181: [DM lbs/ac/yr] | U181: [hr/ac/yr]
C182: Hydro Elec. | D182: KWH | E182: 0 | F182: 3412 | G182: 293.0832356 | H182: 0 | Q182: =SUM(Intermediate_Calcs!L10:P10)/Intermediate_Calcs!Q19-SUM(Intermediate_Calcs!C10:G10)/Intermediate_Calcs!H19 -> 0 | R182: =(SUM(Intermediate_Calcs!H20:H25)-SUM(Intermediate_Calcs!Q20:Q24))*1000000/140000 -> 0 | S182: =Intermediate_Calcs!Q12-Intermediate_Calcs!H12 -> 0 | T182: =Intermediate_Calcs!Q11-Intermediate_Calcs!H11 -> 0 | U182: =(Intermediate_Calcs!H29-Intermediate_Calcs!Q29)*8*252*1000000/3000/1000 -> 0
C183: Solar | D183: KWH | E183: 0 | F183: 3412 | G183: 293.0832356 | H183: 0
C184: Wind | D184: KWH | E184: 0 | F184: 3412 | G184: 293.0832356 | H184: 0 | Q184: Benchmark vs Planned Diff. Table (Farming - inorganics/organics)
C185: Agrichemicals | D185: lb | E185: Varies | F185: Varies | G185: Varies | H185: Varies | Q185: Nitrogen | R185: Phosphorus | S185: Potassium | T185: Sulfur | U185: Herbicide | V185: Pesticide | W185: Organics
C186: Soil Amend | D186: ton | E186: 25 | F186: =7500*2000*0.75 -> 11250000 | G186: =1000000/F186 -> 0.08888888889 | H186: =E186*G186 -> 2.222222222 | Q186: Applied | R186: Applied | S186: Applied | T186: Applied | U186: Applied | V186: Applied | W186: Applied
C187: Labor | D187: day | E187: 30 | F187: 11900 | G187: 84.03361345 | H187: 2521.008403 | Q187: [lbs/ac/yr] | R187: [lbs/ac/yr] | S187: [lbs/ac/yr] | T187: [lbs/ac/yr] | U187: [oz/ac/yr] | V187: [oz/ac/yr] | W187: [DM lbs/ac/yr]
C188: Nitrogen | D188: lb | E188: 0.7 | F188: 20000 | G188: 50 | H188: 35 | Q188: =(IF(C61="",0,D61)+IF(C62="",0,D62)+IF(C63="",0,D63)+IF(C64="",0,D64)+IF(C65="",0,D65))/Intermediate_Calcs!H19-(IF(Q61="",0,R61)+IF(Q62="",0,R62)+IF(Q63="",0,R63)+IF(Q64="",0,R64)+IF(Q65="",0,R65))/Intermediate_Calcs!Q19 -> 0 | R188: =(IF(C61="",0,E61)+IF(C62="",0,E62)+IF(C63="",0,E63)+IF(C64="",0,E64)+IF(C65="",0,E65))/Intermediate_Calcs!H19-(IF(Q61="",0,S61)+IF(Q62="",0,S62)+IF(Q63="",0,S63)+IF(Q64="",0,S64)+IF(Q65="",0,S65))/Intermediate_Calcs!Q19 -> 0 | S188: =(IF(C61="",0,F61)+IF(C62="",0,F62)+IF(C63="",0,F63)+IF(C64="",0,F64)+IF(C65="",0,F65))/Intermediate_Calcs!$H$19-(IF(Q61="",0,T61)+IF(Q62="",0,T62)+IF(Q63="",0,T63)+IF(Q64="",0,T64)+IF(Q65="",0,T65))/Intermediate_Calcs!$Q$19 -> 0 | T188: =(IF(C61="",0,G61)+IF(C62="",0,G62)+IF(C63="",0,G63)+IF(C64="",0,G64)+IF(C65="",0,G65))/Intermediate_Calcs!$H$19-(IF(Q61="",0,U61)+IF(Q62="",0,U62)+IF(Q63="",0,U63)+IF(Q64="",0,U64)+IF(Q65="",0,U65))/Intermediate_Calcs!$Q$19 -> 0 | U188: =(IF(C61="",0,H61)+IF(C62="",0,H62)+IF(C63="",0,H63)+IF(C64="",0,H64)+IF(C65="",0,H65))/Intermediate_Calcs!$H$19-(IF(Q61="",0,V61)+IF(Q62="",0,V62)+IF(Q63="",0,V63)+IF(Q64="",0,V64)+IF(Q65="",0,V65))/Intermediate_Calcs!$Q$19 -> 0 | V188: =(IF(C61="",0,I61)+IF(C62="",0,I62)+IF(C63="",0,I63)+IF(C64="",0,I64)+IF(C65="",0,I65))/Intermediate_Calcs!$H$19-(IF(Q61="",0,W61)+IF(Q62="",0,W62)+IF(Q63="",0,W63)+IF(Q64="",0,W64)+IF(Q65="",0,W65))/Intermediate_Calcs!$Q$19 -> 0 | W188: =(SUM(Intermediate_Calcs!H30:H35)-SUM(Intermediate_Calcs!Q30:Q35))*1000000/7500 -> 0
C189: Phosphorus | D189: lb | E189: 0.65 | F189: 7000 | G189: 142.8571429 | H189: 92.85714286
C190: Potassium | D190: lb | E190: 0.55 | F190: 5500 | G190: 181.8181818 | H190: 100 | Q190: Benchmark - Planned Difference Table (Irrigation) | V190: Benchmark - Planned Difference Table (Other Delivery)
C191: Sulfur | D191: lb | E191: 0.21 | F191: 2000 | G191: 500 | H191: 105 | Q191: Description on a per year basis | T191: Irrigation | V191: Description on a per year basis | Y191: Other | Z191: Other | AA191: Other
C192: Herbicide | D192: oz | E192: 0.35 | F192: 6250 | G192: 160 | H192: 56 | T192: Delivery | Y192: Delivery 1 | Z192: Delivery 2 | AA192: Delivery 3
C193: Pesticide | D193: oz | E193: 3.5 | F193: 6250 | G193: 160 | H193: =E193*G193 -> 560 | T193: Difference | Y193: Difference | Z193: Difference | AA193: Difference
C194: Note: These values should be checked and updated periodically | Q194: Gross Amount Applied [in]1 | T194: =(SUM(Intermediate_Calcs!C57:G57)-SUM(Intermediate_Calcs!C62:G62)) -> 0 | V194: Amount Applied, [Mgal/field]2 | Y194: =SUM(Intermediate_Calcs!C98:G98)/Intermediate_Calcs!H19-SUM(Intermediate_Calcs!C103:G103)/Intermediate_Calcs!Q19 -> 0 | Z194: =SUM(Intermediate_Calcs!C134:G134)/Intermediate_Calcs!H19-SUM(Intermediate_Calcs!C139:G139)/Intermediate_Calcs!Q19 -> 0 | AA194: =SUM(Intermediate_Calcs!C170:G170)/Intermediate_Calcs!H19-SUM(Intermediate_Calcs!C175:G175)/Intermediate_Calcs!Q19 -> 0
Q195: Operating Pressure [psi] | T195: =F143-T143 -> 0 | V195: Operating Pressure [psi] | Y195: =F144-T144 -> 0 | Z195: =F145-T145 -> 0 | AA195: =F146-T146 -> 0
Q196: Delivery/Pump Plant Efficiency [%] | T196: =U143-G143 -> 0 | V196: Delivery/Pump Plant Efficiency [%] | Y196: =U144-G144 -> 0 | Z196: =U145-G145 -> 0 | AA196: =U146-G146 -> 0
Q197: Operating Hours [hrs] | T197: =H143-V143 -> 0 | V197: Note 2: "Days of Operation" and "Operating Hours" values are accounted for in the
Q198: Note 1: "Uniformity of Application" and "Net Irrigation | V198: "Amount Applied" value
Q199: Requirement" values are accounted for in the "Gross
Q200: Amount Applied" value
C207: State | D207: State Abrv | E207: No. Counties | F207: Range
C208: Alaska | D208: AK | E208: 26 | F208: ="C"&VLOOKUP(D208,$D$266:$E$3412,2,FALSE)&":C"&E208+VLOOKUP(D208,$D$266:$E$3412,2,FALSE) -> C333:C359
C209: Alabama | D209: AL | E209: 66 | F209: C266:C332
C210: Arkansas | D210: AR | E210: 74 | F210: C375:C449
C211: American Samoa | D211: AS | E211: 0 | F211: C3409:C3409
C212: Arizona | D212: AZ | E212: 14 | F212: C360:C374
C213: California | D213: CA | E213: 57 | F213: C450:C507
C214: Colorado | D214: CO | E214: 62 | F214: C508:C570
C215: Connecticut | D215: CT | E215: 7 | F215: C571:C578
C216: District of Columbia | D216: DC | E216: 0 | F216: C582:C582
C217: Delaware | D217: DE | E217: 2 | F217: C579:C581
C218: Florida | D218: FL | E218: 66 | F218: C583:C649
C219: Georgia | D219: GA | E219: 158 | F219: C650:C808
C220: Guam | D220: GU | E220: 0 | F220: C3410:C3410
C221: Hawaii | D221: HI | E221: 4 | F221: C809:C813
C222: Iowa | D222: IA | E222: 98 | F222: C1052:C1150
C223: Idaho | D223: ID | E223: 43 | F223: C814:C857
... 3187 more rows

Sheet Report_Sum
K1: Gain
B2: NRCS - CROPLAND ENERGY TOOL
B4: ENERGY SUMMARY FOR ALTERNATIVE FIELD ROTATIONS
B6: ="Landowner: "&Input!E14 -> Landowner: | D6: Field Area: | E6: =IF(Input!J14="","",Input!J14) ->  | G6: Date: | H6: =IF(Input!E17="","",Input!E17) -> 
B7: =IF(Input!E15="","Field Location: ",IF(OR(Input!E15="American Samoa",Input!E15="District of Columbia",Input!E15="Puerto Rico",Input!E15="Virgin Islands",Input!E15="Guam"),"Field Location: "&Input!E15,"Field Location: "&Input!E16&IF(Input!E15="Alaska"," Boro., "," Co., ")&VLOOKUP(Input!E15,Input!C208:D262,2,FALSE))) -> Field Location: | D7: Field ID: | E7: =IF(Input!J15="","",Input!J15) ->  | G7: Latitude: | H7: =IF(Input!E18="","",Input!E18) -> 
G8: Longitude: | H8: =IF(Input!E19="","",Input!E19) -> 
E11: ALTERNATIVES
B13: Alternative Description | E13: =Input!C10 -> BENCHMARK | H13: =Input!Q10 -> PLANNED
B14: Crop Rotation | E14: =LEFT(IF(COUNTBLANK(Intermediate_Calcs!C18:G18)=4,Intermediate_Calcs!C18,IF(COUNTBLANK(Intermediate_Calcs!C18:G18)=3,Intermediate_Calcs!C18&"-"&Intermediate_Calcs!D18,IF(COUNTBLANK(Intermediate_Calcs!C18:G18)=2,Intermediate_Calcs!C18&"-"&Intermediate_Calcs!D18&"-"&Intermediate_Calcs!E18,IF(COUNTBLANK(Intermediate_Calcs!C18:G18)=1,Intermediate_Calcs!C18&"-"&Intermediate_Calcs!D18&"-"&Intermediate_Calcs!E18&"-"&Intermediate_Calcs!F18,Intermediate_Calcs!C18&"-"&Intermediate_Calcs!D18&"-"&Intermediate_Calcs!E18&"-"&Intermediate_Calcs!F18&"-"&Intermediate_Calcs!G18)))),20) -> ---- | H14: =LEFT(IF(COUNTBLANK(Intermediate_Calcs!L18:P18)=4,Intermediate_Calcs!L18,IF(COUNTBLANK(Intermediate_Calcs!L18:P18)=3,Intermediate_Calcs!L18&"-"&Intermediate_Calcs!M18,IF(COUNTBLANK(Intermediate_Calcs!L18:P18)=2,Intermediate_Calcs!L18&"-"&Intermediate_Calcs!M18&"-"&Intermediate_Calcs!N18,IF(COUNTBLANK(Intermediate_Calcs!L18:P18)=1,Intermediate_Calcs!L18&"-"&Intermediate_Calcs!M18&"-"&Intermediate_Calcs!N18&"-"&Intermediate_Calcs!O18,Intermediate_Calcs!L18&"-"&Intermediate_Calcs!M18&"-"&Intermediate_Calcs!N18&"-"&Intermediate_Calcs!O18&"-"&Intermediate_Calcs!P18)))),20) -> ----
B15: Length of Rotation | E15: =Intermediate_Calcs!H19 -> 1 | H15: =Intermediate_Calcs!Q19 -> 1
B16: Irrigation Method | E16: =Input!J16 -> 0 | H16: =Input!S16 -> 0
B19: Energy Input (added) to Field | E19: =Report_Details!H25 -> 0 | H19: =Report_Details!K25 -> 0
B20: [MMBTU/Ac/Yr]
E21: =IF(E19=0,"",IF(E19<=H19,"Increase ","Savings ")&ROUND(ABS(E19-H19)/E19*100,1)&"% "&ROUND(ABS(E19-H19),1)&" MMBTU/ac/yr") -> 
B24: Energy Harvest | E24: =Report_Details!H31 -> 0 | H24: =Report_Details!K31 -> 0
B25: [MMBTU/Ac/Yr]
E26: =IF(E24=0,"",IF(E24<=H24,K1&" ","Loss ")&ROUND(ABS(E24-H24)/E24*100,1)&"% "&ROUND(ABS(H24-E24),1)&" MMBTU/ac/yr") -> 
B29: Energy Remaining | E29: =Report_Details!H36 -> 0 | H29: =Report_Details!K36 -> 0
B30: [MMBTU/Ac/Yr]
E31: =IF(E29=0,"",IF(E29<=H29,K1&" ","Loss ")&ROUND(ABS(E29-H29)/E29*100,1)&"% "&ROUND(ABS(H29-E29),1)&" MMBTU/ac/yr") -> 
B35: Total Energy Yield | E35: =Report_Details!H39 -> 0 | H35: =Report_Details!K39 -> 0
B36: [MMBTU/Ac/Yr]
E38: =IF(E35=0,"",IF(E35<=H35,K1&" ","Loss ")&ROUND(ABS(E35-H35)/E35*100,1)&"% "&ROUND(ABS(H35-E35),1)&" MMBTU/ac/yr") -> 
B42: Energy Gain Index | E42: =Report_Details!H44 ->  | H42: =Report_Details!K44 -> 
B45: Output Index | E45: =Report_Details!H46 ->  | H45: =Report_Details!K46 -> 
B48: Energy Harvest Index | E48: =Report_Details!H48 ->  | H48: =Report_Details!K48 -> 

Sheet Report_Details
N1: =Report_Sum!K1 -> Gain
B2: NRCS - CROPLAND ENERGY TOOL
B4: DETAILED ENERGY SUMMARY FOR ALTERNATIVE FIELD ROTATIONS
E6: ="Landowner: "&Input!E14 -> Landowner: | G6: Field Area: | H6: =IF(Input!J14="","",Input!J14) ->  | K6: Date: | L6: =IF(Input!E17="","",Input!E17) -> 
E7: =IF(Input!E15="","Field Location: ",IF(OR(Input!E15="American Samoa",Input!E15="District of Columbia",Input!E15="Puerto Rico",Input!E15="Virgin Islands",Input!E15="Guam"),"Field Location: "&Input!E15,"Field Location: "&Input!E16&IF(Input!E15="Alaska"," Boro., "," Co., ")&VLOOKUP(Input!E15,Input!C208:D262,2,FALSE))) -> Field Location: | G7: Field ID: | H7: =IF(Input!J15="","",Input!J15) ->  | K7: Latitude: | L7: =IF(Input!E18="","",Input!E18) -> 
K8: Longitude: | L8: =IF(Input!E19="","",Input!E19) -> 
B11: Alternatives | D11: Alternative Description | H11: =Input!C10 -> BENCHMARK | K11: =Input!Q10 -> PLANNED
D12: Crop Rotation | H12: =LEFT(IF(COUNTBLANK(Intermediate_Calcs!C18:G18)=4,Intermediate_Calcs!C18,IF(COUNTBLANK(Intermediate_Calcs!C18:G18)=3,Intermediate_Calcs!C18&"-"&Intermediate_Calcs!D18,IF(COUNTBLANK(Intermediate_Calcs!C18:G18)=2,Intermediate_Calcs!C18&"-"&Intermediate_Calcs!D18&"-"&Intermediate_Calcs!E18,IF(COUNTBLANK(Intermediate_Calcs!C18:G18)=1,Intermediate_Calcs!C18&"-"&Intermediate_Calcs!D18&"-"&Intermediate_Calcs!E18&"-"&Intermediate_Calcs!F18,Intermediate_Calcs!C18&"-"&Intermediate_Calcs!D18&"-"&Intermediate_Calcs!E18&"-"&Intermediate_Calcs!F18&"-"&Intermediate_Calcs!G18)))),20) -> ---- | K12: =LEFT(IF(COUNTBLANK(Intermediate_Calcs!L18:P18)=4,Intermediate_Calcs!L18,IF(COUNTBLANK(Intermediate_Calcs!L18:P18)=3,Intermediate_Calcs!L18&"-"&Intermediate_Calcs!M18,IF(COUNTBLANK(Intermediate_Calcs!L18:P18)=2,Intermediate_Calcs!L18&"-"&Intermediate_Calcs!M18&"-"&Intermediate_Calcs!N18,IF(COUNTBLANK(Intermediate_Calcs!L18:P18)=1,Intermediate_Calcs!L18&"-"&Intermediate_Calcs!M18&"-"&Intermediate_Calcs!N18&"-"&Intermediate_Calcs!O18,Intermediate_Calcs!L18&"-"&Intermediate_Calcs!M18&"-"&Intermediate_Calcs!N18&"-"&Intermediate_Calcs!O18&"-"&Intermediate_Calcs!P18)))),20) -> ----
D13: Length of Rotation | H13: =Intermediate_Calcs!H19 -> 1 | K13: =Intermediate_Calcs!Q19 -> 1
D14: Irrigation Method | H14: =Input!J16 -> 0 | K14: =Input!S16 -> 0
B16: Units (MMBTU = Million British Thermal Units) | H16: [MMBTU/ac/yr] | I16: Percent | K16: [MMBTU/ac/yr] | L16: Percent
B17: Energy Input (added) to Field | D17: Harvest Operations Energy Input | H17: =Intermediate_Calcs!H20 -> 0 | I17: =IF(H25=0,"",H17/H$25) ->  | K17: =Intermediate_Calcs!Q20 -> 0 | L17: =IF(K25=0,"",K17/K$25) -> 
D18: Field Operations Energy Input | H18: =SUM(Intermediate_Calcs!H21:H25) -> 0 | I18: =IF(H25=0,"",H18/H$25) ->  | K18: =SUM(Intermediate_Calcs!Q21:Q25) -> 0 | L18: =IF(K25=0,"",K18/K$25) -> 
D19: Irrigation and Delivery Energy | H19: =Intermediate_Calcs!H26 -> 0 | I19: =IF(H25=0,"",H19/H$25) ->  | K19: =Intermediate_Calcs!Q26 -> 0 | L19: =IF(K25=0,"",K19/K$25) -> 
D20: Other Delivery Energy | H20: =Intermediate_Calcs!H28+Intermediate_Calcs!H27 -> 0 | I20: =IF(H25=0,"",H20/H$25) ->  | K20: =Intermediate_Calcs!Q28+Intermediate_Calcs!Q27 -> 0 | L20: =IF(K25=0,"",K20/K$25) -> 
D21: Agrichemicals/Fertilizers | H21: =SUM(Intermediate_Calcs!H36:H41) -> 0 | I21: =IF(H25=0,"",H21/H$25) ->  | K21: =SUM(Intermediate_Calcs!Q36:Q41) -> 0 | L21: =IF(K25=0,"",K21/K$25) -> 
D22: Soil Amendments | H22: =SUM(Intermediate_Calcs!H30:H35) -> 0 | I22: =IF(H25=0,"",H22/H$25) ->  | K22: =SUM(Intermediate_Calcs!Q30:Q35) -> 0 | L22: =IF(K25=0,"",K22/K$25) -> 
D23: Labor | H23: =Intermediate_Calcs!H29 -> 0 | I23: =IF(H25=0,"",H23/H$25) ->  | K23: =Intermediate_Calcs!Q29 -> 0 | L23: =IF(K25=0,"",K23/K$25) -> 
B25: =IF(H25=0,"",IF(H25<=K25,"Increase ","Savings ")&ROUND(ABS(H25-K25)/H25*100,1)&"%") ->  | D25: Total | H25: =SUM(H17:H23) -> 0 | K25: =SUM(K17:K23) -> 0
B27: Energy Harvest | D27: Crop Harvest Removed | H27: =Intermediate_Calcs!H42 -> 0 | I27: =IF(H31=0,"",H27/H$31) ->  | K27: =Intermediate_Calcs!Q42 -> 0 | L27: =IF(K31=0,"",K27/K$31) -> 
D28: Post Harvest Grazing Yield | H28: =Intermediate_Calcs!H43 -> 0 | I28: =IF(H31=0,"",H28/H$31) ->  | K28: =Intermediate_Calcs!Q43 -> 0 | L28: =IF(K31=0,"",K28/K$31) -> 
D29: Post Harvest Crop Residue Removed | H29: =Intermediate_Calcs!H44 -> 0 | I29: =IF(H31=0,"",H29/H$31) ->  | K29: =Intermediate_Calcs!Q44 -> 0 | L29: =IF(K31=0,"",K29/K$31) -> 
B31: =IF(H31=0,"",IF(H31<=K31,N1&" ","Loss ")&ROUND(ABS(H31-K31)/H31*100,1)&"%") ->  | D31: Total | H31: =SUM(H27:H29) -> 0 | K31: =SUM(K27:K29) -> 0
B33: Energy Remaining | D33: Rootmass | H33: =Intermediate_Calcs!H8*7500/1000000 -> 0 | I33: =IF(H36=0,"",H33/H$36) ->  | K33: =Intermediate_Calcs!Q8*7500/1000000 -> 0 | L33: =IF(K36=0,"",K33/K$36) -> 
D34: Surface Residue | H34: =Intermediate_Calcs!H14*7500/1000000 -> 0 | I34: =IF(H36=0,"",H34/H$36) ->  | K34: =Intermediate_Calcs!Q14*7500/1000000 -> 0 | L34: =IF(K36=0,"",K34/K$36) -> 
B36: =IF(H36=0,"",IF(H36<=K36,N1&" ","Loss ")&ROUND(ABS(H36-K36)/H36*100,1)&"%") ->  | D36: Total | H36: =H33+H34 -> 0 | K36: =K33+K34 -> 0
B38: Total Energy Yield
D39: Total | H39: =H31+H36-H25 -> 0 | K39: =K31+K36-K25 -> 0
D41: Gain/Loss | H41: =IF(H39=0,"",IF(H39<=K39,N1&" ","Loss ")&ROUND(ABS(H39-K39)/H39*100,1)&"% "&ROUND(ABS(K39-H39),1)&" MMBTU/ac/yr") -> 
B43: Energy Index Values
D44: Energy Gain Index | H44: =IF(H25=0,"",(H39+H25)/H25) ->  | K44: =IF(K25=0,"",(K39+K25)/K25) -> 
D46: Output Index | H46: =IF(H31+H36=0,"",H31/(H31+H36)) ->  | K46: =IF(K31+K36=0,"",K31/(K31+K36)) -> 
D48: Energy Harvest Index | H48: =IF(OR(H44="",H46=""),"",H46*H44) ->  | K48: =IF(OR(K44="",K46=""),"",K46*K44) -> 

Sheet Report_Cost
B2: NRCS - CROPLAND ENERGY TOOL
B4: COST ANALYSIS SUMMARY FOR ALTERNATIVE FIELD ROTATIONS
F6: ="Landowner: "&Input!E14 -> Landowner: | J6: Field Area: | K6: =IF(Input!J14="","",Input!J14) ->  | O6: Date: | P6: =IF(Input!E17="","",Input!E17) -> 
F7: =IF(Input!E15="","Field Location: ",IF(OR(Input!E15="American Samoa",Input!E15="District of Columbia",Input!E15="Puerto Rico",Input!E15="Virgin Islands",Input!E15="Guam"),"Field Location: "&Input!E15,"Field Location: "&Input!E16&IF(Input!E15="Alaska"," Boro., "," Co., ")&VLOOKUP(Input!E15,Input!C208:D262,2,FALSE))) -> Field Location: | J7: Field ID: | K7: =IF(Input!J15="","",Input!J15) ->  | O7: Latitude: | P7: =IF(Input!E18="","",Input!E18) -> 
O8: Longitude: | P8: =IF(Input!E19="","",Input!E19) -> 
B11: Energy Input - Fuel Types and Unit Costs | J11: BENCHMARK COSTS PER ACRE
C12: Fuel | D12: Units | E12: Unit | F12: BTU/Unit | G12: Unit Conversion | H12: Cost per
C13: Type | E13: Price | G13: to MMBTU | H13: MMBTU
C14: =Input!C168 -> Diesel | D14: =Input!D168 -> Gal | E14: =Input!E168 -> 4.2 | F14: =Input!F168 -> 139000 | G14: =Input!G168 -> 7.194244604 | H14: =Input!H168 -> 30.21582734
C15: =Input!C169 -> Gasoline (E10) | D15: =Input!D169 -> Gal | E15: =Input!E169 -> 3.7 | F15: =Input!F169 -> 120000 | G15: =Input!G169 -> 8.333333333 | H15: =Input!H169 -> 30.83333333
C16: =Input!C170 -> BioDiesel B2 | D16: =Input!D170 -> Gal | E16: =Input!E170 -> 4 | F16: =Input!F170 -> 138600 | G16: =Input!G170 -> 7.215007215 | H16: =Input!H170 -> 28.86002886
C17: =Input!C171 -> BioDiesel B5 | D17: =Input!D171 -> Gal | E17: =Input!E171 -> 4 | F17: =Input!F171 -> 138000 | G17: =Input!G171 -> 7.246376812 | H17: =Input!H171 -> 28.98550725
C18: =Input!C172 -> BioDiesel B10 | D18: =Input!D172 -> Gal | E18: =Input!E172 -> 4 | F18: =Input!F172 -> 136900 | G18: =Input!G172 -> 7.304601899 | H18: =Input!H172 -> 29.2184076
C19: =Input!C173 -> BioDiesel B20 | D19: =Input!D173 -> Gal | E19: =Input!E173 -> 4 | F19: =Input!F173 -> 134900 | G19: =Input!G173 -> 7.412898443 | H19: =Input!H173 -> 29.65159377
C20: =Input!C174 -> BioDiesel B100 | D20: =Input!D174 -> Gal | E20: =Input!E174 -> 4 | F20: =Input!F174 -> 118300 | G20: =Input!G174 -> 8.453085376 | H20: =Input!H174 -> 33.8123415
C21: =Input!C175 -> SVO | D21: =Input!D175 -> Gal | E21: =Input!E175 -> 4 | F21: =Input!F175 -> 123140 | G21: =Input!G175 -> 8.12083807 | H21: =Input!H175 -> 32.48335228
C22: =Input!C176 -> Heating Oil | D22: =Input!D176 -> Gal | E22: =Input!E176 -> 4 | F22: =Input!F176 -> 140000 | G22: =Input!G176 -> 7.142857143 | H22: =Input!H176 -> 28.57142857
C23: =Input!C177 -> Propane | D23: =Input!D177 -> Gal | E23: =Input!E177 -> 4 | F23: =Input!F177 -> 91600 | G23: =Input!G177 -> 10.91703057 | H23: =Input!H177 -> 43.66812227
C24: =Input!C178 -> Natural Gas | D24: =Input!D178 -> CCF | E24: =Input!E178 -> 0.86 | F24: =Input!F178 -> 103000 | G24: =Input!G178 -> 9.708737864 | H24: =Input!H178 -> 8.349514563
C25: =Input!C179 -> CNG | D25: =Input!D179 -> CCF | E25: =Input!E179 -> 4 | F25: =Input!F179 -> 100000 | G25: =Input!G179 -> 10 | H25: =Input!H179 -> 40
C26: =Input!C180 -> Ethanol | D26: =Input!D180 -> Gal | E26: =Input!E180 -> 3 | F26: =Input!F180 -> 84400 | G26: =Input!G180 -> 11.84834123 | H26: =Input!H180 -> 35.5450237 | J26: PLANNED COSTS PER ACRE
C27: =Input!C181 -> Electricity | D27: =Input!D181 -> KWH | E27: =Input!E181 -> 0.04 | F27: =Input!F181 -> 3412 | G27: =Input!G181 -> 293.0832356 | H27: =Input!H181 -> 11.72332943
C28: =Input!C182 -> Hydro Elec. | D28: =Input!D182 -> KWH | E28: =Input!E182 -> 0 | F28: =Input!F182 -> 3412 | G28: =Input!G182 -> 293.0832356 | H28: =Input!H182 -> 0
C29: =Input!C183 -> Solar | D29: =Input!D183 -> KWH | E29: =Input!E183 -> 0 | F29: =Input!F183 -> 3412 | G29: =Input!G183 -> 293.0832356 | H29: =Input!H183 -> 0
C30: =Input!C184 -> Wind | D30: =Input!D184 -> KWH | E30: =Input!E184 -> 0 | F30: =Input!F184 -> 3412 | G30: =Input!G184 -> 293.0832356 | H30: =Input!H184 -> 0
C31: =Input!C186 -> Soil Amend | D31: =Input!D186 -> ton | E31: =Input!E186 -> 25 | F31: =Input!F186 -> 11250000 | G31: =Input!G186 -> 0.08888888889 | H31: =Input!H186 -> 2.222222222
C32: =Input!C187 -> Labor | D32: =Input!D187 -> day | E32: =Input!E187 -> 30 | F32: =Input!F187 -> 11900 | G32: =Input!G187 -> 84.03361345 | H32: =Input!H187 -> 2521.008403
C33: =Input!C188 -> Nitrogen | D33: =Input!D188 -> lb | E33: =Input!E188 -> 0.7 | F33: =Input!F188 -> 20000 | G33: =Input!G188 -> 50 | H33: =Input!H188 -> 35
C34: =Input!C189 -> Phosphorus | D34: =Input!D189 -> lb | E34: =Input!E189 -> 0.65 | F34: =Input!F189 -> 7000 | G34: =Input!G189 -> 142.8571429 | H34: =Input!H189 -> 92.85714286
C35: =Input!C190 -> Potassium | D35: =Input!D190 -> lb | E35: =Input!E190 -> 0.55 | F35: =Input!F190 -> 5500 | G35: =Input!G190 -> 181.8181818 | H35: =Input!H190 -> 100
C36: =Input!C191 -> Sulfur | D36: =Input!D191 -> lb | E36: =Input!E191 -> 0.21 | F36: =Input!F191 -> 2000 | G36: =Input!G191 -> 500 | H36: =Input!H191 -> 105
C37: =Input!C192 -> Herbicide | D37: =Input!D192 -> oz | E37: =Input!E192 -> 0.35 | F37: =Input!F192 -> 6250 | G37: =Input!G192 -> 160 | H37: =Input!H192 -> 56
C38: =Input!C193 -> Pesticide | D38: =Input!D193 -> oz | E38: =Input!E193 -> 3.5 | F38: =Input!F193 -> 6250 | G38: =Input!G193 -> 160 | H38: =Input!H193 -> 560
C39: =Input!C185 -> Agrichemicals | D39: =Input!D185 -> lb | E39: =Input!E185 -> Varies | F39: =Input!F185 -> Varies | G39: =Input!G185 -> Varies | H39: =Input!H185 -> Varies
B41: Per Acre Costs
G42: BENCHMARK | L42: PLANNED | P42: Difference
G43: =LEFT(IF(COUNTBLANK(Intermediate_Calcs!C18:G18)=4,Intermediate_Calcs!C18,IF(COUNTBLANK(Intermediate_Calcs!C18:G18)=3,Intermediate_Calcs!C18&"-"&Intermediate_Calcs!D18,IF(COUNTBLANK(Intermediate_Calcs!C18:G18)=2,Intermediate_Calcs!C18&"-"&Intermediate_Calcs!D18&"-"&Intermediate_Calcs!E18,IF(COUNTBLANK(Intermediate_Calcs!C18:G18)=1,Intermediate_Calcs!C18&"-"&Intermediate_Calcs!D18&"-"&Intermediate_Calcs!E18&"-"&Intermediate_Calcs!F18,Intermediate_Calcs!C18&"-"&Intermediate_Calcs!D18&"-"&Intermediate_Calcs!E18&"-"&Intermediate_Calcs!F18&"-"&Intermediate_Calcs!G18)))),25) -> ---- | L43: =LEFT(IF(COUNTBLANK(Intermediate_Calcs!L18:P18)=4,Intermediate_Calcs!L18,IF(COUNTBLANK(Intermediate_Calcs!L18:P18)=3,Intermediate_Calcs!L18&"-"&Intermediate_Calcs!M18,IF(COUNTBLANK(Intermediate_Calcs!L18:P18)=2,Intermediate_Calcs!L18&"-"&Intermediate_Calcs!M18&"-"&Intermediate_Calcs!N18,IF(COUNTBLANK(Intermediate_Calcs!L18:P18)=1,Intermediate_Calcs!L18&"-"&Intermediate_Calcs!M18&"-"&Intermediate_Calcs!N18&"-"&Intermediate_Calcs!O18,Intermediate_Calcs!L18&"-"&Intermediate_Calcs!M18&"-"&Intermediate_Calcs!N18&"-"&Intermediate_Calcs!O18&"-"&Intermediate_Calcs!P18)))),25) -> ----
B44: Energy Inputs (Added) | G44: =Intermediate_Calcs!H19 -> 1 | L44: =Intermediate_Calcs!Q19 -> 1
C45: to the Field
F46: Amount | G46: Energy Type | H46: Amount | I46: Cost | K46: Amount | L46: Energy Type | M46: Amount | N46: Cost | P46: Cost
H47: Used | M47: Used | P47: Change | S47: Savings | T47: =IF(P56>0,P56,0) -> 0
F48: MMBTU/ac/yr | H48: [Unit/ac] | I48: [$/ac/yr] | K48: MMBTU/ac/yr | M48: [Unit/ac] | N48: [$/ac/yr] | P48: [$/ac/yr] | S48: Harvested Operations
C49: Harvested Operations | F49: =Intermediate_Calcs!H20 -> 0 | G49: Diesel | H49: =IF(G49="Electricity",ROUND(VLOOKUP(G49,$C$14:$H$38,5,FALSE)*F49,0),ROUND(VLOOKUP(G49,$C$14:$H$38,5,FALSE)*F49,2))&" "&VLOOKUP(G49,$C$14:$H$38,2,FALSE) -> 0 Gal | I49: =VLOOKUP(G49,$C$14:$H$38,6,FALSE)*F49 -> 0 | K49: =Intermediate_Calcs!Q20 -> 0 | L49: Diesel | M49: =IF(L49="Electricity",ROUND(VLOOKUP(L49,$C$14:$H$38,5,FALSE)*K49,0),ROUND(VLOOKUP(L49,$C$14:$H$38,5,FALSE)*K49,2))&" "&VLOOKUP(L49,$C$14:$H$38,2,FALSE) -> 0 Gal | N49: =VLOOKUP(L49,$C$14:$H$38,6,FALSE)*K49 -> 0 | P49: =I49-N49 -> 0 | S49: Field Operations
C50: Field Operations | F50: =SUM(Intermediate_Calcs!H21:H25) -> 0 | G50: Diesel | H50: =IF(G50="Electricity",ROUND(VLOOKUP(G50,$C$14:$H$38,5,FALSE)*F50,0),ROUND(VLOOKUP(G50,$C$14:$H$38,5,FALSE)*F50,2))&" "&VLOOKUP(G50,$C$14:$H$38,2,FALSE) -> 0 Gal | I50: =VLOOKUP(G50,$C$14:$H$38,6,FALSE)*F50 -> 0 | K50: =SUM(Intermediate_Calcs!Q21:Q25) -> 0 | L50: Diesel | M50: =IF(L50="Electricity",ROUND(VLOOKUP(L50,$C$14:$H$38,5,FALSE)*K50,0),ROUND(VLOOKUP(L50,$C$14:$H$38,5,FALSE)*K50,2))&" "&VLOOKUP(L50,$C$14:$H$38,2,FALSE) -> 0 Gal | N50: =VLOOKUP(L50,$C$14:$H$38,6,FALSE)*K50 -> 0 | P50: 0 | S50: Irrigation and Delivery Power
C51: Irrigation Delivery Energy | F51: =Intermediate_Calcs!H26 -> 0 | G51: Electricity | H51: =IF(G51="Electricity",ROUND(VLOOKUP(G51,$C$14:$H$38,5,FALSE)*F51,0),ROUND(VLOOKUP(G51,$C$14:$H$38,5,FALSE)*F51,2))&" "&VLOOKUP(G51,$C$14:$H$38,2,FALSE) -> 0 KWH | I51: =VLOOKUP(G51,$C$14:$H$38,6,FALSE)*F51 -> 0 | K51: =Intermediate_Calcs!Q26 -> 0 | L51: Electricity | M51: =IF(L51="Electricity",ROUND(VLOOKUP(L51,$C$14:$H$38,5,FALSE)*K51,0),ROUND(VLOOKUP(L51,$C$14:$H$38,5,FALSE)*K51,2))&" "&VLOOKUP(L51,$C$14:$H$38,2,FALSE) -> 0 KWH | N51: =VLOOKUP(L51,$C$14:$H$38,6,FALSE)*K51 -> 0 | P51: 0 | S51: Other Delivery Power (Farming)
C52: Other Delivery Energy | F52: =Intermediate_Calcs!H28+Intermediate_Calcs!H27 -> 0 | G52: Electricity | H52: =IF(G52="Electricity",ROUND(VLOOKUP(G52,$C$14:$H$38,5,FALSE)*F52,0),ROUND(VLOOKUP(G52,$C$14:$H$38,5,FALSE)*F52,2))&" "&VLOOKUP(G52,$C$14:$H$38,2,FALSE) -> 0 KWH | I52: =VLOOKUP(G52,$C$14:$H$38,6,FALSE)*F52 -> 0 | K52: =Intermediate_Calcs!Q28+Intermediate_Calcs!Q27 -> 0 | L52: Electricity | M52: =IF(L52="Electricity",ROUND(VLOOKUP(L52,$C$14:$H$38,5,FALSE)*K52,0),ROUND(VLOOKUP(L52,$C$14:$H$38,5,FALSE)*K52,2))&" "&VLOOKUP(L52,$C$14:$H$38,2,FALSE) -> 0 KWH | N52: =VLOOKUP(L52,$C$14:$H$38,6,FALSE)*K52 -> 0 | P52: 0 | S52: Inorganics Applied
C53: Agrichemicals/Fertilizers | F53: =SUM(Intermediate_Calcs!H36:'Intermediate_Calcs'!H41) -> 0 | G53: Agrichemicals | H53: =IF(G53="Agrichemicals",ROUND(($G$33*Intermediate_Calcs!$H$36+$G$34*Intermediate_Calcs!$H$37+$G$35*Intermediate_Calcs!$H$38+$G$36*Intermediate_Calcs!$H$39+$G$37/IF(Input!D192="oz",16,1)*Intermediate_Calcs!$H$40+$G$38/IF(Input!D193="oz",16,1)*Intermediate_Calcs!$H$41)/IF(SUM(Intermediate_Calcs!$H$36:'Intermediate_Calcs'!$H$41)=0,1,SUM(Intermediate_Calcs!$H$36:'Intermediate_Calcs'!$H$41))*F53,1),IF(G53="Electricity",ROUND(VLOOKUP(G53,$C$14:$H$39,5,FALSE)*F53,0),ROUND(VLOOKUP(G53,$C$14:$H$38,5,FALSE)*F53,2)))&" "&VLOOKUP(G53,$C$14:$H$39,2,FALSE) -> 0 lb | I53: =SUM(I103:I108) -> 0 | K53: =SUM(Intermediate_Calcs!Q36:'Intermediate_Calcs'!Q41) -> 0 | L53: Agrichemicals | M53: =IF(L53="Agrichemicals",ROUND(($G$33*Intermediate_Calcs!$Q$36+$G$34*Intermediate_Calcs!$Q$37+$G$35*Intermediate_Calcs!$Q$38+$G$36*Intermediate_Calcs!$Q$39+$G$37/IF(Input!D192="oz",16,1)*Intermediate_Calcs!$Q$40+$G$38/IF(Input!D193="oz",16,1)*Intermediate_Calcs!$Q$41)/IF(SUM(Intermediate_Calcs!$Q$36:'Intermediate_Calcs'!$Q$41)=0,1,SUM(Intermediate_Calcs!$Q$36:'Intermediate_Calcs'!$Q$41))*K53,1),IF(L53="Electricity",ROUND(VLOOKUP(L53,$C$14:$H$38,5,FALSE)*K53,0),ROUND(VLOOKUP(L53,$C$14:$H$38,5,FALSE)*K53,2)))&" "&VLOOKUP(L53,$C$14:$H$39,2,FALSE) -> 0 lb | N53: =SUM(N103:N108) -> 0 | P53: 0
C54: Soil Amendments | F54: =SUM(Intermediate_Calcs!H30:H35) -> 0 | G54: Soil Amend | H54: =IF(G54="Electricity",ROUND(VLOOKUP(G54,$C$14:$H$38,5,FALSE)*F54,0),ROUND(VLOOKUP(G54,$C$14:$H$38,5,FALSE)*F54,2))&" "&VLOOKUP(G54,$C$14:$H$38,2,FALSE) -> 0 ton | I54: =VLOOKUP(G54,$C$14:$H$38,6,FALSE)*F54 -> 0 | K54: =SUM(Intermediate_Calcs!Q30:Q35) -> 0 | L54: Soil Amend | M54: =IF(L54="Electricity",ROUND(VLOOKUP(L54,$C$14:$H$38,5,FALSE)*K54,0),ROUND(VLOOKUP(L54,$C$14:$H$38,5,FALSE)*K54,2))&" "&VLOOKUP(L54,$C$14:$H$38,2,FALSE) -> 0 ton | N54: =VLOOKUP(L54,$C$14:$H$38,6,FALSE)*K54 -> 0 | P54: 0 | S54: Organics Applied
C55: Labor | F55: =Intermediate_Calcs!H29 -> 0 | G55: Labor | H55: =IF(G55="Electricity",ROUND(VLOOKUP(G55,$C$14:$H$38,5,FALSE)*F55,0),ROUND(VLOOKUP(G55,$C$14:$H$38,5,FALSE)*F55,2))&" "&VLOOKUP(G55,$C$14:$H$38,2,FALSE) -> 0 day | I55: =VLOOKUP(G55,$C$14:$H$38,6,FALSE)*F55 -> 0 | K55: =Intermediate_Calcs!Q29 -> 0 | L55: Labor | M55: =IF(L55="Electricity",ROUND(VLOOKUP(L55,$C$14:$H$38,5,FALSE)*K55,0),ROUND(VLOOKUP(L55,$C$14:$H$38,5,FALSE)*K55,2))&" "&VLOOKUP(L55,$C$14:$H$38,2,FALSE) -> 0 day | N55: =VLOOKUP(L55,$C$14:$H$38,6,FALSE)*K55 -> 0 | P55: 0 | S55: Labor
C56: Total: | F56: =SUM(F49:F55) -> 0 | I56: =SUM(I49:I55) -> 0 | K56: =SUM(K49:K55) -> 0 | N56: =SUM(N49:N55) -> 0 | P56: 0
B58: Total Field Costs
G59: BENCHMARK | L59: PLANNED | P59: Difference
G60: =LEFT(IF(COUNTBLANK(Intermediate_Calcs!C18:G18)=4,Intermediate_Calcs!C18,IF(COUNTBLANK(Intermediate_Calcs!C18:G18)=3,Intermediate_Calcs!C18&"-"&Intermediate_Calcs!D18,IF(COUNTBLANK(Intermediate_Calcs!C18:G18)=2,Intermediate_Calcs!C18&"-"&Intermediate_Calcs!D18&"-"&Intermediate_Calcs!E18,IF(COUNTBLANK(Intermediate_Calcs!C18:G18)=1,Intermediate_Calcs!C18&"-"&Intermediate_Calcs!D18&"-"&Intermediate_Calcs!E18&"-"&Intermediate_Calcs!F18,Intermediate_Calcs!C18&"-"&Intermediate_Calcs!D18&"-"&Intermediate_Calcs!E18&"-"&Intermediate_Calcs!F18&"-"&Intermediate_Calcs!G18)))),25) -> ---- | L60: =LEFT(IF(COUNTBLANK(Intermediate_Calcs!L18:P18)=4,Intermediate_Calcs!L18,IF(COUNTBLANK(Intermediate_Calcs!L18:P18)=3,Intermediate_Calcs!L18&"-"&Intermediate_Calcs!M18,IF(COUNTBLANK(Intermediate_Calcs!L18:P18)=2,Intermediate_Calcs!L18&"-"&Intermediate_Calcs!M18&"-"&Intermediate_Calcs!N18,IF(COUNTBLANK(Intermediate_Calcs!L18:P18)=1,Intermediate_Calcs!L18&"-"&Intermediate_Calcs!M18&"-"&Intermediate_Calcs!N18&"-"&Intermediate_Calcs!O18,Intermediate_Calcs!L18&"-"&Intermediate_Calcs!M18&"-"&Intermediate_Calcs!N18&"-"&Intermediate_Calcs!O18&"-"&Intermediate_Calcs!P18)))),25) -> ----
B61: Energy Inputs (Added) | G61: =Intermediate_Calcs!H19 -> 1 | L61: =Intermediate_Calcs!Q19 -> 1
C62: to the Field
F63: Amount | G63: Energy Type | H63: Amount | I63: Cost | K63: Amount | L63: Energy Type | M63: Amount | N63: Cost | P63: Cost
H64: Used | M64: Used | P64: Change
F65: MMBTU/yr | H65: [Unit] | I65: [$/yr] | K65: MMBTU/yr | M65: [Unit] | N65: [$/yr] | P65: [$/yr]
C66: Harvested Operations | F66: =F49*Input!$J$14 -> 0 | G66: =G49 -> Diesel | H66: =IF(G66="Electricity",ROUND(VLOOKUP(G66,$C$14:$H$38,5,FALSE)*F66,0),ROUND(VLOOKUP(G66,$C$14:$H$38,5,FALSE)*F66,0))&" "&VLOOKUP(G66,$C$14:$H$38,2,FALSE) -> 0 Gal | I66: =VLOOKUP(G66,$C$14:$H$38,6,FALSE)*F66 -> 0 | K66: =K49*Input!$S$14 -> 0 | L66: =L49 -> Diesel | M66: =IF(L66="Electricity",ROUND(VLOOKUP(L66,$C$14:$H$38,5,FALSE)*K66,0),ROUND(VLOOKUP(L66,$C$14:$H$38,5,FALSE)*K66,0))&" "&VLOOKUP(L66,$C$14:$H$38,2,FALSE) -> 0 Gal | N66: =VLOOKUP(L66,$C$14:$H$38,6,FALSE)*K66 -> 0 | P66: =I66-N66 -> 0
C67: Field Operations | F67: =F50*Input!$J$14 -> 0 | G67: Diesel | H67: =IF(G67="Electricity",ROUND(VLOOKUP(G67,$C$14:$H$38,5,FALSE)*F67,0),ROUND(VLOOKUP(G67,$C$14:$H$38,5,FALSE)*F67,0))&" "&VLOOKUP(G67,$C$14:$H$38,2,FALSE) -> 0 Gal | I67: =VLOOKUP(G67,$C$14:$H$38,6,FALSE)*F67 -> 0 | K67: =K50*Input!$S$14 -> 0 | L67: Diesel | M67: =IF(L67="Electricity",ROUND(VLOOKUP(L67,$C$14:$H$38,5,FALSE)*K67,0),ROUND(VLOOKUP(L67,$C$14:$H$38,5,FALSE)*K67,0))&" "&VLOOKUP(L67,$C$14:$H$38,2,FALSE) -> 0 Gal | N67: =VLOOKUP(L67,$C$14:$H$38,6,FALSE)*K67 -> 0 | P67: 0
C68: Irrigation Delivery Energy | F68: =F51*Input!$J$14 -> 0 | G68: Electricity | H68: =IF(G68="Electricity",ROUND(VLOOKUP(G68,$C$14:$H$38,5,FALSE)*F68,0),ROUND(VLOOKUP(G68,$C$14:$H$38,5,FALSE)*F68,0))&" "&VLOOKUP(G68,$C$14:$H$38,2,FALSE) -> 0 KWH | I68: =VLOOKUP(G68,$C$14:$H$38,6,FALSE)*F68 -> 0 | K68: =K51*Input!$S$14 -> 0 | L68: Electricity | M68: =IF(L68="Electricity",ROUND(VLOOKUP(L68,$C$14:$H$38,5,FALSE)*K68,0),ROUND(VLOOKUP(L68,$C$14:$H$38,5,FALSE)*K68,0))&" "&VLOOKUP(L68,$C$14:$H$38,2,FALSE) -> 0 KWH | N68: =VLOOKUP(L68,$C$14:$H$38,6,FALSE)*K68 -> 0 | P68: 0
C69: Other Delivery Energy | F69: =F52*Input!$J$14 -> 0 | G69: Electricity | H69: =IF(G69="Electricity",ROUND(VLOOKUP(G69,$C$14:$H$38,5,FALSE)*F69,0),ROUND(VLOOKUP(G69,$C$14:$H$38,5,FALSE)*F69,0))&" "&VLOOKUP(G69,$C$14:$H$38,2,FALSE) -> 0 KWH | I69: =VLOOKUP(G69,$C$14:$H$38,6,FALSE)*F69 -> 0 | K69: =K52*Input!$S$14 -> 0 | L69: Electricity | M69: =IF(L69="Electricity",ROUND(VLOOKUP(L69,$C$14:$H$38,5,FALSE)*K69,0),ROUND(VLOOKUP(L69,$C$14:$H$38,5,FALSE)*K69,0))&" "&VLOOKUP(L69,$C$14:$H$38,2,FALSE) -> 0 KWH | N69: =VLOOKUP(L69,$C$14:$H$38,6,FALSE)*K69 -> 0 | P69: 0
C70: Agrichemicals/Fertilizers | F70: =F53*Input!$J$14 -> 0 | G70: Agrichemicals | H70: =IF(G70="Agrichemicals",ROUND(($G$33*Intermediate_Calcs!$H$36+$G$34*Intermediate_Calcs!$H$37+$G$35*Intermediate_Calcs!$H$38+$G$36*Intermediate_Calcs!$H$39+$G$37/IF(Input!D192="oz",16,1)*Intermediate_Calcs!$H$40+$G$38/IF(Input!D193="oz",16,1)*Intermediate_Calcs!$H$41)/IF(SUM(Intermediate_Calcs!$H$36:'Intermediate_Calcs'!$H$41)=0,1,SUM(Intermediate_Calcs!$H$36:'Intermediate_Calcs'!$H$41))*F70,1),IF(G70="Electricity",ROUND(VLOOKUP(G70,$C$14:$H$38,5,FALSE)*F70,0),ROUND(VLOOKUP(G70,$C$14:$H$38,5,FALSE)*F70,2)))&" "&VLOOKUP(G70,$C$14:$H$39,2,FALSE) -> 0 lb | I70: =I53*Input!J14 -> 0 | K70: =K53*Input!$S$14 -> 0 | L70: Agrichemicals | M70: =IF(L70="Agrichemicals",ROUND(($G$33*Intermediate_Calcs!$Q$36+$G$34*Intermediate_Calcs!$Q$37+$G$35*Intermediate_Calcs!$Q$38+$G$36*Intermediate_Calcs!$Q$39+$G$37/IF(Input!D192="oz",16,1)*Intermediate_Calcs!$Q$40+$G$38/IF(Input!D193="oz",16,1)*Intermediate_Calcs!$Q$41)/IF(SUM(Intermediate_Calcs!$Q$36:'Intermediate_Calcs'!$Q$41)=0,1,SUM(Intermediate_Calcs!$Q$36:'Intermediate_Calcs'!$Q$41))*K70,1),IF(L70="Electricity",ROUND(VLOOKUP(L70,$C$14:$H$38,5,FALSE)*K70,0),ROUND(VLOOKUP(L70,$C$14:$H$38,5,FALSE)*K70,2)))&" "&VLOOKUP(L70,$C$14:$H$39,2,FALSE) -> 0 lb | N70: =N53*Input!S14 -> 0 | P70: =ROUND(I70,0)-ROUND(N70,0) -> 0
C71: Soil Amendments | F71: =F54*Input!$J$14 -> 0 | G71: Soil Amend | H71: =IF(G71="Electricity",ROUND(VLOOKUP(G71,$C$14:$H$38,5,FALSE)*F71,0),ROUND(VLOOKUP(G71,$C$14:$H$38,5,FALSE)*F71,2))&" "&VLOOKUP(G71,$C$14:$H$38,2,FALSE) -> 0 ton | I71: =VLOOKUP(G71,$C$14:$H$38,6,FALSE)*F71 -> 0 | K71: =K54*Input!$S$14 -> 0 | L71: Soil Amend | M71: =IF(L71="Electricity",ROUND(VLOOKUP(L71,$C$14:$H$38,5,FALSE)*K71,0),ROUND(VLOOKUP(L71,$C$14:$H$38,5,FALSE)*K71,2))&" "&VLOOKUP(L71,$C$14:$H$38,2,FALSE) -> 0 ton | N71: =VLOOKUP(L71,$C$14:$H$38,6,FALSE)*K71 -> 0 | P71: =ROUND(I71,0)-ROUND(N71,0) -> 0
C72: Labor | F72: =F55*Input!$J$14 -> 0 | G72: Labor | H72: =IF(G72="Electricity",ROUND(VLOOKUP(G72,$C$14:$H$38,5,FALSE)*F72,0),ROUND(VLOOKUP(G72,$C$14:$H$38,5,FALSE)*F72,0))&" "&VLOOKUP(G72,$C$14:$H$38,2,FALSE) -> 0 day | I72: =VLOOKUP(G72,$C$14:$H$38,6,FALSE)*F72 -> 0 | K72: =K55*Input!$S$14 -> 0 | L72: Labor | M72: =IF(L72="Electricity",ROUND(VLOOKUP(L72,$C$14:$H$38,5,FALSE)*K72,0),ROUND(VLOOKUP(L72,$C$14:$H$38,5,FALSE)*K72,0))&" "&VLOOKUP(L72,$C$14:$H$38,2,FALSE) -> 0 day | N72: =VLOOKUP(L72,$C$14:$H$38,6,FALSE)*K72 -> 0 | P72: 0
C73: Total: | F73: =SUM(F66:F72) -> 0 | I73: =SUM(I66:I72) -> 0 | K73: =SUM(K66:K72) -> 0 | N73: =SUM(N66:N72) -> 0 | P73: 0
B79: 1
B80: Energy Inputs (Added) | G80: BENCHMARK | L80: PLANNED | P80: Difference | T80: 1
C81: to the Field | G81: =G43 -> ---- | L81: =L43 -> ---- | T81: Labor Cost
G82: =G44 -> 1 | L82: =L44 -> 1 | T82: Type | V82: Unit | W82: Cost
V83: [Unit/ac]
F84: Amount | G84: Energy Type | H84: Amount | I84: Cost | K84: Amount | L84: Energy Type | M84: Amount | N84: Cost | P84: Cost | T84: Amount Paid | V84: $/hr | W84: 12
H85: Used | M85: Used | P85: Change | T85: Benchmark Labor | V85: hr/ac | W85: =(Intermediate_Calcs!H29)*8*252*1000000/3000/1000 -> 0
F86: MMBTU/ac/yr | H86: [Unit/ac] | I86: [$/ac] | K86: MMBTU/ac/yr | M86: [Unit/ac] | N86: [$/ac] | P86: [$/acre] | T86: Planned Labor | V86: hr/ac | W86: =(Intermediate_Calcs!Q29)*8*252*1000000/3000/1000 -> 0
C87: Harvest operations | F87: =Intermediate_Calcs!H20 -> 0 | G87: =G49 -> Diesel | H87: =IF(G87="Electricity",ROUND(VLOOKUP(G87,$C$14:$H$38,5,FALSE)*F87,0),ROUND(VLOOKUP(G87,$C$14:$H$38,5,FALSE)*F87,2))&" "&VLOOKUP(G87,$C$14:$H$38,2,FALSE) -> 0 Gal | I87: =VLOOKUP(G87,$C$14:$H$38,6,FALSE)*F87 -> 0 | K87: =Intermediate_Calcs!Q20 -> 0 | L87: =L49 -> Diesel | M87: =IF(L87="Electricity",ROUND(VLOOKUP(L87,$C$14:$H$38,5,FALSE)*K87,0),ROUND(VLOOKUP(L87,$C$14:$H$38,5,FALSE)*K87,2))&" "&VLOOKUP(L87,$C$14:$H$38,2,FALSE) -> 0 Gal | N87: =VLOOKUP(L87,$C$14:$H$38,6,FALSE)*K87 -> 0 | P87: =I87-N87 -> 0
C88: Tillage operations | F88: =Intermediate_Calcs!H21 -> 0 | G88: =G50 -> Diesel | H88: 0 Gal | I88: 0 | K88: =Intermediate_Calcs!Q21 -> 0 | L88: =L50 -> Diesel | M88: 0 Gal | N88: 0 | P88: =I88-N88 -> 0 | T88: Labor Savings | V88: hr/ac | W88: =(Intermediate_Calcs!H29-Intermediate_Calcs!Q29)*8*252*1000000/3000/1000 -> 0
C89: Application operations | F89: =Intermediate_Calcs!H22 -> 0 | G89: =G50 -> Diesel | H89: 0 Gal | I89: 0 | K89: =Intermediate_Calcs!Q22 -> 0 | L89: =L50 -> Diesel | M89: 0 Gal | N89: 0 | P89: 0 | T89: Labor Cost Savings | V89: $/ac | W89: =W84*W88 -> 0
C90: Planting operations | F90: =Intermediate_Calcs!H23 -> 0 | G90: =G50 -> Diesel | H90: 0 Gal | I90: 0 | K90: =Intermediate_Calcs!Q23 -> 0 | L90: =L50 -> Diesel | M90: 0 Gal | N90: 0 | P90: 0
C91: Other field operation | F91: =Intermediate_Calcs!H24 -> 0 | G91: =G50 -> Diesel | H91: 0 Gal | I91: 0 | K91: =Intermediate_Calcs!Q24 -> 0 | L91: =L50 -> Diesel | M91: 0 Gal | N91: 0 | P91: 0
C92: Manual input operation | F92: =Intermediate_Calcs!H25 -> 0 | G92: =G50 -> Diesel | H92: 0 Gal | I92: 0 | K92: =Intermediate_Calcs!Q25 -> 0 | L92: =L50 -> Diesel | M92: 0 Gal | N92: 0 | P92: 0
C93: Irrigation fuel energy inputs | F93: =Intermediate_Calcs!H26 -> 0 | G93: =G51 -> Electricity | H93: 0 KWH | I93: 0 | K93: =Intermediate_Calcs!Q26 -> 0 | L93: =L51 -> Electricity | M93: 0 KWH | N93: 0 | P93: 0
C94: Other delivery power (irrigation) | F94: =Intermediate_Calcs!H27 -> 0 | G94: =G51 -> Electricity | H94: 0 KWH | I94: 0 | K94: =Intermediate_Calcs!Q27 -> 0 | L94: =L51 -> Electricity | M94: 0 KWH | N94: 0 | P94: 0
C95: Other delivery power (farming) | F95: =Intermediate_Calcs!H28 -> 0 | G95: =G52 -> Electricity | H95: 0 KWH | I95: 0 | K95: =Intermediate_Calcs!Q28 -> 0 | L95: =L52 -> Electricity | M95: 0 KWH | N95: 0 | P95: 0
C96: Labor | F96: =Intermediate_Calcs!H29 -> 0 | G96: Labor | H96: 0 day | I96: 0 | K96: =Intermediate_Calcs!Q29 -> 0 | L96: Labor | M96: 0 day | N96: 0 | P96: =I96-N96 -> 0
C97: Applied manure | F97: =Intermediate_Calcs!H30 -> 0 | G97: Soil Amend | H97: 0 ton | I97: 0 | K97: =Intermediate_Calcs!Q30 -> 0 | L97: Soil Amend | M97: 0 ton | N97: 0 | P97: 0
C98: Grazing: Applied excreted manure | F98: =Intermediate_Calcs!H31 -> 0 | G98: Soil Amend | H98: 0 ton | I98: 0 | K98: =Intermediate_Calcs!Q31 -> 0 | L98: Soil Amend | M98: 0 ton | N98: 0 | P98: 0
C99: Applied Compost Energy Input | F99: =Intermediate_Calcs!H32 -> 0 | G99: Soil Amend | H99: 0 ton | I99: 0 | K99: =Intermediate_Calcs!Q32 -> 0 | L99: Soil Amend | M99: 0 ton | N99: 0 | P99: 0
C100: Seed | F100: =Intermediate_Calcs!H33 -> 0 | G100: Soil Amend | H100: 0 ton | I100: 0 | K100: =Intermediate_Calcs!Q33 -> 0 | L100: Soil Amend | M100: 0 ton | N100: 0 | P100: 0
C101: Imported feed | F101: =Intermediate_Calcs!H34 -> 0 | G101: Soil Amend | H101: 0 ton | I101: 0 | K101: =Intermediate_Calcs!Q34 -> 0 | L101: Soil Amend | M101: 0 ton | N101: 0 | P101: 0
C102: Other applied organic material | F102: =Intermediate_Calcs!H35 -> 0 | G102: Soil Amend | H102: 0 ton | I102: 0 | K102: =Intermediate_Calcs!Q35 -> 0 | L102: Soil Amend | M102: 0 ton | N102: 0 | P102: 0
C103: Nitrogen | F103: =Intermediate_Calcs!H36 -> 0 | G103: Nitrogen | H103: 0 lb | I103: 0 | K103: =Intermediate_Calcs!Q36 -> 0 | L103: Nitrogen | M103: 0 lb | N103: 0 | P103: 0
C104: Phosphorus | F104: =Intermediate_Calcs!H37 -> 0 | G104: Phosphorus | H104: 0 lb | I104: 0 | K104: =Intermediate_Calcs!Q37 -> 0 | L104: Phosphorus | M104: 0 lb | N104: 0 | P104: 0
C105: Potassium | F105: =Intermediate_Calcs!H38 -> 0 | G105: Potassium | H105: 0 lb | I105: 0 | K105: =Intermediate_Calcs!Q38 -> 0 | L105: Potassium | M105: 0 lb | N105: 0 | P105: 0
C106: Sulfur | F106: =Intermediate_Calcs!H39 -> 0 | G106: Sulfur | H106: 0 lb | I106: 0 | K106: =Intermediate_Calcs!Q39 -> 0 | L106: Sulfur | M106: 0 lb | N106: 0 | P106: 0
C107: Herbicide | F107: =Intermediate_Calcs!H40 -> 0 | G107: Herbicide | H107: =IF(G107="Electricity",ROUND(VLOOKUP(G107,$C$14:$H$38,5,FALSE)*F107,0),ROUND(VLOOKUP(G107,$C$14:$H$38,5,FALSE)*F107,2))&" "&D37 -> 0 oz | I107: 0 | K107: =Intermediate_Calcs!Q40 -> 0 | L107: Herbicide | M107: =IF(L107="Electricity",ROUND(VLOOKUP(L107,$C$14:$H$38,5,FALSE)*K107,0),ROUND(VLOOKUP(L107,$C$14:$H$38,5,FALSE)*K107,2))&" "&D37 -> 0 oz | N107: 0 | P107: 0
C108: Pesticide | F108: =Intermediate_Calcs!H41 -> 0 | G108: Pesticide | H108: =IF(G108="Electricity",ROUND(VLOOKUP(G108,$C$14:$H$38,5,FALSE)*F108,0),ROUND(VLOOKUP(G108,$C$14:$H$38,5,FALSE)*F108,2))&" "&D38 -> 0 oz | I108: =VLOOKUP(G108,$C$14:$H$38,6,FALSE)*F108 -> 0 | K108: =Intermediate_Calcs!Q41 -> 0 | L108: Pesticide | M108: =IF(L108="Electricity",ROUND(VLOOKUP(L108,$C$14:$H$38,5,FALSE)*K108,0),ROUND(VLOOKUP(L108,$C$14:$H$38,5,FALSE)*K108,2))&" "&D38 -> 0 oz | N108: 0 | P108: 0
C109: Total: | F109: =SUM(F87:F108) -> 0 | I109: =SUM(I87:I108) -> 0 | K109: =SUM(K87:K108) -> 0 | N109: =SUM(N87:N108) -> 0 | P109: =SUM(P87:P108) -> 0

Sheet Report_Input_Summary
J1: NRCS - CROPLAND ENERGY TOOL
J2: INPUT SUMMARY WORKSHEET | Q2: Date: | R2: =IF(Input!E17="","",Input!E17) -> 
G3: ="Landowner: "&Input!E14 -> Landowner: | K3: Field Area: | L3: =IF(Input!J14="","",Input!J14) ->  | Q3: Latitude: | R3: =IF(Input!E18="","",Input!E18) -> 
G4: =IF(Input!E15="","Field Location: ",IF(OR(Input!E15="American Samoa",Input!E15="District of Columbia",Input!E15="Puerto Rico",Input!E15="Virgin Islands",Input!E15="Guam"),"Field Location: "&Input!E15,"Field Location: "&Input!E16&IF(Input!E15="Alaska"," Boro., "," Co., ")&VLOOKUP(Input!E15,Input!C208:D262,2,FALSE))) -> Field Location: | K4: Field ID: | L4: =IF(Input!J15="","",Input!J15) ->  | Q4: Longitude: | R4: =IF(Input!E19="","",Input!E19) -> 
F7: BENCHMARK | O7: PLANNED
B8: Crop Yields | K8: Crop Yields
C9: Crop Name | D9: Year | E9: Labor | F9: Crop | G9: Crop | H9: Yield | I9: Post Harvest | L9: Crop Name | M9: Year | N9: Labor | O9: Crop | P9: Crop | Q9: Yield | R9: Post Harvest
F10: Harvest | G10: Yield | H10: Unit | I10: Forage | J10: Grazing | O10: Harvest | P10: Yield | Q10: Unit | R10: Forage | S10: Grazing
F11: Moisture | I11: Removed | J11: AUD | O11: Moisture | R11: Removed | S11: AUD
D12: [yr] | E12: [hr/ac] | F12: [%] | G12: [yld/ac] | I12: [DM lb/ac] | M12: [yr] | N12: [hr/ac] | O12: [%] | P12: [yld/ac] | R12: [DM lb/ac]
B13: 1 | C13: =IF(ISBLANK(Input!D25),"",Input!D25) ->  | D13: =IF(ISBLANK(Input!D25),"",Input!K25) ->  | E13: =IF(ISBLANK(Input!D25),"",Input!M25) ->  | F13: =IF(ISBLANK(Input!D25),"",IF(Input!D37="Grazing","",Input!E37)) ->  | G13: =IF(ISBLANK(Input!D25),"",Input!F37) ->  | H13: =IF(ISBLANK(Input!D25),"",Input!G37) ->  | I13: =IF(ISBLANK(Input!D25),"",IF(Input!D37="Multiple Use",Input!J37,"")) ->  | J13: =IF(ISBLANK(Input!D25),"",IF(Input!D37="Multiple Use",Input!K37,"")) ->  | K13: 1 | L13: =IF(ISBLANK(Input!R25),"",Input!R25) ->  | M13: =IF(ISBLANK(Input!R25),"",Input!Y25) ->  | N13: =IF(ISBLANK(Input!R25),"",Input!AA25) ->  | O13: =IF(ISBLANK(Input!R25),"",IF(Input!R37="Grazing","",Input!S37)) ->  | P13: =IF(ISBLANK(Input!R25),"",Input!T37) ->  | Q13: =IF(ISBLANK(Input!R25),"",Input!U37) ->  | R13: =IF(ISBLANK(Input!R25),"",IF(Input!R37="Multiple Use",Input!X37,"")) ->  | S13: =IF(ISBLANK(Input!R25),"",IF(Input!R37="Multiple Use",Input!Y37,"")) -> 
B14: 2 | C14: =IF(ISBLANK(Input!D26),"",Input!D26) ->  | D14: =IF(ISBLANK(Input!D26),"",Input!K26) ->  | E14: =IF(ISBLANK(Input!D26),"",Input!M26) ->  | F14: =IF(ISBLANK(Input!D26),"",IF(Input!D38="Grazing","",Input!E38)) ->  | G14: =IF(ISBLANK(Input!D26),"",Input!F38) ->  | H14: =IF(ISBLANK(Input!D26),"",Input!G38) ->  | I14: =IF(ISBLANK(Input!D26),"",IF(Input!D38="Multiple Use",Input!J38,"")) ->  | J14: =IF(ISBLANK(Input!D26),"",IF(Input!D38="Multiple Use",Input!K38,"")) ->  | K14: 2 | L14: =IF(ISBLANK(Input!R26),"",Input!R26) ->  | M14: =IF(ISBLANK(Input!R26),"",Input!Y26) ->  | N14: =IF(ISBLANK(Input!R26),"",Input!AA26) ->  | O14: =IF(ISBLANK(Input!R26),"",IF(Input!R38="Grazing","",Input!S38)) ->  | P14: =IF(ISBLANK(Input!R26),"",Input!T38) ->  | Q14: =IF(ISBLANK(Input!R26),"",Input!U38) ->  | R14: =IF(ISBLANK(Input!R26),"",IF(Input!R38="Multiple Use",Input!X38,"")) ->  | S14: =IF(ISBLANK(Input!R26),"",IF(Input!R38="Multiple Use",Input!Y38,"")) -> 
B15: 3 | C15: =IF(ISBLANK(Input!D27),"",Input!D27) ->  | D15: =IF(ISBLANK(Input!D27),"",Input!K27) ->  | E15: =IF(ISBLANK(Input!D27),"",Input!M27) ->  | F15: =IF(ISBLANK(Input!D27),"",IF(Input!D39="Grazing","",Input!E39)) ->  | G15: =IF(ISBLANK(Input!D27),"",Input!F39) ->  | H15: =IF(ISBLANK(Input!D27),"",Input!G39) ->  | I15: =IF(ISBLANK(Input!D27),"",IF(Input!D39="Multiple Use",Input!J39,"")) ->  | J15: =IF(ISBLANK(Input!D27),"",IF(Input!D39="Multiple Use",Input!K39,"")) ->  | K15: 3 | L15: =IF(ISBLANK(Input!R27),"",Input!R27) ->  | M15: =IF(ISBLANK(Input!R27),"",Input!Y27) ->  | N15: =IF(ISBLANK(Input!R27),"",Input!AA27) ->  | O15: =IF(ISBLANK(Input!R27),"",IF(Input!R39="Grazing","",Input!S39)) ->  | P15: =IF(ISBLANK(Input!R27),"",Input!T39) ->  | Q15: =IF(ISBLANK(Input!R27),"",Input!U39) ->  | R15: =IF(ISBLANK(Input!R27),"",IF(Input!R39="Multiple Use",Input!X39,"")) ->  | S15: =IF(ISBLANK(Input!R27),"",IF(Input!R39="Multiple Use",Input!Y39,"")) -> 
B16: 4 | C16: =IF(ISBLANK(Input!D28),"",Input!D28) ->  | D16: =IF(ISBLANK(Input!D28),"",Input!K28) ->  | E16: =IF(ISBLANK(Input!D28),"",Input!M28) ->  | F16: =IF(ISBLANK(Input!D28),"",IF(Input!D40="Grazing","",Input!E40)) ->  | G16: =IF(ISBLANK(Input!D28),"",Input!F40) ->  | H16: =IF(ISBLANK(Input!D28),"",Input!G40) ->  | I16: =IF(ISBLANK(Input!D28),"",IF(Input!D40="Multiple Use",Input!J40,"")) ->  | J16: =IF(ISBLANK(Input!D28),"",IF(Input!D40="Multiple Use",Input!K40,"")) ->  | K16: 4 | L16: =IF(ISBLANK(Input!R28),"",Input!R28) ->  | M16: =IF(ISBLANK(Input!R28),"",Input!Y28) ->  | N16: =IF(ISBLANK(Input!R28),"",Input!AA28) ->  | O16: =IF(ISBLANK(Input!R28),"",IF(Input!R40="Grazing","",Input!S40)) ->  | P16: =IF(ISBLANK(Input!R28),"",Input!T40) ->  | Q16: =IF(ISBLANK(Input!R28),"",Input!U40) ->  | R16: =IF(ISBLANK(Input!R28),"",IF(Input!R40="Multiple Use",Input!X40,"")) ->  | S16: =IF(ISBLANK(Input!R28),"",IF(Input!R40="Multiple Use",Input!Y40,"")) -> 
B17: 5 | C17: =IF(ISBLANK(Input!D29),"",Input!D29) ->  | D17: =IF(ISBLANK(Input!D29),"",Input!K29) ->  | E17: =IF(ISBLANK(Input!D29),"",Input!M29) ->  | F17: =IF(ISBLANK(Input!D29),"",IF(Input!D41="Grazing","",Input!E41)) ->  | G17: =IF(ISBLANK(Input!D29),"",Input!F41) ->  | H17: =IF(ISBLANK(Input!D29),"",Input!G41) ->  | I17: =IF(ISBLANK(Input!D29),"",IF(Input!D41="Multiple Use",Input!J41,"")) ->  | J17: =IF(ISBLANK(Input!D29),"",IF(Input!D41="Multiple Use",Input!K41,"")) ->  | K17: 5 | L17: =IF(ISBLANK(Input!R29),"",Input!R29) ->  | M17: =IF(ISBLANK(Input!R29),"",Input!Y29) ->  | N17: =IF(ISBLANK(Input!R29),"",Input!AA29) ->  | O17: =IF(ISBLANK(Input!R29),"",IF(Input!R41="Grazing","",Input!S41)) ->  | P17: =IF(ISBLANK(Input!R29),"",Input!T41) ->  | Q17: =IF(ISBLANK(Input!R29),"",Input!U41) ->  | R17: =IF(ISBLANK(Input!R29),"",IF(Input!R41="Multiple Use",Input!X41,"")) ->  | S17: =IF(ISBLANK(Input!R29),"",IF(Input!R41="Multiple Use",Input!Y41,"")) -> 
B19: Soil Amendments | K19: Soil Amendments
C20: Crop Name | D20: Applied | E20: Compost | F20: Seed, | G20: Animal | H20: Other | L20: Crop Name | M20: Applied | N20: Compost | O20: Seed, | P20: Animal | Q20: Other
D21: Stored | F21: transplnt, | G21: Feed | H21: Applied | M21: Stored | O21: transplnt, | P21: Feed | Q21: Applied
D22: Manure | F22: sprig, etc. | G22: O. M. | H22: O. M. | M22: Manure | O22: sprig, etc. | P22: O. M. | Q22: O. M.
B23: 1 | D23: [DM lb/ac] | M23: [DM lb/ac]
B24: 2 | C24: =IF(ISBLANK(Input!D25),"",Input!D25) ->  | D24: =IF(ISBLANK(Input!D25),"",Input!D49) ->  | E24: =IF(ISBLANK(Input!D25),"",Input!E49) ->  | F24: =IF(ISBLANK(Input!D25),"",Input!F49) ->  | G24: =IF(ISBLANK(Input!D25),"",Input!G49) ->  | H24: =IF(ISBLANK(Input!D25),"",Input!H49) ->  | L24: =IF(ISBLANK(Input!R25),"",Input!R25) ->  | M24: =IF(ISBLANK(Input!R25),"",Input!R49) ->  | N24: =IF(ISBLANK(Input!R25),"",Input!S49) ->  | O24: =IF(ISBLANK(Input!R25),"",Input!T49) ->  | P24: =IF(ISBLANK(Input!R25),"",Input!U49) ->  | Q24: =IF(ISBLANK(Input!R25),"",Input!V49) -> 
B25: 3 | C25: =IF(ISBLANK(Input!D26),"",Input!D26) ->  | D25: =IF(ISBLANK(Input!D26),"",Input!D50) ->  | E25: =IF(ISBLANK(Input!D26),"",Input!E50) ->  | F25: =IF(ISBLANK(Input!D26),"",Input!F50) ->  | G25: =IF(ISBLANK(Input!D26),"",Input!G50) ->  | H25: =IF(ISBLANK(Input!D26),"",Input!H50) ->  | L25: =IF(ISBLANK(Input!R26),"",Input!R26) ->  | M25: =IF(ISBLANK(Input!R26),"",Input!R50) ->  | N25: =IF(ISBLANK(Input!R26),"",Input!S50) ->  | O25: =IF(ISBLANK(Input!R26),"",Input!T50) ->  | P25: =IF(ISBLANK(Input!R26),"",Input!U50) ->  | Q25: =IF(ISBLANK(Input!R26),"",Input!V50) -> 
B26: 4 | C26: =IF(ISBLANK(Input!D27),"",Input!D27) ->  | D26: =IF(ISBLANK(Input!D27),"",Input!D51) ->  | E26: =IF(ISBLANK(Input!D27),"",Input!E51) ->  | F26: =IF(ISBLANK(Input!D27),"",Input!F51) ->  | G26: =IF(ISBLANK(Input!D27),"",Input!G51) ->  | H26: =IF(ISBLANK(Input!D27),"",Input!H51) ->  | L26: =IF(ISBLANK(Input!R27),"",Input!R27) ->  | M26: =IF(ISBLANK(Input!R27),"",Input!R51) ->  | N26: =IF(ISBLANK(Input!R27),"",Input!S51) ->  | O26: =IF(ISBLANK(Input!R27),"",Input!T51) ->  | P26: =IF(ISBLANK(Input!R27),"",Input!U51) ->  | Q26: =IF(ISBLANK(Input!R27),"",Input!V51) -> 
B27: 5 | C27: =IF(ISBLANK(Input!D28),"",Input!D28) ->  | D27: =IF(ISBLANK(Input!D28),"",Input!D52) ->  | E27: =IF(ISBLANK(Input!D28),"",Input!E52) ->  | F27: =IF(ISBLANK(Input!D28),"",Input!F52) ->  | G27: =IF(ISBLANK(Input!D28),"",Input!G52) ->  | H27: =IF(ISBLANK(Input!D28),"",Input!H52) ->  | L27: =IF(ISBLANK(Input!R28),"",Input!R28) ->  | M27: =IF(ISBLANK(Input!R28),"",Input!R52) ->  | N27: =IF(ISBLANK(Input!R28),"",Input!S52) ->  | O27: =IF(ISBLANK(Input!R28),"",Input!T52) ->  | P27: =IF(ISBLANK(Input!R28),"",Input!U52) ->  | Q27: =IF(ISBLANK(Input!R28),"",Input!V52) -> 
C28: =IF(ISBLANK(Input!D29),"",Input!D29) ->  | D28: =IF(ISBLANK(Input!D29),"",Input!D53) ->  | E28: =IF(ISBLANK(Input!D29),"",Input!E53) ->  | F28: =IF(ISBLANK(Input!D29),"",Input!F53) ->  | G28: =IF(ISBLANK(Input!D29),"",Input!G53) ->  | H28: =IF(ISBLANK(Input!D29),"",Input!H53) ->  | L28: =IF(ISBLANK(Input!R29),"",Input!R29) ->  | M28: =IF(ISBLANK(Input!R29),"",Input!R53) ->  | N28: =IF(ISBLANK(Input!R29),"",Input!S53) ->  | O28: =IF(ISBLANK(Input!R29),"",Input!T53) ->  | P28: =IF(ISBLANK(Input!R29),"",Input!U53) ->  | Q28: =IF(ISBLANK(Input!R29),"",Input!V53) -> 
B30: Agrichemicals/Fertilizers | K30: Agrichemicals/Fertilizers
B31: 2 | C31: Crop Name | D31: N | E31: P | F31: K | G31: S | H31: Hrb | I31: Pst | L31: Crop Name | M31: N | N31: P | O31: K | P31: S | Q31: Hrb | R31: Pst
B32: 3 | D32: Nitrogen | E32: Phosphorus | F32: Potassium | G32: Sulfur | H32: Herbicide | I32: Pesticide | M32: Nitrogen | N32: Phosphorus | O32: Potassium | P32: Sulfur | Q32: Herbicide | R32: Pesticide
B33: 4 | D33: [lbs/acre] | E33: [lbs/acre] | F33: [lbs/acre] | G33: [lbs/acre] | H33: [oz/acre] | I33: [oz/acre] | M33: [lbs/acre] | N33: [lbs/acre] | O33: [lbs/acre] | P33: [lbs/acre] | Q33: [oz/acre] | R33: [oz/acre]
B34: 5 | C34: =IF(ISBLANK(Input!D25),"",Input!D25) ->  | D34: =IF(ISBLANK(Input!D25),"",Input!D61) ->  | E34: =IF(ISBLANK(Input!D25),"",Input!E61) ->  | F34: =IF(ISBLANK(Input!D25),"",Input!F61) ->  | G34: =IF(ISBLANK(Input!D25),"",Input!G61) ->  | H34: =IF(ISBLANK(Input!D25),"",Input!H61) ->  | I34: =IF(ISBLANK(Input!D25),"",Input!I61) ->  | L34: =IF(ISBLANK(Input!R25),"",Input!R25) ->  | M34: =IF(ISBLANK(Input!R25),"",Input!R61) ->  | N34: =IF(ISBLANK(Input!R25),"",Input!S61) ->  | O34: =IF(ISBLANK(Input!R25),"",Input!T61) ->  | P34: =IF(ISBLANK(Input!R25),"",Input!U61) ->  | Q34: =IF(ISBLANK(Input!R25),"",Input!V61) ->  | R34: =IF(ISBLANK(Input!R25),"",Input!W61) -> 
C35: =IF(ISBLANK(Input!D26),"",Input!D26) ->  | D35: =IF(ISBLANK(Input!D26),"",Input!D62) ->  | E35: =IF(ISBLANK(Input!D26),"",Input!E62) ->  | F35: =IF(ISBLANK(Input!D26),"",Input!F62) ->  | G35: =IF(ISBLANK(Input!D26),"",Input!G62) ->  | H35: =IF(ISBLANK(Input!D26),"",Input!H62) ->  | I35: =IF(ISBLANK(Input!D26),"",Input!I62) ->  | L35: =IF(ISBLANK(Input!R26),"",Input!R26) ->  | M35: =IF(ISBLANK(Input!R26),"",Input!R62) ->  | N35: =IF(ISBLANK(Input!R26),"",Input!S62) ->  | O35: =IF(ISBLANK(Input!R26),"",Input!T62) ->  | P35: =IF(ISBLANK(Input!R26),"",Input!U62) ->  | Q35: =IF(ISBLANK(Input!R26),"",Input!V62) ->  | R35: =IF(ISBLANK(Input!R26),"",Input!W62) -> 
C36: =IF(ISBLANK(Input!D27),"",Input!D27) ->  | D36: =IF(ISBLANK(Input!D27),"",Input!D63) ->  | E36: =IF(ISBLANK(Input!D27),"",Input!E63) ->  | F36: =IF(ISBLANK(Input!D27),"",Input!F63) ->  | G36: =IF(ISBLANK(Input!D27),"",Input!G63) ->  | H36: =IF(ISBLANK(Input!D27),"",Input!H63) ->  | I36: =IF(ISBLANK(Input!D27),"",Input!I63) ->  | L36: =IF(ISBLANK(Input!R27),"",Input!R27) ->  | M36: =IF(ISBLANK(Input!R27),"",Input!R63) ->  | N36: =IF(ISBLANK(Input!R27),"",Input!S63) ->  | O36: =IF(ISBLANK(Input!R27),"",Input!T63) ->  | P36: =IF(ISBLANK(Input!R27),"",Input!U63) ->  | Q36: =IF(ISBLANK(Input!R27),"",Input!V63) ->  | R36: =IF(ISBLANK(Input!R27),"",Input!W63) -> 
C37: =IF(ISBLANK(Input!D28),"",Input!D28) ->  | D37: =IF(ISBLANK(Input!D28),"",Input!D64) ->  | E37: =IF(ISBLANK(Input!D28),"",Input!E64) ->  | F37: =IF(ISBLANK(Input!D28),"",Input!F64) ->  | G37: =IF(ISBLANK(Input!D28),"",Input!G64) ->  | H37: =IF(ISBLANK(Input!D28),"",Input!H64) ->  | I37: =IF(ISBLANK(Input!D28),"",Input!I64) ->  | L37: =IF(ISBLANK(Input!R28),"",Input!R28) ->  | M37: =IF(ISBLANK(Input!R28),"",Input!R64) ->  | N37: =IF(ISBLANK(Input!R28),"",Input!S64) ->  | O37: =IF(ISBLANK(Input!R28),"",Input!T64) ->  | P37: =IF(ISBLANK(Input!R28),"",Input!U64) ->  | Q37: =IF(ISBLANK(Input!R28),"",Input!V64) ->  | R37: =IF(ISBLANK(Input!R28),"",Input!W64) -> 
C38: =IF(ISBLANK(Input!D29),"",Input!D29) ->  | D38: =IF(ISBLANK(Input!D29),"",Input!D65) ->  | E38: =IF(ISBLANK(Input!D29),"",Input!E65) ->  | F38: =IF(ISBLANK(Input!D29),"",Input!F65) ->  | G38: =IF(ISBLANK(Input!D29),"",Input!G65) ->  | H38: =IF(ISBLANK(Input!D29),"",Input!H65) ->  | I38: =IF(ISBLANK(Input!D29),"",Input!I65) ->  | L38: =IF(ISBLANK(Input!R29),"",Input!R29) ->  | M38: =IF(ISBLANK(Input!R29),"",Input!R65) ->  | N38: =IF(ISBLANK(Input!R29),"",Input!S65) ->  | O38: =IF(ISBLANK(Input!R29),"",Input!T65) ->  | P38: =IF(ISBLANK(Input!R29),"",Input!U65) ->  | Q38: =IF(ISBLANK(Input!R29),"",Input!V65) ->  | R38: =IF(ISBLANK(Input!R29),"",Input!W65) -> 
J40: NRCS - CROPLAND ENERGY TOOL
J41: INPUT SUMMARY WORKSHEET | Q41: Date: | R41: =IF(Input!E17="","",Input!E17) -> 
G42: ="Landowner: "&Input!E14 -> Landowner: | K42: Field Area: | L42: =IF(Input!J14="","",Input!J14) ->  | Q42: Latitude: | R42: =IF(Input!E18="","",Input!E18) -> 
G43: =IF(Input!E15="","Field Location: ",IF(OR(Input!E15="American Samoa",Input!E15="District of Columbia",Input!E15="Puerto Rico",Input!E15="Virgin Islands",Input!E15="Guam"),"Field Location: "&Input!E15,"Field Location: "&Input!E16&IF(Input!E15="Alaska"," Boro., "," Co., ")&VLOOKUP(Input!E15,Input!C208:D262,2,FALSE))) -> Field Location: | K43: Field ID: | L43: =IF(Input!J15="","",Input!J15) ->  | Q43: Longitude: | R43: =IF(Input!E19="","",Input!E19) -> 
F46: BENCHMARK | O46: PLANNED
B47: Diesel Use | K47: Diesel Use
C48: Crop Name | D48: Operation Description | I48: No. | J48: Diesel | L48: Crop Name | M48: Operation Description | R48: No. | S48: Diesel
I49: Times | J49: Use | R49: Times | S49: Use
J50: [gal/ac] | S50: [gal/ac]
B51: 1 | C51: =IF(ISNA(VLOOKUP(B51,Input!$B$72:$C$135,2,FALSE)),"",IF(VLOOKUP(B51,Input!$B$72:$C$135,2,FALSE)=0,"",VLOOKUP(B51,Input!$B$72:$C$135,2,FALSE))) ->  | D51: =IF(ISNA(VLOOKUP(B51,Input!$B$72:$K$135,4,FALSE)),"",VLOOKUP(B51,Input!$B$72:$K$135,4,FALSE)) ->  | I51: =IF(ISNA(VLOOKUP(B51,Input!$B$72:$K$135,9,FALSE)),"",IF(VLOOKUP(B51,Input!$B$72:$K$135,9,FALSE)="",1,VLOOKUP(B51,Input!$B$72:$K$135,9,FALSE))) ->  | J51: =IF(ISNA(VLOOKUP(B51,Input!$B$72:$K$135,10,FALSE)),"",VLOOKUP(B51,Input!$B$72:$K$135,10,FALSE)) ->  | K51: 1 | L51: =IF(ISNA(VLOOKUP(K51,Input!$P$72:$Q$135,2,FALSE)),"",IF(VLOOKUP(K51,Input!$P$72:$Q$135,2,FALSE)=0,"",VLOOKUP(K51,Input!$P$72:$Q$135,2,FALSE))) ->  | M51: =IF(ISNA(VLOOKUP(K51,Input!$P$72:$Y$135,4,FALSE)),"",VLOOKUP(K51,Input!$P$72:$Y$135,4,FALSE)) ->  | R51: =IF(ISNA(VLOOKUP(K51,Input!$P$72:$Y$135,9,FALSE)),"",IF(VLOOKUP(K51,Input!$P$72:$Y$135,9,FALSE)="",1,VLOOKUP(K51,Input!$P$72:$Y$135,9,FALSE))) ->  | S51: =IF(ISNA(VLOOKUP(K51,Input!$P$72:$Y$135,10,FALSE)),"",VLOOKUP(K51,Input!$P$72:$Y$135,10,FALSE)) -> 
B52: =B51+1 -> 2 | C52: =IF(ISNA(VLOOKUP(B52,Input!$B$72:$C$135,2,FALSE)),"",IF(VLOOKUP(B52,Input!$B$72:$C$135,2,FALSE)=0,"",VLOOKUP(B52,Input!$B$72:$C$135,2,FALSE))) ->  | D52: =IF(ISNA(VLOOKUP(B52,Input!$B$72:$K$135,4,FALSE)),"",VLOOKUP(B52,Input!$B$72:$K$135,4,FALSE)) ->  | I52: =IF(ISNA(VLOOKUP(B52,Input!$B$72:$K$135,9,FALSE)),"",IF(VLOOKUP(B52,Input!$B$72:$K$135,9,FALSE)="",1,VLOOKUP(B52,Input!$B$72:$K$135,9,FALSE))) ->  | J52: =IF(ISNA(VLOOKUP(B52,Input!$B$72:$K$135,10,FALSE)),"",VLOOKUP(B52,Input!$B$72:$K$135,10,FALSE)) ->  | K52: =K51+1 -> 2 | L52: =IF(ISNA(VLOOKUP(K52,Input!$P$72:$Q$135,2,FALSE)),"",IF(VLOOKUP(K52,Input!$P$72:$Q$135,2,FALSE)=0,"",VLOOKUP(K52,Input!$P$72:$Q$135,2,FALSE))) ->  | M52: =IF(ISNA(VLOOKUP(K52,Input!$P$72:$Y$135,4,FALSE)),"",VLOOKUP(K52,Input!$P$72:$Y$135,4,FALSE)) ->  | R52: =IF(ISNA(VLOOKUP(K52,Input!$P$72:$Y$135,9,FALSE)),"",IF(VLOOKUP(K52,Input!$P$72:$Y$135,9,FALSE)="",1,VLOOKUP(K52,Input!$P$72:$Y$135,9,FALSE))) ->  | S52: =IF(ISNA(VLOOKUP(K52,Input!$P$72:$Y$135,10,FALSE)),"",VLOOKUP(K52,Input!$P$72:$Y$135,10,FALSE)) -> 
B53: =B52+1 -> 3 | C53: =IF(ISNA(VLOOKUP(B53,Input!$B$72:$C$135,2,FALSE)),"",IF(VLOOKUP(B53,Input!$B$72:$C$135,2,FALSE)=0,"",VLOOKUP(B53,Input!$B$72:$C$135,2,FALSE))) ->  | D53: =IF(ISNA(VLOOKUP(B53,Input!$B$72:$K$135,4,FALSE)),"",VLOOKUP(B53,Input!$B$72:$K$135,4,FALSE)) ->  | I53: =IF(ISNA(VLOOKUP(B53,Input!$B$72:$K$135,9,FALSE)),"",IF(VLOOKUP(B53,Input!$B$72:$K$135,9,FALSE)="",1,VLOOKUP(B53,Input!$B$72:$K$135,9,FALSE))) ->  | J53: =IF(ISNA(VLOOKUP(B53,Input!$B$72:$K$135,10,FALSE)),"",VLOOKUP(B53,Input!$B$72:$K$135,10,FALSE)) ->  | K53: =K52+1 -> 3 | L53: =IF(ISNA(VLOOKUP(K53,Input!$P$72:$Q$135,2,FALSE)),"",IF(VLOOKUP(K53,Input!$P$72:$Q$135,2,FALSE)=0,"",VLOOKUP(K53,Input!$P$72:$Q$135,2,FALSE))) ->  | M53: =IF(ISNA(VLOOKUP(K53,Input!$P$72:$Y$135,4,FALSE)),"",VLOOKUP(K53,Input!$P$72:$Y$135,4,FALSE)) ->  | R53: =IF(ISNA(VLOOKUP(K53,Input!$P$72:$Y$135,9,FALSE)),"",IF(VLOOKUP(K53,Input!$P$72:$Y$135,9,FALSE)="",1,VLOOKUP(K53,Input!$P$72:$Y$135,9,FALSE))) ->  | S53: =IF(ISNA(VLOOKUP(K53,Input!$P$72:$Y$135,10,FALSE)),"",VLOOKUP(K53,Input!$P$72:$Y$135,10,FALSE)) -> 
B54: 4 | C54: =IF(ISNA(VLOOKUP(B54,Input!$B$72:$C$135,2,FALSE)),"",IF(VLOOKUP(B54,Input!$B$72:$C$135,2,FALSE)=0,"",VLOOKUP(B54,Input!$B$72:$C$135,2,FALSE))) ->  | D54: =IF(ISNA(VLOOKUP(B54,Input!$B$72:$K$135,4,FALSE)),"",VLOOKUP(B54,Input!$B$72:$K$135,4,FALSE)) ->  | I54: =IF(ISNA(VLOOKUP(B54,Input!$B$72:$K$135,9,FALSE)),"",IF(VLOOKUP(B54,Input!$B$72:$K$135,9,FALSE)="",1,VLOOKUP(B54,Input!$B$72:$K$135,9,FALSE))) ->  | J54: =IF(ISNA(VLOOKUP(B54,Input!$B$72:$K$135,10,FALSE)),"",VLOOKUP(B54,Input!$B$72:$K$135,10,FALSE)) ->  | K54: 4 | L54: =IF(ISNA(VLOOKUP(K54,Input!$P$72:$Q$135,2,FALSE)),"",IF(VLOOKUP(K54,Input!$P$72:$Q$135,2,FALSE)=0,"",VLOOKUP(K54,Input!$P$72:$Q$135,2,FALSE))) ->  | M54: =IF(ISNA(VLOOKUP(K54,Input!$P$72:$Y$135,4,FALSE)),"",VLOOKUP(K54,Input!$P$72:$Y$135,4,FALSE)) ->  | R54: =IF(ISNA(VLOOKUP(K54,Input!$P$72:$Y$135,9,FALSE)),"",IF(VLOOKUP(K54,Input!$P$72:$Y$135,9,FALSE)="",1,VLOOKUP(K54,Input!$P$72:$Y$135,9,FALSE))) ->  | S54: =IF(ISNA(VLOOKUP(K54,Input!$P$72:$Y$135,10,FALSE)),"",VLOOKUP(K54,Input!$P$72:$Y$135,10,FALSE)) -> 
B55: 5 | C55: =IF(ISNA(VLOOKUP(B55,Input!$B$72:$C$135,2,FALSE)),"",IF(VLOOKUP(B55,Input!$B$72:$C$135,2,FALSE)=0,"",VLOOKUP(B55,Input!$B$72:$C$135,2,FALSE))) ->  | D55: =IF(ISNA(VLOOKUP(B55,Input!$B$72:$K$135,4,FALSE)),"",VLOOKUP(B55,Input!$B$72:$K$135,4,FALSE)) ->  | I55: =IF(ISNA(VLOOKUP(B55,Input!$B$72:$K$135,9,FALSE)),"",IF(VLOOKUP(B55,Input!$B$72:$K$135,9,FALSE)="",1,VLOOKUP(B55,Input!$B$72:$K$135,9,FALSE))) ->  | J55: =IF(ISNA(VLOOKUP(B55,Input!$B$72:$K$135,10,FALSE)),"",VLOOKUP(B55,Input!$B$72:$K$135,10,FALSE)) ->  | K55: 5 | L55: =IF(ISNA(VLOOKUP(K55,Input!$P$72:$Q$135,2,FALSE)),"",IF(VLOOKUP(K55,Input!$P$72:$Q$135,2,FALSE)=0,"",VLOOKUP(K55,Input!$P$72:$Q$135,2,FALSE))) ->  | M55: =IF(ISNA(VLOOKUP(K55,Input!$P$72:$Y$135,4,FALSE)),"",VLOOKUP(K55,Input!$P$72:$Y$135,4,FALSE)) ->  | R55: =IF(ISNA(VLOOKUP(K55,Input!$P$72:$Y$135,9,FALSE)),"",IF(VLOOKUP(K55,Input!$P$72:$Y$135,9,FALSE)="",1,VLOOKUP(K55,Input!$P$72:$Y$135,9,FALSE))) ->  | S55: =IF(ISNA(VLOOKUP(K55,Input!$P$72:$Y$135,10,FALSE)),"",VLOOKUP(K55,Input!$P$72:$Y$135,10,FALSE)) -> 
B56: 6 | C56: =IF(ISNA(VLOOKUP(B56,Input!$B$72:$C$135,2,FALSE)),"",IF(VLOOKUP(B56,Input!$B$72:$C$135,2,FALSE)=0,"",VLOOKUP(B56,Input!$B$72:$C$135,2,FALSE))) ->  | D56: =IF(ISNA(VLOOKUP(B56,Input!$B$72:$K$135,4,FALSE)),"",VLOOKUP(B56,Input!$B$72:$K$135,4,FALSE)) ->  | I56: =IF(ISNA(VLOOKUP(B56,Input!$B$72:$K$135,9,FALSE)),"",IF(VLOOKUP(B56,Input!$B$72:$K$135,9,FALSE)="",1,VLOOKUP(B56,Input!$B$72:$K$135,9,FALSE))) ->  | J56: =IF(ISNA(VLOOKUP(B56,Input!$B$72:$K$135,10,FALSE)),"",VLOOKUP(B56,Input!$B$72:$K$135,10,FALSE)) ->  | K56: 6 | L56: =IF(ISNA(VLOOKUP(K56,Input!$P$72:$Q$135,2,FALSE)),"",IF(VLOOKUP(K56,Input!$P$72:$Q$135,2,FALSE)=0,"",VLOOKUP(K56,Input!$P$72:$Q$135,2,FALSE))) ->  | M56: =IF(ISNA(VLOOKUP(K56,Input!$P$72:$Y$135,4,FALSE)),"",VLOOKUP(K56,Input!$P$72:$Y$135,4,FALSE)) ->  | R56: =IF(ISNA(VLOOKUP(K56,Input!$P$72:$Y$135,9,FALSE)),"",IF(VLOOKUP(K56,Input!$P$72:$Y$135,9,FALSE)="",1,VLOOKUP(K56,Input!$P$72:$Y$135,9,FALSE))) ->  | S56: =IF(ISNA(VLOOKUP(K56,Input!$P$72:$Y$135,10,FALSE)),"",VLOOKUP(K56,Input!$P$72:$Y$135,10,FALSE)) -> 
B57: 7 | C57: =IF(ISNA(VLOOKUP(B57,Input!$B$72:$C$135,2,FALSE)),"",IF(VLOOKUP(B57,Input!$B$72:$C$135,2,FALSE)=0,"",VLOOKUP(B57,Input!$B$72:$C$135,2,FALSE))) ->  | D57: =IF(ISNA(VLOOKUP(B57,Input!$B$72:$K$135,4,FALSE)),"",VLOOKUP(B57,Input!$B$72:$K$135,4,FALSE)) ->  | I57: =IF(ISNA(VLOOKUP(B57,Input!$B$72:$K$135,9,FALSE)),"",IF(VLOOKUP(B57,Input!$B$72:$K$135,9,FALSE)="",1,VLOOKUP(B57,Input!$B$72:$K$135,9,FALSE))) ->  | J57: =IF(ISNA(VLOOKUP(B57,Input!$B$72:$K$135,10,FALSE)),"",VLOOKUP(B57,Input!$B$72:$K$135,10,FALSE)) ->  | K57: 7 | L57: =IF(ISNA(VLOOKUP(K57,Input!$P$72:$Q$135,2,FALSE)),"",IF(VLOOKUP(K57,Input!$P$72:$Q$135,2,FALSE)=0,"",VLOOKUP(K57,Input!$P$72:$Q$135,2,FALSE))) ->  | M57: =IF(ISNA(VLOOKUP(K57,Input!$P$72:$Y$135,4,FALSE)),"",VLOOKUP(K57,Input!$P$72:$Y$135,4,FALSE)) ->  | R57: =IF(ISNA(VLOOKUP(K57,Input!$P$72:$Y$135,9,FALSE)),"",IF(VLOOKUP(K57,Input!$P$72:$Y$135,9,FALSE)="",1,VLOOKUP(K57,Input!$P$72:$Y$135,9,FALSE))) ->  | S57: =IF(ISNA(VLOOKUP(K57,Input!$P$72:$Y$135,10,FALSE)),"",VLOOKUP(K57,Input!$P$72:$Y$135,10,FALSE)) -> 
B58: 8 | C58: =IF(ISNA(VLOOKUP(B58,Input!$B$72:$C$135,2,FALSE)),"",IF(VLOOKUP(B58,Input!$B$72:$C$135,2,FALSE)=0,"",VLOOKUP(B58,Input!$B$72:$C$135,2,FALSE))) ->  | D58: =IF(ISNA(VLOOKUP(B58,Input!$B$72:$K$135,4,FALSE)),"",VLOOKUP(B58,Input!$B$72:$K$135,4,FALSE)) ->  | I58: =IF(ISNA(VLOOKUP(B58,Input!$B$72:$K$135,9,FALSE)),"",IF(VLOOKUP(B58,Input!$B$72:$K$135,9,FALSE)="",1,VLOOKUP(B58,Input!$B$72:$K$135,9,FALSE))) ->  | J58: =IF(ISNA(VLOOKUP(B58,Input!$B$72:$K$135,10,FALSE)),"",VLOOKUP(B58,Input!$B$72:$K$135,10,FALSE)) ->  | K58: 8 | L58: =IF(ISNA(VLOOKUP(K58,Input!$P$72:$Q$135,2,FALSE)),"",IF(VLOOKUP(K58,Input!$P$72:$Q$135,2,FALSE)=0,"",VLOOKUP(K58,Input!$P$72:$Q$135,2,FALSE))) ->  | M58: =IF(ISNA(VLOOKUP(K58,Input!$P$72:$Y$135,4,FALSE)),"",VLOOKUP(K58,Input!$P$72:$Y$135,4,FALSE)) ->  | R58: =IF(ISNA(VLOOKUP(K58,Input!$P$72:$Y$135,9,FALSE)),"",IF(VLOOKUP(K58,Input!$P$72:$Y$135,9,FALSE)="",1,VLOOKUP(K58,Input!$P$72:$Y$135,9,FALSE))) ->  | S58: =IF(ISNA(VLOOKUP(K58,Input!$P$72:$Y$135,10,FALSE)),"",VLOOKUP(K58,Input!$P$72:$Y$135,10,FALSE)) -> 
B59: 9 | C59: =IF(ISNA(VLOOKUP(B59,Input!$B$72:$C$135,2,FALSE)),"",IF(VLOOKUP(B59,Input!$B$72:$C$135,2,FALSE)=0,"",VLOOKUP(B59,Input!$B$72:$C$135,2,FALSE))) ->  | D59: =IF(ISNA(VLOOKUP(B59,Input!$B$72:$K$135,4,FALSE)),"",VLOOKUP(B59,Input!$B$72:$K$135,4,FALSE)) ->  | I59: =IF(ISNA(VLOOKUP(B59,Input!$B$72:$K$135,9,FALSE)),"",IF(VLOOKUP(B59,Input!$B$72:$K$135,9,FALSE)="",1,VLOOKUP(B59,Input!$B$72:$K$135,9,FALSE))) ->  | J59: =IF(ISNA(VLOOKUP(B59,Input!$B$72:$K$135,10,FALSE)),"",VLOOKUP(B59,Input!$B$72:$K$135,10,FALSE)) ->  | K59: 9 | L59: =IF(ISNA(VLOOKUP(K59,Input!$P$72:$Q$135,2,FALSE)),"",IF(VLOOKUP(K59,Input!$P$72:$Q$135,2,FALSE)=0,"",VLOOKUP(K59,Input!$P$72:$Q$135,2,FALSE))) ->  | M59: =IF(ISNA(VLOOKUP(K59,Input!$P$72:$Y$135,4,FALSE)),"",VLOOKUP(K59,Input!$P$72:$Y$135,4,FALSE)) ->  | R59: =IF(ISNA(VLOOKUP(K59,Input!$P$72:$Y$135,9,FALSE)),"",IF(VLOOKUP(K59,Input!$P$72:$Y$135,9,FALSE)="",1,VLOOKUP(K59,Input!$P$72:$Y$135,9,FALSE))) ->  | S59: =IF(ISNA(VLOOKUP(K59,Input!$P$72:$Y$135,10,FALSE)),"",VLOOKUP(K59,Input!$P$72:$Y$135,10,FALSE)) -> 
B60: 10 | C60: =IF(ISNA(VLOOKUP(B60,Input!$B$72:$C$135,2,FALSE)),"",IF(VLOOKUP(B60,Input!$B$72:$C$135,2,FALSE)=0,"",VLOOKUP(B60,Input!$B$72:$C$135,2,FALSE))) ->  | D60: =IF(ISNA(VLOOKUP(B60,Input!$B$72:$K$135,4,FALSE)),"",VLOOKUP(B60,Input!$B$72:$K$135,4,FALSE)) ->  | I60: =IF(ISNA(VLOOKUP(B60,Input!$B$72:$K$135,9,FALSE)),"",IF(VLOOKUP(B60,Input!$B$72:$K$135,9,FALSE)="",1,VLOOKUP(B60,Input!$B$72:$K$135,9,FALSE))) ->  | J60: =IF(ISNA(VLOOKUP(B60,Input!$B$72:$K$135,10,FALSE)),"",VLOOKUP(B60,Input!$B$72:$K$135,10,FALSE)) ->  | K60: 10 | L60: =IF(ISNA(VLOOKUP(K60,Input!$P$72:$Q$135,2,FALSE)),"",IF(VLOOKUP(K60,Input!$P$72:$Q$135,2,FALSE)=0,"",VLOOKUP(K60,Input!$P$72:$Q$135,2,FALSE))) ->  | M60: =IF(ISNA(VLOOKUP(K60,Input!$P$72:$Y$135,4,FALSE)),"",VLOOKUP(K60,Input!$P$72:$Y$135,4,FALSE)) ->  | R60: =IF(ISNA(VLOOKUP(K60,Input!$P$72:$Y$135,9,FALSE)),"",IF(VLOOKUP(K60,Input!$P$72:$Y$135,9,FALSE)="",1,VLOOKUP(K60,Input!$P$72:$Y$135,9,FALSE))) ->  | S60: =IF(ISNA(VLOOKUP(K60,Input!$P$72:$Y$135,10,FALSE)),"",VLOOKUP(K60,Input!$P$72:$Y$135,10,FALSE)) -> 
B61: 11 | C61: =IF(ISNA(VLOOKUP(B61,Input!$B$72:$C$135,2,FALSE)),"",IF(VLOOKUP(B61,Input!$B$72:$C$135,2,FALSE)=0,"",VLOOKUP(B61,Input!$B$72:$C$135,2,FALSE))) ->  | D61: =IF(ISNA(VLOOKUP(B61,Input!$B$72:$K$135,4,FALSE)),"",VLOOKUP(B61,Input!$B$72:$K$135,4,FALSE)) ->  | I61: =IF(ISNA(VLOOKUP(B61,Input!$B$72:$K$135,9,FALSE)),"",IF(VLOOKUP(B61,Input!$B$72:$K$135,9,FALSE)="",1,VLOOKUP(B61,Input!$B$72:$K$135,9,FALSE))) ->  | J61: =IF(ISNA(VLOOKUP(B61,Input!$B$72:$K$135,10,FALSE)),"",VLOOKUP(B61,Input!$B$72:$K$135,10,FALSE)) ->  | K61: 11 | L61: =IF(ISNA(VLOOKUP(K61,Input!$P$72:$Q$135,2,FALSE)),"",IF(VLOOKUP(K61,Input!$P$72:$Q$135,2,FALSE)=0,"",VLOOKUP(K61,Input!$P$72:$Q$135,2,FALSE))) ->  | M61: =IF(ISNA(VLOOKUP(K61,Input!$P$72:$Y$135,4,FALSE)),"",VLOOKUP(K61,Input!$P$72:$Y$135,4,FALSE)) ->  | R61: =IF(ISNA(VLOOKUP(K61,Input!$P$72:$Y$135,9,FALSE)),"",IF(VLOOKUP(K61,Input!$P$72:$Y$135,9,FALSE)="",1,VLOOKUP(K61,Input!$P$72:$Y$135,9,FALSE))) ->  | S61: =IF(ISNA(VLOOKUP(K61,Input!$P$72:$Y$135,10,FALSE)),"",VLOOKUP(K61,Input!$P$72:$Y$135,10,FALSE)) -> 
B62: 12 | C62: =IF(ISNA(VLOOKUP(B62,Input!$B$72:$C$135,2,FALSE)),"",IF(VLOOKUP(B62,Input!$B$72:$C$135,2,FALSE)=0,"",VLOOKUP(B62,Input!$B$72:$C$135,2,FALSE))) ->  | D62: =IF(ISNA(VLOOKUP(B62,Input!$B$72:$K$135,4,FALSE)),"",VLOOKUP(B62,Input!$B$72:$K$135,4,FALSE)) ->  | I62: =IF(ISNA(VLOOKUP(B62,Input!$B$72:$K$135,9,FALSE)),"",IF(VLOOKUP(B62,Input!$B$72:$K$135,9,FALSE)="",1,VLOOKUP(B62,Input!$B$72:$K$135,9,FALSE))) ->  | J62: =IF(ISNA(VLOOKUP(B62,Input!$B$72:$K$135,10,FALSE)),"",VLOOKUP(B62,Input!$B$72:$K$135,10,FALSE)) ->  | K62: 12 | L62: =IF(ISNA(VLOOKUP(K62,Input!$P$72:$Q$135,2,FALSE)),"",IF(VLOOKUP(K62,Input!$P$72:$Q$135,2,FALSE)=0,"",VLOOKUP(K62,Input!$P$72:$Q$135,2,FALSE))) ->  | M62: =IF(ISNA(VLOOKUP(K62,Input!$P$72:$Y$135,4,FALSE)),"",VLOOKUP(K62,Input!$P$72:$Y$135,4,FALSE)) ->  | R62: =IF(ISNA(VLOOKUP(K62,Input!$P$72:$Y$135,9,FALSE)),"",IF(VLOOKUP(K62,Input!$P$72:$Y$135,9,FALSE)="",1,VLOOKUP(K62,Input!$P$72:$Y$135,9,FALSE))) ->  | S62: =IF(ISNA(VLOOKUP(K62,Input!$P$72:$Y$135,10,FALSE)),"",VLOOKUP(K62,Input!$P$72:$Y$135,10,FALSE)) -> 
B63: 13 | C63: =IF(ISNA(VLOOKUP(B63,Input!$B$72:$C$135,2,FALSE)),"",IF(VLOOKUP(B63,Input!$B$72:$C$135,2,FALSE)=0,"",VLOOKUP(B63,Input!$B$72:$C$135,2,FALSE))) ->  | D63: =IF(ISNA(VLOOKUP(B63,Input!$B$72:$K$135,4,FALSE)),"",VLOOKUP(B63,Input!$B$72:$K$135,4,FALSE)) ->  | I63: =IF(ISNA(VLOOKUP(B63,Input!$B$72:$K$135,9,FALSE)),"",IF(VLOOKUP(B63,Input!$B$72:$K$135,9,FALSE)="",1,VLOOKUP(B63,Input!$B$72:$K$135,9,FALSE))) ->  | J63: =IF(ISNA(VLOOKUP(B63,Input!$B$72:$K$135,10,FALSE)),"",VLOOKUP(B63,Input!$B$72:$K$135,10,FALSE)) ->  | K63: 13 | L63: =IF(ISNA(VLOOKUP(K63,Input!$P$72:$Q$135,2,FALSE)),"",IF(VLOOKUP(K63,Input!$P$72:$Q$135,2,FALSE)=0,"",VLOOKUP(K63,Input!$P$72:$Q$135,2,FALSE))) ->  | M63: =IF(ISNA(VLOOKUP(K63,Input!$P$72:$Y$135,4,FALSE)),"",VLOOKUP(K63,Input!$P$72:$Y$135,4,FALSE)) ->  | R63: =IF(ISNA(VLOOKUP(K63,Input!$P$72:$Y$135,9,FALSE)),"",IF(VLOOKUP(K63,Input!$P$72:$Y$135,9,FALSE)="",1,VLOOKUP(K63,Input!$P$72:$Y$135,9,FALSE))) ->  | S63: =IF(ISNA(VLOOKUP(K63,Input!$P$72:$Y$135,10,FALSE)),"",VLOOKUP(K63,Input!$P$72:$Y$135,10,FALSE)) -> 
B64: 14 | C64: =IF(ISNA(VLOOKUP(B64,Input!$B$72:$C$135,2,FALSE)),"",IF(VLOOKUP(B64,Input!$B$72:$C$135,2,FALSE)=0,"",VLOOKUP(B64,Input!$B$72:$C$135,2,FALSE))) ->  | D64: =IF(ISNA(VLOOKUP(B64,Input!$B$72:$K$135,4,FALSE)),"",VLOOKUP(B64,Input!$B$72:$K$135,4,FALSE)) ->  | I64: =IF(ISNA(VLOOKUP(B64,Input!$B$72:$K$135,9,FALSE)),"",IF(VLOOKUP(B64,Input!$B$72:$K$135,9,FALSE)="",1,VLOOKUP(B64,Input!$B$72:$K$135,9,FALSE))) ->  | J64: =IF(ISNA(VLOOKUP(B64,Input!$B$72:$K$135,10,FALSE)),"",VLOOKUP(B64,Input!$B$72:$K$135,10,FALSE)) ->  | K64: 14 | L64: =IF(ISNA(VLOOKUP(K64,Input!$P$72:$Q$135,2,FALSE)),"",IF(VLOOKUP(K64,Input!$P$72:$Q$135,2,FALSE)=0,"",VLOOKUP(K64,Input!$P$72:$Q$135,2,FALSE))) ->  | M64: =IF(ISNA(VLOOKUP(K64,Input!$P$72:$Y$135,4,FALSE)),"",VLOOKUP(K64,Input!$P$72:$Y$135,4,FALSE)) ->  | R64: =IF(ISNA(VLOOKUP(K64,Input!$P$72:$Y$135,9,FALSE)),"",IF(VLOOKUP(K64,Input!$P$72:$Y$135,9,FALSE)="",1,VLOOKUP(K64,Input!$P$72:$Y$135,9,FALSE))) ->  | S64: =IF(ISNA(VLOOKUP(K64,Input!$P$72:$Y$135,10,FALSE)),"",VLOOKUP(K64,Input!$P$72:$Y$135,10,FALSE)) -> 
B65: 15 | C65: =IF(ISNA(VLOOKUP(B65,Input!$B$72:$C$135,2,FALSE)),"",IF(VLOOKUP(B65,Input!$B$72:$C$135,2,FALSE)=0,"",VLOOKUP(B65,Input!$B$72:$C$135,2,FALSE))) ->  | D65: =IF(ISNA(VLOOKUP(B65,Input!$B$72:$K$135,4,FALSE)),"",VLOOKUP(B65,Input!$B$72:$K$135,4,FALSE)) ->  | I65: =IF(ISNA(VLOOKUP(B65,Input!$B$72:$K$135,9,FALSE)),"",IF(VLOOKUP(B65,Input!$B$72:$K$135,9,FALSE)="",1,VLOOKUP(B65,Input!$B$72:$K$135,9,FALSE))) ->  | J65: =IF(ISNA(VLOOKUP(B65,Input!$B$72:$K$135,10,FALSE)),"",VLOOKUP(B65,Input!$B$72:$K$135,10,FALSE)) ->  | K65: 15 | L65: =IF(ISNA(VLOOKUP(K65,Input!$P$72:$Q$135,2,FALSE)),"",IF(VLOOKUP(K65,Input!$P$72:$Q$135,2,FALSE)=0,"",VLOOKUP(K65,Input!$P$72:$Q$135,2,FALSE))) ->  | M65: =IF(ISNA(VLOOKUP(K65,Input!$P$72:$Y$135,4,FALSE)),"",VLOOKUP(K65,Input!$P$72:$Y$135,4,FALSE)) ->  | R65: =IF(ISNA(VLOOKUP(K65,Input!$P$72:$Y$135,9,FALSE)),"",IF(VLOOKUP(K65,Input!$P$72:$Y$135,9,FALSE)="",1,VLOOKUP(K65,Input!$P$72:$Y$135,9,FALSE))) ->  | S65: =IF(ISNA(VLOOKUP(K65,Input!$P$72:$Y$135,10,FALSE)),"",VLOOKUP(K65,Input!$P$72:$Y$135,10,FALSE)) -> 
B66: 16 | C66: =IF(ISNA(VLOOKUP(B66,Input!$B$72:$C$135,2,FALSE)),"",IF(VLOOKUP(B66,Input!$B$72:$C$135,2,FALSE)=0,"",VLOOKUP(B66,Input!$B$72:$C$135,2,FALSE))) ->  | D66: =IF(ISNA(VLOOKUP(B66,Input!$B$72:$K$135,4,FALSE)),"",VLOOKUP(B66,Input!$B$72:$K$135,4,FALSE)) ->  | I66: =IF(ISNA(VLOOKUP(B66,Input!$B$72:$K$135,9,FALSE)),"",IF(VLOOKUP(B66,Input!$B$72:$K$135,9,FALSE)="",1,VLOOKUP(B66,Input!$B$72:$K$135,9,FALSE))) ->  | J66: =IF(ISNA(VLOOKUP(B66,Input!$B$72:$K$135,10,FALSE)),"",VLOOKUP(B66,Input!$B$72:$K$135,10,FALSE)) ->  | K66: 16 | L66: =IF(ISNA(VLOOKUP(K66,Input!$P$72:$Q$135,2,FALSE)),"",IF(VLOOKUP(K66,Input!$P$72:$Q$135,2,FALSE)=0,"",VLOOKUP(K66,Input!$P$72:$Q$135,2,FALSE))) ->  | M66: =IF(ISNA(VLOOKUP(K66,Input!$P$72:$Y$135,4,FALSE)),"",VLOOKUP(K66,Input!$P$72:$Y$135,4,FALSE)) ->  | R66: =IF(ISNA(VLOOKUP(K66,Input!$P$72:$Y$135,9,FALSE)),"",IF(VLOOKUP(K66,Input!$P$72:$Y$135,9,FALSE)="",1,VLOOKUP(K66,Input!$P$72:$Y$135,9,FALSE))) ->  | S66: =IF(ISNA(VLOOKUP(K66,Input!$P$72:$Y$135,10,FALSE)),"",VLOOKUP(K66,Input!$P$72:$Y$135,10,FALSE)) -> 
B67: 17 | C67: =IF(ISNA(VLOOKUP(B67,Input!$B$72:$C$135,2,FALSE)),"",IF(VLOOKUP(B67,Input!$B$72:$C$135,2,FALSE)=0,"",VLOOKUP(B67,Input!$B$72:$C$135,2,FALSE))) ->  | D67: =IF(ISNA(VLOOKUP(B67,Input!$B$72:$K$135,4,FALSE)),"",VLOOKUP(B67,Input!$B$72:$K$135,4,FALSE)) ->  | I67: =IF(ISNA(VLOOKUP(B67,Input!$B$72:$K$135,9,FALSE)),"",IF(VLOOKUP(B67,Input!$B$72:$K$135,9,FALSE)="",1,VLOOKUP(B67,Input!$B$72:$K$135,9,FALSE))) ->  | J67: =IF(ISNA(VLOOKUP(B67,Input!$B$72:$K$135,10,FALSE)),"",VLOOKUP(B67,Input!$B$72:$K$135,10,FALSE)) ->  | K67: 17 | L67: =IF(ISNA(VLOOKUP(K67,Input!$P$72:$Q$135,2,FALSE)),"",IF(VLOOKUP(K67,Input!$P$72:$Q$135,2,FALSE)=0,"",VLOOKUP(K67,Input!$P$72:$Q$135,2,FALSE))) ->  | M67: =IF(ISNA(VLOOKUP(K67,Input!$P$72:$Y$135,4,FALSE)),"",VLOOKUP(K67,Input!$P$72:$Y$135,4,FALSE)) ->  | R67: =IF(ISNA(VLOOKUP(K67,Input!$P$72:$Y$135,9,FALSE)),"",IF(VLOOKUP(K67,Input!$P$72:$Y$135,9,FALSE)="",1,VLOOKUP(K67,Input!$P$72:$Y$135,9,FALSE))) ->  | S67: =IF(ISNA(VLOOKUP(K67,Input!$P$72:$Y$135,10,FALSE)),"",VLOOKUP(K67,Input!$P$72:$Y$135,10,FALSE)) -> 
B68: 18 | C68: =IF(ISNA(VLOOKUP(B68,Input!$B$72:$C$135,2,FALSE)),"",IF(VLOOKUP(B68,Input!$B$72:$C$135,2,FALSE)=0,"",VLOOKUP(B68,Input!$B$72:$C$135,2,FALSE))) ->  | D68: =IF(ISNA(VLOOKUP(B68,Input!$B$72:$K$135,4,FALSE)),"",VLOOKUP(B68,Input!$B$72:$K$135,4,FALSE)) ->  | I68: =IF(ISNA(VLOOKUP(B68,Input!$B$72:$K$135,9,FALSE)),"",IF(VLOOKUP(B68,Input!$B$72:$K$135,9,FALSE)="",1,VLOOKUP(B68,Input!$B$72:$K$135,9,FALSE))) ->  | J68: =IF(ISNA(VLOOKUP(B68,Input!$B$72:$K$135,10,FALSE)),"",VLOOKUP(B68,Input!$B$72:$K$135,10,FALSE)) ->  | K68: 18 | L68: =IF(ISNA(VLOOKUP(K68,Input!$P$72:$Q$135,2,FALSE)),"",IF(VLOOKUP(K68,Input!$P$72:$Q$135,2,FALSE)=0,"",VLOOKUP(K68,Input!$P$72:$Q$135,2,FALSE))) ->  | M68: =IF(ISNA(VLOOKUP(K68,Input!$P$72:$Y$135,4,FALSE)),"",VLOOKUP(K68,Input!$P$72:$Y$135,4,FALSE)) ->  | R68: =IF(ISNA(VLOOKUP(K68,Input!$P$72:$Y$135,9,FALSE)),"",IF(VLOOKUP(K68,Input!$P$72:$Y$135,9,FALSE)="",1,VLOOKUP(K68,Input!$P$72:$Y$135,9,FALSE))) ->  | S68: =IF(ISNA(VLOOKUP(K68,Input!$P$72:$Y$135,10,FALSE)),"",VLOOKUP(K68,Input!$P$72:$Y$135,10,FALSE)) -> 
I69: Total: | J69: =SUM(J51:J68)+F69 -> 0 | R69: Total: | S69: =SUM(S51:S68) -> 0
B70: Irrigation | K70: Irrigation
C71: Method | D71: Op. | E71: Pump plant | F71: Operating | G71: Power | H71: Ave. Amt | I71: Ave. Amt | L71: Method | M71: Op. | N71: Pump plant | O71: Operating | P71: Power | Q71: Ave. Amt | R71: Ave. Amt
D72: Pressure | E72: Efficiency | F72: Hours | G72: Req | H72: Applied | I72: Pumped | M72: Pressure | N72: Efficiency | O72: Hours | P72: Req | Q72: Applied | R72: Pumped
D73: [psi] | E73: [%] | F73: [hr] | G73: [BTU/gal] | H73: [in] | I73: [Mgal] | M73: [psi] | N73: [%] | O73: [hr] | P73: [BTU/gal] | Q73: [in] | R73: [Mgal]
C74: Irrigation Delivery | D74: =IF(Input!D139=TRUE,Input!F143,"") ->  | E74: =IF(Input!D139=TRUE,Input!G143,"") ->  | F74: =IF(Input!D139=TRUE,Input!H143,"") ->  | G74: =IF(Input!D139=TRUE,Input!J143,"") ->  | H74: =IF(Input!D139=TRUE,AVERAGE(Intermediate_Calcs!C57:G57),"") ->  | I74: =IF(Input!D139=TRUE,AVERAGE(Intermediate_Calcs!C59:G59),"") ->  | L74: Irrigation Delivery | M74: =IF(Input!R139=TRUE,Input!T143,"") ->  | N74: =IF(Input!R139=TRUE,Input!U143,"") ->  | O74: =IF(Input!R139=TRUE,Input!V143,"") ->  | P74: =IF(Input!R139=TRUE,Input!X143,"") ->  | Q74: =IF(Input!R139=TRUE,AVERAGE(Intermediate_Calcs!C62:G62),"") ->  | R74: =IF(Input!R139=TRUE,AVERAGE(Intermediate_Calcs!C64:G64),"") -> 
C75: Other Delivery 1 | D75: =IF(Input!D140=TRUE,Input!F144,"") ->  | E75: =IF(Input!D140=TRUE,Input!G144,"") ->  | F75: =IF(Input!D140=TRUE,Input!H144,"") ->  | G75: =IF(Input!D140=TRUE,Input!J144,"") ->  | H75: =IF(Input!D140=TRUE,I75*1000000/7.48/43560/Input!$J$14*12,"") ->  | I75: =IF(Input!D140=TRUE,AVERAGE(Intermediate_Calcs!C98:G98),"") ->  | L75: Other Delivery 1 | M75: =IF(Input!R140=TRUE,Input!T144,"") ->  | N75: =IF(Input!R140=TRUE,Input!U144,"") ->  | O75: =IF(Input!R140=TRUE,Input!V144,"") ->  | P75: =IF(Input!R140=TRUE,Input!X144,"") ->  | Q75: =IF(Input!R140=TRUE,R75*1000000/7.48/43560/Input!$S$14*12,"") ->  | R75: =IF(Input!R140=TRUE,AVERAGE(Intermediate_Calcs!C103:G103),"") -> 
C76: Other Delivery 2 | D76: =IF(Input!D141=TRUE,Input!F145,"") ->  | E76: =IF(Input!D141=TRUE,Input!G145,"") ->  | F76: =IF(Input!D141=TRUE,Input!H145,"") ->  | G76: =IF(Input!D141=TRUE,Input!J145,"") ->  | H76: =IF(Input!D141=TRUE,I76*1000000/7.48/43560/Input!$J$14*12,"") ->  | I76: =IF(Input!D141=TRUE,AVERAGE(Intermediate_Calcs!C134:G134),"") ->  | L76: Other Delivery 2 | M76: =IF(Input!R141=TRUE,Input!T145,"") ->  | N76: =IF(Input!R141=TRUE,Input!U145,"") ->  | O76: =IF(Input!R141=TRUE,Input!V145,"") ->  | P76: =IF(Input!R141=TRUE,Input!X145,"") ->  | Q76: =IF(Input!R141=TRUE,R76*1000000/7.48/43560/Input!$S$14*12,"") ->  | R76: =IF(Input!R141=TRUE,SUM(Intermediate_Calcs!C139:G139),"") -> 
C77: Other Delivery 3 | D77: =IF(Input!D142=TRUE,Input!F146,"") ->  | E77: =IF(Input!D142=TRUE,Input!G146,"") ->  | F77: =IF(Input!D142=TRUE,Input!H146,"") ->  | G77: =IF(Input!D142=TRUE,Input!J146,"") ->  | H77: =IF(Input!D142=TRUE,I77*1000000/7.48/43560/Input!$J$14*12,"") ->  | I77: =IF(Input!D141=TRUE,AVERAGE(Intermediate_Calcs!C170:G170),"") ->  | L77: Other Delivery 3 | M77: =IF(Input!R142=TRUE,Input!T146,"") ->  | N77: =IF(Input!R142=TRUE,Input!U146,"") ->  | O77: =IF(Input!R142=TRUE,Input!V146,"") ->  | P77: =IF(Input!R142=TRUE,Input!X146,"") ->  | Q77: =IF(Input!R142=TRUE,R77*1000000/7.48/43560/Input!$S$14*12,"") ->  | R77: =IF(Input!R142=TRUE,AVERAGE(Intermediate_Calcs!C175:G175),"") -> 

Sheet Input_GHG (hidden)
B2: NRCS - CROPLAND ENERGY TOOL
B4: ENERGY INPUTS FOR GREENHOUSE GAS EMISSIONS USING COMET
E6: ="Landowner: "&Input!E14 -> Landowner: | H6: Field Area: | I6: =IF(Input!J14="","",Input!J14) ->  | L6: Date: | M6: =IF(Input!E17="","",Input!E17) -> 
E7: =IF(Input!E15="","Field Location: ",IF(OR(Input!E15="American Samoa",Input!E15="District of Columbia",Input!E15="Puerto Rico",Input!E15="Virgin Islands",Input!E15="Guam"),"Field Location: "&Input!E15,"Field Location: "&Input!E16&IF(Input!E15="Alaska"," Boro., "," Co., ")&VLOOKUP(Input!E15,Input!C208:D262,2,FALSE))) -> Field Location: | H7: Field ID: | I7: =IF(Input!J15="","",Input!J15) ->  | L7: Latitude: | M7: =IF(Input!E18="","",Input!E18) -> 
L8: Longitude: | M8: =IF(Input!E19="","",Input!E19) -> 
B12: Greenhouse Gas Table | E12: GHG Emission Coefficients (EC)
E13: in lbs. per unit of energy input
B16: Energy Input | D16: Units | E16: Energy | F16: CO2 | G16: N2O | H16: CH4 | I16: Total CO2 | K16: SO2 | M16: NOx
E17: [MMBTU] | F17: [lb] | G17: [lb] | H17: [lb] | I17: Equivalent [lb] | K17: [lb] | M17: [lb]
B18: Liquid
C19: =Input!C168 -> Diesel | D19: Gal | E19: =VLOOKUP(C19,Report_Cost!$C$14:$F$38,4,FALSE)/1000000 -> 0.139 | F19: =223769/10000 -> 22.3769 | G19: =485.05/1000000 -> 0.00048505 | H19: =277.83/100000 -> 0.0027783 | I19: 22.58559 | K19: =285/1000000 -> 0.000285 | M19: =18000/1000000 -> 0.018
C20: =Input!C169 -> Gasoline (E10) | D20: Gal | E20: =VLOOKUP(C20,Report_Cost!$C$14:$F$38,4,FALSE)/1000000 -> 0.12 | F20: =19643.2/1000 -> 19.6432 | G20: =5732.02/10000000 -> 0.000573202 | H20: =31746.6/10000000 -> 0.00317466 | I20: 19.88756 | K20: =285/1000000 -> 0.000285 | M20: =110231/10000000 -> 0.0110231
C21: =Input!C170 -> BioDiesel B2 | D21: Gal | E21: =VLOOKUP(C21,Report_Cost!$C$14:$F$38,4,FALSE)/1000000 -> 0.1386 | F21: =219139/10000 -> 21.9139 | G21: =48501.07/100000000 -> 0.0004850107 | H21: =277783/100000000 -> 0.00277783 | I21: 22.12559 | K21: =1/10000 -> 0.0001 | M21: =100/10000 -> 0.01
C22: =Input!C171 -> BioDiesel B5 | D22: Gal | E22: =VLOOKUP(C22,Report_Cost!$C$14:$F$38,4,FALSE)/1000000 -> 0.138 | F22: =212526/10000 -> 21.2526 | G22: 0.0004850107 | H22: 0.00277783 | I22: 21.46129 | K22: 0.0001 | M22: 0.01
C23: =Input!C172 -> BioDiesel B10 | D23: Gal | E23: =VLOOKUP(C23,Report_Cost!$C$14:$F$38,4,FALSE)/1000000 -> 0.1369 | F23: =201282/10000 -> 20.1282 | G23: 0.0004850107 | H23: 0.00277783 | I23: 20.33689 | K23: 0.0001 | M23: 0.01
C24: =Input!C173 -> BioDiesel B20 | D24: Gal | E24: =VLOOKUP(C24,Report_Cost!$C$14:$F$38,4,FALSE)/1000000 -> 0.1349 | F24: =179015/10000 -> 17.9015 | G24: 0.0004850107 | H24: 0.00277783 | I24: 18.11019 | K24: 0.0001 | M24: 0.01
C25: =Input!C174 -> BioDiesel B100 | D25: Gal | E25: =VLOOKUP(C25,Report_Cost!$C$14:$F$38,4,FALSE)/1000000 -> 0.1183 | F25: 0 | G25: 0.0004850107 | H25: 0.00277783 | I25: 0.20869 | K25: 0.0001 | M25: 0.01
C26: =Input!C175 -> SVO | D26: Gal | E26: =VLOOKUP(C26,Report_Cost!$C$14:$F$38,4,FALSE)/1000000 -> 0.12314 | F26: 0 | G26: 0.0004850107 | H26: 0.00277783 | I26: 0.20869 | K26: 0.0001 | M26: 0.01
B27: Gas
C28: =Input!C177 -> Propane | D28: Gal | E28: =VLOOKUP(C28,Report_Cost!$C$14:$F$38,4,FALSE)/1000000 -> 0.0916 | F28: =12654.5/1000 -> 12.6545 | G28: =0.4/1000 -> 0.0004 | H28: =2/1000 -> 0.002 | I28: 12.8205 | K28: =0.1/1000 -> 0.0001 | M28: =10/1000 -> 0.01
C29: =Input!C178 -> Natural Gas | D29: CCF | E29: =VLOOKUP(C29,Report_Cost!$C$14:$F$38,4,FALSE)/1000000 -> 0.103 | F29: =11697.7/1000 -> 11.6977 | G29: =0.4/1000 -> 0.0004 | H29: =2/1000 -> 0.002 | I29: 11.8637 | K29: =0.1/1000 -> 0.0001 | M29: =10/1000 -> 0.01
C30: =Input!C179 -> CNG | D30: CCF | E30: =VLOOKUP(C30,Report_Cost!$C$14:$F$38,4,FALSE)/1000000 -> 0.1 | F30: =12037.2/1000 -> 12.0372 | G30: =38580.9/10000000 -> 0.00385809 | H30: =2/1000 -> 0.002 | I30: 13.275208 | K30: =0.1/1000 -> 0.0001 | M30: =10/1000 -> 0.01
B31: Electricity
C32: =Input!C181 -> Electricity | D32: KWH | E32: =VLOOKUP(C32,Report_Cost!$C$14:$F$38,4,FALSE)/1000000 -> 0.003412 | F32: 0.25919 | G32: 4.3e-06 | H32: 9.9e-06 | I32: 0.2607423 | K32: 0.0001247 | M32: 0.0003042
B33: Other Energy Input
C34: Soil Admendments | D34: Ton | E34: =Report_Cost!F31/1000000 -> 11.25 | F34: 0 | G34: 0 | H34: 0 | I34: =SUM(F34:H34) -> 0 | K34: 0 | M34: 0
C35: =Input!C185 -> Agrichemicals | D35: lb | E35: Varies | F35: 0 | G35: 0 | H35: 0 | I35: =SUM(F35:H35) -> 0 | K35: 0 | M35: 0
C36: =Input!C187 -> Labor | D36: Day | E36: =Report_Cost!F32/1000000 -> 0.0119 | F36: 0 | G36: 0 | H36: 0 | I36: =SUM(F36:H36) -> 0 | K36: 0 | M36: 0
F39: Zip Code | G39: 99402
H42: Above GHG emissions are
H43: from COMET website
E44: Note: GHG emissions from electricity are based on zip code

Sheet Report_GHG1 (hidden)
B2: NRCS - CROPLAND ENERGY TOOL
B4: INPUTS FOR COMPUTING GREENHOUSE GAS EMISSIONS
E6: ="Landowner: "&Input!E14 -> Landowner: | H6: Field Area: | I6: =IF(Input!J14="","",Input!J14) ->  | L6: Date: | M6: =IF(Input!E17="","",Input!E17) -> 
E7: =IF(Input!E15="","Field Location: ",IF(OR(Input!E15="American Samoa",Input!E15="District of Columbia",Input!E15="Puerto Rico",Input!E15="Virgin Islands",Input!E15="Guam"),"Field Location: "&Input!E15,"Field Location: "&Input!E16&IF(Input!E15="Alaska"," Boro., "," Co., ")&VLOOKUP(Input!E15,Input!C208:D262,2,FALSE))) -> Field Location: | H7: Field ID: | I7: =IF(Input!J15="","",Input!J15) ->  | L7: Latitude: | M7: =IF(Input!E18="","",Input!E18) -> 
L8: Longitude: | M8: =IF(Input!E19="","",Input!E19) -> 
F11: Per Acre Inputs
B13: Annual Energy Input (Fuel) | F13: BENCHMARK | I13: PLANNED | L13: DIFFERENCE
B14: Liquid
C15: =Report_Cost!C14 -> Diesel | F15: =IF($F$11="Total Field Inputs",ROUND(SUMIF(Report_Cost!$G$66:$G$72,Report_GHG1!C15,Report_Cost!$F$66:$F$72)*VLOOKUP(C15,Report_Cost!$C$14:$G$38,5,FALSE),0)&" "&VLOOKUP(C15,Report_Cost!$C$14:$D$38,2,FALSE),ROUND(SUMIF(Report_Cost!$G$49:$G$55,Report_GHG1!C15,Report_Cost!$F$49:$F$55)*VLOOKUP(C15,Report_Cost!$C$14:$G$38,5,FALSE),2)&" "&VLOOKUP(C15,Report_Cost!$C$14:$D$38,2,FALSE)) -> 0 Gal | I15: =IF($F$11="Total Field Inputs",ROUND(SUMIF(Report_Cost!$L$66:$L$72,Report_GHG1!C15,Report_Cost!$K$66:$K$72)*VLOOKUP(C15,Report_Cost!$C$14:$G$38,5,FALSE),0)&" "&VLOOKUP(C15,Report_Cost!$C$14:$D$38,2,FALSE),ROUND(SUMIF(Report_Cost!$L$49:$L$55,Report_GHG1!C15,Report_Cost!$K$49:$K$55)*VLOOKUP(C15,Report_Cost!$C$14:$G$38,5,FALSE),2)&" "&VLOOKUP(C15,Report_Cost!$C$14:$D$38,2,FALSE)) -> 0 Gal | L15: =IF($F$11="Total Field Inputs",IF(ROUND(SUMIF(Report_Cost!$G$66:$G$72,Report_GHG1!C15,Report_Cost!$F$66:$F$72)*VLOOKUP(C15,Report_Cost!$C$14:$G$38,5,FALSE),0)-ROUND(SUMIF(Report_Cost!$L$66:$L$72,Report_GHG1!C15,Report_Cost!$K$66:$K$72)*VLOOKUP(C15,Report_Cost!$C$14:$G$38,5,FALSE),0)<0,"("&(ROUND(SUMIF(Report_Cost!$G$66:$G$72,Report_GHG1!C15,Report_Cost!$F$66:$F$72)*VLOOKUP(C15,Report_Cost!$C$14:$G$38,5,FALSE),0)-ROUND(SUMIF(Report_Cost!$L$66:$L$72,Report_GHG1!C15,Report_Cost!$K$66:$K$72)*VLOOKUP(C15,Report_Cost!$C$14:$G$38,5,FALSE),0))*-1&")",ROUND(SUMIF(Report_Cost!$G$66:$G$72,Report_GHG1!C15,Report_Cost!$F$66:$F$72)*VLOOKUP(C15,Report_Cost!$C$14:$G$38,5,FALSE),0)-ROUND(SUMIF(Report_Cost!$L$66:$L$72,Report_GHG1!C15,Report_Cost!$K$66:$K$72)*VLOOKUP(C15,Report_Cost!$C$14:$G$38,5,FALSE),0))&" "&VLOOKUP(C15,Report_Cost!$C$14:$D$38,2,FALSE),IF(ROUND(SUMIF(Report_Cost!$G$49:$G$55,Report_GHG1!C15,Report_Cost!$F$49:$F$55)*VLOOKUP(C15,Report_Cost!$C$14:$G$38,5,FALSE),2)-ROUND(SUMIF(Report_Cost!$L$49:$L$55,Report_GHG1!C15,Report_Cost!$K$49:$K$55)*VLOOKUP(C15,Report_Cost!$C$14:$G$38,5,FALSE),2)<0,"("&(ROUND(SUMIF(Report_Cost!$G$49:$G$55,Report_GHG1!C15,Report_Cost!$F$49:$F$55)*VLOOKUP(C15,Report_Cost!$C$14:$G$38,5,FALSE),2)-ROUND(SUMIF(Report_Cost!$L$49:$L$55,Report_GHG1!C15,Report_Cost!$K$49:$K$55)*VLOOKUP(C15,Report_Cost!$C$14:$G$38,5,FALSE),2))*-1&")",ROUND(SUMIF(Report_Cost!$G$49:$G$55,Report_GHG1!C15,Report_Cost!$F$49:$F$55)*VLOOKUP(C15,Report_Cost!$C$14:$G$38,5,FALSE),2)-ROUND(SUMIF(Report_Cost!$L$49:$L$55,Report_GHG1!C15,Report_Cost!$K$49:$K$55)*VLOOKUP(C15,Report_Cost!$C$14:$G$38,5,FALSE),2))&" "&VLOOKUP(C15,Report_Cost!$C$14:$D$38,2,FALSE)) -> 0 Gal
C17: =Report_Cost!C15 -> Gasoline (E10) | F17: =IF($F$11="Total Field Inputs",ROUND(SUMIF(Report_Cost!$G$66:$G$72,Report_GHG1!C17,Report_Cost!$F$66:$F$72)*VLOOKUP(C17,Report_Cost!$C$14:$G$38,5,FALSE),0)&" "&VLOOKUP(C17,Report_Cost!$C$14:$D$38,2,FALSE),ROUND(SUMIF(Report_Cost!$G$49:$G$55,Report_GHG1!C17,Report_Cost!$F$49:$F$55)*VLOOKUP(C17,Report_Cost!$C$14:$G$38,5,FALSE),2)&" "&VLOOKUP(C17,Report_Cost!$C$14:$D$38,2,FALSE)) -> 0 Gal | I17: =IF($F$11="Total Field Inputs",ROUND(SUMIF(Report_Cost!$L$66:$L$72,Report_GHG1!C17,Report_Cost!$K$66:$K$72)*VLOOKUP(C17,Report_Cost!$C$14:$G$38,5,FALSE),0)&" "&VLOOKUP(C17,Report_Cost!$C$14:$D$38,2,FALSE),ROUND(SUMIF(Report_Cost!$L$49:$L$55,Report_GHG1!C17,Report_Cost!$K$49:$K$55)*VLOOKUP(C17,Report_Cost!$C$14:$G$38,5,FALSE),2)&" "&VLOOKUP(C17,Report_Cost!$C$14:$D$38,2,FALSE)) -> 0 Gal | L17: =IF($F$11="Total Field Inputs",IF(ROUND(SUMIF(Report_Cost!$G$66:$G$72,Report_GHG1!C17,Report_Cost!$F$66:$F$72)*VLOOKUP(C17,Report_Cost!$C$14:$G$38,5,FALSE),0)-ROUND(SUMIF(Report_Cost!$L$66:$L$72,Report_GHG1!C17,Report_Cost!$K$66:$K$72)*VLOOKUP(C17,Report_Cost!$C$14:$G$38,5,FALSE),0)<0,"("&(ROUND(SUMIF(Report_Cost!$G$66:$G$72,Report_GHG1!C17,Report_Cost!$F$66:$F$72)*VLOOKUP(C17,Report_Cost!$C$14:$G$38,5,FALSE),0)-ROUND(SUMIF(Report_Cost!$L$66:$L$72,Report_GHG1!C17,Report_Cost!$K$66:$K$72)*VLOOKUP(C17,Report_Cost!$C$14:$G$38,5,FALSE),0))*-1&")",ROUND(SUMIF(Report_Cost!$G$66:$G$72,Report_GHG1!C17,Report_Cost!$F$66:$F$72)*VLOOKUP(C17,Report_Cost!$C$14:$G$38,5,FALSE),0)-ROUND(SUMIF(Report_Cost!$L$66:$L$72,Report_GHG1!C17,Report_Cost!$K$66:$K$72)*VLOOKUP(C17,Report_Cost!$C$14:$G$38,5,FALSE),0))&" "&VLOOKUP(C17,Report_Cost!$C$14:$D$38,2,FALSE),IF(ROUND(SUMIF(Report_Cost!$G$49:$G$55,Report_GHG1!C17,Report_Cost!$F$49:$F$55)*VLOOKUP(C17,Report_Cost!$C$14:$G$38,5,FALSE),2)-ROUND(SUMIF(Report_Cost!$L$49:$L$55,Report_GHG1!C17,Report_Cost!$K$49:$K$55)*VLOOKUP(C17,Report_Cost!$C$14:$G$38,5,FALSE),2)<0,"("&(ROUND(SUMIF(Report_Cost!$G$49:$G$55,Report_GHG1!C17,Report_Cost!$F$49:$F$55)*VLOOKUP(C17,Report_Cost!$C$14:$G$38,5,FALSE),2)-ROUND(SUMIF(Report_Cost!$L$49:$L$55,Report_GHG1!C17,Report_Cost!$K$49:$K$55)*VLOOKUP(C17,Report_Cost!$C$14:$G$38,5,FALSE),2))*-1&")",ROUND(SUMIF(Report_Cost!$G$49:$G$55,Report_GHG1!C17,Report_Cost!$F$49:$F$55)*VLOOKUP(C17,Report_Cost!$C$14:$G$38,5,FALSE),2)-ROUND(SUMIF(Report_Cost!$L$49:$L$55,Report_GHG1!C17,Report_Cost!$K$49:$K$55)*VLOOKUP(C17,Report_Cost!$C$14:$G$38,5,FALSE),2))&" "&VLOOKUP(C17,Report_Cost!$C$14:$D$38,2,FALSE)) -> 0 Gal
C19: =Report_Cost!C16 -> BioDiesel B2 | F19: =IF($F$11="Total Field Inputs",ROUND(SUMIF(Report_Cost!$G$66:$G$72,Report_GHG1!C19,Report_Cost!$F$66:$F$72)*VLOOKUP(C19,Report_Cost!$C$14:$G$38,5,FALSE),0)&" "&VLOOKUP(C19,Report_Cost!$C$14:$D$38,2,FALSE),ROUND(SUMIF(Report_Cost!$G$49:$G$55,Report_GHG1!C19,Report_Cost!$F$49:$F$55)*VLOOKUP(C19,Report_Cost!$C$14:$G$38,5,FALSE),2)&" "&VLOOKUP(C19,Report_Cost!$C$14:$D$38,2,FALSE)) -> 0 Gal | I19: =IF($F$11="Total Field Inputs",ROUND(SUMIF(Report_Cost!$L$66:$L$72,Report_GHG1!C19,Report_Cost!$K$66:$K$72)*VLOOKUP(C19,Report_Cost!$C$14:$G$38,5,FALSE),0)&" "&VLOOKUP(C19,Report_Cost!$C$14:$D$38,2,FALSE),ROUND(SUMIF(Report_Cost!$L$49:$L$55,Report_GHG1!C19,Report_Cost!$K$49:$K$55)*VLOOKUP(C19,Report_Cost!$C$14:$G$38,5,FALSE),2)&" "&VLOOKUP(C19,Report_Cost!$C$14:$D$38,2,FALSE)) -> 0 Gal | L19: =IF($F$11="Total Field Inputs",IF(ROUND(SUMIF(Report_Cost!$G$66:$G$72,Report_GHG1!C19,Report_Cost!$F$66:$F$72)*VLOOKUP(C19,Report_Cost!$C$14:$G$38,5,FALSE),0)-ROUND(SUMIF(Report_Cost!$L$66:$L$72,Report_GHG1!C19,Report_Cost!$K$66:$K$72)*VLOOKUP(C19,Report_Cost!$C$14:$G$38,5,FALSE),0)<0,"("&(ROUND(SUMIF(Report_Cost!$G$66:$G$72,Report_GHG1!C19,Report_Cost!$F$66:$F$72)*VLOOKUP(C19,Report_Cost!$C$14:$G$38,5,FALSE),0)-ROUND(SUMIF(Report_Cost!$L$66:$L$72,Report_GHG1!C19,Report_Cost!$K$66:$K$72)*VLOOKUP(C19,Report_Cost!$C$14:$G$38,5,FALSE),0))*-1&")",ROUND(SUMIF(Report_Cost!$G$66:$G$72,Report_GHG1!C19,Report_Cost!$F$66:$F$72)*VLOOKUP(C19,Report_Cost!$C$14:$G$38,5,FALSE),0)-ROUND(SUMIF(Report_Cost!$L$66:$L$72,Report_GHG1!C19,Report_Cost!$K$66:$K$72)*VLOOKUP(C19,Report_Cost!$C$14:$G$38,5,FALSE),0))&" "&VLOOKUP(C19,Report_Cost!$C$14:$D$38,2,FALSE),IF(ROUND(SUMIF(Report_Cost!$G$49:$G$55,Report_GHG1!C19,Report_Cost!$F$49:$F$55)*VLOOKUP(C19,Report_Cost!$C$14:$G$38,5,FALSE),2)-ROUND(SUMIF(Report_Cost!$L$49:$L$55,Report_GHG1!C19,Report_Cost!$K$49:$K$55)*VLOOKUP(C19,Report_Cost!$C$14:$G$38,5,FALSE),2)<0,"("&(ROUND(SUMIF(Report_Cost!$G$49:$G$55,Report_GHG1!C19,Report_Cost!$F$49:$F$55)*VLOOKUP(C19,Report_Cost!$C$14:$G$38,5,FALSE),2)-ROUND(SUMIF(Report_Cost!$L$49:$L$55,Report_GHG1!C19,Report_Cost!$K$49:$K$55)*VLOOKUP(C19,Report_Cost!$C$14:$G$38,5,FALSE),2))*-1&")",ROUND(SUMIF(Report_Cost!$G$49:$G$55,Report_GHG1!C19,Report_Cost!$F$49:$F$55)*VLOOKUP(C19,Report_Cost!$C$14:$G$38,5,FALSE),2)-ROUND(SUMIF(Report_Cost!$L$49:$L$55,Report_GHG1!C19,Report_Cost!$K$49:$K$55)*VLOOKUP(C19,Report_Cost!$C$14:$G$38,5,FALSE),2))&" "&VLOOKUP(C19,Report_Cost!$C$14:$D$38,2,FALSE)) -> 0 Gal
C21: =Report_Cost!C17 -> BioDiesel B5 | F21: =IF($F$11="Total Field Inputs",ROUND(SUMIF(Report_Cost!$G$66:$G$72,Report_GHG1!C21,Report_Cost!$F$66:$F$72)*VLOOKUP(C21,Report_Cost!$C$14:$G$38,5,FALSE),0)&" "&VLOOKUP(C21,Report_Cost!$C$14:$D$38,2,FALSE),ROUND(SUMIF(Report_Cost!$G$49:$G$55,Report_GHG1!C21,Report_Cost!$F$49:$F$55)*VLOOKUP(C21,Report_Cost!$C$14:$G$38,5,FALSE),2)&" "&VLOOKUP(C21,Report_Cost!$C$14:$D$38,2,FALSE)) -> 0 Gal | I21: =IF($F$11="Total Field Inputs",ROUND(SUMIF(Report_Cost!$L$66:$L$72,Report_GHG1!C21,Report_Cost!$K$66:$K$72)*VLOOKUP(C21,Report_Cost!$C$14:$G$38,5,FALSE),0)&" "&VLOOKUP(C21,Report_Cost!$C$14:$D$38,2,FALSE),ROUND(SUMIF(Report_Cost!$L$49:$L$55,Report_GHG1!C21,Report_Cost!$K$49:$K$55)*VLOOKUP(C21,Report_Cost!$C$14:$G$38,5,FALSE),2)&" "&VLOOKUP(C21,Report_Cost!$C$14:$D$38,2,FALSE)) -> 0 Gal | L21: =IF($F$11="Total Field Inputs",IF(ROUND(SUMIF(Report_Cost!$G$66:$G$72,Report_GHG1!C21,Report_Cost!$F$66:$F$72)*VLOOKUP(C21,Report_Cost!$C$14:$G$38,5,FALSE),0)-ROUND(SUMIF(Report_Cost!$L$66:$L$72,Report_GHG1!C21,Report_Cost!$K$66:$K$72)*VLOOKUP(C21,Report_Cost!$C$14:$G$38,5,FALSE),0)<0,"("&(ROUND(SUMIF(Report_Cost!$G$66:$G$72,Report_GHG1!C21,Report_Cost!$F$66:$F$72)*VLOOKUP(C21,Report_Cost!$C$14:$G$38,5,FALSE),0)-ROUND(SUMIF(Report_Cost!$L$66:$L$72,Report_GHG1!C21,Report_Cost!$K$66:$K$72)*VLOOKUP(C21,Report_Cost!$C$14:$G$38,5,FALSE),0))*-1&")",ROUND(SUMIF(Report_Cost!$G$66:$G$72,Report_GHG1!C21,Report_Cost!$F$66:$F$72)*VLOOKUP(C21,Report_Cost!$C$14:$G$38,5,FALSE),0)-ROUND(SUMIF(Report_Cost!$L$66:$L$72,Report_GHG1!C21,Report_Cost!$K$66:$K$72)*VLOOKUP(C21,Report_Cost!$C$14:$G$38,5,FALSE),0))&" "&VLOOKUP(C21,Report_Cost!$C$14:$D$38,2,FALSE),IF(ROUND(SUMIF(Report_Cost!$G$49:$G$55,Report_GHG1!C21,Report_Cost!$F$49:$F$55)*VLOOKUP(C21,Report_Cost!$C$14:$G$38,5,FALSE),2)-ROUND(SUMIF(Report_Cost!$L$49:$L$55,Report_GHG1!C21,Report_Cost!$K$49:$K$55)*VLOOKUP(C21,Report_Cost!$C$14:$G$38,5,FALSE),2)<0,"("&(ROUND(SUMIF(Report_Cost!$G$49:$G$55,Report_GHG1!C21,Report_Cost!$F$49:$F$55)*VLOOKUP(C21,Report_Cost!$C$14:$G$38,5,FALSE),2)-ROUND(SUMIF(Report_Cost!$L$49:$L$55,Report_GHG1!C21,Report_Cost!$K$49:$K$55)*VLOOKUP(C21,Report_Cost!$C$14:$G$38,5,FALSE),2))*-1&")",ROUND(SUMIF(Report_Cost!$G$49:$G$55,Report_GHG1!C21,Report_Cost!$F$49:$F$55)*VLOOKUP(C21,Report_Cost!$C$14:$G$38,5,FALSE),2)-ROUND(SUMIF(Report_Cost!$L$49:$L$55,Report_GHG1!C21,Report_Cost!$K$49:$K$55)*VLOOKUP(C21,Report_Cost!$C$14:$G$38,5,FALSE),2))&" "&VLOOKUP(C21,Report_Cost!$C$14:$D$38,2,FALSE)) -> 0 Gal
C23: =Report_Cost!C18 -> BioDiesel B10 | F23: =IF($F$11="Total Field Inputs",ROUND(SUMIF(Report_Cost!$G$66:$G$72,Report_GHG1!C23,Report_Cost!$F$66:$F$72)*VLOOKUP(C23,Report_Cost!$C$14:$G$38,5,FALSE),0)&" "&VLOOKUP(C23,Report_Cost!$C$14:$D$38,2,FALSE),ROUND(SUMIF(Report_Cost!$G$49:$G$55,Report_GHG1!C23,Report_Cost!$F$49:$F$55)*VLOOKUP(C23,Report_Cost!$C$14:$G$38,5,FALSE),2)&" "&VLOOKUP(C23,Report_Cost!$C$14:$D$38,2,FALSE)) -> 0 Gal | I23: =IF($F$11="Total Field Inputs",ROUND(SUMIF(Report_Cost!$L$66:$L$72,Report_GHG1!C23,Report_Cost!$K$66:$K$72)*VLOOKUP(C23,Report_Cost!$C$14:$G$38,5,FALSE),0)&" "&VLOOKUP(C23,Report_Cost!$C$14:$D$38,2,FALSE),ROUND(SUMIF(Report_Cost!$L$49:$L$55,Report_GHG1!C23,Report_Cost!$K$49:$K$55)*VLOOKUP(C23,Report_Cost!$C$14:$G$38,5,FALSE),2)&" "&VLOOKUP(C23,Report_Cost!$C$14:$D$38,2,FALSE)) -> 0 Gal | L23: =IF($F$11="Total Field Inputs",IF(ROUND(SUMIF(Report_Cost!$G$66:$G$72,Report_GHG1!C23,Report_Cost!$F$66:$F$72)*VLOOKUP(C23,Report_Cost!$C$14:$G$38,5,FALSE),0)-ROUND(SUMIF(Report_Cost!$L$66:$L$72,Report_GHG1!C23,Report_Cost!$K$66:$K$72)*VLOOKUP(C23,Report_Cost!$C$14:$G$38,5,FALSE),0)<0,"("&(ROUND(SUMIF(Report_Cost!$G$66:$G$72,Report_GHG1!C23,Report_Cost!$F$66:$F$72)*VLOOKUP(C23,Report_Cost!$C$14:$G$38,5,FALSE),0)-ROUND(SUMIF(Report_Cost!$L$66:$L$72,Report_GHG1!C23,Report_Cost!$K$66:$K$72)*VLOOKUP(C23,Report_Cost!$C$14:$G$38,5,FALSE),0))*-1&")",ROUND(SUMIF(Report_Cost!$G$66:$G$72,Report_GHG1!C23,Report_Cost!$F$66:$F$72)*VLOOKUP(C23,Report_Cost!$C$14:$G$38,5,FALSE),0)-ROUND(SUMIF(Report_Cost!$L$66:$L$72,Report_GHG1!C23,Report_Cost!$K$66:$K$72)*VLOOKUP(C23,Report_Cost!$C$14:$G$38,5,FALSE),0))&" "&VLOOKUP(C23,Report_Cost!$C$14:$D$38,2,FALSE),IF(ROUND(SUMIF(Report_Cost!$G$49:$G$55,Report_GHG1!C23,Report_Cost!$F$49:$F$55)*VLOOKUP(C23,Report_Cost!$C$14:$G$38,5,FALSE),2)-ROUND(SUMIF(Report_Cost!$L$49:$L$55,Report_GHG1!C23,Report_Cost!$K$49:$K$55)*VLOOKUP(C23,Report_Cost!$C$14:$G$38,5,FALSE),2)<0,"("&(ROUND(SUMIF(Report_Cost!$G$49:$G$55,Report_GHG1!C23,Report_Cost!$F$49:$F$55)*VLOOKUP(C23,Report_Cost!$C$14:$G$38,5,FALSE),2)-ROUND(SUMIF(Report_Cost!$L$49:$L$55,Report_GHG1!C23,Report_Cost!$K$49:$K$55)*VLOOKUP(C23,Report_Cost!$C$14:$G$38,5,FALSE),2))*-1&")",ROUND(SUMIF(Report_Cost!$G$49:$G$55,Report_GHG1!C23,Report_Cost!$F$49:$F$55)*VLOOKUP(C23,Report_Cost!$C$14:$G$38,5,FALSE),2)-ROUND(SUMIF(Report_Cost!$L$49:$L$55,Report_GHG1!C23,Report_Cost!$K$49:$K$55)*VLOOKUP(C23,Report_Cost!$C$14:$G$38,5,FALSE),2))&" "&VLOOKUP(C23,Report_Cost!$C$14:$D$38,2,FALSE)) -> 0 Gal
C25: =Report_Cost!C19 -> BioDiesel B20 | F25: =IF($F$11="Total Field Inputs",ROUND(SUMIF(Report_Cost!$G$66:$G$72,Report_GHG1!C25,Report_Cost!$F$66:$F$72)*VLOOKUP(C25,Report_Cost!$C$14:$G$38,5,FALSE),0)&" "&VLOOKUP(C25,Report_Cost!$C$14:$D$38,2,FALSE),ROUND(SUMIF(Report_Cost!$G$49:$G$55,Report_GHG1!C25,Report_Cost!$F$49:$F$55)*VLOOKUP(C25,Report_Cost!$C$14:$G$38,5,FALSE),2)&" "&VLOOKUP(C25,Report_Cost!$C$14:$D$38,2,FALSE)) -> 0 Gal | I25: =IF($F$11="Total Field Inputs",ROUND(SUMIF(Report_Cost!$L$66:$L$72,Report_GHG1!C25,Report_Cost!$K$66:$K$72)*VLOOKUP(C25,Report_Cost!$C$14:$G$38,5,FALSE),0)&" "&VLOOKUP(C25,Report_Cost!$C$14:$D$38,2,FALSE),ROUND(SUMIF(Report_Cost!$L$49:$L$55,Report_GHG1!C25,Report_Cost!$K$49:$K$55)*VLOOKUP(C25,Report_Cost!$C$14:$G$38,5,FALSE),2)&" "&VLOOKUP(C25,Report_Cost!$C$14:$D$38,2,FALSE)) -> 0 Gal | L25: =IF($F$11="Total Field Inputs",IF(ROUND(SUMIF(Report_Cost!$G$66:$G$72,Report_GHG1!C25,Report_Cost!$F$66:$F$72)*VLOOKUP(C25,Report_Cost!$C$14:$G$38,5,FALSE),0)-ROUND(SUMIF(Report_Cost!$L$66:$L$72,Report_GHG1!C25,Report_Cost!$K$66:$K$72)*VLOOKUP(C25,Report_Cost!$C$14:$G$38,5,FALSE),0)<0,"("&(ROUND(SUMIF(Report_Cost!$G$66:$G$72,Report_GHG1!C25,Report_Cost!$F$66:$F$72)*VLOOKUP(C25,Report_Cost!$C$14:$G$38,5,FALSE),0)-ROUND(SUMIF(Report_Cost!$L$66:$L$72,Report_GHG1!C25,Report_Cost!$K$66:$K$72)*VLOOKUP(C25,Report_Cost!$C$14:$G$38,5,FALSE),0))*-1&")",ROUND(SUMIF(Report_Cost!$G$66:$G$72,Report_GHG1!C25,Report_Cost!$F$66:$F$72)*VLOOKUP(C25,Report_Cost!$C$14:$G$38,5,FALSE),0)-ROUND(SUMIF(Report_Cost!$L$66:$L$72,Report_GHG1!C25,Report_Cost!$K$66:$K$72)*VLOOKUP(C25,Report_Cost!$C$14:$G$38,5,FALSE),0))&" "&VLOOKUP(C25,Report_Cost!$C$14:$D$38,2,FALSE),IF(ROUND(SUMIF(Report_Cost!$G$49:$G$55,Report_GHG1!C25,Report_Cost!$F$49:$F$55)*VLOOKUP(C25,Report_Cost!$C$14:$G$38,5,FALSE),2)-ROUND(SUMIF(Report_Cost!$L$49:$L$55,Report_GHG1!C25,Report_Cost!$K$49:$K$55)*VLOOKUP(C25,Report_Cost!$C$14:$G$38,5,FALSE),2)<0,"("&(ROUND(SUMIF(Report_Cost!$G$49:$G$55,Report_GHG1!C25,Report_Cost!$F$49:$F$55)*VLOOKUP(C25,Report_Cost!$C$14:$G$38,5,FALSE),2)-ROUND(SUMIF(Report_Cost!$L$49:$L$55,Report_GHG1!C25,Report_Cost!$K$49:$K$55)*VLOOKUP(C25,Report_Cost!$C$14:$G$38,5,FALSE),2))*-1&")",ROUND(SUMIF(Report_Cost!$G$49:$G$55,Report_GHG1!C25,Report_Cost!$F$49:$F$55)*VLOOKUP(C25,Report_Cost!$C$14:$G$38,5,FALSE),2)-ROUND(SUMIF(Report_Cost!$L$49:$L$55,Report_GHG1!C25,Report_Cost!$K$49:$K$55)*VLOOKUP(C25,Report_Cost!$C$14:$G$38,5,FALSE),2))&" "&VLOOKUP(C25,Report_Cost!$C$14:$D$38,2,FALSE)) -> 0 Gal
C27: =Report_Cost!C20 -> BioDiesel B100 | F27: =IF($F$11="Total Field Inputs",ROUND(SUMIF(Report_Cost!$G$66:$G$72,Report_GHG1!C27,Report_Cost!$F$66:$F$72)*VLOOKUP(C27,Report_Cost!$C$14:$G$38,5,FALSE),0)&" "&VLOOKUP(C27,Report_Cost!$C$14:$D$38,2,FALSE),ROUND(SUMIF(Report_Cost!$G$49:$G$55,Report_GHG1!C27,Report_Cost!$F$49:$F$55)*VLOOKUP(C27,Report_Cost!$C$14:$G$38,5,FALSE),2)&" "&VLOOKUP(C27,Report_Cost!$C$14:$D$38,2,FALSE)) -> 0 Gal | I27: =IF($F$11="Total Field Inputs",ROUND(SUMIF(Report_Cost!$L$66:$L$72,Report_GHG1!C27,Report_Cost!$K$66:$K$72)*VLOOKUP(C27,Report_Cost!$C$14:$G$38,5,FALSE),0)&" "&VLOOKUP(C27,Report_Cost!$C$14:$D$38,2,FALSE),ROUND(SUMIF(Report_Cost!$L$49:$L$55,Report_GHG1!C27,Report_Cost!$K$49:$K$55)*VLOOKUP(C27,Report_Cost!$C$14:$G$38,5,FALSE),2)&" "&VLOOKUP(C27,Report_Cost!$C$14:$D$38,2,FALSE)) -> 0 Gal | L27: =IF($F$11="Total Field Inputs",IF(ROUND(SUMIF(Report_Cost!$G$66:$G$72,Report_GHG1!C27,Report_Cost!$F$66:$F$72)*VLOOKUP(C27,Report_Cost!$C$14:$G$38,5,FALSE),0)-ROUND(SUMIF(Report_Cost!$L$66:$L$72,Report_GHG1!C27,Report_Cost!$K$66:$K$72)*VLOOKUP(C27,Report_Cost!$C$14:$G$38,5,FALSE),0)<0,"("&(ROUND(SUMIF(Report_Cost!$G$66:$G$72,Report_GHG1!C27,Report_Cost!$F$66:$F$72)*VLOOKUP(C27,Report_Cost!$C$14:$G$38,5,FALSE),0)-ROUND(SUMIF(Report_Cost!$L$66:$L$72,Report_GHG1!C27,Report_Cost!$K$66:$K$72)*VLOOKUP(C27,Report_Cost!$C$14:$G$38,5,FALSE),0))*-1&")",ROUND(SUMIF(Report_Cost!$G$66:$G$72,Report_GHG1!C27,Report_Cost!$F$66:$F$72)*VLOOKUP(C27,Report_Cost!$C$14:$G$38,5,FALSE),0)-ROUND(SUMIF(Report_Cost!$L$66:$L$72,Report_GHG1!C27,Report_Cost!$K$66:$K$72)*VLOOKUP(C27,Report_Cost!$C$14:$G$38,5,FALSE),0))&" "&VLOOKUP(C27,Report_Cost!$C$14:$D$38,2,FALSE),IF(ROUND(SUMIF(Report_Cost!$G$49:$G$55,Report_GHG1!C27,Report_Cost!$F$49:$F$55)*VLOOKUP(C27,Report_Cost!$C$14:$G$38,5,FALSE),2)-ROUND(SUMIF(Report_Cost!$L$49:$L$55,Report_GHG1!C27,Report_Cost!$K$49:$K$55)*VLOOKUP(C27,Report_Cost!$C$14:$G$38,5,FALSE),2)<0,"("&(ROUND(SUMIF(Report_Cost!$G$49:$G$55,Report_GHG1!C27,Report_Cost!$F$49:$F$55)*VLOOKUP(C27,Report_Cost!$C$14:$G$38,5,FALSE),2)-ROUND(SUMIF(Report_Cost!$L$49:$L$55,Report_GHG1!C27,Report_Cost!$K$49:$K$55)*VLOOKUP(C27,Report_Cost!$C$14:$G$38,5,FALSE),2))*-1&")",ROUND(SUMIF(Report_Cost!$G$49:$G$55,Report_GHG1!C27,Report_Cost!$F$49:$F$55)*VLOOKUP(C27,Report_Cost!$C$14:$G$38,5,FALSE),2)-ROUND(SUMIF(Report_Cost!$L$49:$L$55,Report_GHG1!C27,Report_Cost!$K$49:$K$55)*VLOOKUP(C27,Report_Cost!$C$14:$G$38,5,FALSE),2))&" "&VLOOKUP(C27,Report_Cost!$C$14:$D$38,2,FALSE)) -> 0 Gal
C29: =Report_Cost!C21 -> SVO | F29: =IF($F$11="Total Field Inputs",ROUND(SUMIF(Report_Cost!$G$66:$G$72,Report_GHG1!C29,Report_Cost!$F$66:$F$72)*VLOOKUP(C29,Report_Cost!$C$14:$G$38,5,FALSE),0)&" "&VLOOKUP(C29,Report_Cost!$C$14:$D$38,2,FALSE),ROUND(SUMIF(Report_Cost!$G$49:$G$55,Report_GHG1!C29,Report_Cost!$F$49:$F$55)*VLOOKUP(C29,Report_Cost!$C$14:$G$38,5,FALSE),2)&" "&VLOOKUP(C29,Report_Cost!$C$14:$D$38,2,FALSE)) -> 0 Gal | I29: =IF($F$11="Total Field Inputs",ROUND(SUMIF(Report_Cost!$L$66:$L$72,Report_GHG1!C29,Report_Cost!$K$66:$K$72)*VLOOKUP(C29,Report_Cost!$C$14:$G$38,5,FALSE),0)&" "&VLOOKUP(C29,Report_Cost!$C$14:$D$38,2,FALSE),ROUND(SUMIF(Report_Cost!$L$49:$L$55,Report_GHG1!C29,Report_Cost!$K$49:$K$55)*VLOOKUP(C29,Report_Cost!$C$14:$G$38,5,FALSE),2)&" "&VLOOKUP(C29,Report_Cost!$C$14:$D$38,2,FALSE)) -> 0 Gal | L29: =IF($F$11="Total Field Inputs",IF(ROUND(SUMIF(Report_Cost!$G$66:$G$72,Report_GHG1!C29,Report_Cost!$F$66:$F$72)*VLOOKUP(C29,Report_Cost!$C$14:$G$38,5,FALSE),0)-ROUND(SUMIF(Report_Cost!$L$66:$L$72,Report_GHG1!C29,Report_Cost!$K$66:$K$72)*VLOOKUP(C29,Report_Cost!$C$14:$G$38,5,FALSE),0)<0,"("&(ROUND(SUMIF(Report_Cost!$G$66:$G$72,Report_GHG1!C29,Report_Cost!$F$66:$F$72)*VLOOKUP(C29,Report_Cost!$C$14:$G$38,5,FALSE),0)-ROUND(SUMIF(Report_Cost!$L$66:$L$72,Report_GHG1!C29,Report_Cost!$K$66:$K$72)*VLOOKUP(C29,Report_Cost!$C$14:$G$38,5,FALSE),0))*-1&")",ROUND(SUMIF(Report_Cost!$G$66:$G$72,Report_GHG1!C29,Report_Cost!$F$66:$F$72)*VLOOKUP(C29,Report_Cost!$C$14:$G$38,5,FALSE),0)-ROUND(SUMIF(Report_Cost!$L$66:$L$72,Report_GHG1!C29,Report_Cost!$K$66:$K$72)*VLOOKUP(C29,Report_Cost!$C$14:$G$38,5,FALSE),0))&" "&VLOOKUP(C29,Report_Cost!$C$14:$D$38,2,FALSE),IF(ROUND(SUMIF(Report_Cost!$G$49:$G$55,Report_GHG1!C29,Report_Cost!$F$49:$F$55)*VLOOKUP(C29,Report_Cost!$C$14:$G$38,5,FALSE),2)-ROUND(SUMIF(Report_Cost!$L$49:$L$55,Report_GHG1!C29,Report_Cost!$K$49:$K$55)*VLOOKUP(C29,Report_Cost!$C$14:$G$38,5,FALSE),2)<0,"("&(ROUND(SUMIF(Report_Cost!$G$49:$G$55,Report_GHG1!C29,Report_Cost!$F$49:$F$55)*VLOOKUP(C29,Report_Cost!$C$14:$G$38,5,FALSE),2)-ROUND(SUMIF(Report_Cost!$L$49:$L$55,Report_GHG1!C29,Report_Cost!$K$49:$K$55)*VLOOKUP(C29,Report_Cost!$C$14:$G$38,5,FALSE),2))*-1&")",ROUND(SUMIF(Report_Cost!$G$49:$G$55,Report_GHG1!C29,Report_Cost!$F$49:$F$55)*VLOOKUP(C29,Report_Cost!$C$14:$G$38,5,FALSE),2)-ROUND(SUMIF(Report_Cost!$L$49:$L$55,Report_GHG1!C29,Report_Cost!$K$49:$K$55)*VLOOKUP(C29,Report_Cost!$C$14:$G$38,5,FALSE),2))&" "&VLOOKUP(C29,Report_Cost!$C$14:$D$38,2,FALSE)) -> 0 Gal
B31: Gas
C32: =Report_Cost!C23 -> Propane | F32: =IF($F$11="Total Field Inputs",ROUND(SUMIF(Report_Cost!$G$66:$G$72,Report_GHG1!C32,Report_Cost!$F$66:$F$72)*VLOOKUP(C32,Report_Cost!$C$14:$G$38,5,FALSE),0)&" "&VLOOKUP(C32,Report_Cost!$C$14:$D$38,2,FALSE),ROUND(SUMIF(Report_Cost!$G$49:$G$55,Report_GHG1!C32,Report_Cost!$F$49:$F$55)*VLOOKUP(C32,Report_Cost!$C$14:$G$38,5,FALSE),2)&" "&VLOOKUP(C32,Report_Cost!$C$14:$D$38,2,FALSE)) -> 0 Gal | I32: =IF($F$11="Total Field Inputs",ROUND(SUMIF(Report_Cost!$L$66:$L$72,Report_GHG1!C32,Report_Cost!$K$66:$K$72)*VLOOKUP(C32,Report_Cost!$C$14:$G$38,5,FALSE),0)&" "&VLOOKUP(C32,Report_Cost!$C$14:$D$38,2,FALSE),ROUND(SUMIF(Report_Cost!$L$49:$L$55,Report_GHG1!C32,Report_Cost!$K$49:$K$55)*VLOOKUP(C32,Report_Cost!$C$14:$G$38,5,FALSE),2)&" "&VLOOKUP(C32,Report_Cost!$C$14:$D$38,2,FALSE)) -> 0 Gal | L32: =IF($F$11="Total Field Inputs",IF(ROUND(SUMIF(Report_Cost!$G$66:$G$72,Report_GHG1!C32,Report_Cost!$F$66:$F$72)*VLOOKUP(C32,Report_Cost!$C$14:$G$38,5,FALSE),0)-ROUND(SUMIF(Report_Cost!$L$66:$L$72,Report_GHG1!C32,Report_Cost!$K$66:$K$72)*VLOOKUP(C32,Report_Cost!$C$14:$G$38,5,FALSE),0)<0,"("&(ROUND(SUMIF(Report_Cost!$G$66:$G$72,Report_GHG1!C32,Report_Cost!$F$66:$F$72)*VLOOKUP(C32,Report_Cost!$C$14:$G$38,5,FALSE),0)-ROUND(SUMIF(Report_Cost!$L$66:$L$72,Report_GHG1!C32,Report_Cost!$K$66:$K$72)*VLOOKUP(C32,Report_Cost!$C$14:$G$38,5,FALSE),0))*-1&")",ROUND(SUMIF(Report_Cost!$G$66:$G$72,Report_GHG1!C32,Report_Cost!$F$66:$F$72)*VLOOKUP(C32,Report_Cost!$C$14:$G$38,5,FALSE),0)-ROUND(SUMIF(Report_Cost!$L$66:$L$72,Report_GHG1!C32,Report_Cost!$K$66:$K$72)*VLOOKUP(C32,Report_Cost!$C$14:$G$38,5,FALSE),0))&" "&VLOOKUP(C32,Report_Cost!$C$14:$D$38,2,FALSE),IF(ROUND(SUMIF(Report_Cost!$G$49:$G$55,Report_GHG1!C32,Report_Cost!$F$49:$F$55)*VLOOKUP(C32,Report_Cost!$C$14:$G$38,5,FALSE),2)-ROUND(SUMIF(Report_Cost!$L$49:$L$55,Report_GHG1!C32,Report_Cost!$K$49:$K$55)*VLOOKUP(C32,Report_Cost!$C$14:$G$38,5,FALSE),2)<0,"("&(ROUND(SUMIF(Report_Cost!$G$49:$G$55,Report_GHG1!C32,Report_Cost!$F$49:$F$55)*VLOOKUP(C32,Report_Cost!$C$14:$G$38,5,FALSE),2)-ROUND(SUMIF(Report_Cost!$L$49:$L$55,Report_GHG1!C32,Report_Cost!$K$49:$K$55)*VLOOKUP(C32,Report_Cost!$C$14:$G$38,5,FALSE),2))*-1&")",ROUND(SUMIF(Report_Cost!$G$49:$G$55,Report_GHG1!C32,Report_Cost!$F$49:$F$55)*VLOOKUP(C32,Report_Cost!$C$14:$G$38,5,FALSE),2)-ROUND(SUMIF(Report_Cost!$L$49:$L$55,Report_GHG1!C32,Report_Cost!$K$49:$K$55)*VLOOKUP(C32,Report_Cost!$C$14:$G$38,5,FALSE),2))&" "&VLOOKUP(C32,Report_Cost!$C$14:$D$38,2,FALSE)) -> 0 Gal
C34: =Report_Cost!C24 -> Natural Gas | F34: =IF($F$11="Total Field Inputs",ROUND(SUMIF(Report_Cost!$G$66:$G$72,Report_GHG1!C34,Report_Cost!$F$66:$F$72)*VLOOKUP(C34,Report_Cost!$C$14:$G$38,5,FALSE),0)&" "&VLOOKUP(C34,Report_Cost!$C$14:$D$38,2,FALSE),ROUND(SUMIF(Report_Cost!$G$49:$G$55,Report_GHG1!C34,Report_Cost!$F$49:$F$55)*VLOOKUP(C34,Report_Cost!$C$14:$G$38,5,FALSE),2)&" "&VLOOKUP(C34,Report_Cost!$C$14:$D$38,2,FALSE)) -> 0 CCF | I34: =IF($F$11="Total Field Inputs",ROUND(SUMIF(Report_Cost!$L$66:$L$72,Report_GHG1!C34,Report_Cost!$K$66:$K$72)*VLOOKUP(C34,Report_Cost!$C$14:$G$38,5,FALSE),0)&" "&VLOOKUP(C34,Report_Cost!$C$14:$D$38,2,FALSE),ROUND(SUMIF(Report_Cost!$L$49:$L$55,Report_GHG1!C34,Report_Cost!$K$49:$K$55)*VLOOKUP(C34,Report_Cost!$C$14:$G$38,5,FALSE),2)&" "&VLOOKUP(C34,Report_Cost!$C$14:$D$38,2,FALSE)) -> 0 CCF | L34: =IF($F$11="Total Field Inputs",IF(ROUND(SUMIF(Report_Cost!$G$66:$G$72,Report_GHG1!C34,Report_Cost!$F$66:$F$72)*VLOOKUP(C34,Report_Cost!$C$14:$G$38,5,FALSE),0)-ROUND(SUMIF(Report_Cost!$L$66:$L$72,Report_GHG1!C34,Report_Cost!$K$66:$K$72)*VLOOKUP(C34,Report_Cost!$C$14:$G$38,5,FALSE),0)<0,"("&(ROUND(SUMIF(Report_Cost!$G$66:$G$72,Report_GHG1!C34,Report_Cost!$F$66:$F$72)*VLOOKUP(C34,Report_Cost!$C$14:$G$38,5,FALSE),0)-ROUND(SUMIF(Report_Cost!$L$66:$L$72,Report_GHG1!C34,Report_Cost!$K$66:$K$72)*VLOOKUP(C34,Report_Cost!$C$14:$G$38,5,FALSE),0))*-1&")",ROUND(SUMIF(Report_Cost!$G$66:$G$72,Report_GHG1!C34,Report_Cost!$F$66:$F$72)*VLOOKUP(C34,Report_Cost!$C$14:$G$38,5,FALSE),0)-ROUND(SUMIF(Report_Cost!$L$66:$L$72,Report_GHG1!C34,Report_Cost!$K$66:$K$72)*VLOOKUP(C34,Report_Cost!$C$14:$G$38,5,FALSE),0))&" "&VLOOKUP(C34,Report_Cost!$C$14:$D$38,2,FALSE),IF(ROUND(SUMIF(Report_Cost!$G$49:$G$55,Report_GHG1!C34,Report_Cost!$F$49:$F$55)*VLOOKUP(C34,Report_Cost!$C$14:$G$38,5,FALSE),2)-ROUND(SUMIF(Report_Cost!$L$49:$L$55,Report_GHG1!C34,Report_Cost!$K$49:$K$55)*VLOOKUP(C34,Report_Cost!$C$14:$G$38,5,FALSE),2)<0,"("&(ROUND(SUMIF(Report_Cost!$G$49:$G$55,Report_GHG1!C34,Report_Cost!$F$49:$F$55)*VLOOKUP(C34,Report_Cost!$C$14:$G$38,5,FALSE),2)-ROUND(SUMIF(Report_Cost!$L$49:$L$55,Report_GHG1!C34,Report_Cost!$K$49:$K$55)*VLOOKUP(C34,Report_Cost!$C$14:$G$38,5,FALSE),2))*-1&")",ROUND(SUMIF(Report_Cost!$G$49:$G$55,Report_GHG1!C34,Report_Cost!$F$49:$F$55)*VLOOKUP(C34,Report_Cost!$C$14:$G$38,5,FALSE),2)-ROUND(SUMIF(Report_Cost!$L$49:$L$55,Report_GHG1!C34,Report_Cost!$K$49:$K$55)*VLOOKUP(C34,Report_Cost!$C$14:$G$38,5,FALSE),2))&" "&VLOOKUP(C34,Report_Cost!$C$14:$D$38,2,FALSE)) -> 0 CCF
C36: =Report_Cost!C25 -> CNG | F36: =IF($F$11="Total Field Inputs",ROUND(SUMIF(Report_Cost!$G$66:$G$72,Report_GHG1!C36,Report_Cost!$F$66:$F$72)*VLOOKUP(C36,Report_Cost!$C$14:$G$38,5,FALSE),0)&" "&VLOOKUP(C36,Report_Cost!$C$14:$D$38,2,FALSE),ROUND(SUMIF(Report_Cost!$G$49:$G$55,Report_GHG1!C36,Report_Cost!$F$49:$F$55)*VLOOKUP(C36,Report_Cost!$C$14:$G$38,5,FALSE),2)&" "&VLOOKUP(C36,Report_Cost!$C$14:$D$38,2,FALSE)) -> 0 CCF | I36: =IF($F$11="Total Field Inputs",ROUND(SUMIF(Report_Cost!$L$66:$L$72,Report_GHG1!C36,Report_Cost!$K$66:$K$72)*VLOOKUP(C36,Report_Cost!$C$14:$G$38,5,FALSE),0)&" "&VLOOKUP(C36,Report_Cost!$C$14:$D$38,2,FALSE),ROUND(SUMIF(Report_Cost!$L$49:$L$55,Report_GHG1!C36,Report_Cost!$K$49:$K$55)*VLOOKUP(C36,Report_Cost!$C$14:$G$38,5,FALSE),2)&" "&VLOOKUP(C36,Report_Cost!$C$14:$D$38,2,FALSE)) -> 0 CCF | L36: =IF($F$11="Total Field Inputs",IF(ROUND(SUMIF(Report_Cost!$G$66:$G$72,Report_GHG1!C36,Report_Cost!$F$66:$F$72)*VLOOKUP(C36,Report_Cost!$C$14:$G$38,5,FALSE),0)-ROUND(SUMIF(Report_Cost!$L$66:$L$72,Report_GHG1!C36,Report_Cost!$K$66:$K$72)*VLOOKUP(C36,Report_Cost!$C$14:$G$38,5,FALSE),0)<0,"("&(ROUND(SUMIF(Report_Cost!$G$66:$G$72,Report_GHG1!C36,Report_Cost!$F$66:$F$72)*VLOOKUP(C36,Report_Cost!$C$14:$G$38,5,FALSE),0)-ROUND(SUMIF(Report_Cost!$L$66:$L$72,Report_GHG1!C36,Report_Cost!$K$66:$K$72)*VLOOKUP(C36,Report_Cost!$C$14:$G$38,5,FALSE),0))*-1&")",ROUND(SUMIF(Report_Cost!$G$66:$G$72,Report_GHG1!C36,Report_Cost!$F$66:$F$72)*VLOOKUP(C36,Report_Cost!$C$14:$G$38,5,FALSE),0)-ROUND(SUMIF(Report_Cost!$L$66:$L$72,Report_GHG1!C36,Report_Cost!$K$66:$K$72)*VLOOKUP(C36,Report_Cost!$C$14:$G$38,5,FALSE),0))&" "&VLOOKUP(C36,Report_Cost!$C$14:$D$38,2,FALSE),IF(ROUND(SUMIF(Report_Cost!$G$49:$G$55,Report_GHG1!C36,Report_Cost!$F$49:$F$55)*VLOOKUP(C36,Report_Cost!$C$14:$G$38,5,FALSE),2)-ROUND(SUMIF(Report_Cost!$L$49:$L$55,Report_GHG1!C36,Report_Cost!$K$49:$K$55)*VLOOKUP(C36,Report_Cost!$C$14:$G$38,5,FALSE),2)<0,"("&(ROUND(SUMIF(Report_Cost!$G$49:$G$55,Report_GHG1!C36,Report_Cost!$F$49:$F$55)*VLOOKUP(C36,Report_Cost!$C$14:$G$38,5,FALSE),2)-ROUND(SUMIF(Report_Cost!$L$49:$L$55,Report_GHG1!C36,Report_Cost!$K$49:$K$55)*VLOOKUP(C36,Report_Cost!$C$14:$G$38,5,FALSE),2))*-1&")",ROUND(SUMIF(Report_Cost!$G$49:$G$55,Report_GHG1!C36,Report_Cost!$F$49:$F$55)*VLOOKUP(C36,Report_Cost!$C$14:$G$38,5,FALSE),2)-ROUND(SUMIF(Report_Cost!$L$49:$L$55,Report_GHG1!C36,Report_Cost!$K$49:$K$55)*VLOOKUP(C36,Report_Cost!$C$14:$G$38,5,FALSE),2))&" "&VLOOKUP(C36,Report_Cost!$C$14:$D$38,2,FALSE)) -> 0 CCF
B38: Electricity
C39: =Report_Cost!C27 -> Electricity | F39: =IF($F$11="Total Field Inputs",ROUND(SUMIF(Report_Cost!$G$66:$G$72,Report_GHG1!C39,Report_Cost!$F$66:$F$72)*VLOOKUP(C39,Report_Cost!$C$14:$G$38,5,FALSE),0)&" "&VLOOKUP(C39,Report_Cost!$C$14:$D$38,2,FALSE),ROUND(SUMIF(Report_Cost!$G$49:$G$55,Report_GHG1!C39,Report_Cost!$F$49:$F$55)*VLOOKUP(C39,Report_Cost!$C$14:$G$38,5,FALSE),2)&" "&VLOOKUP(C39,Report_Cost!$C$14:$D$38,2,FALSE)) -> 0 KWH | I39: =IF($F$11="Total Field Inputs",ROUND(SUMIF(Report_Cost!$L$66:$L$72,Report_GHG1!C39,Report_Cost!$K$66:$K$72)*VLOOKUP(C39,Report_Cost!$C$14:$G$38,5,FALSE),0)&" "&VLOOKUP(C39,Report_Cost!$C$14:$D$38,2,FALSE),ROUND(SUMIF(Report_Cost!$L$49:$L$55,Report_GHG1!C39,Report_Cost!$K$49:$K$55)*VLOOKUP(C39,Report_Cost!$C$14:$G$38,5,FALSE),2)&" "&VLOOKUP(C39,Report_Cost!$C$14:$D$38,2,FALSE)) -> 0 KWH | L39: =IF($F$11="Total Field Inputs",IF(ROUND(SUMIF(Report_Cost!$G$66:$G$72,Report_GHG1!C39,Report_Cost!$F$66:$F$72)*VLOOKUP(C39,Report_Cost!$C$14:$G$38,5,FALSE),0)-ROUND(SUMIF(Report_Cost!$L$66:$L$72,Report_GHG1!C39,Report_Cost!$K$66:$K$72)*VLOOKUP(C39,Report_Cost!$C$14:$G$38,5,FALSE),0)<0,"("&(ROUND(SUMIF(Report_Cost!$G$66:$G$72,Report_GHG1!C39,Report_Cost!$F$66:$F$72)*VLOOKUP(C39,Report_Cost!$C$14:$G$38,5,FALSE),0)-ROUND(SUMIF(Report_Cost!$L$66:$L$72,Report_GHG1!C39,Report_Cost!$K$66:$K$72)*VLOOKUP(C39,Report_Cost!$C$14:$G$38,5,FALSE),0))*-1&")",ROUND(SUMIF(Report_Cost!$G$66:$G$72,Report_GHG1!C39,Report_Cost!$F$66:$F$72)*VLOOKUP(C39,Report_Cost!$C$14:$G$38,5,FALSE),0)-ROUND(SUMIF(Report_Cost!$L$66:$L$72,Report_GHG1!C39,Report_Cost!$K$66:$K$72)*VLOOKUP(C39,Report_Cost!$C$14:$G$38,5,FALSE),0))&" "&VLOOKUP(C39,Report_Cost!$C$14:$D$38,2,FALSE),IF(ROUND(SUMIF(Report_Cost!$G$49:$G$55,Report_GHG1!C39,Report_Cost!$F$49:$F$55)*VLOOKUP(C39,Report_Cost!$C$14:$G$38,5,FALSE),2)-ROUND(SUMIF(Report_Cost!$L$49:$L$55,Report_GHG1!C39,Report_Cost!$K$49:$K$55)*VLOOKUP(C39,Report_Cost!$C$14:$G$38,5,FALSE),2)<0,"("&(ROUND(SUMIF(Report_Cost!$G$49:$G$55,Report_GHG1!C39,Report_Cost!$F$49:$F$55)*VLOOKUP(C39,Report_Cost!$C$14:$G$38,5,FALSE),2)-ROUND(SUMIF(Report_Cost!$L$49:$L$55,Report_GHG1!C39,Report_Cost!$K$49:$K$55)*VLOOKUP(C39,Report_Cost!$C$14:$G$38,5,FALSE),2))*-1&")",ROUND(SUMIF(Report_Cost!$G$49:$G$55,Report_GHG1!C39,Report_Cost!$F$49:$F$55)*VLOOKUP(C39,Report_Cost!$C$14:$G$38,5,FALSE),2)-ROUND(SUMIF(Report_Cost!$L$49:$L$55,Report_GHG1!C39,Report_Cost!$K$49:$K$55)*VLOOKUP(C39,Report_Cost!$C$14:$G$38,5,FALSE),2))&" "&VLOOKUP(C39,Report_Cost!$C$14:$D$38,2,FALSE)) -> 0 KWH
B41: Other Energy Input
B42: =Report_Cost!G54 -> Soil Amend | C42: Soil Amendments | F42: =IF($F$11="Total Field Inputs",ROUND(SUMIF(Report_Cost!$G$66:$G$72,Report_GHG1!B42,Report_Cost!$F$66:$F$72)*VLOOKUP(B42,Report_Cost!$C$14:$G$38,5,FALSE),0)&" "&VLOOKUP(B42,Report_Cost!$C$14:$D$38,2,FALSE),ROUND(SUMIF(Report_Cost!$G$49:$G$55,Report_GHG1!B42,Report_Cost!$F$49:$F$55)*VLOOKUP(B42,Report_Cost!$C$14:$G$38,5,FALSE),2)&" "&VLOOKUP(B42,Report_Cost!$C$14:$D$38,2,FALSE)) -> 0 ton | I42: =IF($F$11="Total Field Inputs",ROUND(SUMIF(Report_Cost!$L$66:$L$72,Report_GHG1!B42,Report_Cost!$K$66:$K$72)*VLOOKUP(B42,Report_Cost!$C$14:$G$38,5,FALSE),0)&" "&VLOOKUP(B42,Report_Cost!$C$14:$D$38,2,FALSE),ROUND(SUMIF(Report_Cost!$L$49:$L$55,Report_GHG1!B42,Report_Cost!$K$49:$K$55)*VLOOKUP(B42,Report_Cost!$C$14:$G$38,5,FALSE),2)&" "&VLOOKUP(B42,Report_Cost!$C$14:$D$38,2,FALSE)) -> 0 ton | L42: =IF($F$11="Total Field Inputs",IF(ROUND(SUMIF(Report_Cost!$G$66:$G$72,Report_GHG1!B42,Report_Cost!$F$66:$F$72)*VLOOKUP(B42,Report_Cost!$C$14:$G$38,5,FALSE),0)-ROUND(SUMIF(Report_Cost!$L$66:$L$72,Report_GHG1!B42,Report_Cost!$K$66:$K$72)*VLOOKUP(B42,Report_Cost!$C$14:$G$38,5,FALSE),0)<0,"("&(ROUND(SUMIF(Report_Cost!$G$66:$G$72,Report_GHG1!B42,Report_Cost!$F$66:$F$72)*VLOOKUP(B42,Report_Cost!$C$14:$G$38,5,FALSE),0)-ROUND(SUMIF(Report_Cost!$L$66:$L$72,Report_GHG1!B42,Report_Cost!$K$66:$K$72)*VLOOKUP(B42,Report_Cost!$C$14:$G$38,5,FALSE),0))*-1&")",ROUND(SUMIF(Report_Cost!$G$66:$G$72,Report_GHG1!B42,Report_Cost!$F$66:$F$72)*VLOOKUP(B42,Report_Cost!$C$14:$G$38,5,FALSE),0)-ROUND(SUMIF(Report_Cost!$L$66:$L$72,Report_GHG1!B42,Report_Cost!$K$66:$K$72)*VLOOKUP(B42,Report_Cost!$C$14:$G$38,5,FALSE),0))&" "&VLOOKUP(B42,Report_Cost!$C$14:$D$38,2,FALSE),IF(ROUND(SUMIF(Report_Cost!$G$49:$G$55,Report_GHG1!B42,Report_Cost!$F$49:$F$55)*VLOOKUP(B42,Report_Cost!$C$14:$G$38,5,FALSE),2)-ROUND(SUMIF(Report_Cost!$L$49:$L$55,Report_GHG1!B42,Report_Cost!$K$49:$K$55)*VLOOKUP(B42,Report_Cost!$C$14:$G$38,5,FALSE),2)<0,"("&(ROUND(SUMIF(Report_Cost!$G$49:$G$55,Report_GHG1!B42,Report_Cost!$F$49:$F$55)*VLOOKUP(B42,Report_Cost!$C$14:$G$38,5,FALSE),2)-ROUND(SUMIF(Report_Cost!$L$49:$L$55,Report_GHG1!B42,Report_Cost!$K$49:$K$55)*VLOOKUP(B42,Report_Cost!$C$14:$G$38,5,FALSE),2))*-1&")",ROUND(SUMIF(Report_Cost!$G$49:$G$55,Report_GHG1!B42,Report_Cost!$F$49:$F$55)*VLOOKUP(B42,Report_Cost!$C$14:$G$38,5,FALSE),2)-ROUND(SUMIF(Report_Cost!$L$49:$L$55,Report_GHG1!B42,Report_Cost!$K$49:$K$55)*VLOOKUP(B42,Report_Cost!$C$14:$G$38,5,FALSE),2))&" "&VLOOKUP(B42,Report_Cost!$C$14:$D$38,2,FALSE)) -> 0 ton
B44: Agrichemicals | C44: Agrichemicals & Fertilizers | F44: =IF($F$11="Total Field Inputs",ROUND(SUMIF(Report_Cost!$G$66:$G$72,Report_GHG1!B44,Report_Cost!$F$66:$F$72)/IF(Database_Tables!D1766=0,0.02,Database_Tables!D1766),0)&" "&VLOOKUP(B44,Report_Cost!$C$14:$D$39,2,FALSE),ROUND(SUMIF(Report_Cost!$G$49:$G$55,Report_GHG1!B44,Report_Cost!$F$49:$F$55)/IF(Database_Tables!D1766=0,0.02,Database_Tables!D1766),2)&" "&VLOOKUP(B44,Report_Cost!$C$14:$D$39,2,FALSE)) -> 0 lb | I44: =IF($F$11="Total Field Inputs",ROUND(SUMIF(Report_Cost!$L$66:$L$72,Report_GHG1!B44,Report_Cost!$K$66:$K$72)/IF(Database_Tables!D1767=0,0.02,Database_Tables!D1767),0)&" "&VLOOKUP(B44,Report_Cost!$C$14:$D$39,2,FALSE),ROUND(SUMIF(Report_Cost!$L$49:$L$55,Report_GHG1!B44,Report_Cost!$K$49:$K$55)/IF(Database_Tables!D1767=0,0.02,Database_Tables!D1767),2)&" "&VLOOKUP(B44,Report_Cost!$C$14:$D$39,2,FALSE)) -> 0 lb | L44: =IF($F$11="Total Field Inputs",IF(ROUND(SUMIF(Report_Cost!$G$66:$G$72,Report_GHG1!B44,Report_Cost!$F$66:$F$72)/IF(Database_Tables!D1766=0,0.02,Database_Tables!D1766),0)-ROUND(SUMIF(Report_Cost!$L$66:$L$72,Report_GHG1!B44,Report_Cost!$K$66:$K$72)/IF(Database_Tables!D1767=0,0.02,Database_Tables!D1767),0)<0,"("&(ROUND(SUMIF(Report_Cost!$G$66:$G$72,Report_GHG1!B44,Report_Cost!$F$66:$F$72)/IF(Database_Tables!D1766=0,0.02,Database_Tables!D1766),0)-ROUND(SUMIF(Report_Cost!$L$66:$L$72,Report_GHG1!B44,Report_Cost!$K$66:$K$72)/IF(Database_Tables!D1767=0,0.02,Database_Tables!D1767),0))*-1&")",ROUND(SUMIF(Report_Cost!$G$66:$G$72,Report_GHG1!B44,Report_Cost!$F$66:$F$72)/IF(Database_Tables!D1766=0,0.02,Database_Tables!D1766),0)-ROUND(SUMIF(Report_Cost!$L$66:$L$72,Report_GHG1!B44,Report_Cost!$K$66:$K$72)/IF(Database_Tables!D1767=0,0.02,Database_Tables!D1767),0))&" "&VLOOKUP(B44,Report_Cost!$C$14:$D$39,2,FALSE),IF(ROUND(SUMIF(Report_Cost!$G$49:$G$55,Report_GHG1!B44,Report_Cost!$F$49:$F$55)/IF(Database_Tables!D1766=0,0.02,Database_Tables!D1766),2)-ROUND(SUMIF(Report_Cost!$L$49:$L$55,Report_GHG1!B44,Report_Cost!$K$49:$K$55)/IF(Database_Tables!D1767=0,0.02,Database_Tables!D1767),2)<0,"("&(ROUND(SUMIF(Report_Cost!$G$49:$G$55,Report_GHG1!B44,Report_Cost!$F$49:$F$55)/IF(Database_Tables!D1766=0,0.02,Database_Tables!D1766),2)-ROUND(SUMIF(Report_Cost!$L$49:$L$55,Report_GHG1!B44,Report_Cost!$K$49:$K$55)/IF(Database_Tables!D1767=0,0.02,Database_Tables!D1767),2))*-1&")",ROUND(SUMIF(Report_Cost!$G$49:$G$55,Report_GHG1!B44,Report_Cost!$F$49:$F$55)/IF(Database_Tables!D1766=0,0.02,Database_Tables!D1766),2)-ROUND(SUMIF(Report_Cost!$L$49:$L$55,Report_GHG1!B44,Report_Cost!$K$49:$K$55)/IF(Database_Tables!D1767=0,0.02,Database_Tables!D1767),2))&" "&VLOOKUP(B44,Report_Cost!$C$14:$D$39,2,FALSE)) -> 0 lb
C46: Labor | F46: =IF($F$11="Total Field Inputs",ROUND(SUMIF(Report_Cost!$G$66:$G$72,Report_GHG1!C46,Report_Cost!$F$66:$F$72)*VLOOKUP(C46,Report_Cost!$C$14:$G$38,5,FALSE),0)&" "&VLOOKUP(C46,Report_Cost!$C$14:$D$38,2,FALSE),ROUND(SUMIF(Report_Cost!$G$49:$G$55,Report_GHG1!C46,Report_Cost!$F$49:$F$55)*VLOOKUP(C46,Report_Cost!$C$14:$G$38,5,FALSE),2)&" "&VLOOKUP(C46,Report_Cost!$C$14:$D$38,2,FALSE)) -> 0 day | I46: =IF($F$11="Total Field Inputs",ROUND(SUMIF(Report_Cost!$L$66:$L$72,Report_GHG1!C46,Report_Cost!$K$66:$K$72)*VLOOKUP(C46,Report_Cost!$C$14:$G$38,5,FALSE),0)&" "&VLOOKUP(C46,Report_Cost!$C$14:$D$38,2,FALSE),ROUND(SUMIF(Report_Cost!$L$49:$L$55,Report_GHG1!C46,Report_Cost!$K$49:$K$55)*VLOOKUP(C46,Report_Cost!$C$14:$G$38,5,FALSE),2)&" "&VLOOKUP(C46,Report_Cost!$C$14:$D$38,2,FALSE)) -> 0 day | L46: =IF($F$11="Total Field Inputs",IF(ROUND(SUMIF(Report_Cost!$G$66:$G$72,Report_GHG1!C46,Report_Cost!$F$66:$F$72)*VLOOKUP(C46,Report_Cost!$C$14:$G$38,5,FALSE),0)-ROUND(SUMIF(Report_Cost!$L$66:$L$72,Report_GHG1!C46,Report_Cost!$K$66:$K$72)*VLOOKUP(C46,Report_Cost!$C$14:$G$38,5,FALSE),0)<0,"("&(ROUND(SUMIF(Report_Cost!$G$66:$G$72,Report_GHG1!C46,Report_Cost!$F$66:$F$72)*VLOOKUP(C46,Report_Cost!$C$14:$G$38,5,FALSE),0)-ROUND(SUMIF(Report_Cost!$L$66:$L$72,Report_GHG1!C46,Report_Cost!$K$66:$K$72)*VLOOKUP(C46,Report_Cost!$C$14:$G$38,5,FALSE),0))*-1&")",ROUND(SUMIF(Report_Cost!$G$66:$G$72,Report_GHG1!C46,Report_Cost!$F$66:$F$72)*VLOOKUP(C46,Report_Cost!$C$14:$G$38,5,FALSE),0)-ROUND(SUMIF(Report_Cost!$L$66:$L$72,Report_GHG1!C46,Report_Cost!$K$66:$K$72)*VLOOKUP(C46,Report_Cost!$C$14:$G$38,5,FALSE),0))&" "&VLOOKUP(C46,Report_Cost!$C$14:$D$38,2,FALSE),IF(ROUND(SUMIF(Report_Cost!$G$49:$G$55,Report_GHG1!C46,Report_Cost!$F$49:$F$55)*VLOOKUP(C46,Report_Cost!$C$14:$G$38,5,FALSE),2)-ROUND(SUMIF(Report_Cost!$L$49:$L$55,Report_GHG1!C46,Report_Cost!$K$49:$K$55)*VLOOKUP(C46,Report_Cost!$C$14:$G$38,5,FALSE),2)<0,"("&(ROUND(SUMIF(Report_Cost!$G$49:$G$55,Report_GHG1!C46,Report_Cost!$F$49:$F$55)*VLOOKUP(C46,Report_Cost!$C$14:$G$38,5,FALSE),2)-ROUND(SUMIF(Report_Cost!$L$49:$L$55,Report_GHG1!C46,Report_Cost!$K$49:$K$55)*VLOOKUP(C46,Report_Cost!$C$14:$G$38,5,FALSE),2))*-1&")",ROUND(SUMIF(Report_Cost!$G$49:$G$55,Report_GHG1!C46,Report_Cost!$F$49:$F$55)*VLOOKUP(C46,Report_Cost!$C$14:$G$38,5,FALSE),2)-ROUND(SUMIF(Report_Cost!$L$49:$L$55,Report_GHG1!C46,Report_Cost!$K$49:$K$55)*VLOOKUP(C46,Report_Cost!$C$14:$G$38,5,FALSE),2))&" "&VLOOKUP(C46,Report_Cost!$C$14:$D$38,2,FALSE)) -> 0 day

Sheet Report_GHG2 (hidden)
B2: NRCS - CROPLAND ENERGY TOOL
B4: BENCHMARK GREENHOUSE GAS EMISSIONS FROM FIELD INPUTS
E6: ="Landowner: "&Input!E14 -> Landowner: | G6: Field Area: | H6: =IF(Input!J14="","",Input!J14) ->  | K6: Date: | L6: =IF(Input!E17="","",Input!E17) -> 
E7: =IF(Input!E15="","Field Location: ",IF(OR(Input!E15="American Samoa",Input!E15="District of Columbia",Input!E15="Puerto Rico",Input!E15="Virgin Islands",Input!E15="Guam"),"Field Location: "&Input!E15,"Field Location: "&Input!E16&IF(Input!E15="Alaska"," Boro., "," Co., ")&VLOOKUP(Input!E15,Input!C208:D262,2,FALSE))) -> Field Location: | G7: Field ID: | H7: =IF(Input!J15="","",Input!J15) ->  | K7: Latitude: | L7: =IF(Input!E18="","",Input!E18) -> 
K8: Longitude: | L8: =IF(Input!E19="","",Input!E19) -> 
C11: Total Field Inputs | G11: BENCHMARK
B13: Energy Input | D13: Units | E13: Value | F13: CO2 | G13: N2O | H13: CH4 | I13: Total CO2 | K13: SO2 | L13: NOx
F14: [lb] | G14: [lb] | H14: [lb] | I14: [lb] | K14: [lb] | L14: [lb]
B15: Liquid
C16: =Report_Cost!$C$14 -> Diesel | D16: Gal | E16: =IF($C$11="Total Field Inputs",ROUND(SUMIF(Report_Cost!$G$66:$G$72,Report_GHG2!C16,Report_Cost!$F$66:$F$72)*VLOOKUP(C16,Report_Cost!$C$14:$G$38,5,FALSE),0),ROUND(SUMIF(Report_Cost!$G$49:$G$55,Report_GHG2!C16,Report_Cost!$F$49:$F$55)*VLOOKUP(C16,Report_Cost!$C$14:$G$38,5,FALSE),2)) -> 0 | F16: =VLOOKUP($C16,Database_Tables!$C$1749:$J$1763,3,FALSE)*$E16 -> 0 | G16: =VLOOKUP($C16,Database_Tables!$C$1749:$J$1763,4,FALSE)*$E16 -> 0 | H16: =VLOOKUP($C16,Database_Tables!$C$1749:$J$1763,5,FALSE)*$E16 -> 0 | I16: =VLOOKUP($C16,Database_Tables!$C$1749:$J$1763,8,FALSE)*$E16 -> 0 | K16: =VLOOKUP($C16,Database_Tables!$C$1749:$J$1763,6,FALSE)*$E16 -> 0 | L16: =VLOOKUP($C16,Database_Tables!$C$1749:$J$1763,7,FALSE)*$E16 -> 0
C18: =Report_Cost!$C$15 -> Gasoline (E10) | D18: Gal | E18: =IF($C$11="Total Field Inputs",ROUND(SUMIF(Report_Cost!$G$66:$G$72,Report_GHG2!C18,Report_Cost!$F$66:$F$72)*VLOOKUP(C18,Report_Cost!$C$14:$G$38,5,FALSE),0),ROUND(SUMIF(Report_Cost!$G$49:$G$55,Report_GHG2!C18,Report_Cost!$F$49:$F$55)*VLOOKUP(C18,Report_Cost!$C$14:$G$38,5,FALSE),2)) -> 0 | F18: =VLOOKUP($C18,Database_Tables!$C$1749:$J$1763,3,FALSE)*$E18 -> 0 | G18: =VLOOKUP($C18,Database_Tables!$C$1749:$J$1763,4,FALSE)*$E18 -> 0 | H18: =VLOOKUP($C18,Database_Tables!$C$1749:$J$1763,5,FALSE)*$E18 -> 0 | I18: =VLOOKUP($C18,Database_Tables!$C$1749:$J$1763,8,FALSE)*$E18 -> 0 | K18: =VLOOKUP($C18,Database_Tables!$C$1749:$J$1763,6,FALSE)*$E18 -> 0 | L18: =VLOOKUP($C18,Database_Tables!$C$1749:$J$1763,7,FALSE)*$E18 -> 0
C20: =Report_Cost!$C$16 -> BioDiesel B2 | D20: Gal | E20: =IF($C$11="Total Field Inputs",ROUND(SUMIF(Report_Cost!$G$66:$G$72,Report_GHG2!C20,Report_Cost!$F$66:$F$72)*VLOOKUP(C20,Report_Cost!$C$14:$G$38,5,FALSE),0),ROUND(SUMIF(Report_Cost!$G$49:$G$55,Report_GHG2!C20,Report_Cost!$F$49:$F$55)*VLOOKUP(C20,Report_Cost!$C$14:$G$38,5,FALSE),2)) -> 0 | F20: =VLOOKUP($C20,Database_Tables!$C$1749:$J$1763,3,FALSE)*$E20 -> 0 | G20: =VLOOKUP($C20,Database_Tables!$C$1749:$J$1763,4,FALSE)*$E20 -> 0 | H20: =VLOOKUP($C20,Database_Tables!$C$1749:$J$1763,5,FALSE)*$E20 -> 0 | I20: =VLOOKUP($C20,Database_Tables!$C$1749:$J$1763,8,FALSE)*$E20 -> 0 | K20: =VLOOKUP($C20,Database_Tables!$C$1749:$J$1763,6,FALSE)*$E20 -> 0 | L20: =VLOOKUP($C20,Database_Tables!$C$1749:$J$1763,7,FALSE)*$E20 -> 0
C22: =Report_Cost!$C$17 -> BioDiesel B5 | D22: Gal | E22: =IF($C$11="Total Field Inputs",ROUND(SUMIF(Report_Cost!$G$66:$G$72,Report_GHG2!C22,Report_Cost!$F$66:$F$72)*VLOOKUP(C22,Report_Cost!$C$14:$G$38,5,FALSE),0),ROUND(SUMIF(Report_Cost!$G$49:$G$55,Report_GHG2!C22,Report_Cost!$F$49:$F$55)*VLOOKUP(C22,Report_Cost!$C$14:$G$38,5,FALSE),2)) -> 0 | F22: =VLOOKUP($C22,Database_Tables!$C$1749:$J$1763,3,FALSE)*$E22 -> 0 | G22: =VLOOKUP($C22,Database_Tables!$C$1749:$J$1763,4,FALSE)*$E22 -> 0 | H22: =VLOOKUP($C22,Database_Tables!$C$1749:$J$1763,5,FALSE)*$E22 -> 0 | I22: =VLOOKUP($C22,Database_Tables!$C$1749:$J$1763,8,FALSE)*$E22 -> 0 | K22: =VLOOKUP($C22,Database_Tables!$C$1749:$J$1763,6,FALSE)*$E22 -> 0 | L22: =VLOOKUP($C22,Database_Tables!$C$1749:$J$1763,7,FALSE)*$E22 -> 0
C24: =Report_Cost!$C$18 -> BioDiesel B10 | D24: Gal | E24: =IF($C$11="Total Field Inputs",ROUND(SUMIF(Report_Cost!$G$66:$G$72,Report_GHG2!C24,Report_Cost!$F$66:$F$72)*VLOOKUP(C24,Report_Cost!$C$14:$G$38,5,FALSE),0),ROUND(SUMIF(Report_Cost!$G$49:$G$55,Report_GHG2!C24,Report_Cost!$F$49:$F$55)*VLOOKUP(C24,Report_Cost!$C$14:$G$38,5,FALSE),2)) -> 0 | F24: =VLOOKUP($C24,Database_Tables!$C$1749:$J$1763,3,FALSE)*$E24 -> 0 | G24: =VLOOKUP($C24,Database_Tables!$C$1749:$J$1763,4,FALSE)*$E24 -> 0 | H24: =VLOOKUP($C24,Database_Tables!$C$1749:$J$1763,5,FALSE)*$E24 -> 0 | I24: =VLOOKUP($C24,Database_Tables!$C$1749:$J$1763,8,FALSE)*$E24 -> 0 | K24: =VLOOKUP($C24,Database_Tables!$C$1749:$J$1763,6,FALSE)*$E24 -> 0 | L24: =VLOOKUP($C24,Database_Tables!$C$1749:$J$1763,7,FALSE)*$E24 -> 0
C26: =Report_Cost!$C$19 -> BioDiesel B20 | D26: Gal | E26: =IF($C$11="Total Field Inputs",ROUND(SUMIF(Report_Cost!$G$66:$G$72,Report_GHG2!C26,Report_Cost!$F$66:$F$72)*VLOOKUP(C26,Report_Cost!$C$14:$G$38,5,FALSE),0),ROUND(SUMIF(Report_Cost!$G$49:$G$55,Report_GHG2!C26,Report_Cost!$F$49:$F$55)*VLOOKUP(C26,Report_Cost!$C$14:$G$38,5,FALSE),2)) -> 0 | F26: =VLOOKUP($C26,Database_Tables!$C$1749:$J$1763,3,FALSE)*$E26 -> 0 | G26: =VLOOKUP($C26,Database_Tables!$C$1749:$J$1763,4,FALSE)*$E26 -> 0 | H26: =VLOOKUP($C26,Database_Tables!$C$1749:$J$1763,5,FALSE)*$E26 -> 0 | I26: =VLOOKUP($C26,Database_Tables!$C$1749:$J$1763,8,FALSE)*$E26 -> 0 | K26: =VLOOKUP($C26,Database_Tables!$C$1749:$J$1763,6,FALSE)*$E26 -> 0 | L26: =VLOOKUP($C26,Database_Tables!$C$1749:$J$1763,7,FALSE)*$E26 -> 0
C28: =Report_Cost!$C$20 -> BioDiesel B100 | D28: Gal | E28: =IF($C$11="Total Field Inputs",ROUND(SUMIF(Report_Cost!$G$66:$G$72,Report_GHG2!C28,Report_Cost!$F$66:$F$72)*VLOOKUP(C28,Report_Cost!$C$14:$G$38,5,FALSE),0),ROUND(SUMIF(Report_Cost!$G$49:$G$55,Report_GHG2!C28,Report_Cost!$F$49:$F$55)*VLOOKUP(C28,Report_Cost!$C$14:$G$38,5,FALSE),2)) -> 0 | F28: =VLOOKUP($C28,Database_Tables!$C$1749:$J$1763,3,FALSE)*$E28 -> 0 | G28: =VLOOKUP($C28,Database_Tables!$C$1749:$J$1763,4,FALSE)*$E28 -> 0 | H28: =VLOOKUP($C28,Database_Tables!$C$1749:$J$1763,5,FALSE)*$E28 -> 0 | I28: =VLOOKUP($C28,Database_Tables!$C$1749:$J$1763,8,FALSE)*$E28 -> 0 | K28: =VLOOKUP($C28,Database_Tables!$C$1749:$J$1763,6,FALSE)*$E28 -> 0 | L28: =VLOOKUP($C28,Database_Tables!$C$1749:$J$1763,7,FALSE)*$E28 -> 0
C30: =Report_Cost!$C$21 -> SVO | D30: Gal | E30: =IF($C$11="Total Field Inputs",ROUND(SUMIF(Report_Cost!$G$66:$G$72,Report_GHG2!C30,Report_Cost!$F$66:$F$72)*VLOOKUP(C30,Report_Cost!$C$14:$G$38,5,FALSE),0),ROUND(SUMIF(Report_Cost!$G$49:$G$55,Report_GHG2!C30,Report_Cost!$F$49:$F$55)*VLOOKUP(C30,Report_Cost!$C$14:$G$38,5,FALSE),2)) -> 0 | F30: =VLOOKUP($C30,Database_Tables!$C$1749:$J$1763,3,FALSE)*$E30 -> 0 | G30: =VLOOKUP($C30,Database_Tables!$C$1749:$J$1763,4,FALSE)*$E30 -> 0 | H30: =VLOOKUP($C30,Database_Tables!$C$1749:$J$1763,5,FALSE)*$E30 -> 0 | I30: =VLOOKUP($C30,Database_Tables!$C$1749:$J$1763,8,FALSE)*$E30 -> 0 | K30: =VLOOKUP($C30,Database_Tables!$C$1749:$J$1763,6,FALSE)*$E30 -> 0 | L30: =VLOOKUP($C30,Database_Tables!$C$1749:$J$1763,7,FALSE)*$E30 -> 0
B32: Gas
C33: =Report_Cost!$C$23 -> Propane | D33: Gal | E33: =IF($C$11="Total Field Inputs",ROUND(SUMIF(Report_Cost!$G$66:$G$72,Report_GHG2!C33,Report_Cost!$F$66:$F$72)*VLOOKUP(C33,Report_Cost!$C$14:$G$38,5,FALSE),0),ROUND(SUMIF(Report_Cost!$G$49:$G$55,Report_GHG2!C33,Report_Cost!$F$49:$F$55)*VLOOKUP(C33,Report_Cost!$C$14:$G$38,5,FALSE),2)) -> 0 | F33: =VLOOKUP($C33,Database_Tables!$C$1749:$J$1763,3,FALSE)*$E33 -> 0 | G33: =VLOOKUP($C33,Database_Tables!$C$1749:$J$1763,4,FALSE)*$E33 -> 0 | H33: =VLOOKUP($C33,Database_Tables!$C$1749:$J$1763,5,FALSE)*$E33 -> 0 | I33: =VLOOKUP($C33,Database_Tables!$C$1749:$J$1763,8,FALSE)*$E33 -> 0 | K33: =VLOOKUP($C33,Database_Tables!$C$1749:$J$1763,6,FALSE)*$E33 -> 0 | L33: =VLOOKUP($C33,Database_Tables!$C$1749:$J$1763,7,FALSE)*$E33 -> 0
C35: =Report_Cost!$C$24 -> Natural Gas | D35: CCF | E35: =IF($C$11="Total Field Inputs",ROUND(SUMIF(Report_Cost!$G$66:$G$72,Report_GHG2!C35,Report_Cost!$F$66:$F$72)*VLOOKUP(C35,Report_Cost!$C$14:$G$38,5,FALSE),0),ROUND(SUMIF(Report_Cost!$G$49:$G$55,Report_GHG2!C35,Report_Cost!$F$49:$F$55)*VLOOKUP(C35,Report_Cost!$C$14:$G$38,5,FALSE),2)) -> 0 | F35: =VLOOKUP($C35,Database_Tables!$C$1749:$J$1763,3,FALSE)*$E35 -> 0 | G35: =VLOOKUP($C35,Database_Tables!$C$1749:$J$1763,4,FALSE)*$E35 -> 0 | H35: =VLOOKUP($C35,Database_Tables!$C$1749:$J$1763,5,FALSE)*$E35 -> 0 | I35: =VLOOKUP($C35,Database_Tables!$C$1749:$J$1763,8,FALSE)*$E35 -> 0 | K35: =VLOOKUP($C35,Database_Tables!$C$1749:$J$1763,6,FALSE)*$E35 -> 0 | L35: =VLOOKUP($C35,Database_Tables!$C$1749:$J$1763,7,FALSE)*$E35 -> 0
C37: =Report_Cost!$C$25 -> CNG | D37: CCF | E37: =IF($C$11="Total Field Inputs",ROUND(SUMIF(Report_Cost!$G$66:$G$72,Report_GHG2!C37,Report_Cost!$F$66:$F$72)*VLOOKUP(C37,Report_Cost!$C$14:$G$38,5,FALSE),0),ROUND(SUMIF(Report_Cost!$G$49:$G$55,Report_GHG2!C37,Report_Cost!$F$49:$F$55)*VLOOKUP(C37,Report_Cost!$C$14:$G$38,5,FALSE),2)) -> 0 | F37: =VLOOKUP($C37,Database_Tables!$C$1749:$J$1763,3,FALSE)*$E37 -> 0 | G37: =VLOOKUP($C37,Database_Tables!$C$1749:$J$1763,4,FALSE)*$E37 -> 0 | H37: =VLOOKUP($C37,Database_Tables!$C$1749:$J$1763,5,FALSE)*$E37 -> 0 | I37: =VLOOKUP($C37,Database_Tables!$C$1749:$J$1763,8,FALSE)*$E37 -> 0 | K37: =VLOOKUP($C37,Database_Tables!$C$1749:$J$1763,6,FALSE)*$E37 -> 0 | L37: =VLOOKUP($C37,Database_Tables!$C$1749:$J$1763,7,FALSE)*$E37 -> 0
B39: Electricity
C40: =Report_Cost!$C$27 -> Electricity | D40: KWH | E40: =IF($C$11="Total Field Inputs",ROUND(SUMIF(Report_Cost!$G$66:$G$72,Report_GHG2!C40,Report_Cost!$F$66:$F$72)*VLOOKUP(C40,Report_Cost!$C$14:$G$38,5,FALSE),0),ROUND(SUMIF(Report_Cost!$G$49:$G$55,Report_GHG2!C40,Report_Cost!$F$49:$F$55)*VLOOKUP(C40,Report_Cost!$C$14:$G$38,5,FALSE),2)) -> 0 | F40: =VLOOKUP($C40,Database_Tables!$C$1749:$J$1763,3,FALSE)*$E40 -> 0 | G40: =VLOOKUP($C40,Database_Tables!$C$1749:$J$1763,4,FALSE)*$E40 -> 0 | H40: =VLOOKUP($C40,Database_Tables!$C$1749:$J$1763,5,FALSE)*$E40 -> 0 | I40: =SUM(F40:H40) -> 0 | K40: =VLOOKUP($C40,Database_Tables!$C$1749:$J$1763,6,FALSE)*$E40 -> 0 | L40: =VLOOKUP($C40,Database_Tables!$C$1749:$J$1763,7,FALSE)*$E40 -> 0
B42: Other Energy Input
B43: =Report_Cost!G71 -> Soil Amend | C43: Soil Amendments | D43: Ton | E43: =IF($C$11="Total Field Inputs",ROUND(SUMIF(Report_Cost!$G$66:$G$72,Report_GHG2!B43,Report_Cost!$F$66:$F$72)*VLOOKUP(B43,Report_Cost!$C$14:$G$38,5,FALSE),0),ROUND(SUMIF(Report_Cost!$G$49:$G$55,Report_GHG2!B43,Report_Cost!$F$49:$F$55)*VLOOKUP(B43,Report_Cost!$C$14:$G$38,5,FALSE),2)) -> 0 | F43: =VLOOKUP($C43,Database_Tables!$C$1749:$J$1763,3,FALSE)*$E43 -> 0 | G43: =VLOOKUP($C43,Database_Tables!$C$1749:$J$1763,4,FALSE)*$E43 -> 0 | H43: =VLOOKUP($C43,Database_Tables!$C$1749:$J$1763,5,FALSE)*$E43 -> 0 | I43: =VLOOKUP($C43,Database_Tables!$C$1749:$J$1763,8,FALSE)*$E43 -> 0 | K43: =VLOOKUP($C43,Database_Tables!$C$1749:$J$1763,6,FALSE)*$E43 -> 0 | L43: =VLOOKUP($C43,Database_Tables!$C$1749:$J$1763,7,FALSE)*$E43 -> 0
B45: =Database_Tables!C1761 -> Agrichem | C45: Agrichemicals/Fert. | D45: lb | E45: =IF(Database_Tables!D1766=0,0,IF($C$11="Total Field Inputs",ROUND(SUMIF(Report_Cost!$G$66:$G$72,Report_GHG1!C44,Report_Cost!$F$66:$F$72)/Database_Tables!D1766,0),ROUND(SUMIF(Report_Cost!$G$49:$G$55,Report_GHG1!C44,Report_Cost!$F$49:$F$55)/Database_Tables!D1766,2))) -> 0 | F45: =VLOOKUP($B45,Database_Tables!$C$1749:$J$1763,3,FALSE)*$E45 -> 0 | G45: =VLOOKUP($B45,Database_Tables!$C$1749:$J$1763,4,FALSE)*$E45 -> 0 | H45: =VLOOKUP($B45,Database_Tables!$C$1749:$J$1763,5,FALSE)*$E45 -> 0 | I45: =VLOOKUP($B45,Database_Tables!$C$1749:$J$1763,8,FALSE)*$E45 -> 0 | K45: =VLOOKUP($B45,Database_Tables!$C$1749:$J$1763,6,FALSE)*$E45 -> 0 | L45: =VLOOKUP($B45,Database_Tables!$C$1749:$J$1763,7,FALSE)*$E45 -> 0
C47: Labor | D47: Day | E47: =IF($C$11="Total Field Inputs",ROUND(SUMIF(Report_Cost!$G$66:$G$72,Report_GHG2!C47,Report_Cost!$F$66:$F$72)*VLOOKUP(C47,Report_Cost!$C$14:$G$38,5,FALSE),0),ROUND(SUMIF(Report_Cost!$G$49:$G$55,Report_GHG2!C47,Report_Cost!$F$49:$F$55)*VLOOKUP(C47,Report_Cost!$C$14:$G$38,5,FALSE),2)) -> 0 | F47: =VLOOKUP($C47,Database_Tables!$C$1749:$J$1763,3,FALSE)*$E47 -> 0 | G47: =VLOOKUP($C47,Database_Tables!$C$1749:$J$1763,4,FALSE)*$E47 -> 0 | H47: =VLOOKUP($C47,Database_Tables!$C$1749:$J$1763,5,FALSE)*$E47 -> 0 | I47: =VLOOKUP($C47,Database_Tables!$C$1749:$J$1763,8,FALSE)*$E47 -> 0 | K47: =VLOOKUP($C47,Database_Tables!$C$1749:$J$1763,6,FALSE)*$E47 -> 0 | L47: =VLOOKUP($C47,Database_Tables!$C$1749:$J$1763,7,FALSE)*$E47 -> 0
B49: TOTAL | D49: =IF(C11="Total Field Inputs",ROUND(Report_Cost!F73,0),ROUND(Report_Cost!F56,2))&" "&"[MMBTU]" -> 0 [MMBTU] | F49: =F47+F45+F43+F40+F37+F35+F33+F30+F28+F26+F24+F22+F20+F16 -> 0 | G49: =G47+G45+G43+G40+G37+G35+G33+G30+G28+G26+G24+G22+G20+G16 -> 0 | H49: =H47+H45+H43+H40+H37+H35+H33+H30+H28+H26+H24+H22+H20+H16 -> 0 | I49: =I47+I45+I43+I40+I37+I35+I33+I30+I28+I26+I24+I22+I20+I16 -> 0 | K49: =K47+K45+K43+K40+K37+K35+K33+K30+K28+K26+K24+K22+K20+K16 -> 0 | L49: =L47+L45+L43+L40+L37+L35+L33+L30+L28+L26+L24+L22+L20+L16 -> 0
B52: NRCS - CROPLAND ENERGY TOOL
B54: PLANNED GREENHOUSE GAS EMISSIONS FROM FIELD INPUTS
E56: ="Landowner: "&Input!E14 -> Landowner: | G56: Field Area: | H56: =IF(Input!J14="","",Input!J14) ->  | K56: Date: | L56: =IF(Input!E17="","",Input!E17) -> 
E57: =IF(Input!E15="","Field Location: ",IF(OR(Input!E15="American Samoa",Input!E15="District of Columbia",Input!E15="Puerto Rico",Input!E15="Virgin Islands",Input!E15="Guam"),"Field Location: "&Input!E15,"Field Location: "&Input!E16&IF(Input!E15="Alaska"," Boro., "," Co., ")&VLOOKUP(Input!E15,Input!C208:D262,2,FALSE))) -> Field Location: | G57: Field ID: | H57: =IF(Input!J15="","",Input!J15) ->  | K57: Latitude: | L57: =IF(Input!E18="","",Input!E18) -> 
K58: Longitude: | L58: =IF(Input!E19="","",Input!E19) -> 
C61: =C11 -> Total Field Inputs | G61: PLANNED
B63: Energy Input | D63: Units | E63: Value | F63: CO2 | G63: N2O | H63: CH4 | I63: Total CO2 | K63: SO2 | L63: NOx
F64: [lb] | G64: [lb] | H64: [lb] | I64: [lb] | K64: [lb] | L64: [lb]
B65: Liquid
C66: =Report_Cost!$C$14 -> Diesel | D66: Gal | E66: =IF($C$11="Total Field Inputs",ROUND(SUMIF(Report_Cost!$L$66:$L$72,Report_GHG2!C66,Report_Cost!$K$66:$K$72)*VLOOKUP(C66,Report_Cost!$C$14:$G$38,5,FALSE),0),ROUND(SUMIF(Report_Cost!$L$49:$L$55,Report_GHG2!C66,Report_Cost!$K$49:$K$55)*VLOOKUP(C66,Report_Cost!$C$14:$G$38,5,FALSE),2)) -> 0 | F66: =VLOOKUP($C66,Database_Tables!$C$1749:$J$1763,3,FALSE)*$E66 -> 0 | G66: =VLOOKUP($C66,Database_Tables!$C$1749:$J$1763,4,FALSE)*$E66 -> 0 | H66: =VLOOKUP($C66,Database_Tables!$C$1749:$J$1763,5,FALSE)*$E66 -> 0 | I66: =VLOOKUP($C66,Database_Tables!$C$1749:$J$1763,8,FALSE)*$E66 -> 0 | K66: =VLOOKUP($C66,Database_Tables!$C$1749:$J$1763,6,FALSE)*$E66 -> 0 | L66: =VLOOKUP($C66,Database_Tables!$C$1749:$J$1763,7,FALSE)*$E66 -> 0
C68: =Report_Cost!$C$15 -> Gasoline (E10) | D68: Gal | E68: =IF($C$11="Total Field Inputs",ROUND(SUMIF(Report_Cost!$L$66:$L$72,Report_GHG2!C68,Report_Cost!$K$66:$K$72)*VLOOKUP(C68,Report_Cost!$C$14:$G$38,5,FALSE),0),ROUND(SUMIF(Report_Cost!$L$49:$L$55,Report_GHG2!C68,Report_Cost!$K$49:$K$55)*VLOOKUP(C68,Report_Cost!$C$14:$G$38,5,FALSE),2)) -> 0 | F68: =VLOOKUP($C68,Database_Tables!$C$1749:$J$1763,3,FALSE)*$E68 -> 0 | G68: =VLOOKUP($C68,Database_Tables!$C$1749:$J$1763,4,FALSE)*$E68 -> 0 | H68: =VLOOKUP($C68,Database_Tables!$C$1749:$J$1763,5,FALSE)*$E68 -> 0 | I68: =VLOOKUP($C68,Database_Tables!$C$1749:$J$1763,8,FALSE)*$E68 -> 0 | K68: =VLOOKUP($C68,Database_Tables!$C$1749:$J$1763,6,FALSE)*$E68 -> 0 | L68: =VLOOKUP($C68,Database_Tables!$C$1749:$J$1763,7,FALSE)*$E68 -> 0
C70: =Report_Cost!$C$16 -> BioDiesel B2 | D70: Gal | E70: =IF($C$11="Total Field Inputs",ROUND(SUMIF(Report_Cost!$L$66:$L$72,Report_GHG2!C20,Report_Cost!$K$66:$K$72)*VLOOKUP(C20,Report_Cost!$C$14:$G$38,5,FALSE),0),ROUND(SUMIF(Report_Cost!$L$49:$L$55,Report_GHG2!C20,Report_Cost!$K$49:$K$55)*VLOOKUP(C20,Report_Cost!$C$14:$G$38,5,FALSE),2)) -> 0 | F70: =VLOOKUP($C70,Database_Tables!$C$1749:$J$1763,3,FALSE)*$E70 -> 0 | G70: =VLOOKUP($C70,Database_Tables!$C$1749:$J$1763,4,FALSE)*$E70 -> 0 | H70: =VLOOKUP($C70,Database_Tables!$C$1749:$J$1763,5,FALSE)*$E70 -> 0 | I70: =VLOOKUP($C70,Database_Tables!$C$1749:$J$1763,8,FALSE)*$E70 -> 0 | K70: =VLOOKUP($C70,Database_Tables!$C$1749:$J$1763,6,FALSE)*$E70 -> 0 | L70: =VLOOKUP($C70,Database_Tables!$C$1749:$J$1763,7,FALSE)*$E70 -> 0
C72: =Report_Cost!$C$17 -> BioDiesel B5 | D72: Gal | E72: =IF($C$11="Total Field Inputs",ROUND(SUMIF(Report_Cost!$L$66:$L$72,Report_GHG2!C22,Report_Cost!$K$66:$K$72)*VLOOKUP(C22,Report_Cost!$C$14:$G$38,5,FALSE),0),ROUND(SUMIF(Report_Cost!$L$49:$L$55,Report_GHG2!C22,Report_Cost!$K$49:$K$55)*VLOOKUP(C22,Report_Cost!$C$14:$G$38,5,FALSE),2)) -> 0 | F72: =VLOOKUP($C72,Database_Tables!$C$1749:$J$1763,3,FALSE)*$E72 -> 0 | G72: =VLOOKUP($C72,Database_Tables!$C$1749:$J$1763,4,FALSE)*$E72 -> 0 | H72: =VLOOKUP($C72,Database_Tables!$C$1749:$J$1763,5,FALSE)*$E72 -> 0 | I72: =VLOOKUP($C72,Database_Tables!$C$1749:$J$1763,8,FALSE)*$E72 -> 0 | K72: =VLOOKUP($C72,Database_Tables!$C$1749:$J$1763,6,FALSE)*$E72 -> 0 | L72: =VLOOKUP($C72,Database_Tables!$C$1749:$J$1763,7,FALSE)*$E72 -> 0
C74: =Report_Cost!$C$18 -> BioDiesel B10 | D74: Gal | E74: =IF($C$11="Total Field Inputs",ROUND(SUMIF(Report_Cost!$L$66:$L$72,Report_GHG2!C24,Report_Cost!$K$66:$K$72)*VLOOKUP(C24,Report_Cost!$C$14:$G$38,5,FALSE),0),ROUND(SUMIF(Report_Cost!$L$49:$L$55,Report_GHG2!C24,Report_Cost!$K$49:$K$55)*VLOOKUP(C24,Report_Cost!$C$14:$G$38,5,FALSE),2)) -> 0 | F74: =VLOOKUP($C74,Database_Tables!$C$1749:$J$1763,3,FALSE)*$E74 -> 0 | G74: =VLOOKUP($C74,Database_Tables!$C$1749:$J$1763,4,FALSE)*$E74 -> 0 | H74: =VLOOKUP($C74,Database_Tables!$C$1749:$J$1763,5,FALSE)*$E74 -> 0 | I74: =VLOOKUP($C74,Database_Tables!$C$1749:$J$1763,8,FALSE)*$E74 -> 0 | K74: =VLOOKUP($C74,Database_Tables!$C$1749:$J$1763,6,FALSE)*$E74 -> 0 | L74: =VLOOKUP($C74,Database_Tables!$C$1749:$J$1763,7,FALSE)*$E74 -> 0
C76: =Report_Cost!$C$19 -> BioDiesel B20 | D76: Gal | E76: =IF($C$11="Total Field Inputs",ROUND(SUMIF(Report_Cost!$L$66:$L$72,Report_GHG2!C26,Report_Cost!$K$66:$K$72)*VLOOKUP(C26,Report_Cost!$C$14:$G$38,5,FALSE),0),ROUND(SUMIF(Report_Cost!$L$49:$L$55,Report_GHG2!C26,Report_Cost!$K$49:$K$55)*VLOOKUP(C26,Report_Cost!$C$14:$G$38,5,FALSE),2)) -> 0 | F76: =VLOOKUP($C76,Database_Tables!$C$1749:$J$1763,3,FALSE)*$E76 -> 0 | G76: =VLOOKUP($C76,Database_Tables!$C$1749:$J$1763,4,FALSE)*$E76 -> 0 | H76: =VLOOKUP($C76,Database_Tables!$C$1749:$J$1763,5,FALSE)*$E76 -> 0 | I76: =VLOOKUP($C76,Database_Tables!$C$1749:$J$1763,8,FALSE)*$E76 -> 0 | K76: =VLOOKUP($C76,Database_Tables!$C$1749:$J$1763,6,FALSE)*$E76 -> 0 | L76: =VLOOKUP($C76,Database_Tables!$C$1749:$J$1763,7,FALSE)*$E76 -> 0
C78: =Report_Cost!$C$20 -> BioDiesel B100 | D78: Gal | E78: =IF($C$11="Total Field Inputs",ROUND(SUMIF(Report_Cost!$L$66:$L$72,Report_GHG2!C28,Report_Cost!$K$66:$K$72)*VLOOKUP(C28,Report_Cost!$C$14:$G$38,5,FALSE),0),ROUND(SUMIF(Report_Cost!$L$49:$L$55,Report_GHG2!C28,Report_Cost!$K$49:$K$55)*VLOOKUP(C28,Report_Cost!$C$14:$G$38,5,FALSE),2)) -> 0 | F78: =VLOOKUP($C78,Database_Tables!$C$1749:$J$1763,3,FALSE)*$E78 -> 0 | G78: =VLOOKUP($C78,Database_Tables!$C$1749:$J$1763,4,FALSE)*$E78 -> 0 | H78: =VLOOKUP($C78,Database_Tables!$C$1749:$J$1763,5,FALSE)*$E78 -> 0 | I78: =VLOOKUP($C78,Database_Tables!$C$1749:$J$1763,8,FALSE)*$E78 -> 0 | K78: =VLOOKUP($C78,Database_Tables!$C$1749:$J$1763,6,FALSE)*$E78 -> 0 | L78: =VLOOKUP($C78,Database_Tables!$C$1749:$J$1763,7,FALSE)*$E78 -> 0
C80: =Report_Cost!$C$21 -> SVO | D80: Gal | E80: =IF($C$11="Total Field Inputs",ROUND(SUMIF(Report_Cost!$L$66:$L$72,Report_GHG2!C30,Report_Cost!$K$66:$K$72)*VLOOKUP(C30,Report_Cost!$C$14:$G$38,5,FALSE),0),ROUND(SUMIF(Report_Cost!$L$49:$L$55,Report_GHG2!C30,Report_Cost!$K$49:$K$55)*VLOOKUP(C30,Report_Cost!$C$14:$G$38,5,FALSE),2)) -> 0 | F80: =VLOOKUP($C80,Database_Tables!$C$1749:$J$1763,3,FALSE)*$E80 -> 0 | G80: =VLOOKUP($C80,Database_Tables!$C$1749:$J$1763,4,FALSE)*$E80 -> 0 | H80: =VLOOKUP($C80,Database_Tables!$C$1749:$J$1763,5,FALSE)*$E80 -> 0 | I80: =VLOOKUP($C80,Database_Tables!$C$1749:$J$1763,8,FALSE)*$E80 -> 0 | K80: =VLOOKUP($C80,Database_Tables!$C$1749:$J$1763,6,FALSE)*$E80 -> 0 | L80: =VLOOKUP($C80,Database_Tables!$C$1749:$J$1763,7,FALSE)*$E80 -> 0
B82: Gas
C83: =Report_Cost!$C$23 -> Propane | D83: Gal | E83: =IF($C$11="Total Field Inputs",ROUND(SUMIF(Report_Cost!$L$66:$L$72,Report_GHG2!C33,Report_Cost!$K$66:$K$72)*VLOOKUP(C33,Report_Cost!$C$14:$G$38,5,FALSE),0),ROUND(SUMIF(Report_Cost!$L$49:$L$55,Report_GHG2!C33,Report_Cost!$K$49:$K$55)*VLOOKUP(C33,Report_Cost!$C$14:$G$38,5,FALSE),2)) -> 0 | F83: =VLOOKUP($C83,Database_Tables!$C$1749:$J$1763,3,FALSE)*$E83 -> 0 | G83: =VLOOKUP($C83,Database_Tables!$C$1749:$J$1763,4,FALSE)*$E83 -> 0 | H83: =VLOOKUP($C83,Database_Tables!$C$1749:$J$1763,5,FALSE)*$E83 -> 0 | I83: =VLOOKUP($C83,Database_Tables!$C$1749:$J$1763,8,FALSE)*$E83 -> 0 | K83: =VLOOKUP($C83,Database_Tables!$C$1749:$J$1763,6,FALSE)*$E83 -> 0 | L83: =VLOOKUP($C83,Database_Tables!$C$1749:$J$1763,7,FALSE)*$E83 -> 0
C85: =Report_Cost!$C$24 -> Natural Gas | D85: CCF | E85: =IF($C$11="Total Field Inputs",ROUND(SUMIF(Report_Cost!$L$66:$L$72,Report_GHG2!C35,Report_Cost!$K$66:$K$72)*VLOOKUP(C35,Report_Cost!$C$14:$G$38,5,FALSE),0),ROUND(SUMIF(Report_Cost!$L$49:$L$55,Report_GHG2!C35,Report_Cost!$K$49:$K$55)*VLOOKUP(C35,Report_Cost!$C$14:$G$38,5,FALSE),2)) -> 0 | F85: =VLOOKUP($C85,Database_Tables!$C$1749:$J$1763,3,FALSE)*$E85 -> 0 | G85: =VLOOKUP($C85,Database_Tables!$C$1749:$J$1763,4,FALSE)*$E85 -> 0 | H85: =VLOOKUP($C85,Database_Tables!$C$1749:$J$1763,5,FALSE)*$E85 -> 0 | I85: =VLOOKUP($C85,Database_Tables!$C$1749:$J$1763,8,FALSE)*$E85 -> 0 | K85: =VLOOKUP($C85,Database_Tables!$C$1749:$J$1763,6,FALSE)*$E85 -> 0 | L85: =VLOOKUP($C85,Database_Tables!$C$1749:$J$1763,7,FALSE)*$E85 -> 0
C87: =Report_Cost!$C$25 -> CNG | D87: CCF | E87: =IF($C$11="Total Field Inputs",ROUND(SUMIF(Report_Cost!$L$66:$L$72,Report_GHG2!C37,Report_Cost!$K$66:$K$72)*VLOOKUP(C37,Report_Cost!$C$14:$G$38,5,FALSE),0),ROUND(SUMIF(Report_Cost!$L$49:$L$55,Report_GHG2!C37,Report_Cost!$K$49:$K$55)*VLOOKUP(C37,Report_Cost!$C$14:$G$38,5,FALSE),2)) -> 0 | F87: =VLOOKUP($C87,Database_Tables!$C$1749:$J$1763,3,FALSE)*$E87 -> 0 | G87: =VLOOKUP($C87,Database_Tables!$C$1749:$J$1763,4,FALSE)*$E87 -> 0 | H87: =VLOOKUP($C87,Database_Tables!$C$1749:$J$1763,5,FALSE)*$E87 -> 0 | I87: =VLOOKUP($C87,Database_Tables!$C$1749:$J$1763,8,FALSE)*$E87 -> 0 | K87: =VLOOKUP($C87,Database_Tables!$C$1749:$J$1763,6,FALSE)*$E87 -> 0 | L87: =VLOOKUP($C87,Database_Tables!$C$1749:$J$1763,7,FALSE)*$E87 -> 0
B89: Electricity
C90: =Report_Cost!$C$27 -> Electricity | D90: KWH | E90: =IF($C$11="Total Field Inputs",ROUND(SUMIF(Report_Cost!$L$66:$L$72,Report_GHG2!C90,Report_Cost!$K$66:$K$72)*VLOOKUP(C90,Report_Cost!$C$14:$G$38,5,FALSE),0),ROUND(SUMIF(Report_Cost!$L$49:$L$55,Report_GHG2!C90,Report_Cost!$K$49:$K$55)*VLOOKUP(C90,Report_Cost!$C$14:$G$38,5,FALSE),2)) -> 0 | F90: =VLOOKUP($C90,Database_Tables!$C$1749:$J$1763,3,FALSE)*$E90 -> 0 | G90: =VLOOKUP($C90,Database_Tables!$C$1749:$J$1763,4,FALSE)*$E90 -> 0 | H90: =VLOOKUP($C90,Database_Tables!$C$1749:$J$1763,5,FALSE)*$E90 -> 0 | I90: =VLOOKUP($C90,Database_Tables!$C$1749:$J$1763,8,FALSE)*$E90 -> 0 | K90: =VLOOKUP($C90,Database_Tables!$C$1749:$J$1763,6,FALSE)*$E90 -> 0 | L90: =VLOOKUP($C90,Database_Tables!$C$1749:$J$1763,7,FALSE)*$E90 -> 0
B92: Other Energy Input
B93: =Report_Cost!L71 -> Soil Amend | C93: Soil Amendments | D93: Ton | E93: =IF($C$11="Total Field Inputs",ROUND(SUMIF(Report_Cost!$L$66:$L$72,Report_GHG2!B93,Report_Cost!$K$66:$K$72)*VLOOKUP(B93,Report_Cost!$C$14:$G$38,5,FALSE),0),ROUND(SUMIF(Report_Cost!$L$49:$L$55,Report_GHG2!B93,Report_Cost!$K$49:$K$55)*VLOOKUP(B93,Report_Cost!$C$14:$G$38,5,FALSE),2)) -> 0 | F93: =VLOOKUP($C93,Database_Tables!$C$1749:$J$1763,3,FALSE)*$E93 -> 0 | G93: =VLOOKUP($C93,Database_Tables!$C$1749:$J$1763,4,FALSE)*$E93 -> 0 | H93: =VLOOKUP($C93,Database_Tables!$C$1749:$J$1763,5,FALSE)*$E93 -> 0 | I93: =VLOOKUP($C93,Database_Tables!$C$1749:$J$1763,8,FALSE)*$E93 -> 0 | K93: =VLOOKUP($C93,Database_Tables!$C$1749:$J$1763,6,FALSE)*$E93 -> 0 | L93: =VLOOKUP($C93,Database_Tables!$C$1749:$J$1763,7,FALSE)*$E93 -> 0
B95: =B45 -> Agrichem | C95: =C45 -> Agrichemicals/Fert. | D95: lb | E95: =IF(Database_Tables!D1767=0,0,IF($C$11="Total Field Inputs",ROUND(SUMIF(Report_Cost!$L$66:$L$72,Report_GHG1!C44,Report_Cost!$K$66:$K$72)/Database_Tables!D1767,0),ROUND(SUMIF(Report_Cost!$L$49:$L$55,Report_GHG1!C44,Report_Cost!$K$49:$K$55)/Database_Tables!D1767,2))) -> 0 | F95: =VLOOKUP($B95,Database_Tables!$C$1749:$J$1763,3,FALSE)*$E95 -> 0 | G95: =VLOOKUP($B95,Database_Tables!$C$1749:$J$1763,4,FALSE)*$E95 -> 0 | H95: =VLOOKUP($B95,Database_Tables!$C$1749:$J$1763,5,FALSE)*$E95 -> 0 | I95: =VLOOKUP($B95,Database_Tables!$C$1749:$J$1763,8,FALSE)*$E95 -> 0 | K95: =VLOOKUP($B95,Database_Tables!$C$1749:$J$1763,6,FALSE)*$E95 -> 0 | L95: =VLOOKUP($B95,Database_Tables!$C$1749:$J$1763,7,FALSE)*$E95 -> 0
C97: Labor | D97: Day | E97: =IF($C$11="Total Field Inputs",ROUND(SUMIF(Report_Cost!$L$66:$L$72,Report_GHG2!C97,Report_Cost!$K$66:$K$72)*VLOOKUP(C97,Report_Cost!$C$14:$G$38,5,FALSE),0),ROUND(SUMIF(Report_Cost!$L$49:$L$55,Report_GHG2!C97,Report_Cost!$K$49:$K$55)*VLOOKUP(C97,Report_Cost!$C$14:$G$38,5,FALSE),2)) -> 0 | F97: =VLOOKUP($C97,Database_Tables!$C$1749:$J$1763,3,FALSE)*$E97 -> 0 | G97: =VLOOKUP($C97,Database_Tables!$C$1749:$J$1763,4,FALSE)*$E97 -> 0 | H97: =VLOOKUP($C97,Database_Tables!$C$1749:$J$1763,5,FALSE)*$E97 -> 0 | I97: =VLOOKUP($C97,Database_Tables!$C$1749:$J$1763,8,FALSE)*$E97 -> 0 | K97: =VLOOKUP($C97,Database_Tables!$C$1749:$J$1763,6,FALSE)*$E97 -> 0 | L97: =VLOOKUP($C97,Database_Tables!$C$1749:$J$1763,7,FALSE)*$E97 -> 0
B99: TOTAL | D99: =IF(C11="Total Field Inputs",ROUND(Report_Cost!K73,0),ROUND(Report_Cost!K56,2))&" "&"[MMBTU]" -> 0 [MMBTU] | F99: =F97+F95+F93+F90+F87+F85+F83+F80+F78+F76+F74+F72+F70+F66 -> 0 | G99: =G97+G95+G93+G90+G87+G85+G83+G80+G78+G76+G74+G72+G70+G66 -> 0 | H99: =H97+H95+H93+H90+H87+H85+H83+H80+H78+H76+H74+H72+H70+H66 -> 0 | I99: =I97+I95+I93+I90+I87+I85+I83+I80+I78+I76+I74+I72+I70+I66 -> 0 | K99: =K97+K95+K93+K90+K87+K85+K83+K80+K78+K76+K74+K72+K70+K66 -> 0 | L99: =L97+L95+L93+L90+L87+L85+L83+L80+L78+L76+L74+L72+L70+L66 -> 0
B102: NRCS - CROPLAND ENERGY TOOL
B104: GREENHOUSE GAS EMISSION CHANGES FROM FIELD INPUTS
E106: ="Landowner: "&Input!E14 -> Landowner: | G106: Field Area: | H106: =IF(Input!J14="","",Input!J14) ->  | K106: Date: | L106: =IF(Input!E17="","",Input!E17) -> 
E107: =IF(Input!E15="","Field Location: ",IF(OR(Input!E15="American Samoa",Input!E15="District of Columbia",Input!E15="Puerto Rico",Input!E15="Virgin Islands",Input!E15="Guam"),"Field Location: "&Input!E15,"Field Location: "&Input!E16&IF(Input!E15="Alaska"," Boro., "," Co., ")&VLOOKUP(Input!E15,Input!C208:D262,2,FALSE))) -> Field Location: | G107: Field ID: | H107: =IF(Input!J15="","",Input!J15) ->  | K107: Latitude: | L107: =IF(Input!E18="","",Input!E18) -> 
K108: Longitude: | L108: =IF(Input!E19="","",Input!E19) -> 
C111: =C61 -> Total Field Inputs | G111: SAVINGS
B113: Energy Input | D113: Units | E113: Value | F113: CO2 | G113: N2O | H113: CH4 | I113: Total CO2 | K113: SO2 | L113: NOx
F114: [lb] | G114: [lb] | H114: [lb] | I114: [lb] | K114: [lb] | L114: [lb]
B115: Liquid
C116: =Report_Cost!$C$14 -> Diesel | D116: Gal | E116: =E16-E66 -> 0 | F116: =VLOOKUP($C116,Database_Tables!$C$1749:$J$1763,3,FALSE)*$E116 -> 0 | G116: =VLOOKUP($C116,Database_Tables!$C$1749:$J$1763,4,FALSE)*$E116 -> 0 | H116: =VLOOKUP($C116,Database_Tables!$C$1749:$J$1763,5,FALSE)*$E116 -> 0 | I116: =VLOOKUP($C116,Database_Tables!$C$1749:$J$1763,8,FALSE)*$E116 -> 0 | K116: =VLOOKUP($C116,Database_Tables!$C$1749:$J$1763,6,FALSE)*$E116 -> 0 | L116: =VLOOKUP($C116,Database_Tables!$C$1749:$J$1763,7,FALSE)*$E116 -> 0
C118: =Report_Cost!$C$15 -> Gasoline (E10) | D118: Gal | E118: =E18-E68 -> 0 | F118: =VLOOKUP($C118,Database_Tables!$C$1749:$J$1763,3,FALSE)*$E118 -> 0 | G118: =VLOOKUP($C118,Database_Tables!$C$1749:$J$1763,4,FALSE)*$E118 -> 0 | H118: =VLOOKUP($C118,Database_Tables!$C$1749:$J$1763,5,FALSE)*$E118 -> 0 | I118: =VLOOKUP($C118,Database_Tables!$C$1749:$J$1763,8,FALSE)*$E118 -> 0 | K118: =VLOOKUP($C118,Database_Tables!$C$1749:$J$1763,6,FALSE)*$E118 -> 0 | L118: =VLOOKUP($C118,Database_Tables!$C$1749:$J$1763,7,FALSE)*$E118 -> 0
C120: =Report_Cost!$C$16 -> BioDiesel B2 | D120: Gal | E120: =E20-E70 -> 0 | F120: =VLOOKUP($C120,Database_Tables!$C$1749:$J$1763,3,FALSE)*$E120 -> 0 | G120: =VLOOKUP($C120,Database_Tables!$C$1749:$J$1763,4,FALSE)*$E120 -> 0 | H120: =VLOOKUP($C120,Database_Tables!$C$1749:$J$1763,5,FALSE)*$E120 -> 0 | I120: =VLOOKUP($C120,Database_Tables!$C$1749:$J$1763,8,FALSE)*$E120 -> 0 | K120: =VLOOKUP($C120,Database_Tables!$C$1749:$J$1763,6,FALSE)*$E120 -> 0 | L120: =VLOOKUP($C120,Database_Tables!$C$1749:$J$1763,7,FALSE)*$E120 -> 0
C122: =Report_Cost!$C$17 -> BioDiesel B5 | D122: Gal | E122: =E22-E72 -> 0 | F122: =VLOOKUP($C122,Database_Tables!$C$1749:$J$1763,3,FALSE)*$E122 -> 0 | G122: =VLOOKUP($C122,Database_Tables!$C$1749:$J$1763,4,FALSE)*$E122 -> 0 | H122: =VLOOKUP($C122,Database_Tables!$C$1749:$J$1763,5,FALSE)*$E122 -> 0 | I122: =VLOOKUP($C122,Database_Tables!$C$1749:$J$1763,8,FALSE)*$E122 -> 0 | K122: =VLOOKUP($C122,Database_Tables!$C$1749:$J$1763,6,FALSE)*$E122 -> 0 | L122: =VLOOKUP($C122,Database_Tables!$C$1749:$J$1763,7,FALSE)*$E122 -> 0
C124: =Report_Cost!$C$18 -> BioDiesel B10 | D124: Gal | E124: =E24-E74 -> 0 | F124: =VLOOKUP($C124,Database_Tables!$C$1749:$J$1763,3,FALSE)*$E124 -> 0 | G124: =VLOOKUP($C124,Database_Tables!$C$1749:$J$1763,4,FALSE)*$E124 -> 0 | H124: =VLOOKUP($C124,Database_Tables!$C$1749:$J$1763,5,FALSE)*$E124 -> 0 | I124: =VLOOKUP($C124,Database_Tables!$C$1749:$J$1763,8,FALSE)*$E124 -> 0 | K124: =VLOOKUP($C124,Database_Tables!$C$1749:$J$1763,6,FALSE)*$E124 -> 0 | L124: =VLOOKUP($C124,Database_Tables!$C$1749:$J$1763,7,FALSE)*$E124 -> 0
C126: =Report_Cost!$C$19 -> BioDiesel B20 | D126: Gal | E126: =E26-E76 -> 0 | F126: =VLOOKUP($C126,Database_Tables!$C$1749:$J$1763,3,FALSE)*$E126 -> 0 | G126: =VLOOKUP($C126,Database_Tables!$C$1749:$J$1763,4,FALSE)*$E126 -> 0 | H126: =VLOOKUP($C126,Database_Tables!$C$1749:$J$1763,5,FALSE)*$E126 -> 0 | I126: =VLOOKUP($C126,Database_Tables!$C$1749:$J$1763,8,FALSE)*$E126 -> 0 | K126: =VLOOKUP($C126,Database_Tables!$C$1749:$J$1763,6,FALSE)*$E126 -> 0 | L126: =VLOOKUP($C126,Database_Tables!$C$1749:$J$1763,7,FALSE)*$E126 -> 0
C128: =Report_Cost!$C$20 -> BioDiesel B100 | D128: Gal | E128: =E28-E78 -> 0 | F128: =VLOOKUP($C128,Database_Tables!$C$1749:$J$1763,3,FALSE)*$E128 -> 0 | G128: =VLOOKUP($C128,Database_Tables!$C$1749:$J$1763,4,FALSE)*$E128 -> 0 | H128: =VLOOKUP($C128,Database_Tables!$C$1749:$J$1763,5,FALSE)*$E128 -> 0 | I128: =VLOOKUP($C128,Database_Tables!$C$1749:$J$1763,8,FALSE)*$E128 -> 0 | K128: =VLOOKUP($C128,Database_Tables!$C$1749:$J$1763,6,FALSE)*$E128 -> 0 | L128: =VLOOKUP($C128,Database_Tables!$C$1749:$J$1763,7,FALSE)*$E128 -> 0
C130: =Report_Cost!$C$21 -> SVO | D130: Gal | E130: =E30-E80 -> 0 | F130: =VLOOKUP($C130,Database_Tables!$C$1749:$J$1763,3,FALSE)*$E130 -> 0 | G130: =VLOOKUP($C130,Database_Tables!$C$1749:$J$1763,4,FALSE)*$E130 -> 0 | H130: =VLOOKUP($C130,Database_Tables!$C$1749:$J$1763,5,FALSE)*$E130 -> 0 | I130: =VLOOKUP($C130,Database_Tables!$C$1749:$J$1763,8,FALSE)*$E130 -> 0 | K130: =VLOOKUP($C130,Database_Tables!$C$1749:$J$1763,6,FALSE)*$E130 -> 0 | L130: =VLOOKUP($C130,Database_Tables!$C$1749:$J$1763,7,FALSE)*$E130 -> 0
B132: Gas
C133: =Report_Cost!$C$23 -> Propane | D133: Gal | E133: =E33-E83 -> 0 | F133: =VLOOKUP($C133,Database_Tables!$C$1749:$J$1763,3,FALSE)*$E133 -> 0 | G133: =VLOOKUP($C133,Database_Tables!$C$1749:$J$1763,4,FALSE)*$E133 -> 0 | H133: =VLOOKUP($C133,Database_Tables!$C$1749:$J$1763,5,FALSE)*$E133 -> 0 | I133: =VLOOKUP($C133,Database_Tables!$C$1749:$J$1763,8,FALSE)*$E133 -> 0 | K133: =VLOOKUP($C133,Database_Tables!$C$1749:$J$1763,6,FALSE)*$E133 -> 0 | L133: =VLOOKUP($C133,Database_Tables!$C$1749:$J$1763,7,FALSE)*$E133 -> 0
C135: =Report_Cost!$C$24 -> Natural Gas | D135: CCF | E135: =E35-E85 -> 0 | F135: =VLOOKUP($C135,Database_Tables!$C$1749:$J$1763,3,FALSE)*$E135 -> 0 | G135: =VLOOKUP($C135,Database_Tables!$C$1749:$J$1763,4,FALSE)*$E135 -> 0 | H135: =VLOOKUP($C135,Database_Tables!$C$1749:$J$1763,5,FALSE)*$E135 -> 0 | I135: =VLOOKUP($C135,Database_Tables!$C$1749:$J$1763,8,FALSE)*$E135 -> 0 | K135: =VLOOKUP($C135,Database_Tables!$C$1749:$J$1763,6,FALSE)*$E135 -> 0 | L135: =VLOOKUP($C135,Database_Tables!$C$1749:$J$1763,7,FALSE)*$E135 -> 0
C137: =Report_Cost!$C$25 -> CNG | D137: CCF | E137: =E37-E87 -> 0 | F137: =VLOOKUP($C137,Database_Tables!$C$1749:$J$1763,3,FALSE)*$E137 -> 0 | G137: =VLOOKUP($C137,Database_Tables!$C$1749:$J$1763,4,FALSE)*$E137 -> 0 | H137: =VLOOKUP($C137,Database_Tables!$C$1749:$J$1763,5,FALSE)*$E137 -> 0 | I137: =VLOOKUP($C137,Database_Tables!$C$1749:$J$1763,8,FALSE)*$E137 -> 0 | K137: =VLOOKUP($C137,Database_Tables!$C$1749:$J$1763,6,FALSE)*$E137 -> 0 | L137: =VLOOKUP($C137,Database_Tables!$C$1749:$J$1763,7,FALSE)*$E137 -> 0
B139: Electricity
C140: =Report_Cost!$C$27 -> Electricity | D140: KWH | E140: =E40-E90 -> 0 | F140: =VLOOKUP($C140,Database_Tables!$C$1749:$J$1763,3,FALSE)*$E140 -> 0 | G140: =VLOOKUP($C140,Database_Tables!$C$1749:$J$1763,4,FALSE)*$E140 -> 0 | H140: =VLOOKUP($C140,Database_Tables!$C$1749:$J$1763,5,FALSE)*$E140 -> 0 | I140: =VLOOKUP($C140,Database_Tables!$C$1749:$J$1763,8,FALSE)*$E140 -> 0 | K140: =VLOOKUP($C140,Database_Tables!$C$1749:$J$1763,6,FALSE)*$E140 -> 0 | L140: =VLOOKUP($C140,Database_Tables!$C$1749:$J$1763,7,FALSE)*$E140 -> 0
B142: Other Energy Input
C143: Soil Amendments | D143: Ton | E143: =E43-E93 -> 0 | F143: =VLOOKUP($C143,Database_Tables!$C$1749:$J$1763,3,FALSE)*$E143 -> 0 | G143: =VLOOKUP($C143,Database_Tables!$C$1749:$J$1763,4,FALSE)*$E143 -> 0 | H143: =VLOOKUP($C143,Database_Tables!$C$1749:$J$1763,5,FALSE)*$E143 -> 0 | I143: =VLOOKUP($C143,Database_Tables!$C$1749:$J$1763,8,FALSE)*$E143 -> 0 | K143: =VLOOKUP($C143,Database_Tables!$C$1749:$J$1763,6,FALSE)*$E143 -> 0 | L143: =VLOOKUP($C143,Database_Tables!$C$1749:$J$1763,7,FALSE)*$E143 -> 0
B145: =Database_Tables!C1761 -> Agrichem | C145: =C95 -> Agrichemicals/Fert. | D145: lb | E145: =E45-E95 -> 0 | F145: =VLOOKUP($B145,Database_Tables!$C$1749:$J$1763,3,FALSE)*$E145 -> 0 | G145: =VLOOKUP($B145,Database_Tables!$C$1749:$J$1763,4,FALSE)*$E145 -> 0 | H145: =VLOOKUP($B145,Database_Tables!$C$1749:$J$1763,5,FALSE)*$E145 -> 0 | I145: =VLOOKUP($B145,Database_Tables!$C$1749:$J$1763,8,FALSE)*$E145 -> 0 | K145: =VLOOKUP($B145,Database_Tables!$C$1749:$J$1763,6,FALSE)*$E145 -> 0 | L145: =VLOOKUP($B145,Database_Tables!$C$1749:$J$1763,7,FALSE)*$E145 -> 0
C147: Labor | D147: Day | E147: =E47-E97 -> 0 | F147: =VLOOKUP($C147,Database_Tables!$C$1749:$J$1763,3,FALSE)*$E147 -> 0 | G147: =VLOOKUP($C147,Database_Tables!$C$1749:$J$1763,4,FALSE)*$E147 -> 0 | H147: =VLOOKUP($C147,Database_Tables!$C$1749:$J$1763,5,FALSE)*$E147 -> 0 | I147: =VLOOKUP($C147,Database_Tables!$C$1749:$J$1763,8,FALSE)*$E147 -> 0 | K147: =VLOOKUP($C147,Database_Tables!$C$1749:$J$1763,6,FALSE)*$E147 -> 0 | L147: =VLOOKUP($C147,Database_Tables!$C$1749:$J$1763,7,FALSE)*$E147 -> 0
B149: TOTAL | D149: =IF(Report_Cost!F73<Report_Cost!K73,"(","")&IF(C11="Total Field Inputs",ABS(ROUND(Report_Cost!F73-Report_Cost!K73,0)),ABS(ROUND(Report_Cost!F56-Report_Cost!K56,2)))&IF(Report_Cost!F73<Report_Cost!K73,")","")&" "&"[MMBTU]" -> 0 [MMBTU] | F149: =F147+F145+F143+F140+F137+F135+F133+F130+F128+F126+F124+F122+F120+F116 -> 0 | G149: =G147+G145+G143+G140+G137+G135+G133+G130+G128+G126+G124+G122+G120+G116 -> 0 | H149: =H147+H145+H143+H140+H137+H135+H133+H130+H128+H126+H124+H122+H120+H116 -> 0 | I149: =I147+I145+I143+I140+I137+I135+I133+I130+I128+I126+I124+I122+I120+I116 -> 0 | K149: =K147+K145+K143+K140+K137+K135+K133+K130+K128+K126+K124+K122+K120+K116 -> 0 | L149: =L147+L145+L143+L140+L137+L135+L133+L130+L128+L126+L124+L122+L120+L116 -> 0

Sheet Input_PS (hidden)
B2: NRCS - CROPLAND ENERGY TOOL
B4: PRACTICE STANDARDS INPUT WORKSHEET - PERCENT ALLOCATED | Q4: This table assists in determining percentages for each Practice Standard Input Category (PSIC). PSIC such as Irrigation, Other Delivery Energy, and Agrichemcials have
L5: Date: | M5: =IF(Input!E17="","",Input!E17) ->  | Q5: multiple input variables per category (i.e. Gross Applied, Pumping Plant Efficiency, Operating Pressure). The percentages for all other categories can be directly computed
B6: ="Landowner: "&Input!E14 -> Landowner: | F6: Field Area: | G6: =IF(Input!J14="","",Input!J14) ->  | L6: Latitude: | M6: =IF(Input!E18="","",Input!E18) ->  | Q6: outside this table. They are provided here for convenience and are shaded in red. Caution is advised on these percentages, especially catergories containing multiple
B7: =IF(Input!E15="","Field Location: ",IF(OR(Input!E15="American Samoa",Input!E15="District of Columbia",Input!E15="Puerto Rico",Input!E15="Virgin Islands",Input!E15="Guam"),"Field Location: "&Input!E15,"Field Location: "&Input!E16&IF(Input!E15="Alaska"," Boro., "," Co., ")&VLOOKUP(Input!E15,Input!C208:D262,2,FALSE))) -> Field Location: | F7: Field ID: | G7: =IF(Input!J15="","",Input!J15) ->  | L7: Longitude: | M7: =IF(Input!E19="","",Input!E19) ->  | Q7: variables where "benchmark" vs "planned" inputs cancel each other out. For example, a "benchmark" field having no fertilizers, 6oz of herbicide, and 0oz of pesticide vs a
Q8: "planned" field having 0oz herbicide, and 5oz pesticide. This alternative would have a 600% decrease in herbicide and a 500% increase in pesticide (6oz/(6oz-5oz) vs -5oz/1oz).
Q10: Practice Standards | R10: Main Input Worksheet | T10: Individual Main Input Variables | X10: Practice Standard Input Categories | Z10: Multiple Variable Values
B11: Practice Standards | C11: Energy Input to the Field | J11: Energy Harvest | M11: Energy Remaining | R11: Input Type | S11: Input Variables (VAR) | T11: Value | U11: Allowable | V11: Remaining | W11: % | X11: Input Category | Y11: % | AJ11: =SUMIF($S$12:$S$36,S12,$AJ$12:$AJ$36) -> 0
C12: Harvest | D12: Field | E12: Irrigation | F12: Other | G12: Agri- | H12: Soil | I12: Labor | J12: Crop | K12: Post Harvest | M12: Root- | N12: Surface | P12: =IF(ISNA(VLOOKUP(Q12,Database_Tables!$I$1587:$J$1626,2,FALSE)),FALSE,TRUE) -> FALSE | U12: =IF(OR(ISBLANK(Q12),ISBLANK(R12),ISBLANK(S12)),"",IF(ISNA(VLOOKUP(R12&" "&S12,$A$80:$C$112,3,FALSE)),"Select Var",ROUND(VLOOKUP(R12&" "&S12,$A$80:$C$112,3,FALSE),2)&" "&VLOOKUP(R12&" "&S12,$A$80:$F$112,6,FALSE))) ->  | V12: =IF(OR(ISBLANK(Q12),ISBLANK(R12),ISBLANK(S12)),"",VLOOKUP(R12&" "&S12,$A$80:$C$112,3,FALSE)-SUMIF($AK$12:$AK$36,AK12,$AJ$12:$AJ$36)) ->  | W12: =IF(OR(ISBLANK(Q12),ISBLANK(R12),ISBLANK(S12),ISBLANK(T12)),"",IF(ISNA(ROUND(T12/VLOOKUP(R12&" "&S12,$A$80:$C$112,3,FALSE),2)),"",ROUND(T12/VLOOKUP(R12&" "&S12,$A$80:$C$112,3,FALSE),2))) ->  | X12: =IF(OR(ISBLANK(Q12),ISBLANK(R12),ISBLANK(S12)),"",VLOOKUP(R12&" "&S12,$A$80:$G$112,7,FALSE)) ->  | Y12: =IF(OR(ISBLANK(Q12),ISBLANK(R12),ISBLANK(S12),ISBLANK(T12)),"",IF(ISNA(ROUND(T12/VLOOKUP(R12&" "&S12,$A$80:$C$112,3,FALSE),2)),"",ROUND(T12/VLOOKUP(R12&" "&S12,$A$80:$C$112,3,FALSE),2))*VLOOKUP(R12&" "&S12,$A$80:$K$112,10,FALSE)/VLOOKUP(R12&" "&S12,$A$80:$K$112,11,FALSE)) ->  | Z12: =IF(OR(ISBLANK(Q12),ISBLANK(R12),ISBLANK(S12)),"",IF(X12="Irrigation Delivery Power","Agross = "&$C$94&$F$94&", Opres = "&$C$95&$F$95&", Peff = "&$C$96&$F$96&", Hoper = "&$C$97&$F$97,IF(X12="AgriChemicals","(Napp,Papp,Kapp,Sapp,Hrb,Pst) ("&$C$86&$F$86&","&$C$87&$F$87&","&$C$88&$F$88&","&$C$89&$F$89&","&$C$90&$F$90&","&$C$91&$F$91&")",IF(X12="Other Delivery Power","ODP1 (Mgal,psi,%) ("&$C$99&$F$99&","&$C$100&$F$100&","&$C$101&$F$101&") ODP2 (Mgal,psi,%) ("&$C$103&$F$103&","&$C$104&$F$104&","&$C$105&$F$105&") ODP3 (Mgal,psi,%) ("&$C$107&$F$107&","&$C$108&$F$108&","&$C$109&$F$109&")","")))) ->  | AJ12: =IF(ISBLANK(Q12),0,T12) -> 0 | AK12: =R12&" "&S12 -> 
B13: Select from | C13: Operations | D13: Operations | E13: Delivery | F13: Delivery | G13: Chemical | H13: Amend | J13: Harvest | K13: Grazing | L13: Forage | M13: mass | N13: Residue | P13: =IF(ISNA(VLOOKUP(Q13,Database_Tables!$I$1587:$J$1626,2,FALSE)),FALSE,TRUE) -> FALSE | U13: =IF(OR(ISBLANK(Q13),ISBLANK(R13),ISBLANK(S13)),"",IF(ISNA(VLOOKUP(R13&" "&S13,$A$80:$C$112,3,FALSE)),"Select Var",ROUND(VLOOKUP(R13&" "&S13,$A$80:$C$112,3,FALSE),2)&" "&VLOOKUP(R13&" "&S13,$A$80:$F$112,6,FALSE))) ->  | V13: =IF(OR(ISBLANK(Q13),ISBLANK(R13),ISBLANK(S13)),"",VLOOKUP(R13&" "&S13,$A$80:$C$112,3,FALSE)-SUMIF($AK$12:$AK$36,AK13,$AJ$12:$AJ$36)) ->  | W13: =IF(OR(ISBLANK(Q13),ISBLANK(R13),ISBLANK(S13),ISBLANK(T13)),"",IF(ISNA(ROUND(T13/VLOOKUP(R13&" "&S13,$A$80:$C$112,3,FALSE),2)),"",ROUND(T13/VLOOKUP(R13&" "&S13,$A$80:$C$112,3,FALSE),2))) ->  | X13: =IF(OR(ISBLANK(Q13),ISBLANK(R13),ISBLANK(S13)),"",VLOOKUP(R13&" "&S13,$A$80:$G$112,7,FALSE)) ->  | Y13: =IF(OR(ISBLANK(Q13),ISBLANK(R13),ISBLANK(S13),ISBLANK(T13)),"",IF(ISNA(ROUND(T13/VLOOKUP(R13&" "&S13,$A$80:$C$112,3,FALSE),2)),"",ROUND(T13/VLOOKUP(R13&" "&S13,$A$80:$C$112,3,FALSE),2))*VLOOKUP(R13&" "&S13,$A$80:$K$112,10,FALSE)/VLOOKUP(R13&" "&S13,$A$80:$K$112,11,FALSE)) ->  | Z13: =IF(OR(ISBLANK(Q13),ISBLANK(R13),ISBLANK(S13)),"",IF(X13="Irrigation Delivery Power","Agross = "&$C$94&$F$94&", Opres = "&$C$95&$F$95&", Peff = "&$C$96&$F$96&", Hoper = "&$C$97&$F$97,IF(X13="AgriChemicals","(Napp,Papp,Kapp,Sapp,Hrb,Pst) ("&$C$86&$F$86&","&$C$87&$F$87&","&$C$88&$F$88&","&$C$89&$F$89&","&$C$90&$F$90&","&$C$91&$F$91&")",IF(X13="Other Delivery Power","ODP1 (Mgal,psi,%) ("&$C$99&$F$99&","&$C$100&$F$100&","&$C$101&$F$101&") ODP2 (Mgal,psi,%) ("&$C$103&$F$103&","&$C$104&$F$104&","&$C$105&$F$105&") ODP3 (Mgal,psi,%) ("&$C$107&$F$107&","&$C$108&$F$108&","&$C$109&$F$109&")","")))) ->  | AJ13: 0 | AK13: =R13&" "&S13 -> 
A14: TRUE | B14: All Practice Standards | E14: Energy | F14: Energy | G14: Fert | J14: Removed | K14: Yield | L14: Removed | P14: =IF(ISNA(VLOOKUP(Q14,Database_Tables!$I$1587:$J$1626,2,FALSE)),FALSE,TRUE) -> FALSE | U14: =IF(OR(ISBLANK(Q14),ISBLANK(R14),ISBLANK(S14)),"",IF(ISNA(VLOOKUP(R14&" "&S14,$A$80:$C$112,3,FALSE)),"Select Var",ROUND(VLOOKUP(R14&" "&S14,$A$80:$C$112,3,FALSE),2)&" "&VLOOKUP(R14&" "&S14,$A$80:$F$112,6,FALSE))) ->  | AJ14: 0
A15: FALSE | B15: Energy Only Practice Standards | P15: =IF(ISNA(VLOOKUP(Q15,Database_Tables!$I$1587:$J$1626,2,FALSE)),FALSE,TRUE) -> FALSE | U15: =IF(OR(ISBLANK(Q15),ISBLANK(R15),ISBLANK(S15)),"",IF(ISNA(VLOOKUP(R15&" "&S15,$A$80:$C$112,3,FALSE)),"Select Var",ROUND(VLOOKUP(R15&" "&S15,$A$80:$C$112,3,FALSE),2)&" "&VLOOKUP(R15&" "&S15,$A$80:$F$112,6,FALSE))) ->  | AJ15: 0
A16: =IF(ISBLANK(B16),0,1) -> 1 | B16: 431 Above Ground Multi-Outlet Pipeline | O16: =IF(ISNA(VLOOKUP(B16,Database_Tables!$I$1587:$J$1626,2,FALSE)),FALSE,TRUE) -> FALSE | P16: =IF(ISNA(VLOOKUP(Q16,Database_Tables!$I$1587:$J$1626,2,FALSE)),FALSE,TRUE) -> FALSE | U16: =IF(OR(ISBLANK(Q16),ISBLANK(R16),ISBLANK(S16)),"",IF(ISNA(VLOOKUP(R16&" "&S16,$A$80:$C$112,3,FALSE)),"Select Var",ROUND(VLOOKUP(R16&" "&S16,$A$80:$C$112,3,FALSE),2)&" "&VLOOKUP(R16&" "&S16,$A$80:$F$112,6,FALSE))) ->  | AJ16: 0
A17: =IF(ISBLANK(B17),0,1) -> 0 | O17: =IF(ISNA(VLOOKUP(B17,Database_Tables!$I$1587:$J$1626,2,FALSE)),FALSE,TRUE) -> FALSE | P17: =IF(ISNA(VLOOKUP(Q17,Database_Tables!$I$1587:$J$1626,2,FALSE)),FALSE,TRUE) -> FALSE | AJ17: 0
A18: 0 | O18: =IF(ISNA(VLOOKUP(B18,Database_Tables!$I$1587:$J$1626,2,FALSE)),FALSE,TRUE) -> FALSE | P18: =IF(ISNA(VLOOKUP(Q18,Database_Tables!$I$1587:$J$1626,2,FALSE)),FALSE,TRUE) -> FALSE | AJ18: 0
A19: 0 | O19: =IF(ISNA(VLOOKUP(B19,Database_Tables!$I$1587:$J$1626,2,FALSE)),FALSE,TRUE) -> FALSE | P19: =IF(ISNA(VLOOKUP(Q19,Database_Tables!$I$1587:$J$1626,2,FALSE)),FALSE,TRUE) -> FALSE | AJ19: 0
A20: 0 | O20: =IF(ISNA(VLOOKUP(B20,Database_Tables!$I$1587:$J$1626,2,FALSE)),FALSE,TRUE) -> FALSE | P20: =IF(ISNA(VLOOKUP(Q20,Database_Tables!$I$1587:$J$1626,2,FALSE)),FALSE,TRUE) -> FALSE | AJ20: 0
A21: 0 | O21: =IF(ISNA(VLOOKUP(B21,Database_Tables!$I$1587:$J$1626,2,FALSE)),FALSE,TRUE) -> FALSE | P21: =IF(ISNA(VLOOKUP(Q21,Database_Tables!$I$1587:$J$1626,2,FALSE)),FALSE,TRUE) -> FALSE | AJ21: 0
A22: 0 | O22: =IF(ISNA(VLOOKUP(B22,Database_Tables!$I$1587:$J$1626,2,FALSE)),FALSE,TRUE) -> FALSE | P22: =IF(ISNA(VLOOKUP(Q22,Database_Tables!$I$1587:$J$1626,2,FALSE)),FALSE,TRUE) -> FALSE | AJ22: 0
A23: 0 | O23: =IF(ISNA(VLOOKUP(B23,Database_Tables!$I$1587:$J$1626,2,FALSE)),FALSE,TRUE) -> FALSE | P23: =IF(ISNA(VLOOKUP(Q23,Database_Tables!$I$1587:$J$1626,2,FALSE)),FALSE,TRUE) -> FALSE | AJ23: 0
A24: 0 | O24: =IF(ISNA(VLOOKUP(B24,Database_Tables!$I$1587:$J$1626,2,FALSE)),FALSE,TRUE) -> FALSE | P24: =IF(ISNA(VLOOKUP(Q24,Database_Tables!$I$1587:$J$1626,2,FALSE)),FALSE,TRUE) -> FALSE | AJ24: 0
A25: 0 | O25: =IF(ISNA(VLOOKUP(B25,Database_Tables!$I$1587:$J$1626,2,FALSE)),FALSE,TRUE) -> FALSE | P25: =IF(ISNA(VLOOKUP(Q25,Database_Tables!$I$1587:$J$1626,2,FALSE)),FALSE,TRUE) -> FALSE | AJ25: 0
B26: Energy percentage not accounted for in a practice standard | C26: =IF(ROUND(C32,2)=0,0,ROUND(1-IF(ISBLANK($B$16),0,C16)-IF(ISBLANK($B$17),0,C17)-IF(ISBLANK($B$18),0,C18)-IF(ISBLANK($B$19),0,C19)-IF(ISBLANK($B$20),0,C20)-IF(ISBLANK($B$21),0,C21)-IF(ISBLANK($B$22),0,C22)-IF(ISBLANK($B$23),0,C23)-IF(ISBLANK($B$24),0,C24)-IF(ISBLANK($B$25),0,C25),2)) -> 0 | D26: 0 | E26: 0 | F26: 0 | G26: =IF(ROUND(G32,2)=0,0,ROUND(1-IF(ISBLANK($B$16),0,G16)-IF(ISBLANK($B$17),0,G17)-IF(ISBLANK($B$18),0,G18)-IF(ISBLANK($B$19),0,G19)-IF(ISBLANK($B$20),0,G20)-IF(ISBLANK($B$21),0,G21)-IF(ISBLANK($B$22),0,G22)-IF(ISBLANK($B$23),0,G23)-IF(ISBLANK($B$24),0,G24)-IF(ISBLANK($B$25),0,G25),2)) -> 0 | H26: 0 | I26: =IF(ROUND(I32,5)=0,0,ROUND(1-IF(ISBLANK($B$16),0,I16)-IF(ISBLANK($B$17),0,I17)-IF(ISBLANK($B$18),0,I18)-IF(ISBLANK($B$19),0,I19)-IF(ISBLANK($B$20),0,I20)-IF(ISBLANK($B$21),0,I21)-IF(ISBLANK($B$22),0,I22)-IF(ISBLANK($B$23),0,I23)-IF(ISBLANK($B$24),0,I24)-IF(ISBLANK($B$25),0,I25),2)) -> 0 | J26: =IF(ROUND(J32,2)=0,0,ROUND(1-IF(ISBLANK($B$16),0,J16)-IF(ISBLANK($B$17),0,J17)-IF(ISBLANK($B$18),0,J18)-IF(ISBLANK($B$19),0,J19)-IF(ISBLANK($B$20),0,J20)-IF(ISBLANK($B$21),0,J21)-IF(ISBLANK($B$22),0,J22)-IF(ISBLANK($B$23),0,J23)-IF(ISBLANK($B$24),0,J24)-IF(ISBLANK($B$25),0,J25),2)) -> 0 | K26: =IF(ROUND(K32,2)=0,0,ROUND(1-IF(ISBLANK($B$16),0,K16)-IF(ISBLANK($B$17),0,K17)-IF(ISBLANK($B$18),0,K18)-IF(ISBLANK($B$19),0,K19)-IF(ISBLANK($B$20),0,K20)-IF(ISBLANK($B$21),0,K21)-IF(ISBLANK($B$22),0,K22)-IF(ISBLANK($B$23),0,K23)-IF(ISBLANK($B$24),0,K24)-IF(ISBLANK($B$25),0,K25),2)) -> 0 | L26: =IF(ROUND(L32,2)=0,0,ROUND(1-IF(ISBLANK($B$16),0,L16)-IF(ISBLANK($B$17),0,L17)-IF(ISBLANK($B$18),0,L18)-IF(ISBLANK($B$19),0,L19)-IF(ISBLANK($B$20),0,L20)-IF(ISBLANK($B$21),0,L21)-IF(ISBLANK($B$22),0,L22)-IF(ISBLANK($B$23),0,L23)-IF(ISBLANK($B$24),0,L24)-IF(ISBLANK($B$25),0,L25),2)) -> 0 | M26: =IF(ROUND(M32,2)=0,0,ROUND(1-IF(ISBLANK($B$16),0,M16)-IF(ISBLANK($B$17),0,M17)-IF(ISBLANK($B$18),0,M18)-IF(ISBLANK($B$19),0,M19)-IF(ISBLANK($B$20),0,M20)-IF(ISBLANK($B$21),0,M21)-IF(ISBLANK($B$22),0,M22)-IF(ISBLANK($B$23),0,M23)-IF(ISBLANK($B$24),0,M24)-IF(ISBLANK($B$25),0,M25),2)) -> 0 | N26: =IF(ROUND(N32,2)=0,0,ROUND(1-IF(ISBLANK($B$16),0,N16)-IF(ISBLANK($B$17),0,N17)-IF(ISBLANK($B$18),0,N18)-IF(ISBLANK($B$19),0,N19)-IF(ISBLANK($B$20),0,N20)-IF(ISBLANK($B$21),0,N21)-IF(ISBLANK($B$22),0,N22)-IF(ISBLANK($B$23),0,N23)-IF(ISBLANK($B$24),0,N24)-IF(ISBLANK($B$25),0,N25),2)) -> 0 | O26: =IF(ISNA(VLOOKUP(B26,Database_Tables!$I$1587:$J$1626,2,FALSE)),FALSE,TRUE) -> FALSE | P26: =IF(ISNA(VLOOKUP(Q26,Database_Tables!$I$1587:$J$1626,2,FALSE)),FALSE,TRUE) -> FALSE | AJ26: 0
P27: =IF(ISNA(VLOOKUP(Q27,Database_Tables!$I$1587:$J$1626,2,FALSE)),FALSE,TRUE) -> FALSE | AJ27: 0
P28: =IF(ISNA(VLOOKUP(Q28,Database_Tables!$I$1587:$J$1626,2,FALSE)),FALSE,TRUE) -> FALSE | AJ28: 0
B29: Energy Accounting | C29: Benchmark - Planned | J29: Planned - Benchmark | P29: =IF(ISNA(VLOOKUP(Q29,Database_Tables!$I$1587:$J$1626,2,FALSE)),FALSE,TRUE) -> FALSE | AJ29: 0
C30: Energy Input to the Field | J30: Energy Harvest | M30: Energy Remaining | P30: =IF(ISNA(VLOOKUP(Q30,Database_Tables!$I$1587:$J$1626,2,FALSE)),FALSE,TRUE) -> FALSE | AJ30: 0
B31: Energy not accounted for in a practice standard [MMBTU] | C31: =IF(ISBLANK(C26),"",C26*C$32) -> 0 | D31: 0 | E31: 0 | F31: 0 | G31: 0 | H31: 0 | I31: 0 | J31: 0 | K31: 0 | L31: 0 | M31: 0 | N31: 0 | P31: =IF(ISNA(VLOOKUP(Q31,Database_Tables!$I$1587:$J$1626,2,FALSE)),FALSE,TRUE) -> FALSE | AJ31: 0
B32: Energy Change (Benchmark vs. Planned) [MMBTU] | C32: =-(Intermediate_Calcs!H20-Intermediate_Calcs!Q20) -> 0 | D32: =-(SUM(Intermediate_Calcs!H21:H25)-SUM(Intermediate_Calcs!Q21:Q25)) -> 0 | E32: =-(SUM(Intermediate_Calcs!H26)-SUM(Intermediate_Calcs!Q26)) -> 0 | F32: =-(SUM(Intermediate_Calcs!H27:H28)-SUM(Intermediate_Calcs!Q27:Q28)) -> 0 | G32: =-(SUM(Intermediate_Calcs!H36:H41)-SUM(Intermediate_Calcs!Q36:Q41)) -> 0 | H32: =-(SUM(Intermediate_Calcs!H30:H35)-SUM(Intermediate_Calcs!Q30:Q35)) -> 0 | I32: =-(Intermediate_Calcs!H29-Intermediate_Calcs!Q29) -> 0 | J32: =Intermediate_Calcs!Q42-Intermediate_Calcs!H42 -> 0 | K32: =Intermediate_Calcs!Q43-Intermediate_Calcs!H43 -> 0 | L32: =Intermediate_Calcs!Q44-Intermediate_Calcs!H44 -> 0 | M32: =(Intermediate_Calcs!Q8-Intermediate_Calcs!H8)*7500/1000000 -> 0 | N32: =(Intermediate_Calcs!Q14-Intermediate_Calcs!H14)*7500/1000000 -> 0 | P32: =IF(ISNA(VLOOKUP(Q32,Database_Tables!$I$1587:$J$1626,2,FALSE)),FALSE,TRUE) -> FALSE | AJ32: 0
B33: Energy Change? | C33: =IF(ROUND(C32,2)=0,"No","Yes") -> No | D33: =IF(ROUND(D32,2)=0,"No","Yes") -> No | E33: No | F33: No | G33: No | H33: No | I33: =IF(ROUND(I32,5)=0,"No","Yes") -> No | J33: =IF(ROUND(J32,2)=0,"No","Yes") -> No | K33: =IF(ROUND(K32,2)=0,"No","Yes") -> No | L33: =IF(ROUND(L32,2)=0,"No","Yes") -> No | M33: =IF(ROUND(M32,2)=0,"No","Yes") -> No | N33: =IF(ROUND(N32,2)=0,"No","Yes") -> No | P33: =IF(ISNA(VLOOKUP(Q33,Database_Tables!$I$1587:$J$1626,2,FALSE)),FALSE,TRUE) -> FALSE | AJ33: 0
P34: =IF(ISNA(VLOOKUP(Q34,Database_Tables!$I$1587:$J$1626,2,FALSE)),FALSE,TRUE) -> FALSE | AJ34: 0
P35: =IF(ISNA(VLOOKUP(Q35,Database_Tables!$I$1587:$J$1626,2,FALSE)),FALSE,TRUE) -> FALSE | AJ35: 0
P36: =IF(ISNA(VLOOKUP(Q36,Database_Tables!$I$1587:$J$1626,2,FALSE)),FALSE,TRUE) -> FALSE | AJ36: 0
B40: NRCS - CROPLAND ENERGY TOOL
B42: PRACTICE STANDARDS INPUT WORKSHEET - FUEL TYPE USED
L43: Date: | M43: =Input!E17 -> 00:00:00
B44: ="Landowner: "&Input!E14 -> Landowner: | F44: Field Area: | G44: =Input!J14 -> 0 | L44: Latitude: | M44: =IF(Input!E18="","",Input!E18) -> 
B45: =IF(Input!E15="","Field Location: ",IF(OR(Input!E15="American Samoa",Input!E15="District of Columbia",Input!E15="Puerto Rico",Input!E15="Virgin Islands",Input!E15="Guam"),"Field Location: "&Input!E15,"Field Location: "&Input!E16&IF(Input!E15="Alaska"," Boro., "," Co., ")&VLOOKUP(Input!E15,Input!C208:D262,2,FALSE))) -> Field Location: | F45: Field ID: | G45: =IF(Input!E15="","",Input!E15) ->  | L45: Longitude: | M45: =IF(Input!E19="","",Input!E19) -> 
B48: Practice Standards | C48: Fuel Types Used | K48: Other Energy Input
C49: Harvest | E49: Field | G49: Irrigation | I49: Other | K49: Agri- | L49: Soil | N49: Labor
C50: Operations | E50: Operations | G50: Delivery | I50: Delivery | K50: Chemicals | L50: Amendments
G51: Energy | I51: Energy | K51: Fert.
B52: =IF(ISBLANK(B16),"",B16) -> 431 Above Ground Multi-Outlet Pipeline | K52: Agrichem | L52: Soil Amendments | N52: Labor | O52: =IF(ISNA(VLOOKUP(B16,Database_Tables!$I$1587:$J$1626,2,FALSE)),FALSE,TRUE) -> FALSE
K53: Agrichem | L53: Soil Amendments | N53: Labor | O53: =IF(ISNA(VLOOKUP(B17,Database_Tables!$I$1587:$J$1626,2,FALSE)),FALSE,TRUE) -> FALSE
K54: Agrichem | L54: Soil Amendments | N54: Labor | O54: =IF(ISNA(VLOOKUP(B18,Database_Tables!$I$1587:$J$1626,2,FALSE)),FALSE,TRUE) -> FALSE
K55: Agrichem | L55: Soil Amendments | N55: Labor | O55: =IF(ISNA(VLOOKUP(B19,Database_Tables!$I$1587:$J$1626,2,FALSE)),FALSE,TRUE) -> FALSE
K56: Agrichem | L56: Soil Amendments | N56: Labor | O56: =IF(ISNA(VLOOKUP(B20,Database_Tables!$I$1587:$J$1626,2,FALSE)),FALSE,TRUE) -> FALSE
K57: Agrichem | L57: Soil Amendments | N57: Labor | O57: =IF(ISNA(VLOOKUP(B21,Database_Tables!$I$1587:$J$1626,2,FALSE)),FALSE,TRUE) -> FALSE
K58: Agrichem | L58: Soil Amendments | N58: Labor | O58: =IF(ISNA(VLOOKUP(B22,Database_Tables!$I$1587:$J$1626,2,FALSE)),FALSE,TRUE) -> FALSE
K59: Agrichem | L59: Soil Amendments | N59: Labor | O59: =IF(ISNA(VLOOKUP(B23,Database_Tables!$I$1587:$J$1626,2,FALSE)),FALSE,TRUE) -> FALSE
K60: Agrichem | L60: Soil Amendments | N60: Labor | O60: =IF(ISNA(VLOOKUP(B24,Database_Tables!$I$1587:$J$1626,2,FALSE)),FALSE,TRUE) -> FALSE
K61: Agrichem | L61: Soil Amendments | N61: Labor | O61: =IF(ISNA(VLOOKUP(B25,Database_Tables!$I$1587:$J$1626,2,FALSE)),FALSE,TRUE) -> FALSE
B62: Energy percentage not accounted for in a practice standard | K62: Agrichem | L62: Soil Amendments | N62: Labor | O62: =IF(ISNA(VLOOKUP(B26,Database_Tables!$I$1587:$J$1626,2,FALSE)),FALSE,TRUE) -> FALSE
B63: Note: Default value used for shaded "Fuel Type Used" cells is Diesel (i.e. if cell is blank, diesel is used)
A77: 1
B78: Supporting Table for Percentage Calculations (Q10) | C78: C | D78: B | E78: P | F78: Units | G78: Practice Standard Category
B79: Farming | C79: C = B-P
A80: Farming Crop Yields | B80: Crop Yields [DM lb/ac/yr] | C80: =SUM(Intermediate_Calcs!L10:P10)/Intermediate_Calcs!Q19-SUM(Intermediate_Calcs!C10:G10)/Intermediate_Calcs!H19 -> 0 | D80: =SUM(Intermediate_Calcs!C10:G10)/Intermediate_Calcs!H19 -> 0 | E80: =SUM(Intermediate_Calcs!L10:P10)/Intermediate_Calcs!Q19 -> 0 | F80: DM lb | G80: Crop Harvest Removed | J80: 1 | K80: 1
A81: Farming Harvest Operation Diesel Use | B81: Harvest Operation Diesel Use [gal/ac/yr] | C81: =(Intermediate_Calcs!H20-Intermediate_Calcs!Q20)*1000000/140000 -> 0 | D81: =(Intermediate_Calcs!H20)*1000000/140000 -> 0 | E81: =(Intermediate_Calcs!Q20)*1000000/140000 -> 0 | F81: gal | G81: Harvest Operations | J81: 1 | K81: 1
A82: Farming Field Operation Diesel Use | B82: Field Operation Diesel Use [gal/ac/yr] | C82: =(SUM(Intermediate_Calcs!H21:H25)-SUM(Intermediate_Calcs!Q21:Q24))*1000000/140000 -> 0 | D82: =(SUM(Intermediate_Calcs!H21:H25))*1000000/140000 -> 0 | E82: =(SUM(Intermediate_Calcs!Q21:Q24))*1000000/140000 -> 0 | F82: gal | G82: Field Operations | J82: 1 | K82: 1
A83: Farming Forage Removed | B83: Post Harvest Removed Forage [DM lb/ac/yr] | C83: =Intermediate_Calcs!Q12-Intermediate_Calcs!H12 -> 0 | D83: =Intermediate_Calcs!H12 -> 0 | E83: =Intermediate_Calcs!Q12 -> 0 | F83: DM lb | G83: Post Harvest Forage Removed | J83: 1 | K83: 1
A84: Farming Grazing Removed | B84: Post Harvest Removed Grazing [DM/lb/ac/yr] | C84: =Intermediate_Calcs!Q11-Intermediate_Calcs!H11 -> 0 | D84: =Intermediate_Calcs!H11 -> 0 | E84: =Intermediate_Calcs!Q11 -> 0 | F84: DM lb | G84: Post Harvest Grazing | J84: 1 | K84: 1
A85: Farming Labor | B85: Labor [Hrs/ac/yr] | C85: =(Intermediate_Calcs!H29-Intermediate_Calcs!Q29)*8*252*1000000/3000/1000 -> 0 | D85: =(Intermediate_Calcs!H29)*8*252*1000000/3000/1000 -> 0 | E85: =(Intermediate_Calcs!Q29)*8*252*1000000/3000/1000 -> 0 | F85: DM lb | G85: Labor | J85: 1 | K85: 1
A86: Farming Nitrogen Applied | B86: Nitrogen Applied [lb/ac/yr] | C86: =(IF(Input!C61="",0,Input!D61)+IF(Input!C62="",0,Input!D62)+IF(Input!C63="",0,Input!D63)+IF(Input!C64="",0,Input!D64)+IF(Input!C65="",0,Input!D65))/Intermediate_Calcs!H19-(IF(Input!Q61="",0,Input!R61)+IF(Input!Q62="",0,Input!R62)+IF(Input!Q63="",0,Input!R63)+IF(Input!Q64="",0,Input!R64)+IF(Input!Q65="",0,Input!R65))/Intermediate_Calcs!Q19 -> 0 | D86: =(IF(Input!C61="",0,Input!D61)+IF(Input!C62="",0,Input!D62)+IF(Input!C63="",0,Input!D63)+IF(Input!C64="",0,Input!D64)+IF(Input!C65="",0,Input!D65))/Intermediate_Calcs!H19 -> 0 | E86: =(IF(Input!Q61="",0,Input!R61)+IF(Input!Q62="",0,Input!R62)+IF(Input!Q63="",0,Input!R63)+IF(Input!Q64="",0,Input!R64)+IF(Input!Q65="",0,Input!R65))/Intermediate_Calcs!Q19 -> 0 | F86: lb | G86: AgriChemicals | J86: =C86*Input!F188/1000000 -> 0 | K86: =SUM(J86:J91) -> 0
A87: Farming Phosphorus Applied | B87: Phosphorus Applied [lb/ac/yr] | C87: =(IF(Input!C61="",0,Input!E61)+IF(Input!C62="",0,Input!E62)+IF(Input!C63="",0,Input!E63)+IF(Input!C64="",0,Input!E64)+IF(Input!C65="",0,Input!E65))/Intermediate_Calcs!H19-(IF(Input!Q61="",0,Input!S61)+IF(Input!Q62="",0,Input!S62)+IF(Input!Q63="",0,Input!S63)+IF(Input!Q64="",0,Input!S64)+IF(Input!Q65="",0,Input!S65))/Intermediate_Calcs!Q19 -> 0 | D87: =(IF(Input!C61="",0,Input!E61)+IF(Input!C62="",0,Input!E62)+IF(Input!C63="",0,Input!E63)+IF(Input!C64="",0,Input!E64)+IF(Input!C65="",0,Input!E65))/Intermediate_Calcs!H19 -> 0 | E87: =(IF(Input!Q61="",0,Input!S61)+IF(Input!Q62="",0,Input!S62)+IF(Input!Q63="",0,Input!S63)+IF(Input!Q64="",0,Input!S64)+IF(Input!Q65="",0,Input!S65))/Intermediate_Calcs!Q19 -> 0 | F87: lb | G87: AgriChemicals | J87: =C87*Input!F189/1000000 -> 0 | K87: =SUM(J86:J91) -> 0
A88: Farming Potassium Applied | B88: Potassium Applied [lb/ac/yr] | C88: =(IF(Input!C61="",0,Input!F61)+IF(Input!C62="",0,Input!F62)+IF(Input!C63="",0,Input!F63)+IF(Input!C64="",0,Input!F64)+IF(Input!C65="",0,Input!F65))/Intermediate_Calcs!$H$19-(IF(Input!Q61="",0,Input!T61)+IF(Input!Q62="",0,Input!T62)+IF(Input!Q63="",0,Input!T63)+IF(Input!Q64="",0,Input!T64)+IF(Input!Q65="",0,Input!T65))/Intermediate_Calcs!$Q$19 -> 0 | D88: =(IF(Input!C61="",0,Input!F61)+IF(Input!C62="",0,Input!F62)+IF(Input!C63="",0,Input!F63)+IF(Input!C64="",0,Input!F64)+IF(Input!C65="",0,Input!F65))/Intermediate_Calcs!$H$19 -> 0 | E88: =(IF(Input!Q61="",0,Input!T61)+IF(Input!Q62="",0,Input!T62)+IF(Input!Q63="",0,Input!T63)+IF(Input!Q64="",0,Input!T64)+IF(Input!Q65="",0,Input!T65))/Intermediate_Calcs!$Q$19 -> 0 | F88: lb | G88: AgriChemicals | J88: =C88*Input!F190/1000000 -> 0 | K88: =SUM(J86:J91) -> 0
A89: Farming Sulfur Applied | B89: Sulfur Applied [lb/ac/yr] | C89: =(IF(Input!C61="",0,Input!G61)+IF(Input!C62="",0,Input!G62)+IF(Input!C63="",0,Input!G63)+IF(Input!C64="",0,Input!G64)+IF(Input!C65="",0,Input!G65))/Intermediate_Calcs!$H$19-(IF(Input!Q61="",0,Input!U61)+IF(Input!Q62="",0,Input!U62)+IF(Input!Q63="",0,Input!U63)+IF(Input!Q64="",0,Input!U64)+IF(Input!Q65="",0,Input!U65))/Intermediate_Calcs!$Q$19 -> 0 | D89: =(IF(Input!C61="",0,Input!G61)+IF(Input!C62="",0,Input!G62)+IF(Input!C63="",0,Input!G63)+IF(Input!C64="",0,Input!G64)+IF(Input!C65="",0,Input!G65))/Intermediate_Calcs!$H$19 -> 0 | E89: =(IF(Input!Q61="",0,Input!U61)+IF(Input!Q62="",0,Input!U62)+IF(Input!Q63="",0,Input!U63)+IF(Input!Q64="",0,Input!U64)+IF(Input!Q65="",0,Input!U65))/Intermediate_Calcs!$Q$19 -> 0 | F89: lb | G89: AgriChemicals | J89: =C89*Input!F191/1000000 -> 0 | K89: =SUM(J86:J91) -> 0
A90: Farming Herbicide Applied | B90: Herbicide Applied [oz/ac/yr] | C90: =(IF(Input!C61="",0,Input!H61)+IF(Input!C62="",0,Input!H62)+IF(Input!C63="",0,Input!H63)+IF(Input!C64="",0,Input!H64)+IF(Input!C65="",0,Input!H65))/Intermediate_Calcs!$H$19-(IF(Input!Q61="",0,Input!V61)+IF(Input!Q62="",0,Input!V62)+IF(Input!Q63="",0,Input!V63)+IF(Input!Q64="",0,Input!V64)+IF(Input!Q65="",0,Input!V65))/Intermediate_Calcs!$Q$19 -> 0 | D90: =(IF(Input!C61="",0,Input!H61)+IF(Input!C62="",0,Input!H62)+IF(Input!C63="",0,Input!H63)+IF(Input!C64="",0,Input!H64)+IF(Input!C65="",0,Input!H65))/Intermediate_Calcs!$H$19 -> 0 | E90: =(IF(Input!Q61="",0,Input!V61)+IF(Input!Q62="",0,Input!V62)+IF(Input!Q63="",0,Input!V63)+IF(Input!Q64="",0,Input!V64)+IF(Input!Q65="",0,Input!V65))/Intermediate_Calcs!$Q$19 -> 0 | F90: oz | G90: AgriChemicals | J90: =C90*Input!F192/IF(Input!D192="oz",1,16)/1000000 -> 0 | K90: =SUM(J86:J91) -> 0
A91: Farming Pesticide Applied | B91: Pesticide Applied [oz/ac/yr] | C91: =(IF(Input!C61="",0,Input!I61)+IF(Input!C62="",0,Input!I62)+IF(Input!C63="",0,Input!I63)+IF(Input!C64="",0,Input!I64)+IF(Input!C65="",0,Input!I65))/Intermediate_Calcs!$H$19-(IF(Input!Q61="",0,Input!W61)+IF(Input!Q62="",0,Input!W62)+IF(Input!Q63="",0,Input!W63)+IF(Input!Q64="",0,Input!W64)+IF(Input!Q65="",0,Input!W65))/Intermediate_Calcs!$Q$19 -> 0 | D91: =(IF(Input!C61="",0,Input!I61)+IF(Input!C62="",0,Input!I62)+IF(Input!C63="",0,Input!I63)+IF(Input!C64="",0,Input!I64)+IF(Input!C65="",0,Input!I65))/Intermediate_Calcs!$H$19 -> 0 | E91: =(IF(Input!Q61="",0,Input!W61)+IF(Input!Q62="",0,Input!W62)+IF(Input!Q63="",0,Input!W63)+IF(Input!Q64="",0,Input!W64)+IF(Input!Q65="",0,Input!W65))/Intermediate_Calcs!$Q$19 -> 0 | F91: oz | G91: AgriChemicals | J91: =C91*Input!F193/IF(Input!D193="oz",1,16)/1000000 -> 0 | K91: =SUM(J86:J91) -> 0
A92: Farming Organics Applied | B92: Organics Applied [lb/ac/yr] | C92: =(SUM(Intermediate_Calcs!H30:H35)-SUM(Intermediate_Calcs!Q30:Q35))*1000000/7500 -> 0 | D92: =(SUM(Intermediate_Calcs!H30:H35))*1000000/7500 -> 0 | E92: =(SUM(Intermediate_Calcs!Q30:Q35))*1000000/7500 -> 0 | F92: lb | G92: Soil Amendments | J92: 1 | K92: 1
B93: Irrigation | C93: C | D93: B | E93: P | F93: Units | G93: Practice Standard Category
A94: Irrigation Gross Applied | B94: Gross Applied [in]1 | C94: =ROUND((SUM(Intermediate_Calcs!C57:G57)-SUM(Intermediate_Calcs!C62:G62)),2) -> 0 | D94: =ROUND((SUM(Intermediate_Calcs!C57:G57)),2) -> 0 | E94: =ROUND((SUM(Intermediate_Calcs!C62:G62)),2) -> 0 | F94: in | G94: Irrigation Delivery Power | J94: =C94/12*43560.1742405*7.48051948052/1000000*Intermediate_Calcs!D84/Intermediate_Calcs!H19 ->  | K94: =SUM(J94:J97) -> 
A95: Irrigation Operation Pressure | B95: Operating Pressure [psi] | C95: =IF(AND(Input!D139,Input!R139),Input!F143-Input!T143,0) -> 0 | D95: =IF(Input!D139,Input!F143,0) -> 0 | E95: =IF(Input!R139,Input!T143,0) -> 0 | F95: psi | G95: Irrigation Delivery Power | J95: =C95*Intermediate_Calcs!$D$70*SUM(Intermediate_Calcs!$C$64:$G$64)/970.185026663/Intermediate_Calcs!$D$69/Input!S14/Input!M10 ->  | K95: =SUM(J94:J97) -> 
A96: Irrigation Pump Plant Efficiency | B96: Pump Plant Efficiency [%] | C96: =IF(AND(Input!D139,Input!R139),Input!U143-Input!G143,0)*100 -> 0 | D96: =IF(Input!D139,Input!G143,0)*100 -> 0 | E96: =IF(Input!R139,Input!U143,0)*100 -> 0 | F96: % | G96: Irrigation Delivery Power | J96: =IF((Intermediate_Calcs!$E$69-Intermediate_Calcs!$D$69)=0,0,((Intermediate_Calcs!$D$68*Intermediate_Calcs!$D$70*SUM(Intermediate_Calcs!$C$64:$G$64)/970.185026663/Intermediate_Calcs!$D$69/Input!S14/Input!M10)-(Intermediate_Calcs!$D$68*Intermediate_Calcs!$D$70*SUM(Intermediate_Calcs!$C$64:$G$64)/970.185026663/Intermediate_Calcs!$E$69/Input!S14/Input!M10))/(Intermediate_Calcs!$E$69-Intermediate_Calcs!$D$69)*C96/100) -> 0 | K96: =SUM(J94:J97) -> 
A97: Irrigation Operating Hours | B97: Operating Hours [hrs] | C97: =IF(AND(Input!D139,Input!R139),Input!H143-Input!V143,0) -> 0 | D97: =IF(Input!D139,Input!H143,0) -> 0 | E97: =IF(Input!R139,Input!V143,0) -> 0 | F97: hrs | G97: Irrigation Delivery Power | J97: =C97*Intermediate_Calcs!$D$68*SUM(Intermediate_Calcs!$C$64:$G$64)/970.185026663/Intermediate_Calcs!$D$69/Input!S14/Input!M10 ->  | K97: =SUM(J94:J97) -> 
B98: Other Delivery Power 1 | C98: C | D98: B | E98: P | F98: Units | G98: Practice Standard Category
A99: Other Del 1 Amount Applied | B99: Amount Applied, [Mgal/field]2 | C99: =ROUND(SUM(Intermediate_Calcs!C98:G98)/Intermediate_Calcs!H19-SUM(Intermediate_Calcs!C103:G103)/Intermediate_Calcs!Q19,2) -> 0 | D99: =ROUND(SUM(Intermediate_Calcs!C98:G98)/Intermediate_Calcs!H19,2) -> 0 | E99: =ROUND(SUM(Intermediate_Calcs!C103:G103)/Intermediate_Calcs!Q19,2) -> 0 | F99: Mgal | G99: Other Delivery Power | J99: =IF(AND(Input!D140,Input!R140),C99*Intermediate_Calcs!$D$120/Input!$J$14,0) -> 0 | K99: =SUM(J99:J101) -> 0
A100: Other Del 1 Operation Pressure | B100: Operating Pressure [psi] | C100: =IF(AND(Input!D140,Input!R140),Input!F144-Input!T144,0) -> 0 | D100: =IF(Input!D140,Input!F144,0) -> 0 | E100: =IF(Input!R140,Input!T144,0) -> 0 | F100: psi | G100: Other Delivery Power | J100: =IF(AND(Input!D140,Input!R140),C100*SUM(Intermediate_Calcs!$C$103:$G$103)/40.4244796986/Intermediate_Calcs!$D$108/Input!S14/Input!M10,0) -> 0 | K100: =SUM(J99:J101) -> 0
A101: Other Del 1 Pump Plant Efficiency | B101: Delivery/Pump Plant Efficiency [%] | C101: =IF(AND(Input!D140,Input!R140),Input!U144-Input!G144,0)*100 -> 0 | D101: =IF(Input!D140,Input!G144,0)*100 -> 0 | E101: =IF(Input!R140,Input!U144,0)*100 -> 0 | F101: % | G101: Other Delivery Power | J101: =IF(AND(Input!D140,Input!R140),((Intermediate_Calcs!$D$107*SUM(Intermediate_Calcs!$C$103:$G$103)/40.4244796986/Intermediate_Calcs!$D$108/Input!S14/Input!M10)-(Intermediate_Calcs!$D$107*SUM(Intermediate_Calcs!$C$103:$G$103)/40.4244796986/Intermediate_Calcs!$E$108/Input!S14/Input!M10))/(Intermediate_Calcs!$E$108-Intermediate_Calcs!$D$108)*C101/100,0) -> 0 | K101: =SUM(J99:J101) -> 0
B102: Other Delivery Power 2 | C102: C | D102: B | E102: P | F102: Units | G102: Practice Standard Category
A103: Other Del 2 Amount Applied | B103: Amount Applied, [Mgal/field]2 | C103: =ROUND(SUM(Intermediate_Calcs!C134:G134)/Intermediate_Calcs!H19-SUM(Intermediate_Calcs!C139:G139)/Intermediate_Calcs!Q19,2) -> 0 | D103: =ROUND(SUM(Intermediate_Calcs!C134:G134)/Intermediate_Calcs!H19,2) -> 0 | E103: =ROUND(SUM(Intermediate_Calcs!C139:G139)/Intermediate_Calcs!Q19,2) -> 0 | F103: Mgal | G103: Other Delivery Power | J103: =IF(AND(Input!D141,Input!R141),C103*Intermediate_Calcs!$D$156/Input!$J$14,0) -> 0 | K103: =SUM(J103:J105) -> 0
A104: Other Del 2 Operation Pressure | B104: Operating Pressure [psi] | C104: =IF(AND(Input!D141,Input!R141),Input!F145-Input!T145,0) -> 0 | D104: =IF(Input!D141,Input!F145,0) -> 0 | E104: =IF(Input!R141,Input!T145,0) -> 0 | F104: psi | G104: Other Delivery Power | J104: =IF(AND(Input!D141,Input!R141),C104*SUM(Intermediate_Calcs!$C$139:$G$139)/40.4244796986/Intermediate_Calcs!$D$144/Input!S14/Input!M10,0) -> 0 | K104: =SUM(J103:J105) -> 0
A105: Other Del 2 Pump Plant Efficiency | B105: Delivery/Pump Plant Efficiency [%] | C105: =IF(AND(Input!D141,Input!R141),Input!U145-Input!G145,0)*100 -> 0 | D105: =IF(Input!D141,Input!G145,0)*100 -> 0 | E105: =IF(Input!R141,Input!U145,0)*100 -> 0 | F105: % | G105: Other Delivery Power | J105: =IF(AND(Input!D141,Input!R141),((Intermediate_Calcs!$D$143*SUM(Intermediate_Calcs!$C$139:$G$139)/40.4244796986/Intermediate_Calcs!$D$144/Input!S14/Input!M10)-(Intermediate_Calcs!$D$143*SUM(Intermediate_Calcs!$C$139:$G$139)/40.4244796986/Intermediate_Calcs!$E$144/Input!S14/Input!M10))/(Intermediate_Calcs!$E$144-Intermediate_Calcs!$D$144)*C105/100,0) -> 0 | K105: =SUM(J103:J105) -> 0
B106: Other Delivery Power 3 | C106: C | D106: B | E106: P | F106: Units | G106: Practice Standard Category
A107: Other Del 3 Amount Applied | B107: Amount Applied, [Mgal/field]2 | C107: =ROUND(SUM(Intermediate_Calcs!C170:G170)/Intermediate_Calcs!H19-SUM(Intermediate_Calcs!C175:G175)/Intermediate_Calcs!Q19,2) -> 0 | D107: =ROUND(SUM(Intermediate_Calcs!C170:G170)/Intermediate_Calcs!H19,2) -> 0 | E107: =ROUND(SUM(Intermediate_Calcs!C175:G175)/Intermediate_Calcs!Q19,2) -> 0 | F107: Mgal | G107: Other Delivery Power | J107: =IF(AND(Input!D142,Input!R142),C107*Intermediate_Calcs!$D$192/Input!$J$14,0) -> 0 | K107: =SUM(J107:J109) -> 0
A108: Other Del 3 Operation Pressure | B108: Operating Pressure [psi] | C108: =IF(AND(Input!D142,Input!R142),Input!F146-Input!T146,0) -> 0 | D108: =IF(Input!D142,Input!F146,0) -> 0 | E108: =IF(Input!R142,Input!T146,0) -> 0 | F108: psi | G108: Other Delivery Power | J108: =IF(AND(Input!D142,Input!R142),C108*SUM(Intermediate_Calcs!$C$175:$G$175)/40.4244796986/Intermediate_Calcs!$D$180/Input!S14/Input!M10,0) -> 0 | K108: =SUM(J107:J109) -> 0
A109: Other Del 3 Pump Plant Efficiency | B109: Delivery/Pump Plant Efficiency [%] | C109: =IF(AND(Input!D142,Input!R142),Input!U146-Input!G146,0) -> 0 | D109: =IF(Input!D142,Input!G146,0) -> 0 | E109: =IF(Input!R142,Input!U146,0) -> 0 | F109: % | G109: Other Delivery Power | J109: =IF(AND(Input!D142,Input!R142),((Intermediate_Calcs!$D$179*SUM(Intermediate_Calcs!$C$175:$G$175)/40.4244796986/Intermediate_Calcs!$D$180/Input!S14/Input!M10)-(Intermediate_Calcs!$D$179*SUM(Intermediate_Calcs!$C$175:$G$175)/40.4244796986/Intermediate_Calcs!$E$180/Input!S14/Input!M10))/(Intermediate_Calcs!$E$180-Intermediate_Calcs!$D$180)*C109/100,0) -> 0 | K109: =SUM(J107:J109) -> 0
B110: Energy Remain | C110: C | D110: B | E110: P | F110: Units | G110: Practice Standard Category
A111: Energy Remain Rootmass | B111: Rootmass | C111: =(Intermediate_Calcs!Q8-Intermediate_Calcs!H8) -> 0 | D111: =(Intermediate_Calcs!H8) -> 0 | E111: =(Intermediate_Calcs!Q8) -> 0 | F111: DM lb | G111: Rootmass | J111: 1 | K111: 1
A112: Energy Remain Surface Residue | B112: Surface Residue | C112: =(Intermediate_Calcs!Q14-Intermediate_Calcs!H14) -> 0 | D112: =(Intermediate_Calcs!H14) -> 0 | E112: =(Intermediate_Calcs!Q14) -> 0 | F112: DM lb | G112: Surface Residue | J112: 1 | K112: 1
B140: 1
B142: Practice Standards | C142: Percent of Enegy Saved
C143: MMBTU | D143: [%] | F143: Energy Saved | I143: Practice Standard | K143: Practice Standard | M143: Total Energy
B144: =IF(ISBLANK(B16),"",B16) -> 431 Above Ground Multi-Outlet Pipeline | C144: =IF(ISBLANK(B16),"",$C$32*C16+$D$32*D16+$E$32*E16+$F$32*F16+$G$32*G16+$H$32*H16+$I$32*I16+$J$32*J16+$K$32*K16+$L$32*L16+$M$32*M16+$N$32*N16) -> 0 | D144: =IF(ISBLANK(B16),"",C144/Report_Details!$H$39) ->  | F144: Benchmark - Planned | I144: Accounted For | K144: Not Accounted | M144: Saved
D145: =IF(ISBLANK(B17),"",C145/Report_Details!$H$39) ->  | F145: Energy Input to the Field | I145: =M145-K145 -> 0 | K145: =C26*C32+D26*D32+E26*E32+F26*F32+G26*G32+H26*H32 -> 0 | M145: =SUM(C32:I32) -> 0
D146: =IF(ISBLANK(B18),"",C146/Report_Details!$H$39) ->  | F146: Engergy Harvest | I146: =M146-K146 -> 0 | K146: =J26*J32+K26*K32+L26*L32 -> 0 | M146: =SUM(J32:L32) -> 0
D147: =IF(ISBLANK(B19),"",C147/Report_Details!$H$39) ->  | F147: Energy Residual | I147: =M147-K147 -> 0 | K147: =M26*M32+N26*N32 -> 0 | M147: =SUM(M32:N32) -> 0
D148: =IF(ISBLANK(B20),"",C148/Report_Details!$H$39) ->  | F148: Total Energy Saved | I148: =M148-K148 -> 0 | K148: =SUM(K145:K147) -> 0 | M148: =SUM(M145:M147) -> 0
D149: =IF(ISBLANK(B21),"",C149/Report_Details!$H$39) -> 
D150: =IF(ISBLANK(B22),"",C150/Report_Details!$H$39) -> 
D151: =IF(ISBLANK(B23),"",C151/Report_Details!$H$39) -> 
D152: =IF(ISBLANK(B24),"",C152/Report_Details!$H$39) -> 
D153: =IF(ISBLANK(B25),"",C153/Report_Details!$H$39) -> 
C156: Intermediate
B157: Practice Standards | C157: Energy Input | E157: Energy Harvested | G157: Residual
C158: MMBTU | D158: [%] | E158: MMBTU | F158: [%] | G158: MMBTU | H158: [%]
B159: =IF(ISBLANK(B144),"",B144) -> 431 Above Ground Multi-Outlet Pipeline | C159: =$C$32*C16+$D$32*D16+$E$32*E16+$F$32*F16+$G$32*G16+$H$32*H16+$I$32*I16 -> 0 | D159: =C159/SUM($C$32:$H$32) ->  | E159: =$J$32*J16+$K$32*K16+$L$32*L16 -> 0 | F159: =E159/SUM($J$32:$L$32) ->  | G159: =$M$32*M16+$N$32*N16 -> 0 | H159: =G159/SUM($M$32:$N$32) -> 
B160: =IF(ISBLANK(B145),"",B145) ->  | C160: 0 | E160: 0 | G160: 0
B161: =IF(ISBLANK(B146),"",B146) ->  | C161: 0 | E161: 0 | G161: 0
B162: =IF(ISBLANK(B147),"",B147) ->  | C162: 0 | E162: 0 | G162: 0
C163: 0 | E163: 0 | G163: 0
C164: 0 | E164: 0 | G164: 0
C165: 0 | E165: 0 | G165: 0
C166: 0 | E166: 0 | G166: 0
C167: 0 | E167: 0 | G167: 0

Sheet Report_PS (hidden)
B2: NRCS - CROPLAND ENERGY TOOL
B4: ENERGY SUMMARY BY PRACTICE STANDARD
L5: Date: | M5: =IF(Input!E17="","",Input!E17) -> 
B6: ="Landowner: "&Input!E14 -> Landowner: | F6: Field Area: | G6: =IF(Input!J14="","",Input!J14) ->  | L6: Latitude: | M6: =IF(Input!E18="","",Input!E18) -> 
B7: =IF(Input!E15="","Field Location: ",IF(OR(Input!E15="American Samoa",Input!E15="District of Columbia",Input!E15="Puerto Rico",Input!E15="Virgin Islands",Input!E15="Guam"),"Field Location: "&Input!E15,"Field Location: "&Input!E16&IF(Input!E15="Alaska"," Boro., "," Co., ")&VLOOKUP(Input!E15,Input!C208:D262,2,FALSE))) -> Field Location: | F7: Field ID: | G7: =IF(Input!J15="","",Input!J15) ->  | L7: Longitude: | M7: =IF(Input!E19="","",Input!E19) -> 
B10: Energy Change Distribution by Practice
B12: Benchmark Energy [MMBTU] | C12: Energy Input to the Field | F12: Energy Harvest | I12: Energy Remaining | L12: Energy Gain (Loss)
C13: =Report_Details!H25 -> 0 | F13: =Report_Details!H31 -> 0 | I13: =Report_Details!H36 -> 0 | L13: =F13+I13-C13 -> 0
B14: Practice Standard | C14: Number | D14: Percent | F14: Number | G14: Percent | I14: Number | J14: Percent | L14: Number | M14: Percent
C15: [MMBTU] | D15: Change | E15: Total | F15: [MMBTU] | G15: Change | H15: Total | I15: [MMBTU] | J15: Change | K15: Total | L15: [MMBTU] | M15: Change | N15: Total
B16: =Input_PS!B16 -> 431 Above Ground Multi-Outlet Pipeline | C16: =IF(B16=0,0,SUM(PS_Intermediate!C16:I16)) -> 0 | D16: =IF($C$27=0,"",C16/C$27) ->  | E16: =IF(C13=0,"",C16/C$13) ->  | F16: =IF(B16=0,0,SUM(PS_Intermediate!J16:L16)) -> 0 | G16: =IF($F$27=0,"",F16/F$27) ->  | H16: =IF(F13=0,"",F16/F$13) ->  | I16: =IF(B16=0,0,SUM(PS_Intermediate!M16:N16)) -> 0 | J16: =IF($I$27=0,"",I16/I$27) ->  | K16: =IF(I13=0,"",I16/I$13) ->  | L16: =F16+I16-C16 -> 0 | M16: =IF($L$27=0,"",L16/L$27) ->  | N16: =IF(L13=0,"",L16/L$13) ->  | O16: =IF(ISNA(VLOOKUP(B16,Database_Tables!$I$1587:$J$1626,2,FALSE)),FALSE,TRUE) -> FALSE
B17: =Input_PS!B17 -> 0 | C17: =IF(B17=0,0,SUM(PS_Intermediate!C17:I17)) -> 0 | E17: =IF(C13=0,"",C17/C$13) ->  | F17: =IF(B17=0,0,SUM(PS_Intermediate!J17:L17)) -> 0 | H17: =IF(F13=0,"",F17/F$13) ->  | I17: =IF(B17=0,0,SUM(PS_Intermediate!M17:N17)) -> 0 | K17: =IF(I13=0,"",I17/I$13) ->  | L17: =F17+I17-C17 -> 0 | N17: =IF(L13=0,"",L17/L$13) ->  | O17: =IF(ISNA(VLOOKUP(B17,Database_Tables!$I$1587:$J$1626,2,FALSE)),FALSE,TRUE) -> FALSE
B18: =Input_PS!B18 -> 0 | C18: =IF(B18=0,0,SUM(PS_Intermediate!C18:I18)) -> 0 | E18: =IF(C13=0,"",C18/C$13) ->  | F18: =IF(B18=0,0,SUM(PS_Intermediate!J18:L18)) -> 0 | H18: =IF(F13=0,"",F18/F$13) ->  | I18: =IF(B18=0,0,SUM(PS_Intermediate!M18:N18)) -> 0 | K18: =IF(I13=0,"",I18/I$13) ->  | L18: 0 | N18: =IF(L13=0,"",L18/L$13) ->  | O18: =IF(ISNA(VLOOKUP(B18,Database_Tables!$I$1587:$J$1626,2,FALSE)),FALSE,TRUE) -> FALSE
B19: =Input_PS!B19 -> 0 | C19: =IF(B19=0,0,SUM(PS_Intermediate!C19:I19)) -> 0 | E19: =IF(C13=0,"",C19/C$13) ->  | F19: =IF(B19=0,0,SUM(PS_Intermediate!J19:L19)) -> 0 | H19: =IF(F13=0,"",F19/F$13) ->  | I19: =IF(B19=0,0,SUM(PS_Intermediate!M19:N19)) -> 0 | K19: =IF(I13=0,"",I19/I$13) ->  | L19: 0 | N19: =IF(L13=0,"",L19/L$13) ->  | O19: =IF(ISNA(VLOOKUP(B19,Database_Tables!$I$1587:$J$1626,2,FALSE)),FALSE,TRUE) -> FALSE
B20: =Input_PS!B20 -> 0 | C20: =IF(B20=0,0,SUM(PS_Intermediate!C20:I20)) -> 0 | E20: =IF(C13=0,"",C20/C$13) ->  | F20: =IF(B20=0,0,SUM(PS_Intermediate!J20:L20)) -> 0 | H20: =IF(F13=0,"",F20/F$13) ->  | I20: =IF(B20=0,0,SUM(PS_Intermediate!M20:N20)) -> 0 | K20: =IF(I13=0,"",I20/I$13) ->  | L20: 0 | N20: =IF(L13=0,"",L20/L$13) ->  | O20: =IF(ISNA(VLOOKUP(B20,Database_Tables!$I$1587:$J$1626,2,FALSE)),FALSE,TRUE) -> FALSE
B21: =Input_PS!B21 -> 0 | C21: =IF(B21=0,0,SUM(PS_Intermediate!C21:I21)) -> 0 | E21: =IF(C13=0,"",C21/C$13) ->  | F21: =IF(B21=0,0,SUM(PS_Intermediate!J21:L21)) -> 0 | H21: =IF(F13=0,"",F21/F$13) ->  | I21: =IF(B21=0,0,SUM(PS_Intermediate!M21:N21)) -> 0 | K21: =IF(I13=0,"",I21/I$13) ->  | L21: 0 | N21: =IF(L13=0,"",L21/L$13) ->  | O21: =IF(ISNA(VLOOKUP(B21,Database_Tables!$I$1587:$J$1626,2,FALSE)),FALSE,TRUE) -> FALSE
B22: =Input_PS!B22 -> 0 | C22: =IF(B22=0,0,SUM(PS_Intermediate!C22:I22)) -> 0 | E22: =IF(C13=0,"",C22/C$13) ->  | F22: =IF(B22=0,0,SUM(PS_Intermediate!J22:L22)) -> 0 | H22: =IF(F13=0,"",F22/F$13) ->  | I22: =IF(B22=0,0,SUM(PS_Intermediate!M22:N22)) -> 0 | K22: =IF(I13=0,"",I22/I$13) ->  | L22: 0 | N22: =IF(L13=0,"",L22/L$13) ->  | O22: =IF(ISNA(VLOOKUP(B22,Database_Tables!$I$1587:$J$1626,2,FALSE)),FALSE,TRUE) -> FALSE
B23: =Input_PS!B23 -> 0 | C23: =IF(B23=0,0,SUM(PS_Intermediate!C23:I23)) -> 0 | E23: =IF(C13=0,"",C23/C$13) ->  | F23: =IF(B23=0,0,SUM(PS_Intermediate!J23:L23)) -> 0 | H23: =IF(F13=0,"",F23/F$13) ->  | I23: =IF(B23=0,0,SUM(PS_Intermediate!M23:N23)) -> 0 | K23: =IF(I13=0,"",I23/I$13) ->  | L23: 0 | N23: =IF(L13=0,"",L23/L$13) ->  | O23: =IF(ISNA(VLOOKUP(B23,Database_Tables!$I$1587:$J$1626,2,FALSE)),FALSE,TRUE) -> FALSE
B24: =Input_PS!B24 -> 0 | C24: =IF(B24=0,0,SUM(PS_Intermediate!C24:I24)) -> 0 | E24: =IF(C13=0,"",C24/C$13) ->  | F24: =IF(B24=0,0,SUM(PS_Intermediate!J24:L24)) -> 0 | H24: =IF(F13=0,"",F24/F$13) ->  | I24: =IF(B24=0,0,SUM(PS_Intermediate!M24:N24)) -> 0 | K24: =IF(I13=0,"",I24/I$13) ->  | L24: 0 | N24: =IF(L13=0,"",L24/L$13) ->  | O24: =IF(ISNA(VLOOKUP(B24,Database_Tables!$I$1587:$J$1626,2,FALSE)),FALSE,TRUE) -> FALSE
B25: =Input_PS!B25 -> 0 | C25: =IF(B25=0,0,SUM(PS_Intermediate!C25:I25)) -> 0 | E25: =IF(C13=0,"",C25/C$13) ->  | F25: =IF(B25=0,0,SUM(PS_Intermediate!J25:L25)) -> 0 | H25: =IF(F13=0,"",F25/F$13) ->  | I25: =IF(B25=0,0,SUM(PS_Intermediate!M25:N25)) -> 0 | K25: =IF(I13=0,"",I25/I$13) ->  | L25: 0 | N25: =IF(L13=0,"",L25/L$13) ->  | O25: =IF(ISNA(VLOOKUP(B25,Database_Tables!$I$1587:$J$1626,2,FALSE)),FALSE,TRUE) -> FALSE
B26: Energy not accounted for in a practice standard | C26: =SUM(PS_Intermediate!C26:I26) -> 0 | E26: =IF(C13=0,"",C26/C$13) ->  | F26: =SUM(PS_Intermediate!J26:L26) -> 0 | H26: =IF(F13=0,"",F26/F$13) ->  | I26: =SUM(PS_Intermediate!M26:N26) -> 0 | K26: =IF(I13=0,"",I26/I$13) ->  | L26: 0 | N26: =IF(L13=0,"",L26/L$13) -> 
B27: Energy Change [MMBTU] | C27: =SUM(C16:C26) -> 0 | E27: =IF(C13=0,"",C27/C$13) ->  | F27: =SUM(F16:F26) -> 0 | H27: =IF(F13=0,"",F27/F$13) ->  | I27: =SUM(I16:I26) -> 0 | K27: =IF(I13=0,"",I27/I$13) ->  | L27: =SUM(L16:L26) -> 0 | N27: =IF(L13=0,"",L27/L$13) -> 
B28: Planned Energy [MMBTU] | C28: =C13+C27 -> 0 | F28: =F13+F27 -> 0 | I28: =I13+I27 -> 0 | L28: =L13+L27 -> 0
B40: NRCS - CROPLAND ENERGY TOOL
B42: GREENHOUSE GAS CHANGE BY PRACTICE STANDARD
L43: Date: | M43: =IF(Input!E17="","",Input!E17) -> 
B44: ="Landowner: "&Input!E14 -> Landowner: | F44: Field Area: | G44: =IF(Input!J14="","",Input!J14) ->  | L44: Latitude: | M44: =IF(Input!E18="","",Input!E18) -> 
B45: =IF(Input!E15="","Field Location: ",IF(OR(Input!E15="American Samoa",Input!E15="District of Columbia",Input!E15="Puerto Rico",Input!E15="Virgin Islands",Input!E15="Guam"),"Field Location: "&Input!E15,"Field Location: "&Input!E16&IF(Input!E15="Alaska"," Boro., "," Co., ")&VLOOKUP(Input!E15,Input!C208:D262,2,FALSE))) -> Field Location: | F45: Field ID: | G45: =IF(Input!E15="","",Input!E15) ->  | L45: Longitude: | M45: =IF(Input!E19="","",Input!E19) -> 
B48: Total Field | C48: Energy | E48: Reduced Greenhouse Gas Emissions
B49: Practice Standard | C49: Savings | E49: CO2 | G49: N2O | I49: CH4 | K49: SO2 | M49: NOx
C50: [MMBTU] | E50: [lb] | G50: [lb] | I50: [lb] | K50: [lb] | M50: [lb]
B51: =Input_PS!B16 -> 431 Above Ground Multi-Outlet Pipeline | C51: =IF($B$48="Per Acre Inputs",-1,-1*Input!$J$14)*IF(B51=0,0,SUM(PS_Intermediate!C16:I16))*IF(C50="[MBTU]",1000,1) -> 0 | E51: =IF($B$48="Per Acre Inputs",-1,-1*Input!$J$14)*(IF(AND(Input_PS!C$33="Yes",NOT(ISBLANK(Input_PS!$B16)),Input_PS!C16>0),PS_Intermediate!C16,0)/IF(Input_PS!C52="",VLOOKUP("Diesel",Database_Tables!$C$1749:$J$1763,2,FALSE),VLOOKUP(Input_PS!C52,Database_Tables!$C$1749:$J$1763,2,FALSE))*IF(Input_PS!C52="",VLOOKUP("Diesel",Database_Tables!$C$1749:$J$1763,3,FALSE),VLOOKUP(Input_PS!C52,Database_Tables!$C$1749:$J$1763,3,FALSE))+IF(AND(Input_PS!D$33="Yes",NOT(ISBLANK(Input_PS!$B16)),Input_PS!D16>0),PS_Intermediate!D16,0)/IF(Input_PS!E52="",VLOOKUP("Diesel",Database_Tables!$C$1749:$J$1763,2,FALSE),VLOOKUP(Input_PS!E52,Database_Tables!$C$1749:$J$1763,2,FALSE))*IF(Input_PS!E52="",VLOOKUP("Diesel",Database_Tables!$C$1749:$J$1763,3,FALSE),VLOOKUP(Input_PS!E52,Database_Tables!$C$1749:$J$1763,3,FALSE))+IF(AND(Input_PS!E$33="Yes",NOT(ISBLANK(Input_PS!$B16)),Input_PS!E16>0),PS_Intermediate!E16,0)/IF(Input_PS!G52="",VLOOKUP("Diesel",Database_Tables!$C$1749:$J$1763,2,FALSE),VLOOKUP(Input_PS!G52,Database_Tables!$C$1749:$J$1763,2,FALSE))*IF(Input_PS!G52="",VLOOKUP("Diesel",Database_Tables!$C$1749:$J$1763,3,FALSE),VLOOKUP(Input_PS!G52,Database_Tables!$C$1749:$J$1763,3,FALSE))+IF(AND(Input_PS!F$33="Yes",NOT(ISBLANK(Input_PS!$B16)),Input_PS!F16>0),PS_Intermediate!F16,0)/IF(Input_PS!I52="",VLOOKUP("Diesel",Database_Tables!$C$1749:$J$1763,2,FALSE),VLOOKUP(Input_PS!I52,Database_Tables!$C$1749:$J$1763,2,FALSE))*IF(Input_PS!I52="",VLOOKUP("Diesel",Database_Tables!$C$1749:$J$1763,3,FALSE),VLOOKUP(Input_PS!I52,Database_Tables!$C$1749:$J$1763,3,FALSE))+IF(AND(Input_PS!G$33="Yes",NOT(ISBLANK(Input_PS!$B16)),Input_PS!G16>0),PS_Intermediate!G16,0)/IF(Input_PS!K52="",VLOOKUP(Database_Tables!$C$1761,Database_Tables!$C$1749:$J$1763,2,FALSE),VLOOKUP(Input_PS!K52,Database_Tables!$C$1749:$J$1763,2,FALSE))*IF(Input_PS!K52="",VLOOKUP(Database_Tables!$C$1761,Database_Tables!$C$1749:$J$1763,3,FALSE),VLOOKUP(Input_PS!K52,Database_Tables!$C$1749:$J$1763,3,FALSE))+IF(AND(Input_PS!H$33="Yes",NOT(ISBLANK(Input_PS!$B16)),Input_PS!H16>0),PS_Intermediate!H16,0)/IF(Input_PS!L52="",VLOOKUP(Database_Tables!$C$1762,Database_Tables!$C$1749:$J$1763,2,FALSE),VLOOKUP(Input_PS!L52,Database_Tables!$C$1749:$J$1763,2,FALSE))*IF(Input_PS!L52="",VLOOKUP(Database_Tables!$C$1762,Database_Tables!$C$1749:$J$1763,3,FALSE),VLOOKUP(Input_PS!L52,Database_Tables!$C$1749:$J$1763,3,FALSE))+IF(AND(Input_PS!I$33="Yes",NOT(ISBLANK(Input_PS!$B16)),Input_PS!I16>0),PS_Intermediate!I16,0)/IF(Input_PS!N52="",VLOOKUP(Database_Tables!$C$1763,Database_Tables!$C$1749:$J$1763,2,FALSE),VLOOKUP(Input_PS!N52,Database_Tables!$C$1749:$J$1763,2,FALSE))*IF(Input_PS!N52="",VLOOKUP(Database_Tables!$C$1763,Database_Tables!$C$1749:$J$1763,3,FALSE),VLOOKUP(Input_PS!N52,Database_Tables!$C$1749:$J$1763,3,FALSE))) -> 0 | G51: =IF($B$48="Per Acre Inputs",-1,-1*Input!$J$14)*(IF(AND(Input_PS!C$33="Yes",NOT(ISBLANK(Input_PS!$B16)),Input_PS!C16>0),PS_Intermediate!C16,0)/IF(Input_PS!C52="",VLOOKUP("Diesel",Database_Tables!$C$1749:$J$1763,2,FALSE),VLOOKUP(Input_PS!C52,Database_Tables!$C$1749:$J$1763,2,FALSE))*IF(Input_PS!C52="",VLOOKUP("Diesel",Database_Tables!$C$1749:$J$1763,4,FALSE),VLOOKUP(Input_PS!C52,Database_Tables!$C$1749:$J$1763,4,FALSE))+IF(AND(Input_PS!D$33="Yes",NOT(ISBLANK(Input_PS!$B16)),Input_PS!D16>0),PS_Intermediate!D16,0)/IF(Input_PS!E52="",VLOOKUP("Diesel",Database_Tables!$C$1749:$J$1763,2,FALSE),VLOOKUP(Input_PS!E52,Database_Tables!$C$1749:$J$1763,2,FALSE))*IF(Input_PS!E52="",VLOOKUP("Diesel",Database_Tables!$C$1749:$J$1763,4,FALSE),VLOOKUP(Input_PS!E52,Database_Tables!$C$1749:$J$1763,4,FALSE))+IF(AND(Input_PS!E$33="Yes",NOT(ISBLANK(Input_PS!$B16)),Input_PS!E16>0),PS_Intermediate!E16,0)/IF(Input_PS!G52="",VLOOKUP("Diesel",Database_Tables!$C$1749:$J$1763,2,FALSE),VLOOKUP(Input_PS!G52,Database_Tables!$C$1749:$J$1763,2,FALSE))*IF(Input_PS!G52="",VLOOKUP("Diesel",Database_Tables!$C$1749:$J$1763,4,FALSE),VLOOKUP(Input_PS!G52,Database_Tables!$C$1749:$J$1763,4,FALSE))+IF(AND(Input_PS!F$33="Yes",NOT(ISBLANK(Input_PS!$B16)),Input_PS!F16>0),PS_Intermediate!F16,0)/IF(Input_PS!I52="",VLOOKUP("Diesel",Database_Tables!$C$1749:$J$1763,2,FALSE),VLOOKUP(Input_PS!I52,Database_Tables!$C$1749:$J$1763,2,FALSE))*IF(Input_PS!I52="",VLOOKUP("Diesel",Database_Tables!$C$1749:$J$1763,4,FALSE),VLOOKUP(Input_PS!I52,Database_Tables!$C$1749:$J$1763,4,FALSE))+IF(AND(Input_PS!G$33="Yes",NOT(ISBLANK(Input_PS!$B16)),Input_PS!G16>0),PS_Intermediate!G16,0)/IF(Input_PS!K52="",VLOOKUP(Database_Tables!$C$1761,Database_Tables!$C$1749:$J$1763,2,FALSE),VLOOKUP(Input_PS!K52,Database_Tables!$C$1749:$J$1763,2,FALSE))*IF(Input_PS!K52="",VLOOKUP(Database_Tables!$C$1761,Database_Tables!$C$1749:$J$1763,4,FALSE),VLOOKUP(Input_PS!K52,Database_Tables!$C$1749:$J$1763,4,FALSE))+IF(AND(Input_PS!H$33="Yes",NOT(ISBLANK(Input_PS!$B16)),Input_PS!H16>0),PS_Intermediate!H16,0)/IF(Input_PS!L52="",VLOOKUP(Database_Tables!$C$1762,Database_Tables!$C$1749:$J$1763,2,FALSE),VLOOKUP(Input_PS!L52,Database_Tables!$C$1749:$J$1763,2,FALSE))*IF(Input_PS!L52="",VLOOKUP(Database_Tables!$C$1762,Database_Tables!$C$1749:$J$1763,4,FALSE),VLOOKUP(Input_PS!L52,Database_Tables!$C$1749:$J$1763,4,FALSE))+IF(AND(Input_PS!I$33="Yes",NOT(ISBLANK(Input_PS!$B16)),Input_PS!I16>0),PS_Intermediate!I16,0)/IF(Input_PS!N52="",VLOOKUP(Database_Tables!$C$1763,Database_Tables!$C$1749:$J$1763,2,FALSE),VLOOKUP(Input_PS!N52,Database_Tables!$C$1749:$J$1763,2,FALSE))*IF(Input_PS!N52="",VLOOKUP(Database_Tables!$C$1763,Database_Tables!$C$1749:$J$1763,4,FALSE),VLOOKUP(Input_PS!N52,Database_Tables!$C$1749:$J$1763,4,FALSE))) -> 0 | I51: =IF($B$48="Per Acre Inputs",-1,-1*Input!$J$14)*(IF(AND(Input_PS!C$33="Yes",NOT(ISBLANK(Input_PS!$B16)),Input_PS!C16>0),PS_Intermediate!C16,0)/IF(Input_PS!C52="",VLOOKUP("Diesel",Database_Tables!$C$1749:$J$1763,2,FALSE),VLOOKUP(Input_PS!C52,Database_Tables!$C$1749:$J$1763,2,FALSE))*IF(Input_PS!C52="",VLOOKUP("Diesel",Database_Tables!$C$1749:$J$1763,5,FALSE),VLOOKUP(Input_PS!C52,Database_Tables!$C$1749:$J$1763,5,FALSE))+IF(AND(Input_PS!D$33="Yes",NOT(ISBLANK(Input_PS!$B16)),Input_PS!D16>0),PS_Intermediate!D16,0)/IF(Input_PS!E52="",VLOOKUP("Diesel",Database_Tables!$C$1749:$J$1763,2,FALSE),VLOOKUP(Input_PS!E52,Database_Tables!$C$1749:$J$1763,2,FALSE))*IF(Input_PS!E52="",VLOOKUP("Diesel",Database_Tables!$C$1749:$J$1763,5,FALSE),VLOOKUP(Input_PS!E52,Database_Tables!$C$1749:$J$1763,5,FALSE))+IF(AND(Input_PS!E$33="Yes",NOT(ISBLANK(Input_PS!$B16)),Input_PS!E16>0),PS_Intermediate!E16,0)/IF(Input_PS!G52="",VLOOKUP("Diesel",Database_Tables!$C$1749:$J$1763,2,FALSE),VLOOKUP(Input_PS!G52,Database_Tables!$C$1749:$J$1763,2,FALSE))*IF(Input_PS!G52="",VLOOKUP("Diesel",Database_Tables!$C$1749:$J$1763,5,FALSE),VLOOKUP(Input_PS!G52,Database_Tables!$C$1749:$J$1763,5,FALSE))+IF(AND(Input_PS!F$33="Yes",NOT(ISBLANK(Input_PS!$B16)),Input_PS!F16>0),PS_Intermediate!F16,0)/IF(Input_PS!I52="",VLOOKUP("Diesel",Database_Tables!$C$1749:$J$1763,2,FALSE),VLOOKUP(Input_PS!I52,Database_Tables!$C$1749:$J$1763,2,FALSE))*IF(Input_PS!I52="",VLOOKUP("Diesel",Database_Tables!$C$1749:$J$1763,5,FALSE),VLOOKUP(Input_PS!I52,Database_Tables!$C$1749:$J$1763,5,FALSE))+IF(AND(Input_PS!G$33="Yes",NOT(ISBLANK(Input_PS!$B16)),Input_PS!G16>0),PS_Intermediate!G16,0)/IF(Input_PS!K52="",VLOOKUP(Database_Tables!$C$1761,Database_Tables!$C$1749:$J$1763,2,FALSE),VLOOKUP(Input_PS!K52,Database_Tables!$C$1749:$J$1763,2,FALSE))*IF(Input_PS!K52="",VLOOKUP(Database_Tables!$C$1761,Database_Tables!$C$1749:$J$1763,5,FALSE),VLOOKUP(Input_PS!K52,Database_Tables!$C$1749:$J$1763,5,FALSE))+IF(AND(Input_PS!H$33="Yes",NOT(ISBLANK(Input_PS!$B16)),Input_PS!H16>0),PS_Intermediate!H16,0)/IF(Input_PS!L52="",VLOOKUP(Database_Tables!$C$1762,Database_Tables!$C$1749:$J$1763,2,FALSE),VLOOKUP(Input_PS!L52,Database_Tables!$C$1749:$J$1763,2,FALSE))*IF(Input_PS!L52="",VLOOKUP(Database_Tables!$C$1762,Database_Tables!$C$1749:$J$1763,5,FALSE),VLOOKUP(Input_PS!L52,Database_Tables!$C$1749:$J$1763,5,FALSE))+IF(AND(Input_PS!I$33="Yes",NOT(ISBLANK(Input_PS!$B16)),Input_PS!I16>0),PS_Intermediate!I16,0)/IF(Input_PS!N52="",VLOOKUP(Database_Tables!$C$1763,Database_Tables!$C$1749:$J$1763,2,FALSE),VLOOKUP(Input_PS!N52,Database_Tables!$C$1749:$J$1763,2,FALSE))*IF(Input_PS!N52="",VLOOKUP(Database_Tables!$C$1763,Database_Tables!$C$1749:$J$1763,5,FALSE),VLOOKUP(Input_PS!N52,Database_Tables!$C$1749:$J$1763,5,FALSE))) -> 0 | K51: =IF($B$48="Per Acre Inputs",-1,-1*Input!$J$14)*(IF(AND(Input_PS!C$33="Yes",NOT(ISBLANK(Input_PS!$B16)),Input_PS!C16>0),PS_Intermediate!C16,0)/IF(Input_PS!C52="",VLOOKUP("Diesel",Database_Tables!$C$1749:$J$1763,2,FALSE),VLOOKUP(Input_PS!C52,Database_Tables!$C$1749:$J$1763,2,FALSE))*IF(Input_PS!C52="",VLOOKUP("Diesel",Database_Tables!$C$1749:$J$1763,6,FALSE),VLOOKUP(Input_PS!C52,Database_Tables!$C$1749:$J$1763,6,FALSE))+IF(AND(Input_PS!D$33="Yes",NOT(ISBLANK(Input_PS!$B16)),Input_PS!D16>0),PS_Intermediate!D16,0)/IF(Input_PS!E52="",VLOOKUP("Diesel",Database_Tables!$C$1749:$J$1763,2,FALSE),VLOOKUP(Input_PS!E52,Database_Tables!$C$1749:$J$1763,2,FALSE))*IF(Input_PS!E52="",VLOOKUP("Diesel",Database_Tables!$C$1749:$J$1763,6,FALSE),VLOOKUP(Input_PS!E52,Database_Tables!$C$1749:$J$1763,6,FALSE))+IF(AND(Input_PS!E$33="Yes",NOT(ISBLANK(Input_PS!$B16)),Input_PS!E16>0),PS_Intermediate!E16,0)/IF(Input_PS!G52="",VLOOKUP("Diesel",Database_Tables!$C$1749:$J$1763,2,FALSE),VLOOKUP(Input_PS!G52,Database_Tables!$C$1749:$J$1763,2,FALSE))*IF(Input_PS!G52="",VLOOKUP("Diesel",Database_Tables!$C$1749:$J$1763,6,FALSE),VLOOKUP(Input_PS!G52,Database_Tables!$C$1749:$J$1763,6,FALSE))+IF(AND(Input_PS!F$33="Yes",NOT(ISBLANK(Input_PS!$B16)),Input_PS!F16>0),PS_Intermediate!F16,0)/IF(Input_PS!I52="",VLOOKUP("Diesel",Database_Tables!$C$1749:$J$1763,2,FALSE),VLOOKUP(Input_PS!I52,Database_Tables!$C$1749:$J$1763,2,FALSE))*IF(Input_PS!I52="",VLOOKUP("Diesel",Database_Tables!$C$1749:$J$1763,6,FALSE),VLOOKUP(Input_PS!I52,Database_Tables!$C$1749:$J$1763,6,FALSE))+IF(AND(Input_PS!G$33="Yes",NOT(ISBLANK(Input_PS!$B16)),Input_PS!G16>0),PS_Intermediate!G16,0)/IF(Input_PS!K52="",VLOOKUP(Database_Tables!$C$1761,Database_Tables!$C$1749:$J$1763,2,FALSE),VLOOKUP(Input_PS!K52,Database_Tables!$C$1749:$J$1763,2,FALSE))*IF(Input_PS!K52="",VLOOKUP(Database_Tables!$C$1761,Database_Tables!$C$1749:$J$1763,6,FALSE),VLOOKUP(Input_PS!K52,Database_Tables!$C$1749:$J$1763,6,FALSE))+IF(AND(Input_PS!H$33="Yes",NOT(ISBLANK(Input_PS!$B16)),Input_PS!H16>0),PS_Intermediate!H16,0)/IF(Input_PS!L52="",VLOOKUP(Database_Tables!$C$1762,Database_Tables!$C$1749:$J$1763,2,FALSE),VLOOKUP(Input_PS!L52,Database_Tables!$C$1749:$J$1763,2,FALSE))*IF(Input_PS!L52="",VLOOKUP(Database_Tables!$C$1762,Database_Tables!$C$1749:$J$1763,6,FALSE),VLOOKUP(Input_PS!L52,Database_Tables!$C$1749:$J$1763,6,FALSE))+IF(AND(Input_PS!I$33="Yes",NOT(ISBLANK(Input_PS!$B16)),Input_PS!I16>0),PS_Intermediate!I16,0)/IF(Input_PS!N52="",VLOOKUP(Database_Tables!$C$1763,Database_Tables!$C$1749:$J$1763,2,FALSE),VLOOKUP(Input_PS!N52,Database_Tables!$C$1749:$J$1763,2,FALSE))*IF(Input_PS!N52="",VLOOKUP(Database_Tables!$C$1763,Database_Tables!$C$1749:$J$1763,6,FALSE),VLOOKUP(Input_PS!N52,Database_Tables!$C$1749:$J$1763,6,FALSE))) -> 0 | M51: =IF($B$48="Per Acre Inputs",-1,-1*Input!$J$14)*(IF(AND(Input_PS!C$33="Yes",NOT(ISBLANK(Input_PS!$B16)),Input_PS!C16>0),PS_Intermediate!C16,0)/IF(Input_PS!C52="",VLOOKUP("Diesel",Database_Tables!$C$1749:$J$1763,2,FALSE),VLOOKUP(Input_PS!C52,Database_Tables!$C$1749:$J$1763,2,FALSE))*IF(Input_PS!C52="",VLOOKUP("Diesel",Database_Tables!$C$1749:$J$1763,7,FALSE),VLOOKUP(Input_PS!C52,Database_Tables!$C$1749:$J$1763,7,FALSE))+IF(AND(Input_PS!D$33="Yes",NOT(ISBLANK(Input_PS!$B16)),Input_PS!D16>0),PS_Intermediate!D16,0)/IF(Input_PS!E52="",VLOOKUP("Diesel",Database_Tables!$C$1749:$J$1763,2,FALSE),VLOOKUP(Input_PS!E52,Database_Tables!$C$1749:$J$1763,2,FALSE))*IF(Input_PS!E52="",VLOOKUP("Diesel",Database_Tables!$C$1749:$J$1763,7,FALSE),VLOOKUP(Input_PS!E52,Database_Tables!$C$1749:$J$1763,7,FALSE))+IF(AND(Input_PS!E$33="Yes",NOT(ISBLANK(Input_PS!$B16)),Input_PS!E16>0),PS_Intermediate!E16,0)/IF(Input_PS!G52="",VLOOKUP("Diesel",Database_Tables!$C$1749:$J$1763,2,FALSE),VLOOKUP(Input_PS!G52,Database_Tables!$C$1749:$J$1763,2,FALSE))*IF(Input_PS!G52="",VLOOKUP("Diesel",Database_Tables!$C$1749:$J$1763,7,FALSE),VLOOKUP(Input_PS!G52,Database_Tables!$C$1749:$J$1763,7,FALSE))+IF(AND(Input_PS!F$33="Yes",NOT(ISBLANK(Input_PS!$B16)),Input_PS!F16>0),PS_Intermediate!F16,0)/IF(Input_PS!I52="",VLOOKUP("Diesel",Database_Tables!$C$1749:$J$1763,2,FALSE),VLOOKUP(Input_PS!I52,Database_Tables!$C$1749:$J$1763,2,FALSE))*IF(Input_PS!I52="",VLOOKUP("Diesel",Database_Tables!$C$1749:$J$1763,7,FALSE),VLOOKUP(Input_PS!I52,Database_Tables!$C$1749:$J$1763,7,FALSE))+IF(AND(Input_PS!G$33="Yes",NOT(ISBLANK(Input_PS!$B16)),Input_PS!G16>0),PS_Intermediate!G16,0)/IF(Input_PS!K52="",VLOOKUP(Database_Tables!$C$1761,Database_Tables!$C$1749:$J$1763,2,FALSE),VLOOKUP(Input_PS!K52,Database_Tables!$C$1749:$J$1763,2,FALSE))*IF(Input_PS!K52="",VLOOKUP(Database_Tables!$C$1761,Database_Tables!$C$1749:$J$1763,7,FALSE),VLOOKUP(Input_PS!K52,Database_Tables!$C$1749:$J$1763,7,FALSE))+IF(AND(Input_PS!H$33="Yes",NOT(ISBLANK(Input_PS!$B16)),Input_PS!H16>0),PS_Intermediate!H16,0)/IF(Input_PS!L52="",VLOOKUP(Database_Tables!$C$1762,Database_Tables!$C$1749:$J$1763,2,FALSE),VLOOKUP(Input_PS!L52,Database_Tables!$C$1749:$J$1763,2,FALSE))*IF(Input_PS!L52="",VLOOKUP(Database_Tables!$C$1762,Database_Tables!$C$1749:$J$1763,7,FALSE),VLOOKUP(Input_PS!L52,Database_Tables!$C$1749:$J$1763,7,FALSE))+IF(AND(Input_PS!I$33="Yes",NOT(ISBLANK(Input_PS!$B16)),Input_PS!I16>0),PS_Intermediate!I16,0)/IF(Input_PS!N52="",VLOOKUP(Database_Tables!$C$1763,Database_Tables!$C$1749:$J$1763,2,FALSE),VLOOKUP(Input_PS!N52,Database_Tables!$C$1749:$J$1763,2,FALSE))*IF(Input_PS!N52="",VLOOKUP(Database_Tables!$C$1763,Database_Tables!$C$1749:$J$1763,7,FALSE),VLOOKUP(Input_PS!N52,Database_Tables!$C$1749:$J$1763,7,FALSE))) -> 0 | O51: =IF(ISNA(VLOOKUP(B51,Database_Tables!$I$1587:$J$1626,2,FALSE)),FALSE,TRUE) -> FALSE
B52: =Input_PS!B17 -> 0 | C52: =IF($B$48="Per Acre Inputs",-1,-1*Input!$J$14)*IF(B52=0,0,SUM(PS_Intermediate!C17:I17))*IF(C50="[MBTU]",1000,1) -> 0 | E52: =IF($B$48="Per Acre Inputs",-1,-1*Input!$J$14)*(IF(AND(Input_PS!C$33="Yes",NOT(ISBLANK(Input_PS!$B17)),Input_PS!C17>0),PS_Intermediate!C17,0)/IF(Input_PS!C53="",VLOOKUP("Diesel",Database_Tables!$C$1749:$J$1763,2,FALSE),VLOOKUP(Input_PS!C53,Database_Tables!$C$1749:$J$1763,2,FALSE))*IF(Input_PS!C53="",VLOOKUP("Diesel",Database_Tables!$C$1749:$J$1763,3,FALSE),VLOOKUP(Input_PS!C53,Database_Tables!$C$1749:$J$1763,3,FALSE))+IF(AND(Input_PS!D$33="Yes",NOT(ISBLANK(Input_PS!$B17)),Input_PS!D17>0),PS_Intermediate!D17,0)/IF(Input_PS!E53="",VLOOKUP("Diesel",Database_Tables!$C$1749:$J$1763,2,FALSE),VLOOKUP(Input_PS!E53,Database_Tables!$C$1749:$J$1763,2,FALSE))*IF(Input_PS!E53="",VLOOKUP("Diesel",Database_Tables!$C$1749:$J$1763,3,FALSE),VLOOKUP(Input_PS!E53,Database_Tables!$C$1749:$J$1763,3,FALSE))+IF(AND(Input_PS!E$33="Yes",NOT(ISBLANK(Input_PS!$B17)),Input_PS!E17>0),PS_Intermediate!E17,0)/IF(Input_PS!G53="",VLOOKUP("Diesel",Database_Tables!$C$1749:$J$1763,2,FALSE),VLOOKUP(Input_PS!G53,Database_Tables!$C$1749:$J$1763,2,FALSE))*IF(Input_PS!G53="",VLOOKUP("Diesel",Database_Tables!$C$1749:$J$1763,3,FALSE),VLOOKUP(Input_PS!G53,Database_Tables!$C$1749:$J$1763,3,FALSE))+IF(AND(Input_PS!F$33="Yes",NOT(ISBLANK(Input_PS!$B17)),Input_PS!F17>0),PS_Intermediate!F17,0)/IF(Input_PS!I53="",VLOOKUP("Diesel",Database_Tables!$C$1749:$J$1763,2,FALSE),VLOOKUP(Input_PS!I53,Database_Tables!$C$1749:$J$1763,2,FALSE))*IF(Input_PS!I53="",VLOOKUP("Diesel",Database_Tables!$C$1749:$J$1763,3,FALSE),VLOOKUP(Input_PS!I53,Database_Tables!$C$1749:$J$1763,3,FALSE))+IF(AND(Input_PS!G$33="Yes",NOT(ISBLANK(Input_PS!$B17)),Input_PS!G17>0),PS_Intermediate!G17,0)/IF(Input_PS!K53="",VLOOKUP(Database_Tables!$C$1761,Database_Tables!$C$1749:$J$1763,2,FALSE),VLOOKUP(Input_PS!K53,Database_Tables!$C$1749:$J$1763,2,FALSE))*IF(Input_PS!K53="",VLOOKUP(Database_Tables!$C$1761,Database_Tables!$C$1749:$J$1763,3,FALSE),VLOOKUP(Input_PS!K53,Database_Tables!$C$1749:$J$1763,3,FALSE))+IF(AND(Input_PS!H$33="Yes",NOT(ISBLANK(Input_PS!$B17)),Input_PS!H17>0),PS_Intermediate!H17,0)/IF(Input_PS!L53="",VLOOKUP(Database_Tables!$C$1762,Database_Tables!$C$1749:$J$1763,2,FALSE),VLOOKUP(Input_PS!L53,Database_Tables!$C$1749:$J$1763,2,FALSE))*IF(Input_PS!L53="",VLOOKUP(Database_Tables!$C$1762,Database_Tables!$C$1749:$J$1763,3,FALSE),VLOOKUP(Input_PS!L53,Database_Tables!$C$1749:$J$1763,3,FALSE))+IF(AND(Input_PS!I$33="Yes",NOT(ISBLANK(Input_PS!$B17)),Input_PS!I17>0),PS_Intermediate!I17,0)/IF(Input_PS!N53="",VLOOKUP(Database_Tables!$C$1763,Database_Tables!$C$1749:$J$1763,2,FALSE),VLOOKUP(Input_PS!N53,Database_Tables!$C$1749:$J$1763,2,FALSE))*IF(Input_PS!N53="",VLOOKUP(Database_Tables!$C$1763,Database_Tables!$C$1749:$J$1763,3,FALSE),VLOOKUP(Input_PS!N53,Database_Tables!$C$1749:$J$1763,3,FALSE))) -> 0 | G52: =IF($B$48="Per Acre Inputs",-1,-1*Input!$J$14)*(IF(AND(Input_PS!C$33="Yes",NOT(ISBLANK(Input_PS!$B17)),Input_PS!C17>0),PS_Intermediate!C17,0)/IF(Input_PS!C53="",VLOOKUP("Diesel",Database_Tables!$C$1749:$J$1763,2,FALSE),VLOOKUP(Input_PS!C53,Database_Tables!$C$1749:$J$1763,2,FALSE))*IF(Input_PS!C53="",VLOOKUP("Diesel",Database_Tables!$C$1749:$J$1763,4,FALSE),VLOOKUP(Input_PS!C53,Database_Tables!$C$1749:$J$1763,4,FALSE))+IF(AND(Input_PS!D$33="Yes",NOT(ISBLANK(Input_PS!$B17)),Input_PS!D17>0),PS_Intermediate!D17,0)/IF(Input_PS!E53="",VLOOKUP("Diesel",Database_Tables!$C$1749:$J$1763,2,FALSE),VLOOKUP(Input_PS!E53,Database_Tables!$C$1749:$J$1763,2,FALSE))*IF(Input_PS!E53="",VLOOKUP("Diesel",Database_Tables!$C$1749:$J$1763,4,FALSE),VLOOKUP(Input_PS!E53,Database_Tables!$C$1749:$J$1763,4,FALSE))+IF(AND(Input_PS!E$33="Yes",NOT(ISBLANK(Input_PS!$B17)),Input_PS!E17>0),PS_Intermediate!E17,0)/IF(Input_PS!G53="",VLOOKUP("Diesel",Database_Tables!$C$1749:$J$1763,2,FALSE),VLOOKUP(Input_PS!G53,Database_Tables!$C$1749:$J$1763,2,FALSE))*IF(Input_PS!G53="",VLOOKUP("Diesel",Database_Tables!$C$1749:$J$1763,4,FALSE),VLOOKUP(Input_PS!G53,Database_Tables!$C$1749:$J$1763,4,FALSE))+IF(AND(Input_PS!F$33="Yes",NOT(ISBLANK(Input_PS!$B17)),Input_PS!F17>0),PS_Intermediate!F17,0)/IF(Input_PS!I53="",VLOOKUP("Diesel",Database_Tables!$C$1749:$J$1763,2,FALSE),VLOOKUP(Input_PS!I53,Database_Tables!$C$1749:$J$1763,2,FALSE))*IF(Input_PS!I53="",VLOOKUP("Diesel",Database_Tables!$C$1749:$J$1763,4,FALSE),VLOOKUP(Input_PS!I53,Database_Tables!$C$1749:$J$1763,4,FALSE))+IF(AND(Input_PS!G$33="Yes",NOT(ISBLANK(Input_PS!$B17)),Input_PS!G17>0),PS_Intermediate!G17,0)/IF(Input_PS!K53="",VLOOKUP(Database_Tables!$C$1761,Database_Tables!$C$1749:$J$1763,2,FALSE),VLOOKUP(Input_PS!K53,Database_Tables!$C$1749:$J$1763,2,FALSE))*IF(Input_PS!K53="",VLOOKUP(Database_Tables!$C$1761,Database_Tables!$C$1749:$J$1763,4,FALSE),VLOOKUP(Input_PS!K53,Database_Tables!$C$1749:$J$1763,4,FALSE))+IF(AND(Input_PS!H$33="Yes",NOT(ISBLANK(Input_PS!$B17)),Input_PS!H17>0),PS_Intermediate!H17,0)/IF(Input_PS!L53="",VLOOKUP(Database_Tables!$C$1762,Database_Tables!$C$1749:$J$1763,2,FALSE),VLOOKUP(Input_PS!L53,Database_Tables!$C$1749:$J$1763,2,FALSE))*IF(Input_PS!L53="",VLOOKUP(Database_Tables!$C$1762,Database_Tables!$C$1749:$J$1763,4,FALSE),VLOOKUP(Input_PS!L53,Database_Tables!$C$1749:$J$1763,4,FALSE))+IF(AND(Input_PS!I$33="Yes",NOT(ISBLANK(Input_PS!$B17)),Input_PS!I17>0),PS_Intermediate!I17,0)/IF(Input_PS!N53="",VLOOKUP(Database_Tables!$C$1763,Database_Tables!$C$1749:$J$1763,2,FALSE),VLOOKUP(Input_PS!N53,Database_Tables!$C$1749:$J$1763,2,FALSE))*IF(Input_PS!N53="",VLOOKUP(Database_Tables!$C$1763,Database_Tables!$C$1749:$J$1763,4,FALSE),VLOOKUP(Input_PS!N53,Database_Tables!$C$1749:$J$1763,4,FALSE))) -> 0 | I52: =IF($B$48="Per Acre Inputs",-1,-1*Input!$J$14)*(IF(AND(Input_PS!C$33="Yes",NOT(ISBLANK(Input_PS!$B17)),Input_PS!C17>0),PS_Intermediate!C17,0)/IF(Input_PS!C53="",VLOOKUP("Diesel",Database_Tables!$C$1749:$J$1763,2,FALSE),VLOOKUP(Input_PS!C53,Database_Tables!$C$1749:$J$1763,2,FALSE))*IF(Input_PS!C53="",VLOOKUP("Diesel",Database_Tables!$C$1749:$J$1763,5,FALSE),VLOOKUP(Input_PS!C53,Database_Tables!$C$1749:$J$1763,5,FALSE))+IF(AND(Input_PS!D$33="Yes",NOT(ISBLANK(Input_PS!$B17)),Input_PS!D17>0),PS_Intermediate!D17,0)/IF(Input_PS!E53="",VLOOKUP("Diesel",Database_Tables!$C$1749:$J$1763,2,FALSE),VLOOKUP(Input_PS!E53,Database_Tables!$C$1749:$J$1763,2,FALSE))*IF(Input_PS!E53="",VLOOKUP("Diesel",Database_Tables!$C$1749:$J$1763,5,FALSE),VLOOKUP(Input_PS!E53,Database_Tables!$C$1749:$J$1763,5,FALSE))+IF(AND(Input_PS!E$33="Yes",NOT(ISBLANK(Input_PS!$B17)),Input_PS!E17>0),PS_Intermediate!E17,0)/IF(Input_PS!G53="",VLOOKUP("Diesel",Database_Tables!$C$1749:$J$1763,2,FALSE),VLOOKUP(Input_PS!G53,Database_Tables!$C$1749:$J$1763,2,FALSE))*IF(Input_PS!G53="",VLOOKUP("Diesel",Database_Tables!$C$1749:$J$1763,5,FALSE),VLOOKUP(Input_PS!G53,Database_Tables!$C$1749:$J$1763,5,FALSE))+IF(AND(Input_PS!F$33="Yes",NOT(ISBLANK(Input_PS!$B17)),Input_PS!F17>0),PS_Intermediate!F17,0)/IF(Input_PS!I53="",VLOOKUP("Diesel",Database_Tables!$C$1749:$J$1763,2,FALSE),VLOOKUP(Input_PS!I53,Database_Tables!$C$1749:$J$1763,2,FALSE))*IF(Input_PS!I53="",VLOOKUP("Diesel",Database_Tables!$C$1749:$J$1763,5,FALSE),VLOOKUP(Input_PS!I53,Database_Tables!$C$1749:$J$1763,5,FALSE))+IF(AND(Input_PS!G$33="Yes",NOT(ISBLANK(Input_PS!$B17)),Input_PS!G17>0),PS_Intermediate!G17,0)/IF(Input_PS!K53="",VLOOKUP(Database_Tables!$C$1761,Database_Tables!$C$1749:$J$1763,2,FALSE),VLOOKUP(Input_PS!K53,Database_Tables!$C$1749:$J$1763,2,FALSE))*IF(Input_PS!K53="",VLOOKUP(Database_Tables!$C$1761,Database_Tables!$C$1749:$J$1763,5,FALSE),VLOOKUP(Input_PS!K53,Database_Tables!$C$1749:$J$1763,5,FALSE))+IF(AND(Input_PS!H$33="Yes",NOT(ISBLANK(Input_PS!$B17)),Input_PS!H17>0),PS_Intermediate!H17,0)/IF(Input_PS!L53="",VLOOKUP(Database_Tables!$C$1762,Database_Tables!$C$1749:$J$1763,2,FALSE),VLOOKUP(Input_PS!L53,Database_Tables!$C$1749:$J$1763,2,FALSE))*IF(Input_PS!L53="",VLOOKUP(Database_Tables!$C$1762,Database_Tables!$C$1749:$J$1763,5,FALSE),VLOOKUP(Input_PS!L53,Database_Tables!$C$1749:$J$1763,5,FALSE))+IF(AND(Input_PS!I$33="Yes",NOT(ISBLANK(Input_PS!$B17)),Input_PS!I17>0),PS_Intermediate!I17,0)/IF(Input_PS!N53="",VLOOKUP(Database_Tables!$C$1763,Database_Tables!$C$1749:$J$1763,2,FALSE),VLOOKUP(Input_PS!N53,Database_Tables!$C$1749:$J$1763,2,FALSE))*IF(Input_PS!N53="",VLOOKUP(Database_Tables!$C$1763,Database_Tables!$C$1749:$J$1763,5,FALSE),VLOOKUP(Input_PS!N53,Database_Tables!$C$1749:$J$1763,5,FALSE))) -> 0 | K52: =IF($B$48="Per Acre Inputs",-1,-1*Input!$J$14)*(IF(AND(Input_PS!C$33="Yes",NOT(ISBLANK(Input_PS!$B17)),Input_PS!C17>0),PS_Intermediate!C17,0)/IF(Input_PS!C53="",VLOOKUP("Diesel",Database_Tables!$C$1749:$J$1763,2,FALSE),VLOOKUP(Input_PS!C53,Database_Tables!$C$1749:$J$1763,2,FALSE))*IF(Input_PS!C53="",VLOOKUP("Diesel",Database_Tables!$C$1749:$J$1763,6,FALSE),VLOOKUP(Input_PS!C53,Database_Tables!$C$1749:$J$1763,6,FALSE))+IF(AND(Input_PS!D$33="Yes",NOT(ISBLANK(Input_PS!$B17)),Input_PS!D17>0),PS_Intermediate!D17,0)/IF(Input_PS!E53="",VLOOKUP("Diesel",Database_Tables!$C$1749:$J$1763,2,FALSE),VLOOKUP(Input_PS!E53,Database_Tables!$C$1749:$J$1763,2,FALSE))*IF(Input_PS!E53="",VLOOKUP("Diesel",Database_Tables!$C$1749:$J$1763,6,FALSE),VLOOKUP(Input_PS!E53,Database_Tables!$C$1749:$J$1763,6,FALSE))+IF(AND(Input_PS!E$33="Yes",NOT(ISBLANK(Input_PS!$B17)),Input_PS!E17>0),PS_Intermediate!E17,0)/IF(Input_PS!G53="",VLOOKUP("Diesel",Database_Tables!$C$1749:$J$1763,2,FALSE),VLOOKUP(Input_PS!G53,Database_Tables!$C$1749:$J$1763,2,FALSE))*IF(Input_PS!G53="",VLOOKUP("Diesel",Database_Tables!$C$1749:$J$1763,6,FALSE),VLOOKUP(Input_PS!G53,Database_Tables!$C$1749:$J$1763,6,FALSE))+IF(AND(Input_PS!F$33="Yes",NOT(ISBLANK(Input_PS!$B17)),Input_PS!F17>0),PS_Intermediate!F17,0)/IF(Input_PS!I53="",VLOOKUP("Diesel",Database_Tables!$C$1749:$J$1763,2,FALSE),VLOOKUP(Input_PS!I53,Database_Tables!$C$1749:$J$1763,2,FALSE))*IF(Input_PS!I53="",VLOOKUP("Diesel",Database_Tables!$C$1749:$J$1763,6,FALSE),VLOOKUP(Input_PS!I53,Database_Tables!$C$1749:$J$1763,6,FALSE))+IF(AND(Input_PS!G$33="Yes",NOT(ISBLANK(Input_PS!$B17)),Input_PS!G17>0),PS_Intermediate!G17,0)/IF(Input_PS!K53="",VLOOKUP(Database_Tables!$C$1761,Database_Tables!$C$1749:$J$1763,2,FALSE),VLOOKUP(Input_PS!K53,Database_Tables!$C$1749:$J$1763,2,FALSE))*IF(Input_PS!K53="",VLOOKUP(Database_Tables!$C$1761,Database_Tables!$C$1749:$J$1763,6,FALSE),VLOOKUP(Input_PS!K53,Database_Tables!$C$1749:$J$1763,6,FALSE))+IF(AND(Input_PS!H$33="Yes",NOT(ISBLANK(Input_PS!$B17)),Input_PS!H17>0),PS_Intermediate!H17,0)/IF(Input_PS!L53="",VLOOKUP(Database_Tables!$C$1762,Database_Tables!$C$1749:$J$1763,2,FALSE),VLOOKUP(Input_PS!L53,Database_Tables!$C$1749:$J$1763,2,FALSE))*IF(Input_PS!L53="",VLOOKUP(Database_Tables!$C$1762,Database_Tables!$C$1749:$J$1763,6,FALSE),VLOOKUP(Input_PS!L53,Database_Tables!$C$1749:$J$1763,6,FALSE))+IF(AND(Input_PS!I$33="Yes",NOT(ISBLANK(Input_PS!$B17)),Input_PS!I17>0),PS_Intermediate!I17,0)/IF(Input_PS!N53="",VLOOKUP(Database_Tables!$C$1763,Database_Tables!$C$1749:$J$1763,2,FALSE),VLOOKUP(Input_PS!N53,Database_Tables!$C$1749:$J$1763,2,FALSE))*IF(Input_PS!N53="",VLOOKUP(Database_Tables!$C$1763,Database_Tables!$C$1749:$J$1763,6,FALSE),VLOOKUP(Input_PS!N53,Database_Tables!$C$1749:$J$1763,6,FALSE))) -> 0 | M52: =IF($B$48="Per Acre Inputs",-1,-1*Input!$J$14)*(IF(AND(Input_PS!C$33="Yes",NOT(ISBLANK(Input_PS!$B17)),Input_PS!C17>0),PS_Intermediate!C17,0)/IF(Input_PS!C53="",VLOOKUP("Diesel",Database_Tables!$C$1749:$J$1763,2,FALSE),VLOOKUP(Input_PS!C53,Database_Tables!$C$1749:$J$1763,2,FALSE))*IF(Input_PS!C53="",VLOOKUP("Diesel",Database_Tables!$C$1749:$J$1763,7,FALSE),VLOOKUP(Input_PS!C53,Database_Tables!$C$1749:$J$1763,7,FALSE))+IF(AND(Input_PS!D$33="Yes",NOT(ISBLANK(Input_PS!$B17)),Input_PS!D17>0),PS_Intermediate!D17,0)/IF(Input_PS!E53="",VLOOKUP("Diesel",Database_Tables!$C$1749:$J$1763,2,FALSE),VLOOKUP(Input_PS!E53,Database_Tables!$C$1749:$J$1763,2,FALSE))*IF(Input_PS!E53="",VLOOKUP("Diesel",Database_Tables!$C$1749:$J$1763,7,FALSE),VLOOKUP(Input_PS!E53,Database_Tables!$C$1749:$J$1763,7,FALSE))+IF(AND(Input_PS!E$33="Yes",NOT(ISBLANK(Input_PS!$B17)),Input_PS!E17>0),PS_Intermediate!E17,0)/IF(Input_PS!G53="",VLOOKUP("Diesel",Database_Tables!$C$1749:$J$1763,2,FALSE),VLOOKUP(Input_PS!G53,Database_Tables!$C$1749:$J$1763,2,FALSE))*IF(Input_PS!G53="",VLOOKUP("Diesel",Database_Tables!$C$1749:$J$1763,7,FALSE),VLOOKUP(Input_PS!G53,Database_Tables!$C$1749:$J$1763,7,FALSE))+IF(AND(Input_PS!F$33="Yes",NOT(ISBLANK(Input_PS!$B17)),Input_PS!F17>0),PS_Intermediate!F17,0)/IF(Input_PS!I53="",VLOOKUP("Diesel",Database_Tables!$C$1749:$J$1763,2,FALSE),VLOOKUP(Input_PS!I53,Database_Tables!$C$1749:$J$1763,2,FALSE))*IF(Input_PS!I53="",VLOOKUP("Diesel",Database_Tables!$C$1749:$J$1763,7,FALSE),VLOOKUP(Input_PS!I53,Database_Tables!$C$1749:$J$1763,7,FALSE))+IF(AND(Input_PS!G$33="Yes",NOT(ISBLANK(Input_PS!$B17)),Input_PS!G17>0),PS_Intermediate!G17,0)/IF(Input_PS!K53="",VLOOKUP(Database_Tables!$C$1761,Database_Tables!$C$1749:$J$1763,2,FALSE),VLOOKUP(Input_PS!K53,Database_Tables!$C$1749:$J$1763,2,FALSE))*IF(Input_PS!K53="",VLOOKUP(Database_Tables!$C$1761,Database_Tables!$C$1749:$J$1763,7,FALSE),VLOOKUP(Input_PS!K53,Database_Tables!$C$1749:$J$1763,7,FALSE))+IF(AND(Input_PS!H$33="Yes",NOT(ISBLANK(Input_PS!$B17)),Input_PS!H17>0),PS_Intermediate!H17,0)/IF(Input_PS!L53="",VLOOKUP(Database_Tables!$C$1762,Database_Tables!$C$1749:$J$1763,2,FALSE),VLOOKUP(Input_PS!L53,Database_Tables!$C$1749:$J$1763,2,FALSE))*IF(Input_PS!L53="",VLOOKUP(Database_Tables!$C$1762,Database_Tables!$C$1749:$J$1763,7,FALSE),VLOOKUP(Input_PS!L53,Database_Tables!$C$1749:$J$1763,7,FALSE))+IF(AND(Input_PS!I$33="Yes",NOT(ISBLANK(Input_PS!$B17)),Input_PS!I17>0),PS_Intermediate!I17,0)/IF(Input_PS!N53="",VLOOKUP(Database_Tables!$C$1763,Database_Tables!$C$1749:$J$1763,2,FALSE),VLOOKUP(Input_PS!N53,Database_Tables!$C$1749:$J$1763,2,FALSE))*IF(Input_PS!N53="",VLOOKUP(Database_Tables!$C$1763,Database_Tables!$C$1749:$J$1763,7,FALSE),VLOOKUP(Input_PS!N53,Database_Tables!$C$1749:$J$1763,7,FALSE))) -> 0 | O52: =IF(ISNA(VLOOKUP(B52,Database_Tables!$I$1587:$J$1626,2,FALSE)),FALSE,TRUE) -> FALSE
